Workbook

Sheet Introduction
C4: Joint Monitoring Programme for Water Supply, Sanitation and Hygiene
C6: Estimates on household water, sanitation and hygiene by wealth quintile and sub-national region in
C7: =+Water!B5 -> Republic of Moldova
C9: Updated May 2021
C11: Follow the links below to find the following information:
C13: JMP Estimates
C14: WASH status and trends by wealth quintile (customized quintiles made without water and sanitation assets)
C15: Water
C16: Sanitation
C17: Hygiene
C19: Data inputs
C20: customized wealth quintiles and subnational data:
C21: =IF(INDIRECT(CONCATENATE("Water","!B105"))=0,"",INDIRECT(CONCATENATE("Water","!B105"))) -> MICS00
C22: =IF(INDIRECT(CONCATENATE("Water","!B106"))=0,"",INDIRECT(CONCATENATE("Water","!B106"))) -> DHS05
C23: =IF(INDIRECT(CONCATENATE("Water","!B107"))=0,"",INDIRECT(CONCATENATE("Water","!B107"))) -> MICS12
C24: =IF(INDIRECT(CONCATENATE("Water","!B108"))=0,"",INDIRECT(CONCATENATE("Water","!B108"))) -> 
C25: =IF(INDIRECT(CONCATENATE("Water","!B109"))=0,"",INDIRECT(CONCATENATE("Water","!B109"))) -> 
C26: =IF(INDIRECT(CONCATENATE("Water","!B110"))=0,"",INDIRECT(CONCATENATE("Water","!B110"))) -> 
C27: =IF(INDIRECT(CONCATENATE("Water","!B111"))=0,"",INDIRECT(CONCATENATE("Water","!B111"))) -> 
C28: =IF(INDIRECT(CONCATENATE("Water","!B112"))=0,"",INDIRECT(CONCATENATE("Water","!B112"))) -> 
C29: =IF(INDIRECT(CONCATENATE("Water","!B113"))=0,"",INDIRECT(CONCATENATE("Water","!B113"))) -> 
C30: =IF(INDIRECT(CONCATENATE("Water","!B114"))=0,"",INDIRECT(CONCATENATE("Water","!B114"))) -> 
C31: =IF(INDIRECT(CONCATENATE("Water","!B115"))=0,"",INDIRECT(CONCATENATE("Water","!B115"))) -> 
C32: =IF(INDIRECT(CONCATENATE("Water","!B116"))=0,"",INDIRECT(CONCATENATE("Water","!B116"))) -> 
L55: =+IF(ISNUMBER(M48), "", "Insufficient data to estimate safely managed sanitation services at national level") -> Insufficient data to estimate safely managed sanitation services at national level

Sheet Water
A1: BGD
B4: Summary of trends in use of drinking water by wealth quintile (%)
B5: =IF(ISERROR(INDIRECT(CONCATENATE($B105,"!A2"))),"",INDIRECT(CONCATENATE($B105,"!A2"))) -> Republic of Moldova
B7: =B118 -> National use of drinking water sources, 2000–2018 | J7: =B218 -> Urban use of drinking water sources, 2000–2018 | R7: =B318 -> Rural use of drinking water sources, 2000–2018
B31: =IF(ISERROR(INDIRECT(CONCATENATE($B105,"!A2"))),"",INDIRECT(CONCATENATE($B105,"!A2"))) -> Republic of Moldova | F31: Poorest | J31: Poor | N31: Middle | R31: Rich | V31: Richest
F32: Basic | G32: Limited | H32: Unimproved | I32: Surface water | J32: Basic | K32: Limited | L32: Unimproved | M32: Surface water | N32: Basic | O32: Limited | P32: Unimproved | Q32: Surface water | R32: Basic | S32: Limited | T32: Unimproved | U32: Surface water | V32: Basic | W32: Limited | X32: Unimproved | Y32: Surface water
B33: NATIONAL | D33: Estimate | E33: =C99 -> 2000 | F33: =E99 -> 85.91696401 | G33: =F99 -> 2.263143435 | H33: 11.81989255 | I33: 0 | J33: =J99 -> 90.89685241 | K33: =K99 -> 1.823404751 | L33: 7.279742839 | M33: 0 | N33: =O99 -> 92.90749694 | O33: =P99 -> 1.446441531 | P33: 5.611933678 | Q33: 0.03412784759 | R33: =T99 -> 95.64140594 | S33: =U99 -> 1.29964917 | T33: 3.058944893 | U33: 0 | V33: =Y99 -> 98.00811352 | W33: =Z99 -> 0.9629368964 | X33: 1.028949589 | Y33: 0
E34: =C100 -> 2018 | F34: =E100 -> 71.30435711 | G34: 1.87823196 | H34: 26.81741093 | I34: 0 | J34: =J100 -> 79.84860235 | K34: 1.601775167 | L34: 18.54962248 | M34: 0 | N34: =O100 -> 86.40107061 | O34: 1.345145451 | P34: 12.25378394 | Q34: 0 | R34: =T100 -> 91.82271019 | S34: 1.247757788 | T34: 6.929532021 | U34: 0 | V34: =Y100 -> 96.58287804 | W34: 0.9489338534 | X34: 2.468188111 | Y34: 0
B36: URBAN | D36: Estimate | E36: =C199 -> 2000 | F36: =E199 -> 94.73393158 | G36: =F199 -> 1.762170676 | H36: 3.503897743 | I36: 0 | J36: =J199 -> 96.45110944 | K36: =K199 -> 1.61823055 | L36: 1.930660005 | M36: 0 | N36: =O199 -> 98.09696013 | O36: =P199 -> 1.274700305 | P36: 0.6283395686 | Q36: 0 | R36: =T199 -> 97.71856087 | S36: =U199 -> 1.376073613 | T36: 0.9053655213 | U36: 0 | V36: =Y199 -> 98.51582372 | W36: =Z199 -> 0.6898316094 | X36: 0.7943446739 | Y36: 0
E37: =C200 -> 2018 | F37: =E200 -> 87.26817741 | G37: 1.623298227 | H37: 11.10852436 | I37: 0 | J37: =J200 -> 94.28828115 | K37: 1.581943204 | L37: 4.129775646 | M37: 0 | N37: =O200 -> 95.21966205 | O37: 1.23731186 | P37: 3.543026092 | Q37: 0 | R37: =T200 -> 96.78805373 | S37: 1.362970204 | T37: 1.848976062 | U37: 0 | V37: =Y200 -> 98.67223922 | W37: 0.6909268686 | X37: 0.6368339068 | Y37: 0
B39: RURAL | D39: Estimate | E39: =C299 -> 2000 | F39: =E299 -> 83.42804174 | G39: =F299 -> 2.445634955 | H39: 14.12632331 | I39: 0 | J39: =J299 -> 89.17382832 | K39: =K299 -> 2.082163741 | L39: 8.744007942 | M39: 0 | N39: =O299 -> 91.35047547 | O39: =P299 -> 1.512446783 | P39: 7.137077751 | Q39: 0 | R39: =T299 -> 90.9103751 | S39: =U299 -> 1.566122216 | T39: 7.466273639 | U39: 0.05722904354 | V39: =Y299 -> 93.49698292 | W39: =Z299 -> 0.8605426838 | X39: 5.6424744 | Y39: 0
E40: =C300 -> 2018 | F40: =E300 -> 68.84234052 | G40: 2.01806528 | H40: 29.1395942 | I40: 0 | J40: =J300 -> 75.34278437 | K40: 1.759215868 | L40: 22.89799976 | M40: 0 | N40: =O300 -> 79.6997805 | O40: 1.319551716 | P40: 18.98066779 | Q40: 0 | R40: =T300 -> 84.51473305 | S40: 1.455943844 | T40: 14.02932311 | U40: 0 | V40: =Y300 -> 90.30604131 | W40: 0.8311733783 | X40: 8.862785312 | Y40: 0
A97: NATIONAL | D97: Poorest | I97: Poor | N97: Middle | S97: Rich | X97: Richest
D98: Improved | E98: Basic | F98: Limited | G98: Unimproved | H98: Surface water | I98: Improved | J98: Basic | K98: Limited | L98: Unimproved | M98: Surface water | N98: Improved | O98: Basic | P98: Limited | Q98: Unimproved | R98: Surface water | S98: Improved | T98: Basic | U98: Limited | V98: Unimproved | W98: Surface water | X98: Improved | Y98: Basic | Z98: Limited | AA98: Unimproved | AB98: Surface water
A99: Forecast period: | C99: 2000 | D99: =IF((D101+H101)>100,D101*100/(D101+H101),D101) -> 88.18010745 | E99: =D99*AVERAGEIF(E105:E116,">0")/100 -> 85.91696401 | F99: =D99*(100-AVERAGEIF(E105:E116,">0"))/100 -> 2.263143435 | G99: =100-(E99+F99+H99) -> 11.81989255 | H99: =IF((D101+H101)>100,H101*100/(D101+H101),H101) -> 0 | I99: =IF((I101+M101)>100,I101*100/(I101+M101),I101) -> 92.72025716 | J99: =I99*AVERAGEIF(J105:J116,">0")/100 -> 90.89685241 | K99: =I99*(100-AVERAGEIF(J105:J116,">0"))/100 -> 1.823404751 | L99: =100-(J99+K99+M99) -> 7.279742839 | M99: =IF((I101+M101)>100,M101*100/(I101+M101),M101) -> 0 | N99: =IF((N101+R101)>100,N101*100/(N101+R101),N101) -> 94.35393847 | O99: =N99*AVERAGEIF(O105:O116,">0")/100 -> 92.90749694 | P99: =N99*(100-AVERAGEIF(O105:O116,">0"))/100 -> 1.446441531 | Q99: =100-(O99+P99+R99) -> 5.611933678 | R99: =IF((N101+R101)>100,R101*100/(N101+R101),R101) -> 0.03412784759 | S99: =IF((S101+W101)>100,S101*100/(S101+W101),S101) -> 96.94105511 | T99: =S99*AVERAGEIF(T105:T116,">0")/100 -> 95.64140594 | U99: =S99*(100-AVERAGEIF(T105:T116,">0"))/100 -> 1.29964917 | V99: =100-(T99+U99+W99) -> 3.058944893 | W99: =IF((S101+W101)>100,W101*100/(S101+W101),W101) -> 0 | X99: =IF((X101+AB101)>100,X101*100/(X101+AB101),X101) -> 98.97105041 | Y99: =X99*AVERAGEIF(Y105:Y116,">0")/100 -> 98.00811352 | Z99: =X99*(100-AVERAGEIF(Y105:Y116,">0"))/100 -> 0.9629368964 | AA99: =100-(Y99+Z99+AB99) -> 1.028949589 | AB99: =IF((X101+AB101)>100,AB101*100/(X101+AB101),AB101) -> 0
C100: 2018 | D100: =IF((D102+H102)>100,D102*100/(D102+H102),D102) -> 73.18258907 | E100: =D100*AVERAGEIF(E105:E116,">0")/100 -> 71.30435711 | F100: =D100*(100-AVERAGEIF(E105:E116,">0"))/100 -> 1.87823196 | G100: =100-(E100+F100+H100) -> 26.81741093 | H100: =IF((D102+H102)>100,H102*100/(D102+H102),H102) -> 0 | I100: =IF((I102+M102)>100,I102*100/(I102+M102),I102) -> 81.45037752 | J100: =I100*AVERAGEIF(J105:J116,">0")/100 -> 79.84860235 | K100: =I100*(100-AVERAGEIF(J105:J116,">0"))/100 -> 1.601775167 | L100: =100-(J100+K100+M100) -> 18.54962248 | M100: =IF((I102+M102)>100,M102*100/(I102+M102),M102) -> 0 | N100: =IF((N102+R102)>100,N102*100/(N102+R102),N102) -> 87.74621606 | O100: =N100*AVERAGEIF(O105:O116,">0")/100 -> 86.40107061 | P100: =N100*(100-AVERAGEIF(O105:O116,">0"))/100 -> 1.345145451 | Q100: =100-(O100+P100+R100) -> 12.25378394 | R100: =IF((N102+R102)>100,R102*100/(N102+R102),R102) -> 0 | S100: =IF((S102+W102)>100,S102*100/(S102+W102),S102) -> 93.07046798 | T100: =S100*AVERAGEIF(T105:T116,">0")/100 -> 91.82271019 | U100: =S100*(100-AVERAGEIF(T105:T116,">0"))/100 -> 1.247757788 | V100: =100-(T100+U100+W100) -> 6.929532021 | W100: =IF((S102+W102)>100,W102*100/(S102+W102),W102) -> 0 | X100: =IF((X102+AB102)>100,X102*100/(X102+AB102),X102) -> 97.53181189 | Y100: =X100*AVERAGEIF(Y105:Y116,">0")/100 -> 96.58287804 | Z100: =X100*(100-AVERAGEIF(Y105:Y116,">0"))/100 -> 0.9489338534 | AA100: =100-(Y100+Z100+AB100) -> 2.468188111 | AB100: =IF((X102+AB102)>100,AB102*100/(X102+AB102),AB102) -> 0
A101: Regression period: | C101: =MinRegYear(C99,C105:C116) -> 2000 | D101: =IF(MAX(C105:C116)-MIN(C105:C116)<5,AVERAGEIF(C105:C116,">0",D105:D116), IF(FORECAST($C101,D$105:D$116,$C$105:$C$116)<0,0, IF(FORECAST($C101,D$105:D$116,$C$105:$C$116)>100,100, FORECAST($C101,D$105:D$116,$C$105:$C$116)))) -> 88.18010745 | H101: =IF(MAX(C105:C116)-MIN(C105:C116)<5,AVERAGEIF(C105:C116,">0",H105:H116), IF(FORECAST($C101,H$105:H$116,$C$105:$C$116)<0,0, IF(FORECAST($C101,H$105:H$116,$C$105:$C$116)>100,100, FORECAST($C101,H$105:H$116,$C$105:$C$116)))) -> 0 | I101: =IF(MAX(C105:C116)-MIN(C105:C116)<5,AVERAGEIF(C105:C116,">0",I105:I116), IF(FORECAST($C101,I$105:I$116,$C$105:$C$116)<0,0, IF(FORECAST($C101,I$105:I$116,$C$105:$C$116)>100,100, FORECAST($C101,I$105:I$116,$C$105:$C$116)))) -> 92.72025716 | M101: =IF(MAX(C105:C116)-MIN(C105:C116)<5,AVERAGEIF(C105:C116,">0",M105:M116), IF(FORECAST($C101,M$105:M$116,$C$105:$C$116)<0,0, IF(FORECAST($C101,M$105:M$116,$C$105:$C$116)>100,100, FORECAST($C101,M$105:M$116,$C$105:$C$116)))) -> 0 | N101: =IF(MAX(C105:C116)-MIN(C105:C116)<5,AVERAGEIF(C105:C116,">0",N105:N116), IF(FORECAST($C101,N$105:N$116,$C$105:$C$116)<0,0, IF(FORECAST($C101,N$105:N$116,$C$105:$C$116)>100,100, FORECAST($C101,N$105:N$116,$C$105:$C$116)))) -> 94.35393847 | R101: =IF(MAX(C105:C116)-MIN(C105:C116)<5,AVERAGEIF(C105:C116,">0",R105:R116), IF(FORECAST($C101,R$105:R$116,$C$105:$C$116)<0,0, IF(FORECAST($C101,R$105:R$116,$C$105:$C$116)>100,100, FORECAST($C101,R$105:R$116,$C$105:$C$116)))) -> 0.03412784759 | S101: =IF(MAX(C105:C116)-MIN(C105:C116)<5,AVERAGEIF(C105:C116,">0",S105:S116), IF(FORECAST($C101,S$105:S$116,$C$105:$C$116)<0,0, IF(FORECAST($C101,S$105:S$116,$C$105:$C$116)>100,100, FORECAST($C101,S$105:S$116,$C$105:$C$116)))) -> 96.94105511 | W101: =IF(MAX(C105:C116)-MIN(C105:C116)<5,AVERAGEIF(C105:C116,">0",W105:W116), IF(FORECAST($C101,W$105:W$116,$C$105:$C$116)<0,0, IF(FORECAST($C101,W$105:W$116,$C$105:$C$116)>100,100, FORECAST($C101,W$105:W$116,$C$105:$C$116)))) -> 0 | X101: =IF(MAX(C105:C116)-MIN(C105:C116)<5,AVERAGEIF(C105:C116,">0",X105:X116), IF(FORECAST($C101,X$105:X$116,$C$105:$C$116)<0,0, IF(FORECAST($C101,X$105:X$116,$C$105:$C$116)>100,100, FORECAST($C101,X$105:X$116,$C$105:$C$116)))) -> 98.97105041 | AB101: =IF(MAX(C105:C116)-MIN(C105:C116)<5,AVERAGEIF(C105:C116,">0",AB105:AB116), IF(FORECAST($C101,AB$105:AB$116,$C$105:$C$116)<0,0, IF(FORECAST($C101,AB$105:AB$116,$C$105:$C$116)>100,100, FORECAST($C101,AB$105:AB$116,$C$105:$C$116)))) -> 0
C102: =MaxRegYear(C100,C105:C116) -> 2014 | D102: =IF(MAX(C105:C116)-MIN(C105:C116)<5,AVERAGEIF(C105:C116,">0",D105:D116), IF(FORECAST($C102,D$105:D$116,$C$105:$C$116)<0,0, IF(FORECAST($C102,D$105:D$116,$C$105:$C$116)>100,100, FORECAST($C102,D$105:D$116,$C$105:$C$116)))) -> 73.18258907 | H102: =IF(MAX(C105:C116)-MIN(C105:C116)<5,AVERAGEIF(C105:C116,">0",H105:H116), IF(FORECAST($C102,H$105:H$116,$C$105:$C$116)<0,0, IF(FORECAST($C102,H$105:H$116,$C$105:$C$116)>100,100, FORECAST($C102,H$105:H$116,$C$105:$C$116)))) -> 0 | I102: =IF(MAX(C105:C116)-MIN(C105:C116)<5,AVERAGEIF(C105:C116,">0",I105:I116), IF(FORECAST($C102,I$105:I$116,$C$105:$C$116)<0,0, IF(FORECAST($C102,I$105:I$116,$C$105:$C$116)>100,100, FORECAST($C102,I$105:I$116,$C$105:$C$116)))) -> 81.45037752 | M102: =IF(MAX(C105:C116)-MIN(C105:C116)<5,AVERAGEIF(C105:C116,">0",M105:M116), IF(FORECAST($C102,M$105:M$116,$C$105:$C$116)<0,0, IF(FORECAST($C102,M$105:M$116,$C$105:$C$116)>100,100, FORECAST($C102,M$105:M$116,$C$105:$C$116)))) -> 0 | N102: =IF(MAX(C105:C116)-MIN(C105:C116)<5,AVERAGEIF(C105:C116,">0",N105:N116), IF(FORECAST($C102,N$105:N$116,$C$105:$C$116)<0,0, IF(FORECAST($C102,N$105:N$116,$C$105:$C$116)>100,100, FORECAST($C102,N$105:N$116,$C$105:$C$116)))) -> 87.74621606 | R102: =IF(MAX(C105:C116)-MIN(C105:C116)<5,AVERAGEIF(C105:C116,">0",R105:R116), IF(FORECAST($C102,R$105:R$116,$C$105:$C$116)<0,0, IF(FORECAST($C102,R$105:R$116,$C$105:$C$116)>100,100, FORECAST($C102,R$105:R$116,$C$105:$C$116)))) -> 0 | S102: =IF(MAX(C105:C116)-MIN(C105:C116)<5,AVERAGEIF(C105:C116,">0",S105:S116), IF(FORECAST($C102,S$105:S$116,$C$105:$C$116)<0,0, IF(FORECAST($C102,S$105:S$116,$C$105:$C$116)>100,100, FORECAST($C102,S$105:S$116,$C$105:$C$116)))) -> 93.07046798 | W102: =IF(MAX(C105:C116)-MIN(C105:C116)<5,AVERAGEIF(C105:C116,">0",W105:W116), IF(FORECAST($C102,W$105:W$116,$C$105:$C$116)<0,0, IF(FORECAST($C102,W$105:W$116,$C$105:$C$116)>100,100, FORECAST($C102,W$105:W$116,$C$105:$C$116)))) -> 0 | X102: =IF(MAX(C105:C116)-MIN(C105:C116)<5,AVERAGEIF(C105:C116,">0",X105:X116), IF(FORECAST($C102,X$105:X$116,$C$105:$C$116)<0,0, IF(FORECAST($C102,X$105:X$116,$C$105:$C$116)>100,100, FORECAST($C102,X$105:X$116,$C$105:$C$116)))) -> 97.53181189 | AB102: =IF(MAX(C105:C116)-MIN(C105:C116)<5,AVERAGEIF(C105:C116,">0",AB105:AB116), IF(FORECAST($C102,AB$105:AB$116,$C$105:$C$116)<0,0, IF(FORECAST($C102,AB$105:AB$116,$C$105:$C$116)>100,100, FORECAST($C102,AB$105:AB$116,$C$105:$C$116)))) -> 0
B104: Survey | C104: Year | D104: Improved | E104: Basic | H104: Surface water | I104: Improved | J104: Basic | M104: Surface water | N104: Improved | O104: Basic | R104: Surface water | S104: Improved | T104: Basic | W104: Surface water | X104: Improved | Y104: Basic | AB104: Surface water
B105: MICS00 | C105: 2000 | D105: =IF(ISERROR(INDIRECT(CONCATENATE($B105,"!C16"))),"",INDIRECT(CONCATENATE($B105,"!C16"))) -> 86.04497907 | E105: =IF(ISERROR(INDIRECT(CONCATENATE($B105,"!C23"))),"",INDIRECT(CONCATENATE($B105,"!C23"))) -> 97.66699778 | H105: =IF(ISERROR(INDIRECT(CONCATENATE($B105,"!C21"))),"",INDIRECT(CONCATENATE($B105,"!C21"))) -> 0 | I105: =IF(ISERROR(INDIRECT(CONCATENATE($B105,"!D16"))),"",INDIRECT(CONCATENATE($B105,"!D16"))) -> 91.2357527 | J105: =IF(ISERROR(INDIRECT(CONCATENATE($B105,"!D23"))),"",INDIRECT(CONCATENATE($B105,"!D23"))) -> 97.46686865 | M105: =IF(ISERROR(INDIRECT(CONCATENATE($B105,"!D21"))),"",INDIRECT(CONCATENATE($B105,"!D21"))) -> 0 | N105: =IF(ISERROR(INDIRECT(CONCATENATE($B105,"!E16"))),"",INDIRECT(CONCATENATE($B105,"!E16"))) -> 93.66769151 | O105: =IF(ISERROR(INDIRECT(CONCATENATE($B105,"!E23"))),"",INDIRECT(CONCATENATE($B105,"!E23"))) -> 98.33400921 | R105: =IF(ISERROR(INDIRECT(CONCATENATE($B105,"!E21"))),"",INDIRECT(CONCATENATE($B105,"!E21"))) -> 0.04402290399 | S105: =IF(ISERROR(INDIRECT(CONCATENATE($B105,"!F16"))),"",INDIRECT(CONCATENATE($B105,"!F16"))) -> 97.04828251 | T105: =IF(ISERROR(INDIRECT(CONCATENATE($B105,"!F23"))),"",INDIRECT(CONCATENATE($B105,"!F23"))) -> 98.51868161 | W105: =IF(ISERROR(INDIRECT(CONCATENATE($B105,"!F21"))),"",INDIRECT(CONCATENATE($B105,"!F21"))) -> 0 | X105: =IF(ISERROR(INDIRECT(CONCATENATE($B105,"!G16"))),"",INDIRECT(CONCATENATE($B105,"!G16"))) -> 98.49866606 | Y105: =IF(ISERROR(INDIRECT(CONCATENATE($B105,"!G23"))),"",INDIRECT(CONCATENATE($B105,"!G23"))) -> 99.25410392 | AB105: =IF(ISERROR(INDIRECT(CONCATENATE($B105,"!G221"))),"",INDIRECT(CONCATENATE($B105,"!G21"))) -> 0
B106: DHS05 | C106: 2005 | D106: 86.48407096 | E106: N/A | H106: 0 | I106: 91.24016493 | J106: N/A | M106: 0 | N106: 93.17046098 | O106: N/A | R106: 0 | S106: 95.37488416 | T106: N/A | W106: 0 | X106: 99.26683839 | Y106: N/A | AB106: 0
B107: MICS12 | C107: 2012 | D107: 73.8 | E107: 97.2 | H107: 0 | I107: 82 | J107: 98.6 | M107: 0 | N107: 88.2 | O107: 98.6 | R107: 0 | S107: 93.7 | T107: 98.8 | W107: 0 | X107: 97.4 | Y107: 98.8 | AB107: 0
D111: =IF(ISERROR(INDIRECT(CONCATENATE($B111,"!C16"))),"",INDIRECT(CONCATENATE($B111,"!C16"))) ->  | E111: =IF(ISERROR(INDIRECT(CONCATENATE($B111,"!C23"))),"",INDIRECT(CONCATENATE($B111,"!C23"))) ->  | H111: =IF(ISERROR(INDIRECT(CONCATENATE($B111,"!C21"))),"",INDIRECT(CONCATENATE($B111,"!C21"))) ->  | I111: =IF(ISERROR(INDIRECT(CONCATENATE($B111,"!D16"))),"",INDIRECT(CONCATENATE($B111,"!D16"))) ->  | J111: =IF(ISERROR(INDIRECT(CONCATENATE($B111,"!D23"))),"",INDIRECT(CONCATENATE($B111,"!D23"))) ->  | M111: =IF(ISERROR(INDIRECT(CONCATENATE($B111,"!D21"))),"",INDIRECT(CONCATENATE($B111,"!D21"))) ->  | N111: =IF(ISERROR(INDIRECT(CONCATENATE($B111,"!E16"))),"",INDIRECT(CONCATENATE($B111,"!E16"))) ->  | O111: =IF(ISERROR(INDIRECT(CONCATENATE($B111,"!E23"))),"",INDIRECT(CONCATENATE($B111,"!E23"))) ->  | R111: =IF(ISERROR(INDIRECT(CONCATENATE($B111,"!E21"))),"",INDIRECT(CONCATENATE($B111,"!E21"))) ->  | S111: =IF(ISERROR(INDIRECT(CONCATENATE($B111,"!F16"))),"",INDIRECT(CONCATENATE($B111,"!F16"))) ->  | T111: =IF(ISERROR(INDIRECT(CONCATENATE($B111,"!F23"))),"",INDIRECT(CONCATENATE($B111,"!F23"))) ->  | W111: =IF(ISERROR(INDIRECT(CONCATENATE($B111,"!F21"))),"",INDIRECT(CONCATENATE($B111,"!F21"))) ->  | X111: =IF(ISERROR(INDIRECT(CONCATENATE($B111,"!G16"))),"",INDIRECT(CONCATENATE($B111,"!G16"))) ->  | Y111: =IF(ISERROR(INDIRECT(CONCATENATE($B111,"!G23"))),"",INDIRECT(CONCATENATE($B111,"!G23"))) ->  | AB111: =IF(ISERROR(INDIRECT(CONCATENATE($B111,"!G221"))),"",INDIRECT(CONCATENATE($B111,"!G21"))) -> 
D112: =IF(ISERROR(INDIRECT(CONCATENATE($B112,"!C16"))),"",INDIRECT(CONCATENATE($B112,"!C16"))) ->  | E112: =IF(ISERROR(INDIRECT(CONCATENATE($B112,"!C23"))),"",INDIRECT(CONCATENATE($B112,"!C23"))) ->  | H112: =IF(ISERROR(INDIRECT(CONCATENATE($B112,"!C21"))),"",INDIRECT(CONCATENATE($B112,"!C21"))) ->  | I112: =IF(ISERROR(INDIRECT(CONCATENATE($B112,"!D16"))),"",INDIRECT(CONCATENATE($B112,"!D16"))) ->  | J112: =IF(ISERROR(INDIRECT(CONCATENATE($B112,"!D23"))),"",INDIRECT(CONCATENATE($B112,"!D23"))) ->  | M112: =IF(ISERROR(INDIRECT(CONCATENATE($B112,"!D21"))),"",INDIRECT(CONCATENATE($B112,"!D21"))) ->  | N112: =IF(ISERROR(INDIRECT(CONCATENATE($B112,"!E16"))),"",INDIRECT(CONCATENATE($B112,"!E16"))) ->  | O112: =IF(ISERROR(INDIRECT(CONCATENATE($B112,"!E23"))),"",INDIRECT(CONCATENATE($B112,"!E23"))) ->  | R112: =IF(ISERROR(INDIRECT(CONCATENATE($B112,"!E21"))),"",INDIRECT(CONCATENATE($B112,"!E21"))) ->  | S112: =IF(ISERROR(INDIRECT(CONCATENATE($B112,"!F16"))),"",INDIRECT(CONCATENATE($B112,"!F16"))) ->  | T112: =IF(ISERROR(INDIRECT(CONCATENATE($B112,"!F23"))),"",INDIRECT(CONCATENATE($B112,"!F23"))) ->  | W112: =IF(ISERROR(INDIRECT(CONCATENATE($B112,"!F21"))),"",INDIRECT(CONCATENATE($B112,"!F21"))) ->  | X112: =IF(ISERROR(INDIRECT(CONCATENATE($B112,"!G16"))),"",INDIRECT(CONCATENATE($B112,"!G16"))) ->  | Y112: =IF(ISERROR(INDIRECT(CONCATENATE($B112,"!G23"))),"",INDIRECT(CONCATENATE($B112,"!G23"))) ->  | AB112: =IF(ISERROR(INDIRECT(CONCATENATE($B112,"!G221"))),"",INDIRECT(CONCATENATE($B112,"!G21"))) -> 
B118: =CONCATENATE("National use of drinking water sources, ",C99,"–",C100) -> National use of drinking water sources, 2000–2018 | S118: Data points used for regression
E153: =IF(ISERROR(INDIRECT(CONCATENATE($B153,"!M18"))),"",INDIRECT(CONCATENATE($B153,"!M18"))) ->  | F153: =IF(ISERROR(INDIRECT(CONCATENATE($B153,"!M19"))),"",INDIRECT(CONCATENATE($B153,"!M19"))) ->  | G153: =IF(ISERROR(INDIRECT(CONCATENATE($B153,"!M20"))),"",INDIRECT(CONCATENATE($B153,"!M20"))) ->  | H153: =IF(ISERROR(INDIRECT(CONCATENATE($B153,"!M21"))),"",INDIRECT(CONCATENATE($B153,"!M21"))) ->  | J153: =IF(ISERROR(INDIRECT(CONCATENATE($B153,"!N18"))),"",INDIRECT(CONCATENATE($B153,"!N18"))) ->  | K153: =IF(ISERROR(INDIRECT(CONCATENATE($B153,"!N19"))),"",INDIRECT(CONCATENATE($B153,"!N19"))) ->  | L153: =IF(ISERROR(INDIRECT(CONCATENATE($B153,"!N20"))),"",INDIRECT(CONCATENATE($B153,"!N20"))) ->  | M153: =IF(ISERROR(INDIRECT(CONCATENATE($B153,"!N21"))),"",INDIRECT(CONCATENATE($B153,"!N21"))) ->  | O153: =IF(ISERROR(INDIRECT(CONCATENATE($B153,"!O18"))),"",INDIRECT(CONCATENATE($B153,"!O18"))) ->  | P153: =IF(ISERROR(INDIRECT(CONCATENATE($B153,"!O19"))),"",INDIRECT(CONCATENATE($B153,"!O19"))) ->  | Q153: =IF(ISERROR(INDIRECT(CONCATENATE($B153,"!O20"))),"",INDIRECT(CONCATENATE($B153,"!O20"))) ->  | R153: =IF(ISERROR(INDIRECT(CONCATENATE($B153,"!O21"))),"",INDIRECT(CONCATENATE($B153,"!O21"))) ->  | T153: =IF(ISERROR(INDIRECT(CONCATENATE($B153,"!P18"))),"",INDIRECT(CONCATENATE($B153,"!P18"))) ->  | U153: =IF(ISERROR(INDIRECT(CONCATENATE($B153,"!P19"))),"",INDIRECT(CONCATENATE($B153,"!P19"))) ->  | V153: =IF(ISERROR(INDIRECT(CONCATENATE($B153,"!P20"))),"",INDIRECT(CONCATENATE($B153,"!P20"))) ->  | W153: =IF(ISERROR(INDIRECT(CONCATENATE($B153,"!P21"))),"",INDIRECT(CONCATENATE($B153,"!P21"))) ->  | Y153: =IF(ISERROR(INDIRECT(CONCATENATE($B153,"!Q18"))),"",INDIRECT(CONCATENATE($B153,"!Q18"))) ->  | Z153: =IF(ISERROR(INDIRECT(CONCATENATE($B153,"!Q19"))),"",INDIRECT(CONCATENATE($B153,"!Q19"))) ->  | AA153: =IF(ISERROR(INDIRECT(CONCATENATE($B153,"!Q20"))),"",INDIRECT(CONCATENATE($B153,"!Q20"))) ->  | AB153: =IF(ISERROR(INDIRECT(CONCATENATE($B153,"!Q21"))),"",INDIRECT(CONCATENATE($B153,"!Q1"))) -> 
A197: URBAN | D197: Poorest | I197: Poor | N197: Middle | S197: Rich | X197: Richest
D198: Improved | E198: Basic | F198: Limited | G198: Unimproved | H198: Surface water | I198: Improved | J198: Basic | K198: Limited | L198: Unimproved | M198: Surface water | N198: Improved | O198: Basic | P198: Limited | Q198: Unimproved | R198: Surface water | S198: Improved | T198: Basic | U198: Limited | V198: Unimproved | W198: Surface water | X198: Improved | Y198: Basic | Z198: Limited | AA198: Unimproved | AB198: Surface water
A199: Forecast period: | C199: 2000 | D199: =IF((D201+H201)>100,D201*100/(D201+H201),D201) -> 96.49610226 | E199: =D199*AVERAGEIF(E205:E216,">0")/100 -> 94.73393158 | F199: =D199*(100-AVERAGEIF(E205:E216,">0"))/100 -> 1.762170676 | G199: =100-(E199+F199+H199) -> 3.503897743 | H199: =IF((D201+H201)>100,H201*100/(D201+H201),H201) -> 0 | I199: =IF((I201+M201)>100,I201*100/(I201+M201),I201) -> 98.06933999 | J199: =I199*AVERAGEIF(J205:J216,">0")/100 -> 96.45110944 | K199: =I199*(100-AVERAGEIF(J205:J216,">0"))/100 -> 1.61823055 | L199: =100-(J199+K199+M199) -> 1.930660005 | M199: =IF((I201+M201)>100,M201*100/(I201+M201),M201) -> 0 | N199: =IF((N201+R201)>100,N201*100/(N201+R201),N201) -> 99.37166043 | O199: =N199*AVERAGEIF(O205:O216,">0")/100 -> 98.09696013 | P199: =N199*(100-AVERAGEIF(O205:O216,">0"))/100 -> 1.274700305 | Q199: =100-(O199+P199+R199) -> 0.6283395686 | R199: =IF((N201+R201)>100,R201*100/(N201+R201),R201) -> 0 | S199: =IF((S201+W201)>100,S201*100/(S201+W201),S201) -> 99.09463448 | T199: =S199*AVERAGEIF(T205:T216,">0")/100 -> 97.71856087 | U199: =S199*(100-AVERAGEIF(T205:T216,">0"))/100 -> 1.376073613 | V199: =100-(T199+U199+W199) -> 0.9053655213 | W199: =IF((S201+W201)>100,W201*100/(S201+W201),W201) -> 0 | X199: =IF((X201+AB201)>100,X201*100/(X201+AB201),X201) -> 99.20565533 | Y199: =X199*AVERAGEIF(Y205:Y216,">0")/100 -> 98.51582372 | Z199: =X199*(100-AVERAGEIF(Y205:Y216,">0"))/100 -> 0.6898316094 | AA199: =100-(Y199+Z199+AB199) -> 0.7943446739 | AB199: =IF((X201+AB201)>100,AB201*100/(X201+AB201),AB201) -> 0
C200: 2018 | D200: =IF((D202+H202)>100,D202*100/(D202+H202),D202) -> 88.89147564 | E200: =D200*AVERAGEIF(E205:E216,">0")/100 -> 87.26817741 | F200: =D200*(100-AVERAGEIF(E205:E216,">0"))/100 -> 1.623298227 | G200: =100-(E200+F200+H200) -> 11.10852436 | H200: =IF((D202+H202)>100,H202*100/(D202+H202),H202) -> 0 | I200: =IF((I202+M202)>100,I202*100/(I202+M202),I202) -> 95.87022435 | J200: =I200*AVERAGEIF(J205:J216,">0")/100 -> 94.28828115 | K200: =I200*(100-AVERAGEIF(J205:J216,">0"))/100 -> 1.581943204 | L200: =100-(J200+K200+M200) -> 4.129775646 | M200: =IF((I202+M202)>100,M202*100/(I202+M202),M202) -> 0 | N200: =IF((N202+R202)>100,N202*100/(N202+R202),N202) -> 96.45697391 | O200: =N200*AVERAGEIF(O205:O216,">0")/100 -> 95.21966205 | P200: =N200*(100-AVERAGEIF(O205:O216,">0"))/100 -> 1.23731186 | Q200: =100-(O200+P200+R200) -> 3.543026092 | R200: =IF((N202+R202)>100,R202*100/(N202+R202),R202) -> 0 | S200: =IF((S202+W202)>100,S202*100/(S202+W202),S202) -> 98.15102394 | T200: =S200*AVERAGEIF(T205:T216,">0")/100 -> 96.78805373 | U200: =S200*(100-AVERAGEIF(T205:T216,">0"))/100 -> 1.362970204 | V200: =100-(T200+U200+W200) -> 1.848976062 | W200: =IF((S202+W202)>100,W202*100/(S202+W202),W202) -> 0 | X200: =IF((X202+AB202)>100,X202*100/(X202+AB202),X202) -> 99.36316609 | Y200: =X200*AVERAGEIF(Y205:Y216,">0")/100 -> 98.67223922 | Z200: =X200*(100-AVERAGEIF(Y205:Y216,">0"))/100 -> 0.6909268686 | AA200: =100-(Y200+Z200+AB200) -> 0.6368339068 | AB200: =IF((X202+AB202)>100,AB202*100/(X202+AB202),AB202) -> 0
A201: Regression period: | C201: =MinRegYear(C199,C205:C216) -> 2000 | D201: =IF(MAX(C205:C216)-MIN(C205:C216)<5,AVERAGEIF(C205:C216,">0",D205:D216), IF(FORECAST($C201,D$205:D$216,$C$205:$C$216)<0,0, IF(FORECAST($C201,D$205:D$216,$C$205:$C$216)>100,100, FORECAST($C201,D$205:D$216,$C$205:$C$216)))) -> 96.49610226 | H201: =IF(MAX(C205:C216)-MIN(C205:C216)<5,AVERAGEIF(C205:C216,">0",H205:H216), IF(FORECAST($C201,H$205:H$216,$C$205:$C$216)<0,0, IF(FORECAST($C201,H$205:H$216,$C$205:$C$216)>100,100, FORECAST($C201,H$205:H$216,$C$205:$C$216)))) -> 0 | I201: =IF(MAX(C205:C216)-MIN(C205:C216)<5,AVERAGEIF(C205:C216,">0",I205:I216), IF(FORECAST($C201,I$205:I$216,$C$205:$C$216)<0,0, IF(FORECAST($C201,I$205:I$216,$C$205:$C$216)>100,100, FORECAST($C201,I$205:I$216,$C$205:$C$216)))) -> 98.06933999 | M201: =IF(MAX(C205:C216)-MIN(C205:C216)<5,AVERAGEIF(C205:C216,">0",M205:M216), IF(FORECAST($C201,M$205:M$216,$C$205:$C$216)<0,0, IF(FORECAST($C201,M$205:M$216,$C$205:$C$216)>100,100, FORECAST($C201,M$205:M$216,$C$205:$C$216)))) -> 0 | N201: =IF(MAX(C205:C216)-MIN(C205:C216)<5,AVERAGEIF(C205:C216,">0",N205:N216), IF(FORECAST($C201,N$205:N$216,$C$205:$C$216)<0,0, IF(FORECAST($C201,N$205:N$216,$C$205:$C$216)>100,100, FORECAST($C201,N$205:N$216,$C$205:$C$216)))) -> 99.37166043 | R201: =IF(MAX(C205:C216)-MIN(C205:C216)<5,AVERAGEIF(C205:C216,">0",R205:R216), IF(FORECAST($C201,R$205:R$216,$C$205:$C$216)<0,0, IF(FORECAST($C201,R$205:R$216,$C$205:$C$216)>100,100, FORECAST($C201,R$205:R$216,$C$205:$C$216)))) -> 0 | S201: =IF(MAX(C205:C216)-MIN(C205:C216)<5,AVERAGEIF(C205:C216,">0",S205:S216), IF(FORECAST($C201,S$205:S$216,$C$205:$C$216)<0,0, IF(FORECAST($C201,S$205:S$216,$C$205:$C$216)>100,100, FORECAST($C201,S$205:S$216,$C$205:$C$216)))) -> 99.09463448 | W201: =IF(MAX(C205:C216)-MIN(C205:C216)<5,AVERAGEIF(C205:C216,">0",W205:W216), IF(FORECAST($C201,W$205:W$216,$C$205:$C$216)<0,0, IF(FORECAST($C201,W$205:W$216,$C$205:$C$216)>100,100, FORECAST($C201,W$205:W$216,$C$205:$C$216)))) -> 0 | X201: =IF(MAX(C205:C216)-MIN(C205:C216)<5,AVERAGEIF(C205:C216,">0",X205:X216), IF(FORECAST($C201,X$205:X$216,$C$205:$C$216)<0,0, IF(FORECAST($C201,X$205:X$216,$C$205:$C$216)>100,100, FORECAST($C201,X$205:X$216,$C$205:$C$216)))) -> 99.20565533 | AB201: =IF(MAX(C205:C216)-MIN(C205:C216)<5,AVERAGEIF(C205:C216,">0",AB205:AB216), IF(FORECAST($C201,AB$205:AB$216,$C$205:$C$216)<0,0, IF(FORECAST($C201,AB$205:AB$216,$C$205:$C$216)>100,100, FORECAST($C201,AB$205:AB$216,$C$205:$C$216)))) -> 0
C202: =MaxRegYear(C200,C205:C216) -> 2014 | D202: =IF(MAX(C205:C216)-MIN(C205:C216)<5,AVERAGEIF(C205:C216,">0",D205:D216), IF(FORECAST($C202,D$205:D$216,$C$205:$C$216)<0,0, IF(FORECAST($C202,D$205:D$216,$C$205:$C$216)>100,100, FORECAST($C202,D$205:D$216,$C$205:$C$216)))) -> 88.89147564 | H202: =IF(MAX(C205:C216)-MIN(C205:C216)<5,AVERAGEIF(C205:C216,">0",H205:H216), IF(FORECAST($C202,H$205:H$216,$C$205:$C$216)<0,0, IF(FORECAST($C202,H$205:H$216,$C$205:$C$216)>100,100, FORECAST($C202,H$205:H$216,$C$205:$C$216)))) -> 0 | I202: =IF(MAX(C205:C216)-MIN(C205:C216)<5,AVERAGEIF(C205:C216,">0",I205:I216), IF(FORECAST($C202,I$205:I$216,$C$205:$C$216)<0,0, IF(FORECAST($C202,I$205:I$216,$C$205:$C$216)>100,100, FORECAST($C202,I$205:I$216,$C$205:$C$216)))) -> 95.87022435 | M202: =IF(MAX(C205:C216)-MIN(C205:C216)<5,AVERAGEIF(C205:C216,">0",M205:M216), IF(FORECAST($C202,M$205:M$216,$C$205:$C$216)<0,0, IF(FORECAST($C202,M$205:M$216,$C$205:$C$216)>100,100, FORECAST($C202,M$205:M$216,$C$205:$C$216)))) -> 0 | N202: =IF(MAX(C205:C216)-MIN(C205:C216)<5,AVERAGEIF(C205:C216,">0",N205:N216), IF(FORECAST($C202,N$205:N$216,$C$205:$C$216)<0,0, IF(FORECAST($C202,N$205:N$216,$C$205:$C$216)>100,100, FORECAST($C202,N$205:N$216,$C$205:$C$216)))) -> 96.45697391 | R202: =IF(MAX(C205:C216)-MIN(C205:C216)<5,AVERAGEIF(C205:C216,">0",R205:R216), IF(FORECAST($C202,R$205:R$216,$C$205:$C$216)<0,0, IF(FORECAST($C202,R$205:R$216,$C$205:$C$216)>100,100, FORECAST($C202,R$205:R$216,$C$205:$C$216)))) -> 0 | S202: =IF(MAX(C205:C216)-MIN(C205:C216)<5,AVERAGEIF(C205:C216,">0",S205:S216), IF(FORECAST($C202,S$205:S$216,$C$205:$C$216)<0,0, IF(FORECAST($C202,S$205:S$216,$C$205:$C$216)>100,100, FORECAST($C202,S$205:S$216,$C$205:$C$216)))) -> 98.15102394 | W202: =IF(MAX(C205:C216)-MIN(C205:C216)<5,AVERAGEIF(C205:C216,">0",W205:W216), IF(FORECAST($C202,W$205:W$216,$C$205:$C$216)<0,0, IF(FORECAST($C202,W$205:W$216,$C$205:$C$216)>100,100, FORECAST($C202,W$205:W$216,$C$205:$C$216)))) -> 0 | X202: =IF(MAX(C205:C216)-MIN(C205:C216)<5,AVERAGEIF(C205:C216,">0",X205:X216), IF(FORECAST($C202,X$205:X$216,$C$205:$C$216)<0,0, IF(FORECAST($C202,X$205:X$216,$C$205:$C$216)>100,100, FORECAST($C202,X$205:X$216,$C$205:$C$216)))) -> 99.36316609 | AB202: =IF(MAX(C205:C216)-MIN(C205:C216)<5,AVERAGEIF(C205:C216,">0",AB205:AB216), IF(FORECAST($C202,AB$205:AB$216,$C$205:$C$216)<0,0, IF(FORECAST($C202,AB$205:AB$216,$C$205:$C$216)>100,100, FORECAST($C202,AB$205:AB$216,$C$205:$C$216)))) -> 0
B204: Survey | C204: Year | D204: Improved | E204: Basic | H204: Surface water | I204: Improved | J204: Basic | M204: Surface water | N204: Improved | O204: Basic | R204: Surface water | S204: Improved | T204: Basic | W204: Surface water | X204: Improved | Y204: Basic | AB204: Surface water
B205: MICS00 | C205: 2000 | D205: =IF(ISERROR(INDIRECT(CONCATENATE($B205,"!H16"))),"",INDIRECT(CONCATENATE($B205,"!H16"))) -> 95.68711104 | E205: =IF(ISERROR(INDIRECT(CONCATENATE($B205,"!H23"))),"",INDIRECT(CONCATENATE($B205,"!H23"))) -> 98.14768528 | H205: =IF(ISERROR(INDIRECT(CONCATENATE($B205,"!H21"))),"",INDIRECT(CONCATENATE($B205,"!H21"))) -> 0 | I205: =IF(ISERROR(INDIRECT(CONCATENATE($B205,"!I16"))),"",INDIRECT(CONCATENATE($B205,"!I16"))) -> 97.53120277 | J205: =IF(ISERROR(INDIRECT(CONCATENATE($B205,"!I23"))),"",INDIRECT(CONCATENATE($B205,"!I23"))) -> 97.99982372 | M205: =IF(ISERROR(INDIRECT(CONCATENATE($B205,"!I21"))),"",INDIRECT(CONCATENATE($B205,"!I21"))) -> 0 | N205: =IF(ISERROR(INDIRECT(CONCATENATE($B205,"!J16"))),"",INDIRECT(CONCATENATE($B205,"!J16"))) -> 98.56895966 | O205: =IF(ISERROR(INDIRECT(CONCATENATE($B205,"!J23"))),"",INDIRECT(CONCATENATE($B205,"!J23"))) -> 98.93447921 | R205: =IF(ISERROR(INDIRECT(CONCATENATE($B205,"!J21"))),"",INDIRECT(CONCATENATE($B205,"!J21"))) -> 0 | S205: =IF(ISERROR(INDIRECT(CONCATENATE($B205,"!K16"))),"",INDIRECT(CONCATENATE($B205,"!K16"))) -> 98.69447886 | T205: =IF(ISERROR(INDIRECT(CONCATENATE($B205,"!K23"))),"",INDIRECT(CONCATENATE($B205,"!K23"))) -> 98.52270813 | W205: =IF(ISERROR(INDIRECT(CONCATENATE($B205,"!K21"))),"",INDIRECT(CONCATENATE($B205,"!K21"))) -> 0 | X205: =IF(ISERROR(INDIRECT(CONCATENATE($B205,"!L16"))),"",INDIRECT(CONCATENATE($B205,"!L16"))) -> 99.14872495 | Y205: =IF(ISERROR(INDIRECT(CONCATENATE($B205,"!L23"))),"",INDIRECT(CONCATENATE($B205,"!L23"))) -> 99.90928975 | AB205: =IF(ISERROR(INDIRECT(CONCATENATE($B205,"!L221"))),"",INDIRECT(CONCATENATE($B205,"!L21"))) -> 0
B206: DHS05 | C206: 2005 | D206: 95.16700626 | E206: N/A | H206: 0 | I206: 98.20646251 | J206: N/A | M206: 0 | N206: 99.70675943 | O206: N/A | R206: 0 | S206: 99.44361178 | T206: N/A | W206: 0 | X206: 99.3595041 | Y206: N/A | AB206: 0
B207: MICS12 | C207: 2012 | D207: 89.4 | E207: 98.2 | H207: 0 | I207: 95.8 | J207: 98.7 | M207: 0 | N207: 96.3 | O207: 98.5 | R207: 0 | S207: 98 | T207: 98.7 | W207: 0 | X207: 99.3 | Y207: 98.7 | AB207: 0
B218: =CONCATENATE("Urban use of drinking water sources, ",C199,"–",C200) -> Urban use of drinking water sources, 2000–2018 | S218: Data points used for regression
E253: =IF(ISERROR(INDIRECT(CONCATENATE($B253,"!M18"))),"",INDIRECT(CONCATENATE($B253,"!M18"))) ->  | F253: =IF(ISERROR(INDIRECT(CONCATENATE($B253,"!M19"))),"",INDIRECT(CONCATENATE($B253,"!M19"))) ->  | G253: =IF(ISERROR(INDIRECT(CONCATENATE($B253,"!M20"))),"",INDIRECT(CONCATENATE($B253,"!M20"))) ->  | H253: =IF(ISERROR(INDIRECT(CONCATENATE($B253,"!M21"))),"",INDIRECT(CONCATENATE($B253,"!M21"))) ->  | J253: =IF(ISERROR(INDIRECT(CONCATENATE($B253,"!N18"))),"",INDIRECT(CONCATENATE($B253,"!N18"))) ->  | K253: =IF(ISERROR(INDIRECT(CONCATENATE($B253,"!N19"))),"",INDIRECT(CONCATENATE($B253,"!N19"))) ->  | L253: =IF(ISERROR(INDIRECT(CONCATENATE($B253,"!N20"))),"",INDIRECT(CONCATENATE($B253,"!N20"))) ->  | M253: =IF(ISERROR(INDIRECT(CONCATENATE($B253,"!N21"))),"",INDIRECT(CONCATENATE($B253,"!N21"))) ->  | O253: =IF(ISERROR(INDIRECT(CONCATENATE($B253,"!O18"))),"",INDIRECT(CONCATENATE($B253,"!O18"))) ->  | P253: =IF(ISERROR(INDIRECT(CONCATENATE($B253,"!O19"))),"",INDIRECT(CONCATENATE($B253,"!O19"))) ->  | Q253: =IF(ISERROR(INDIRECT(CONCATENATE($B253,"!O20"))),"",INDIRECT(CONCATENATE($B253,"!O20"))) ->  | R253: =IF(ISERROR(INDIRECT(CONCATENATE($B253,"!O21"))),"",INDIRECT(CONCATENATE($B253,"!O21"))) ->  | T253: =IF(ISERROR(INDIRECT(CONCATENATE($B253,"!P18"))),"",INDIRECT(CONCATENATE($B253,"!P18"))) ->  | U253: =IF(ISERROR(INDIRECT(CONCATENATE($B253,"!P19"))),"",INDIRECT(CONCATENATE($B253,"!P19"))) ->  | V253: =IF(ISERROR(INDIRECT(CONCATENATE($B253,"!P20"))),"",INDIRECT(CONCATENATE($B253,"!P20"))) ->  | W253: =IF(ISERROR(INDIRECT(CONCATENATE($B253,"!P21"))),"",INDIRECT(CONCATENATE($B253,"!P21"))) ->  | Y253: =IF(ISERROR(INDIRECT(CONCATENATE($B253,"!Q18"))),"",INDIRECT(CONCATENATE($B253,"!Q18"))) ->  | Z253: =IF(ISERROR(INDIRECT(CONCATENATE($B253,"!Q19"))),"",INDIRECT(CONCATENATE($B253,"!Q19"))) ->  | AA253: =IF(ISERROR(INDIRECT(CONCATENATE($B253,"!Q20"))),"",INDIRECT(CONCATENATE($B253,"!Q20"))) ->  | AB253: =IF(ISERROR(INDIRECT(CONCATENATE($B253,"!Q21"))),"",INDIRECT(CONCATENATE($B253,"!Q1"))) -> 
E254: =IF(ISERROR(INDIRECT(CONCATENATE($B254,"!M18"))),"",INDIRECT(CONCATENATE($B254,"!M18"))) ->  | F254: =IF(ISERROR(INDIRECT(CONCATENATE($B254,"!M19"))),"",INDIRECT(CONCATENATE($B254,"!M19"))) ->  | G254: =IF(ISERROR(INDIRECT(CONCATENATE($B254,"!M20"))),"",INDIRECT(CONCATENATE($B254,"!M20"))) ->  | H254: =IF(ISERROR(INDIRECT(CONCATENATE($B254,"!M21"))),"",INDIRECT(CONCATENATE($B254,"!M21"))) ->  | J254: =IF(ISERROR(INDIRECT(CONCATENATE($B254,"!N18"))),"",INDIRECT(CONCATENATE($B254,"!N18"))) ->  | K254: =IF(ISERROR(INDIRECT(CONCATENATE($B254,"!N19"))),"",INDIRECT(CONCATENATE($B254,"!N19"))) ->  | L254: =IF(ISERROR(INDIRECT(CONCATENATE($B254,"!N20"))),"",INDIRECT(CONCATENATE($B254,"!N20"))) ->  | M254: =IF(ISERROR(INDIRECT(CONCATENATE($B254,"!N21"))),"",INDIRECT(CONCATENATE($B254,"!N21"))) ->  | O254: =IF(ISERROR(INDIRECT(CONCATENATE($B254,"!O18"))),"",INDIRECT(CONCATENATE($B254,"!O18"))) ->  | P254: =IF(ISERROR(INDIRECT(CONCATENATE($B254,"!O19"))),"",INDIRECT(CONCATENATE($B254,"!O19"))) ->  | Q254: =IF(ISERROR(INDIRECT(CONCATENATE($B254,"!O20"))),"",INDIRECT(CONCATENATE($B254,"!O20"))) ->  | R254: =IF(ISERROR(INDIRECT(CONCATENATE($B254,"!O21"))),"",INDIRECT(CONCATENATE($B254,"!O21"))) ->  | T254: =IF(ISERROR(INDIRECT(CONCATENATE($B254,"!P18"))),"",INDIRECT(CONCATENATE($B254,"!P18"))) ->  | U254: =IF(ISERROR(INDIRECT(CONCATENATE($B254,"!P19"))),"",INDIRECT(CONCATENATE($B254,"!P19"))) ->  | V254: =IF(ISERROR(INDIRECT(CONCATENATE($B254,"!P20"))),"",INDIRECT(CONCATENATE($B254,"!P20"))) ->  | W254: =IF(ISERROR(INDIRECT(CONCATENATE($B254,"!P21"))),"",INDIRECT(CONCATENATE($B254,"!P21"))) ->  | Y254: =IF(ISERROR(INDIRECT(CONCATENATE($B254,"!Q18"))),"",INDIRECT(CONCATENATE($B254,"!Q18"))) ->  | Z254: =IF(ISERROR(INDIRECT(CONCATENATE($B254,"!Q19"))),"",INDIRECT(CONCATENATE($B254,"!Q19"))) ->  | AA254: =IF(ISERROR(INDIRECT(CONCATENATE($B254,"!Q20"))),"",INDIRECT(CONCATENATE($B254,"!Q20"))) ->  | AB254: =IF(ISERROR(INDIRECT(CONCATENATE($B254,"!Q21"))),"",INDIRECT(CONCATENATE($B254,"!Q1"))) -> 
E255: =IF(ISERROR(INDIRECT(CONCATENATE($B255,"!M18"))),"",INDIRECT(CONCATENATE($B255,"!M18"))) ->  | F255: =IF(ISERROR(INDIRECT(CONCATENATE($B255,"!M19"))),"",INDIRECT(CONCATENATE($B255,"!M19"))) ->  | G255: =IF(ISERROR(INDIRECT(CONCATENATE($B255,"!M20"))),"",INDIRECT(CONCATENATE($B255,"!M20"))) ->  | H255: =IF(ISERROR(INDIRECT(CONCATENATE($B255,"!M21"))),"",INDIRECT(CONCATENATE($B255,"!M21"))) ->  | J255: =IF(ISERROR(INDIRECT(CONCATENATE($B255,"!N18"))),"",INDIRECT(CONCATENATE($B255,"!N18"))) ->  | K255: =IF(ISERROR(INDIRECT(CONCATENATE($B255,"!N19"))),"",INDIRECT(CONCATENATE($B255,"!N19"))) ->  | L255: =IF(ISERROR(INDIRECT(CONCATENATE($B255,"!N20"))),"",INDIRECT(CONCATENATE($B255,"!N20"))) ->  | M255: =IF(ISERROR(INDIRECT(CONCATENATE($B255,"!N21"))),"",INDIRECT(CONCATENATE($B255,"!N21"))) ->  | O255: =IF(ISERROR(INDIRECT(CONCATENATE($B255,"!O18"))),"",INDIRECT(CONCATENATE($B255,"!O18"))) ->  | P255: =IF(ISERROR(INDIRECT(CONCATENATE($B255,"!O19"))),"",INDIRECT(CONCATENATE($B255,"!O19"))) ->  | Q255: =IF(ISERROR(INDIRECT(CONCATENATE($B255,"!O20"))),"",INDIRECT(CONCATENATE($B255,"!O20"))) ->  | R255: =IF(ISERROR(INDIRECT(CONCATENATE($B255,"!O21"))),"",INDIRECT(CONCATENATE($B255,"!O21"))) ->  | T255: =IF(ISERROR(INDIRECT(CONCATENATE($B255,"!P18"))),"",INDIRECT(CONCATENATE($B255,"!P18"))) ->  | U255: =IF(ISERROR(INDIRECT(CONCATENATE($B255,"!P19"))),"",INDIRECT(CONCATENATE($B255,"!P19"))) ->  | V255: =IF(ISERROR(INDIRECT(CONCATENATE($B255,"!P20"))),"",INDIRECT(CONCATENATE($B255,"!P20"))) ->  | W255: =IF(ISERROR(INDIRECT(CONCATENATE($B255,"!P21"))),"",INDIRECT(CONCATENATE($B255,"!P21"))) ->  | Y255: =IF(ISERROR(INDIRECT(CONCATENATE($B255,"!Q18"))),"",INDIRECT(CONCATENATE($B255,"!Q18"))) ->  | Z255: =IF(ISERROR(INDIRECT(CONCATENATE($B255,"!Q19"))),"",INDIRECT(CONCATENATE($B255,"!Q19"))) ->  | AA255: =IF(ISERROR(INDIRECT(CONCATENATE($B255,"!Q20"))),"",INDIRECT(CONCATENATE($B255,"!Q20"))) ->  | AB255: =IF(ISERROR(INDIRECT(CONCATENATE($B255,"!Q21"))),"",INDIRECT(CONCATENATE($B255,"!Q1"))) -> 
E256: =IF(ISERROR(INDIRECT(CONCATENATE($B256,"!M18"))),"",INDIRECT(CONCATENATE($B256,"!M18"))) ->  | F256: =IF(ISERROR(INDIRECT(CONCATENATE($B256,"!M19"))),"",INDIRECT(CONCATENATE($B256,"!M19"))) ->  | G256: =IF(ISERROR(INDIRECT(CONCATENATE($B256,"!M20"))),"",INDIRECT(CONCATENATE($B256,"!M20"))) ->  | H256: =IF(ISERROR(INDIRECT(CONCATENATE($B256,"!M21"))),"",INDIRECT(CONCATENATE($B256,"!M21"))) ->  | J256: =IF(ISERROR(INDIRECT(CONCATENATE($B256,"!N18"))),"",INDIRECT(CONCATENATE($B256,"!N18"))) ->  | K256: =IF(ISERROR(INDIRECT(CONCATENATE($B256,"!N19"))),"",INDIRECT(CONCATENATE($B256,"!N19"))) ->  | L256: =IF(ISERROR(INDIRECT(CONCATENATE($B256,"!N20"))),"",INDIRECT(CONCATENATE($B256,"!N20"))) ->  | M256: =IF(ISERROR(INDIRECT(CONCATENATE($B256,"!N21"))),"",INDIRECT(CONCATENATE($B256,"!N21"))) ->  | O256: =IF(ISERROR(INDIRECT(CONCATENATE($B256,"!O18"))),"",INDIRECT(CONCATENATE($B256,"!O18"))) ->  | P256: =IF(ISERROR(INDIRECT(CONCATENATE($B256,"!O19"))),"",INDIRECT(CONCATENATE($B256,"!O19"))) ->  | Q256: =IF(ISERROR(INDIRECT(CONCATENATE($B256,"!O20"))),"",INDIRECT(CONCATENATE($B256,"!O20"))) ->  | R256: =IF(ISERROR(INDIRECT(CONCATENATE($B256,"!O21"))),"",INDIRECT(CONCATENATE($B256,"!O21"))) ->  | T256: =IF(ISERROR(INDIRECT(CONCATENATE($B256,"!P18"))),"",INDIRECT(CONCATENATE($B256,"!P18"))) ->  | U256: =IF(ISERROR(INDIRECT(CONCATENATE($B256,"!P19"))),"",INDIRECT(CONCATENATE($B256,"!P19"))) ->  | V256: =IF(ISERROR(INDIRECT(CONCATENATE($B256,"!P20"))),"",INDIRECT(CONCATENATE($B256,"!P20"))) ->  | W256: =IF(ISERROR(INDIRECT(CONCATENATE($B256,"!P21"))),"",INDIRECT(CONCATENATE($B256,"!P21"))) ->  | Y256: =IF(ISERROR(INDIRECT(CONCATENATE($B256,"!Q18"))),"",INDIRECT(CONCATENATE($B256,"!Q18"))) ->  | Z256: =IF(ISERROR(INDIRECT(CONCATENATE($B256,"!Q19"))),"",INDIRECT(CONCATENATE($B256,"!Q19"))) ->  | AA256: =IF(ISERROR(INDIRECT(CONCATENATE($B256,"!Q20"))),"",INDIRECT(CONCATENATE($B256,"!Q20"))) ->  | AB256: =IF(ISERROR(INDIRECT(CONCATENATE($B256,"!Q21"))),"",INDIRECT(CONCATENATE($B256,"!Q1"))) -> 
E257: =IF(ISERROR(INDIRECT(CONCATENATE($B257,"!M18"))),"",INDIRECT(CONCATENATE($B257,"!M18"))) ->  | F257: =IF(ISERROR(INDIRECT(CONCATENATE($B257,"!M19"))),"",INDIRECT(CONCATENATE($B257,"!M19"))) ->  | G257: =IF(ISERROR(INDIRECT(CONCATENATE($B257,"!M20"))),"",INDIRECT(CONCATENATE($B257,"!M20"))) ->  | H257: =IF(ISERROR(INDIRECT(CONCATENATE($B257,"!M21"))),"",INDIRECT(CONCATENATE($B257,"!M21"))) ->  | J257: =IF(ISERROR(INDIRECT(CONCATENATE($B257,"!N18"))),"",INDIRECT(CONCATENATE($B257,"!N18"))) ->  | K257: =IF(ISERROR(INDIRECT(CONCATENATE($B257,"!N19"))),"",INDIRECT(CONCATENATE($B257,"!N19"))) ->  | L257: =IF(ISERROR(INDIRECT(CONCATENATE($B257,"!N20"))),"",INDIRECT(CONCATENATE($B257,"!N20"))) ->  | M257: =IF(ISERROR(INDIRECT(CONCATENATE($B257,"!N21"))),"",INDIRECT(CONCATENATE($B257,"!N21"))) ->  | O257: =IF(ISERROR(INDIRECT(CONCATENATE($B257,"!O18"))),"",INDIRECT(CONCATENATE($B257,"!O18"))) ->  | P257: =IF(ISERROR(INDIRECT(CONCATENATE($B257,"!O19"))),"",INDIRECT(CONCATENATE($B257,"!O19"))) ->  | Q257: =IF(ISERROR(INDIRECT(CONCATENATE($B257,"!O20"))),"",INDIRECT(CONCATENATE($B257,"!O20"))) ->  | R257: =IF(ISERROR(INDIRECT(CONCATENATE($B257,"!O21"))),"",INDIRECT(CONCATENATE($B257,"!O21"))) ->  | T257: =IF(ISERROR(INDIRECT(CONCATENATE($B257,"!P18"))),"",INDIRECT(CONCATENATE($B257,"!P18"))) ->  | U257: =IF(ISERROR(INDIRECT(CONCATENATE($B257,"!P19"))),"",INDIRECT(CONCATENATE($B257,"!P19"))) ->  | V257: =IF(ISERROR(INDIRECT(CONCATENATE($B257,"!P20"))),"",INDIRECT(CONCATENATE($B257,"!P20"))) ->  | W257: =IF(ISERROR(INDIRECT(CONCATENATE($B257,"!P21"))),"",INDIRECT(CONCATENATE($B257,"!P21"))) ->  | Y257: =IF(ISERROR(INDIRECT(CONCATENATE($B257,"!Q18"))),"",INDIRECT(CONCATENATE($B257,"!Q18"))) ->  | Z257: =IF(ISERROR(INDIRECT(CONCATENATE($B257,"!Q19"))),"",INDIRECT(CONCATENATE($B257,"!Q19"))) ->  | AA257: =IF(ISERROR(INDIRECT(CONCATENATE($B257,"!Q20"))),"",INDIRECT(CONCATENATE($B257,"!Q20"))) ->  | AB257: =IF(ISERROR(INDIRECT(CONCATENATE($B257,"!Q21"))),"",INDIRECT(CONCATENATE($B257,"!Q1"))) -> 
A297: RURAL | D297: Poorest | I297: Poor | N297: Middle | S297: Rich | X297: Richest
D298: Improved | E298: Basic | F298: Limited | G298: Unimproved | H298: Surface water | I298: Improved | J298: Basic | K298: Limited | L298: Unimproved | M298: Surface water | N298: Improved | O298: Basic | P298: Limited | Q298: Unimproved | R298: Surface water | S298: Improved | T298: Basic | U298: Limited | V298: Unimproved | W298: Surface water | X298: Improved | Y298: Basic | Z298: Limited | AA298: Unimproved | AB298: Surface water
A299: Forecast period: | C299: 2000 | D299: =IF((D301+H301)>100,D301*100/(D301+H301),D301) -> 85.87367669 | E299: =D299*AVERAGEIF(E305:E316,">0")/100 -> 83.42804174 | F299: =D299*(100-AVERAGEIF(E305:E316,">0"))/100 -> 2.445634955 | G299: =100-(E299+F299+H299) -> 14.12632331 | H299: =IF((D301+H301)>100,H301*100/(D301+H301),H301) -> 0 | I299: =IF((I301+M301)>100,I301*100/(I301+M301),I301) -> 91.25599206 | J299: =I299*AVERAGEIF(J305:J316,">0")/100 -> 89.17382832 | K299: =I299*(100-AVERAGEIF(J305:J316,">0"))/100 -> 2.082163741 | L299: =100-(J299+K299+M299) -> 8.744007942 | M299: =IF((I301+M301)>100,M301*100/(I301+M301),M301) -> 0 | N299: =IF((N301+R301)>100,N301*100/(N301+R301),N301) -> 92.86292225 | O299: =N299*AVERAGEIF(O305:O316,">0")/100 -> 91.35047547 | P299: =N299*(100-AVERAGEIF(O305:O316,">0"))/100 -> 1.512446783 | Q299: =100-(O299+P299+R299) -> 7.137077751 | R299: =IF((N301+R301)>100,R301*100/(N301+R301),R301) -> 0 | S299: =IF((S301+W301)>100,S301*100/(S301+W301),S301) -> 92.47649732 | T299: =S299*AVERAGEIF(T305:T316,">0")/100 -> 90.9103751 | U299: =S299*(100-AVERAGEIF(T305:T316,">0"))/100 -> 1.566122216 | V299: =100-(T299+U299+W299) -> 7.466273639 | W299: =IF((S301+W301)>100,W301*100/(S301+W301),W301) -> 0.05722904354 | X299: =IF((X301+AB301)>100,X301*100/(X301+AB301),X301) -> 94.3575256 | Y299: =X299*AVERAGEIF(Y305:Y316,">0")/100 -> 93.49698292 | Z299: =X299*(100-AVERAGEIF(Y305:Y316,">0"))/100 -> 0.8605426838 | AA299: =100-(Y299+Z299+AB299) -> 5.6424744 | AB299: =IF((X301+AB301)>100,AB301*100/(X301+AB301),AB301) -> 0
C300: 2018 | D300: =IF((D302+H302)>100,D302*100/(D302+H302),D302) -> 70.8604058 | E300: =D300*AVERAGEIF(E305:E316,">0")/100 -> 68.84234052 | F300: =D300*(100-AVERAGEIF(E305:E316,">0"))/100 -> 2.01806528 | G300: =100-(E300+F300+H300) -> 29.1395942 | H300: =IF((D302+H302)>100,H302*100/(D302+H302),H302) -> 0 | I300: =IF((I302+M302)>100,I302*100/(I302+M302),I302) -> 77.10200024 | J300: =I300*AVERAGEIF(J305:J316,">0")/100 -> 75.34278437 | K300: =I300*(100-AVERAGEIF(J305:J316,">0"))/100 -> 1.759215868 | L300: =100-(J300+K300+M300) -> 22.89799976 | M300: =IF((I302+M302)>100,M302*100/(I302+M302),M302) -> 0 | N300: =IF((N302+R302)>100,N302*100/(N302+R302),N302) -> 81.01933221 | O300: =N300*AVERAGEIF(O305:O316,">0")/100 -> 79.6997805 | P300: =N300*(100-AVERAGEIF(O305:O316,">0"))/100 -> 1.319551716 | Q300: =100-(O300+P300+R300) -> 18.98066779 | R300: =IF((N302+R302)>100,R302*100/(N302+R302),R302) -> 0 | S300: =IF((S302+W302)>100,S302*100/(S302+W302),S302) -> 85.97067689 | T300: =S300*AVERAGEIF(T305:T316,">0")/100 -> 84.51473305 | U300: =S300*(100-AVERAGEIF(T305:T316,">0"))/100 -> 1.455943844 | V300: =100-(T300+U300+W300) -> 14.02932311 | W300: =IF((S302+W302)>100,W302*100/(S302+W302),W302) -> 0 | X300: =IF((X302+AB302)>100,X302*100/(X302+AB302),X302) -> 91.13721469 | Y300: =X300*AVERAGEIF(Y305:Y316,">0")/100 -> 90.30604131 | Z300: =X300*(100-AVERAGEIF(Y305:Y316,">0"))/100 -> 0.8311733783 | AA300: =100-(Y300+Z300+AB300) -> 8.862785312 | AB300: =IF((X302+AB302)>100,AB302*100/(X302+AB302),AB302) -> 0
A301: Regression period: | C301: =MinRegYear(C299,C305:C316) -> 2000 | D301: =IF(MAX(C305:C316)-MIN(C305:C316)<5,AVERAGEIF(C305:C316,">0",D305:D316), IF(FORECAST($C301,D$305:D$316,$C$305:$C$316)<0,0, IF(FORECAST($C301,D$305:D$316,$C$305:$C$316)>100,100, FORECAST($C301,D$305:D$316,$C$305:$C$316)))) -> 85.87367669 | H301: =IF(MAX(C305:C316)-MIN(C305:C316)<5,AVERAGEIF(C305:C316,">0",H305:H316), IF(FORECAST($C301,H$305:H$316,$C$305:$C$316)<0,0, IF(FORECAST($C301,H$305:H$316,$C$305:$C$316)>100,100, FORECAST($C301,H$305:H$316,$C$305:$C$316)))) -> 0 | I301: =IF(MAX(C305:C316)-MIN(C305:C316)<5,AVERAGEIF(C305:C316,">0",I305:I316), IF(FORECAST($C301,I$305:I$316,$C$305:$C$316)<0,0, IF(FORECAST($C301,I$305:I$316,$C$305:$C$316)>100,100, FORECAST($C301,I$305:I$316,$C$305:$C$316)))) -> 91.25599206 | M301: =IF(MAX(C305:C316)-MIN(C305:C316)<5,AVERAGEIF(C305:C316,">0",M305:M316), IF(FORECAST($C301,M$305:M$316,$C$305:$C$316)<0,0, IF(FORECAST($C301,M$305:M$316,$C$305:$C$316)>100,100, FORECAST($C301,M$305:M$316,$C$305:$C$316)))) -> 0 | N301: =IF(MAX(C305:C316)-MIN(C305:C316)<5,AVERAGEIF(C305:C316,">0",N305:N316), IF(FORECAST($C301,N$305:N$316,$C$305:$C$316)<0,0, IF(FORECAST($C301,N$305:N$316,$C$305:$C$316)>100,100, FORECAST($C301,N$305:N$316,$C$305:$C$316)))) -> 92.86292225 | R301: =IF(MAX(C305:C316)-MIN(C305:C316)<5,AVERAGEIF(C305:C316,">0",R305:R316), IF(FORECAST($C301,R$305:R$316,$C$305:$C$316)<0,0, IF(FORECAST($C301,R$305:R$316,$C$305:$C$316)>100,100, FORECAST($C301,R$305:R$316,$C$305:$C$316)))) -> 0 | S301: =IF(MAX(C305:C316)-MIN(C305:C316)<5,AVERAGEIF(C305:C316,">0",S305:S316), IF(FORECAST($C301,S$305:S$316,$C$305:$C$316)<0,0, IF(FORECAST($C301,S$305:S$316,$C$305:$C$316)>100,100, FORECAST($C301,S$305:S$316,$C$305:$C$316)))) -> 92.47649732 | W301: =IF(MAX(C305:C316)-MIN(C305:C316)<5,AVERAGEIF(C305:C316,">0",W305:W316), IF(FORECAST($C301,W$305:W$316,$C$305:$C$316)<0,0, IF(FORECAST($C301,W$305:W$316,$C$305:$C$316)>100,100, FORECAST($C301,W$305:W$316,$C$305:$C$316)))) -> 0.05722904354 | X301: =IF(MAX(C305:C316)-MIN(C305:C316)<5,AVERAGEIF(C305:C316,">0",X305:X316), IF(FORECAST($C301,X$305:X$316,$C$305:$C$316)<0,0, IF(FORECAST($C301,X$305:X$316,$C$305:$C$316)>100,100, FORECAST($C301,X$305:X$316,$C$305:$C$316)))) -> 94.3575256 | AB301: =IF(MAX(C305:C316)-MIN(C305:C316)<5,AVERAGEIF(C305:C316,">0",AB305:AB316), IF(FORECAST($C301,AB$305:AB$316,$C$305:$C$316)<0,0, IF(FORECAST($C301,AB$305:AB$316,$C$305:$C$316)>100,100, FORECAST($C301,AB$305:AB$316,$C$305:$C$316)))) -> 0
C302: =MaxRegYear(C300,C305:C316) -> 2014 | D302: =IF(MAX(C305:C316)-MIN(C305:C316)<5,AVERAGEIF(C305:C316,">0",D305:D316), IF(FORECAST($C302,D$305:D$316,$C$305:$C$316)<0,0, IF(FORECAST($C302,D$305:D$316,$C$305:$C$316)>100,100, FORECAST($C302,D$305:D$316,$C$305:$C$316)))) -> 70.8604058 | H302: =IF(MAX(C305:C316)-MIN(C305:C316)<5,AVERAGEIF(C305:C316,">0",H305:H316), IF(FORECAST($C302,H$305:H$316,$C$305:$C$316)<0,0, IF(FORECAST($C302,H$305:H$316,$C$305:$C$316)>100,100, FORECAST($C302,H$305:H$316,$C$305:$C$316)))) -> 0 | I302: =IF(MAX(C305:C316)-MIN(C305:C316)<5,AVERAGEIF(C305:C316,">0",I305:I316), IF(FORECAST($C302,I$305:I$316,$C$305:$C$316)<0,0, IF(FORECAST($C302,I$305:I$316,$C$305:$C$316)>100,100, FORECAST($C302,I$305:I$316,$C$305:$C$316)))) -> 77.10200024 | M302: =IF(MAX(C305:C316)-MIN(C305:C316)<5,AVERAGEIF(C305:C316,">0",M305:M316), IF(FORECAST($C302,M$305:M$316,$C$305:$C$316)<0,0, IF(FORECAST($C302,M$305:M$316,$C$305:$C$316)>100,100, FORECAST($C302,M$305:M$316,$C$305:$C$316)))) -> 0 | N302: =IF(MAX(C305:C316)-MIN(C305:C316)<5,AVERAGEIF(C305:C316,">0",N305:N316), IF(FORECAST($C302,N$305:N$316,$C$305:$C$316)<0,0, IF(FORECAST($C302,N$305:N$316,$C$305:$C$316)>100,100, FORECAST($C302,N$305:N$316,$C$305:$C$316)))) -> 81.01933221 | R302: =IF(MAX(C305:C316)-MIN(C305:C316)<5,AVERAGEIF(C305:C316,">0",R305:R316), IF(FORECAST($C302,R$305:R$316,$C$305:$C$316)<0,0, IF(FORECAST($C302,R$305:R$316,$C$305:$C$316)>100,100, FORECAST($C302,R$305:R$316,$C$305:$C$316)))) -> 0 | S302: =IF(MAX(C305:C316)-MIN(C305:C316)<5,AVERAGEIF(C305:C316,">0",S305:S316), IF(FORECAST($C302,S$305:S$316,$C$305:$C$316)<0,0, IF(FORECAST($C302,S$305:S$316,$C$305:$C$316)>100,100, FORECAST($C302,S$305:S$316,$C$305:$C$316)))) -> 85.97067689 | W302: =IF(MAX(C305:C316)-MIN(C305:C316)<5,AVERAGEIF(C305:C316,">0",W305:W316), IF(FORECAST($C302,W$305:W$316,$C$305:$C$316)<0,0, IF(FORECAST($C302,W$305:W$316,$C$305:$C$316)>100,100, FORECAST($C302,W$305:W$316,$C$305:$C$316)))) -> 0 | X302: =IF(MAX(C305:C316)-MIN(C305:C316)<5,AVERAGEIF(C305:C316,">0",X305:X316), IF(FORECAST($C302,X$305:X$316,$C$305:$C$316)<0,0, IF(FORECAST($C302,X$305:X$316,$C$305:$C$316)>100,100, FORECAST($C302,X$305:X$316,$C$305:$C$316)))) -> 91.13721469 | AB302: =IF(MAX(C305:C316)-MIN(C305:C316)<5,AVERAGEIF(C305:C316,">0",AB305:AB316), IF(FORECAST($C302,AB$305:AB$316,$C$305:$C$316)<0,0, IF(FORECAST($C302,AB$305:AB$316,$C$305:$C$316)>100,100, FORECAST($C302,AB$305:AB$316,$C$305:$C$316)))) -> 0
B304: Survey | C304: Year | D304: Improved | E304: Basic | H304: Surface water | I304: Improved | J304: Basic | M304: Surface water | N304: Improved | O304: Basic | R304: Surface water | S304: Improved | T304: Basic | W304: Surface water | X304: Improved | Y304: Basic | AB304: Surface water
B305: MICS00 | C305: 2000 | D305: =IF(ISERROR(INDIRECT(CONCATENATE($B305,"!M16"))),"",INDIRECT(CONCATENATE($B305,"!M16"))) -> 83.76645439 | E305: =IF(ISERROR(INDIRECT(CONCATENATE($B305,"!M23"))),"",INDIRECT(CONCATENATE($B305,"!M23"))) -> 97.40411029 | H305: =IF(ISERROR(INDIRECT(CONCATENATE($B305,"!M21"))),"",INDIRECT(CONCATENATE($B305,"!M21"))) -> 0 | I305: =IF(ISERROR(INDIRECT(CONCATENATE($B305,"!N16"))),"",INDIRECT(CONCATENATE($B305,"!N16"))) -> 88.98239336 | J305: =IF(ISERROR(INDIRECT(CONCATENATE($B305,"!N23"))),"",INDIRECT(CONCATENATE($B305,"!N23"))) -> 97.7366531 | M305: =IF(ISERROR(INDIRECT(CONCATENATE($B305,"!N21"))),"",INDIRECT(CONCATENATE($B305,"!N21"))) -> 0 | N305: =IF(ISERROR(INDIRECT(CONCATENATE($B305,"!O16"))),"",INDIRECT(CONCATENATE($B305,"!O16"))) -> 91.44713914 | O305: =IF(ISERROR(INDIRECT(CONCATENATE($B305,"!O23"))),"",INDIRECT(CONCATENATE($B305,"!O23"))) -> 97.44262505 | R305: =IF(ISERROR(INDIRECT(CONCATENATE($B305,"!O21"))),"",INDIRECT(CONCATENATE($B305,"!O21"))) -> 0 | S305: =IF(ISERROR(INDIRECT(CONCATENATE($B305,"!P16"))),"",INDIRECT(CONCATENATE($B305,"!P16"))) -> 91.63638559 | T305: =IF(ISERROR(INDIRECT(CONCATENATE($B305,"!P23"))),"",INDIRECT(CONCATENATE($B305,"!P23"))) -> 98.01292921 | W305: =IF(ISERROR(INDIRECT(CONCATENATE($B305,"!P21"))),"",INDIRECT(CONCATENATE($B305,"!P21"))) -> 0.07382207983 | X305: =IF(ISERROR(INDIRECT(CONCATENATE($B305,"!Q16"))),"",INDIRECT(CONCATENATE($B305,"!Q16"))) -> 95.06136285 | Y305: =IF(ISERROR(INDIRECT(CONCATENATE($B305,"!Q23"))),"",INDIRECT(CONCATENATE($B305,"!Q23"))) -> 99.07599565 | AB305: =IF(ISERROR(INDIRECT(CONCATENATE($B305,"!Q221"))),"",INDIRECT(CONCATENATE($B305,"!Q21"))) -> 0
B306: DHS05 | C306: 2005 | D306: 84.12417532 | E306: N/A | H306: 0 | I306: 90.09859274 | J306: N/A | M306: 0 | N306: 91.06012542 | O306: N/A | R306: 0 | S306: 91.59318156 | T306: N/A | W306: 0 | X306: 92.00083641 | Y306: N/A | AB306: 0
B307: MICS12 | C307: 2012 | D307: 71.5 | E307: 96.9 | H307: 0 | I307: 77.5 | J307: 97.7 | M307: 0 | N307: 81.7 | O307: 99.3 | R307: 0 | S307: 86.3 | T307: 98.6 | W307: 0 | X307: 92.1 | Y307: 99.1 | AB307: 0
B318: =CONCATENATE("Rural use of drinking water sources, ",C299,"–",C300) -> Rural use of drinking water sources, 2000–2018 | S318: Data points used for regression

Sheet Sanitation
B4: Summary of trends in use of sanitation facilities by wealth quintile (%)
B5: =IF(ISERROR(INDIRECT(CONCATENATE($B105,"!A2"))),"",INDIRECT(CONCATENATE($B105,"!A2"))) -> Republic of Moldova
B7: =B118 -> National use of sanitation facilities, 2000–2018 | J7: =B218 -> Urban use of sanitation facilities, 2000–2018 | R7: =B318 -> Rural use of sanitation facilities, 2000–2018
B31: =IF(ISERROR(INDIRECT(CONCATENATE($B105,"!A2"))),"",INDIRECT(CONCATENATE($B105,"!A2"))) -> Republic of Moldova | F31: Poorest | J31: Poor | N31: Middle | R31: Rich | V31: Richest
F32: Basic | G32: Limited | H32: Unimproved | I32: Open defecation | J32: Basic | K32: Limited | L32: Unimproved | M32: Open defecation | N32: Basic | O32: Limited | P32: Unimproved | Q32: Open defecation | R32: Basic | S32: Limited | T32: Unimproved | U32: Open defecation | V32: Basic | W32: Limited | X32: Unimproved | Y32: Open defecation
B33: NATIONAL | D33: Estimate | E33: =C99 -> 2000 | F33: =E99 -> 53.86318893 | G33: =F99 -> 6.298336469 | H33: 39.8384746 | I33: 0 | J33: =J99 -> 60.55701677 | K33: =K99 -> 6.193607308 | L33: 33.24937592 | M33: 0 | N33: =O99 -> 68.27895224 | O33: =P99 -> 6.385570309 | P33: 25.33547745 | Q33: 0 | R33: =T99 -> 75.61669175 | S33: =U99 -> 9.382050869 | T33: 15.00125738 | U33: 0 | V33: =Y99 -> 87.15941552 | W33: =Z99 -> 4.891806552 | X33: 7.948777925 | Y33: 0
E34: =C100 -> 2018 | F34: =E100 -> 59.13274723 | G34: 6.914517053 | H34: 33.40596565 | I34: 0.5467700703 | J34: =J100 -> 66.03690342 | K34: 6.754075241 | L34: 27.20902134 | M34: 0 | N34: =O100 -> 72.47176322 | O34: 6.777689527 | P34: 20.75054725 | Q34: 0 | R34: =T100 -> 80.01444894 | S34: 9.927697348 | T34: 10.05785371 | U34: 0 | V34: =Y100 -> 94.67795271 | W34: 5.313783102 | X34: 0.008264184323 | Y34: 0
B36: URBAN | D36: Estimate | E36: =C199 -> 2000 | F36: =E199 -> 60.22481087 | G36: =F199 -> 11.5841088 | H36: 28.19108033 | I36: 0 | J36: =J199 -> 73.19027206 | K36: =K199 -> 11.60562229 | L36: 15.20410564 | M36: 0 | N36: =O199 -> 87.61148371 | O36: =P199 -> 7.922643431 | P36: 4.465872864 | Q36: 0 | R36: =T199 -> 88.18239158 | S36: =U199 -> 5.864696752 | T36: 5.952911667 | U36: 0 | V36: =Y199 -> 96.11540364 | W36: =Z199 -> 3.628267435 | X36: 0.256328925 | Y36: 0
E37: =C200 -> 2018 | F37: =E200 -> 73.09093333 | G37: 14.05887892 | H37: 12.79049649 | I37: 0.05969125914 | J37: =J200 -> 81.38882375 | K37: 12.90564881 | L37: 5.705527444 | M37: 0 | N37: =O200 -> 90.32068654 | O37: 8.167634693 | P37: 1.511678771 | Q37: 0 | R37: =T200 -> 93.76408472 | S37: 6.23591528 | T37: 0 | U37: 0 | V37: =Y200 -> 96.34154348 | W37: 3.636804004 | X37: 0.02165251543 | Y37: 0
B39: RURAL | D39: Estimate | E39: =C299 -> 2000 | F39: =E299 -> 54.23778566 | G39: =F299 -> 5.247756517 | H39: 40.51445783 | I39: 0 | J39: =J299 -> 59.59420472 | K39: =K299 -> 6.151890013 | L39: 34.25390527 | M39: 0 | N39: =O299 -> 62.57724284 | O39: =P299 -> 4.907685308 | P39: 32.51507185 | Q39: 0 | R39: =T299 -> 66.46109845 | S39: =U299 -> 5.519096644 | T39: 28.01980491 | U39: 0 | V39: =Y299 -> 66.72136309 | W39: =Z299 -> 6.138342699 | X39: 27.14029421 | Y39: 0
E40: =C300 -> 2018 | F40: =E300 -> 56.58572312 | G40: 5.474930322 | H40: 37.10506571 | I40: 0.8342808504 | J40: =J300 -> 62.3621878 | K40: 6.43762799 | L40: 31.20018421 | M40: 0 | N40: =O300 -> 64.44180183 | O40: 5.053915285 | P40: 30.50428288 | Q40: 0 | R40: =T300 -> 69.98102856 | S40: 5.811400487 | T40: 24.20757095 | U40: 0 | V40: =Y300 -> 81.00128607 | W40: 7.452090754 | X40: 11.54662318 | Y40: 0
A97: NATIONAL | D97: Poorest | I97: Poor | N97: Middle | S97: Rich | X97: Richest
D98: Improved | E98: Basic | F98: Limited | G98: Unimproved | H98: Open defecation | I98: Improved | J98: Basic | K98: Limited | L98: Unimproved | M98: Open defecation | N98: Improved | O98: Basic | P98: Limited | Q98: Unimproved | R98: Open defecation | S98: Improved | T98: Basic | U98: Limited | V98: Unimproved | W98: Open defecation | X98: Improved | Y98: Basic | Z98: Limited | AA98: Unimproved | AB98: Open defecation
A99: Forecast period: | C99: 2000 | D99: =IF((D101+H101)>100,D101*100/(D101+H101),D101) -> 60.1615254 | E99: =D99*AVERAGEIF(E105:E116,">0")/100 -> 53.86318893 | F99: =D99*(100-AVERAGEIF(E105:E116,">0"))/100 -> 6.298336469 | G99: =100-(E99+F99+H99) -> 39.8384746 | H99: =IF((D101+H101)>100,H101*100/(D101+H101),H101) -> 0 | I99: =IF((I101+M101)>100,I101*100/(I101+M101),I101) -> 66.75062408 | J99: =I99*AVERAGEIF(J105:J116,">0")/100 -> 60.55701677 | K99: =I99*(100-AVERAGEIF(J105:J116,">0"))/100 -> 6.193607308 | L99: =100-(J99+K99+M99) -> 33.24937592 | M99: =IF((I101+M101)>100,M101*100/(I101+M101),M101) -> 0 | N99: =IF((N101+R101)>100,N101*100/(N101+R101),N101) -> 74.66452255 | O99: =N99*AVERAGEIF(O105:O116,">0")/100 -> 68.27895224 | P99: =N99*(100-AVERAGEIF(O105:O116,">0"))/100 -> 6.385570309 | Q99: =100-(O99+P99+R99) -> 25.33547745 | R99: =IF((N101+R101)>100,R101*100/(N101+R101),R101) -> 0 | S99: =IF((S101+W101)>100,S101*100/(S101+W101),S101) -> 84.99874262 | T99: =S99*AVERAGEIF(T105:T116,">0")/100 -> 75.61669175 | U99: =S99*(100-AVERAGEIF(T105:T116,">0"))/100 -> 9.382050869 | V99: =100-(T99+U99+W99) -> 15.00125738 | W99: =IF((S101+W101)>100,W101*100/(S101+W101),W101) -> 0 | X99: =IF((X101+AB101)>100,X101*100/(X101+AB101),X101) -> 92.05122208 | Y99: =X99*AVERAGEIF(Y105:Y116,">0")/100 -> 87.15941552 | Z99: =X99*(100-AVERAGEIF(Y105:Y116,">0"))/100 -> 4.891806552 | AA99: =100-(Y99+Z99+AB99) -> 7.948777925 | AB99: =IF((X101+AB101)>100,AB101*100/(X101+AB101),AB101) -> 0
C100: 2018 | D100: =IF((D102+H102)>100,D102*100/(D102+H102),D102) -> 66.04726428 | E100: =D100*AVERAGEIF(E105:E116,">0")/100 -> 59.13274723 | F100: =D100*(100-AVERAGEIF(E105:E116,">0"))/100 -> 6.914517053 | G100: =100-(E100+F100+H100) -> 33.40596565 | H100: =IF((D102+H102)>100,H102*100/(D102+H102),H102) -> 0.5467700703 | I100: =IF((I102+M102)>100,I102*100/(I102+M102),I102) -> 72.79097866 | J100: =I100*AVERAGEIF(J105:J116,">0")/100 -> 66.03690342 | K100: =I100*(100-AVERAGEIF(J105:J116,">0"))/100 -> 6.754075241 | L100: =100-(J100+K100+M100) -> 27.20902134 | M100: =IF((I102+M102)>100,M102*100/(I102+M102),M102) -> 0 | N100: =IF((N102+R102)>100,N102*100/(N102+R102),N102) -> 79.24945275 | O100: =N100*AVERAGEIF(O105:O116,">0")/100 -> 72.47176322 | P100: =N100*(100-AVERAGEIF(O105:O116,">0"))/100 -> 6.777689527 | Q100: =100-(O100+P100+R100) -> 20.75054725 | R100: =IF((N102+R102)>100,R102*100/(N102+R102),R102) -> 0 | S100: =IF((S102+W102)>100,S102*100/(S102+W102),S102) -> 89.94214629 | T100: =S100*AVERAGEIF(T105:T116,">0")/100 -> 80.01444894 | U100: =S100*(100-AVERAGEIF(T105:T116,">0"))/100 -> 9.927697348 | V100: =100-(T100+U100+W100) -> 10.05785371 | W100: =IF((S102+W102)>100,W102*100/(S102+W102),W102) -> 0 | X100: =IF((X102+AB102)>100,X102*100/(X102+AB102),X102) -> 99.99173582 | Y100: =X100*AVERAGEIF(Y105:Y116,">0")/100 -> 94.67795271 | Z100: =X100*(100-AVERAGEIF(Y105:Y116,">0"))/100 -> 5.313783102 | AA100: =100-(Y100+Z100+AB100) -> 0.008264184323 | AB100: =IF((X102+AB102)>100,AB102*100/(X102+AB102),AB102) -> 0
A101: Regression period: | C101: =MinRegYear(C99,C105:C116) -> 2000 | D101: =IF(MAX(C105:C116)-MIN(C105:C116)<5,AVERAGEIF(C105:C116,">0",D105:D116), IF(FORECAST($C101,D$105:D$116,$C$105:$C$116)<0,0, IF(FORECAST($C101,D$105:D$116,$C$105:$C$116)>100,100, FORECAST($C101,D$105:D$116,$C$105:$C$116)))) -> 60.1615254 | H101: =IF(MAX(C105:C116)-MIN(C105:C116)<5,AVERAGEIF(C105:C116,">0",H105:H116), IF(FORECAST($C101,H$105:H$116,$C$105:$C$116)<0,0, IF(FORECAST($C101,H$105:H$116,$C$105:$C$116)>100,100, FORECAST($C101,H$105:H$116,$C$105:$C$116)))) -> 0 | I101: =IF(MAX(C105:C116)-MIN(C105:C116)<5,AVERAGEIF(C105:C116,">0",I105:I116), IF(FORECAST($C101,I$105:I$116,$C$105:$C$116)<0,0, IF(FORECAST($C101,I$105:I$116,$C$105:$C$116)>100,100, FORECAST($C101,I$105:I$116,$C$105:$C$116)))) -> 66.75062408 | M101: =IF(MAX(C105:C116)-MIN(C105:C116)<5,AVERAGEIF(C105:C116,">0",M105:M116), IF(FORECAST($C101,M$105:M$116,$C$105:$C$116)<0,0, IF(FORECAST($C101,M$105:M$116,$C$105:$C$116)>100,100, FORECAST($C101,M$105:M$116,$C$105:$C$116)))) -> 0 | N101: =IF(MAX(C105:C116)-MIN(C105:C116)<5,AVERAGEIF(C105:C116,">0",N105:N116), IF(FORECAST($C101,N$105:N$116,$C$105:$C$116)<0,0, IF(FORECAST($C101,N$105:N$116,$C$105:$C$116)>100,100, FORECAST($C101,N$105:N$116,$C$105:$C$116)))) -> 74.66452255 | R101: =IF(MAX(C105:C116)-MIN(C105:C116)<5,AVERAGEIF(C105:C116,">0",R105:R116), IF(FORECAST($C101,R$105:R$116,$C$105:$C$116)<0,0, IF(FORECAST($C101,R$105:R$116,$C$105:$C$116)>100,100, FORECAST($C101,R$105:R$116,$C$105:$C$116)))) -> 0 | S101: =IF(MAX(C105:C116)-MIN(C105:C116)<5,AVERAGEIF(C105:C116,">0",S105:S116), IF(FORECAST($C101,S$105:S$116,$C$105:$C$116)<0,0, IF(FORECAST($C101,S$105:S$116,$C$105:$C$116)>100,100, FORECAST($C101,S$105:S$116,$C$105:$C$116)))) -> 84.99874262 | W101: =IF(MAX(C105:C116)-MIN(C105:C116)<5,AVERAGEIF(C105:C116,">0",W105:W116), IF(FORECAST($C101,W$105:W$116,$C$105:$C$116)<0,0, IF(FORECAST($C101,W$105:W$116,$C$105:$C$116)>100,100, FORECAST($C101,W$105:W$116,$C$105:$C$116)))) -> 0 | X101: =IF(MAX(C105:C116)-MIN(C105:C116)<5,AVERAGEIF(C105:C116,">0",X105:X116), IF(FORECAST($C101,X$105:X$116,$C$105:$C$116)<0,0, IF(FORECAST($C101,X$105:X$116,$C$105:$C$116)>100,100, FORECAST($C101,X$105:X$116,$C$105:$C$116)))) -> 92.05122208 | AB101: =IF(MAX(C105:C116)-MIN(C105:C116)<5,AVERAGEIF(C105:C116,">0",AB105:AB116), IF(FORECAST($C101,AB$105:AB$116,$C$105:$C$116)<0,0, IF(FORECAST($C101,AB$105:AB$116,$C$105:$C$116)>100,100, FORECAST($C101,AB$105:AB$116,$C$105:$C$116)))) -> 0
C102: =MaxRegYear(C100,C105:C116) -> 2014 | D102: =IF(MAX(C105:C116)-MIN(C105:C116)<5,AVERAGEIF(C105:C116,">0",D105:D116), IF(FORECAST($C102,D$105:D$116,$C$105:$C$116)<0,0, IF(FORECAST($C102,D$105:D$116,$C$105:$C$116)>100,100, FORECAST($C102,D$105:D$116,$C$105:$C$116)))) -> 66.04726428 | H102: =IF(MAX(C105:C116)-MIN(C105:C116)<5,AVERAGEIF(C105:C116,">0",H105:H116), IF(FORECAST($C102,H$105:H$116,$C$105:$C$116)<0,0, IF(FORECAST($C102,H$105:H$116,$C$105:$C$116)>100,100, FORECAST($C102,H$105:H$116,$C$105:$C$116)))) -> 0.5467700703 | I102: =IF(MAX(C105:C116)-MIN(C105:C116)<5,AVERAGEIF(C105:C116,">0",I105:I116), IF(FORECAST($C102,I$105:I$116,$C$105:$C$116)<0,0, IF(FORECAST($C102,I$105:I$116,$C$105:$C$116)>100,100, FORECAST($C102,I$105:I$116,$C$105:$C$116)))) -> 72.79097866 | M102: =IF(MAX(C105:C116)-MIN(C105:C116)<5,AVERAGEIF(C105:C116,">0",M105:M116), IF(FORECAST($C102,M$105:M$116,$C$105:$C$116)<0,0, IF(FORECAST($C102,M$105:M$116,$C$105:$C$116)>100,100, FORECAST($C102,M$105:M$116,$C$105:$C$116)))) -> 0 | N102: =IF(MAX(C105:C116)-MIN(C105:C116)<5,AVERAGEIF(C105:C116,">0",N105:N116), IF(FORECAST($C102,N$105:N$116,$C$105:$C$116)<0,0, IF(FORECAST($C102,N$105:N$116,$C$105:$C$116)>100,100, FORECAST($C102,N$105:N$116,$C$105:$C$116)))) -> 79.24945275 | R102: =IF(MAX(C105:C116)-MIN(C105:C116)<5,AVERAGEIF(C105:C116,">0",R105:R116), IF(FORECAST($C102,R$105:R$116,$C$105:$C$116)<0,0, IF(FORECAST($C102,R$105:R$116,$C$105:$C$116)>100,100, FORECAST($C102,R$105:R$116,$C$105:$C$116)))) -> 0 | S102: =IF(MAX(C105:C116)-MIN(C105:C116)<5,AVERAGEIF(C105:C116,">0",S105:S116), IF(FORECAST($C102,S$105:S$116,$C$105:$C$116)<0,0, IF(FORECAST($C102,S$105:S$116,$C$105:$C$116)>100,100, FORECAST($C102,S$105:S$116,$C$105:$C$116)))) -> 89.94214629 | W102: =IF(MAX(C105:C116)-MIN(C105:C116)<5,AVERAGEIF(C105:C116,">0",W105:W116), IF(FORECAST($C102,W$105:W$116,$C$105:$C$116)<0,0, IF(FORECAST($C102,W$105:W$116,$C$105:$C$116)>100,100, FORECAST($C102,W$105:W$116,$C$105:$C$116)))) -> 0 | X102: =IF(MAX(C105:C116)-MIN(C105:C116)<5,AVERAGEIF(C105:C116,">0",X105:X116), IF(FORECAST($C102,X$105:X$116,$C$105:$C$116)<0,0, IF(FORECAST($C102,X$105:X$116,$C$105:$C$116)>100,100, FORECAST($C102,X$105:X$116,$C$105:$C$116)))) -> 99.99173582 | AB102: =IF(MAX(C105:C116)-MIN(C105:C116)<5,AVERAGEIF(C105:C116,">0",AB105:AB116), IF(FORECAST($C102,AB$105:AB$116,$C$105:$C$116)<0,0, IF(FORECAST($C102,AB$105:AB$116,$C$105:$C$116)>100,100, FORECAST($C102,AB$105:AB$116,$C$105:$C$116)))) -> 0
B104: Survey | C104: Year | D104: Improved | E104: Not shared | H104: Open defecation | I104: Improved | J104: Not shared | M104: Open defecation | N104: Improved | O104: Not shared | R104: Open defecation | S104: Improved | T104: Not shared | W104: Open defecation | X104: Improved | Y104: Not shared | AB104: Open defecation
B105: MICS00 | C105: 2000 | D105: =IF(ISERROR(INDIRECT(CONCATENATE($B105,"!C122"))),"",INDIRECT(CONCATENATE($B105,"!C122"))) -> 54.00328268 | E105: =IF(ISERROR(INDIRECT(CONCATENATE($B105,"!C129"))),"",INDIRECT(CONCATENATE($B105,"!C129"))) -> N/A | H105: =IF(ISERROR(INDIRECT(CONCATENATE($B105,"!C127"))),"",INDIRECT(CONCATENATE($B105,"!C127"))) -> 0 | I105: =IF(ISERROR(INDIRECT(CONCATENATE($B105,"!D122"))),"",INDIRECT(CONCATENATE($B105,"!D122"))) -> 62.21480892 | J105: =IF(ISERROR(INDIRECT(CONCATENATE($B105,"!D129"))),"",INDIRECT(CONCATENATE($B105,"!D129"))) -> N/A | M105: =IF(ISERROR(INDIRECT(CONCATENATE($B105,"!D127"))),"",INDIRECT(CONCATENATE($B105,"!D127"))) -> 0 | N105: =IF(ISERROR(INDIRECT(CONCATENATE($B105,"!E122"))),"",INDIRECT(CONCATENATE($B105,"!E122"))) -> 72.10134995 | O105: =IF(ISERROR(INDIRECT(CONCATENATE($B105,"!E129"))),"",INDIRECT(CONCATENATE($B105,"!E129"))) -> N/A | R105: =IF(ISERROR(INDIRECT(CONCATENATE($B105,"!E127"))),"",INDIRECT(CONCATENATE($B105,"!E127"))) -> 0 | S105: =IF(ISERROR(INDIRECT(CONCATENATE($B105,"!F122"))),"",INDIRECT(CONCATENATE($B105,"!F122"))) -> 84.14884557 | T105: =IF(ISERROR(INDIRECT(CONCATENATE($B105,"!F129"))),"",INDIRECT(CONCATENATE($B105,"!F129"))) -> N/A | W105: =IF(ISERROR(INDIRECT(CONCATENATE($B105,"!F127"))),"",INDIRECT(CONCATENATE($B105,"!F127"))) -> 0 | X105: =IF(ISERROR(INDIRECT(CONCATENATE($B105,"!G122"))),"",INDIRECT(CONCATENATE($B105,"!G122"))) -> 89.64661542 | Y105: =IF(ISERROR(INDIRECT(CONCATENATE($B105,"!G129"))),"",INDIRECT(CONCATENATE($B105,"!G129"))) -> N/A | AB105: =IF(ISERROR(INDIRECT(CONCATENATE($B105,"!G2127"))),"",INDIRECT(CONCATENATE($B105,"!G127"))) -> 0
B106: DHS05 | C106: 2005 | D106: 72.82056252 | E106: 92.6147528 | H106: 0 | I106: 76.68357671 | J106: 94.9129685 | M106: 0 | N106: 80.6960078 | O106: 94.58760616 | R106: 0 | S106: 88.2212103 | T106: 89.66592086 | W106: 0 | X106: 99.00930267 | Y106: 96.40168217 | AB106: 0
B107: MICS12 | C107: 2012 | D107: 60.80769964 | E107: 86.44715952 | H107: 0.5159994603 | I107: 68.68820289 | J107: 86.52958011 | M107: 0 | N107: 76.76362515 | O107: 88.30769648 | R107: 0 | S107: 88.62887645 | T107: 88.25833877 | W107: 0 | X107: 97.13980053 | Y107: 92.96987327 | AB107: 0
B118: =CONCATENATE("National use of sanitation facilities, ",C99,"–",C100) -> National use of sanitation facilities, 2000–2018 | S118: Data points used for regression
A197: URBAN | D197: Poorest | I197: Poor | N197: Middle | S197: Rich | X197: Richest
D198: Improved | E198: Basic | F198: Limited | G198: Unimproved | H198: Open defecation | I198: Improved | J198: Basic | K198: Limited | L198: Unimproved | M198: Open defecation | N198: Improved | O198: Basic | P198: Limited | Q198: Unimproved | R198: Open defecation | S198: Improved | T198: Basic | U198: Limited | V198: Unimproved | W198: Open defecation | X198: Improved | Y198: Basic | Z198: Limited | AA198: Unimproved | AB198: Open defecation
A199: Forecast period: | C199: 2000 | D199: =IF((D201+H201)>100,D201*100/(D201+H201),D201) -> 71.80891967 | E199: =D199*AVERAGEIF(E205:E216,">0")/100 -> 60.22481087 | F199: =D199*(100-AVERAGEIF(E205:E216,">0"))/100 -> 11.5841088 | G199: =100-(E199+F199+H199) -> 28.19108033 | H199: =IF((D201+H201)>100,H201*100/(D201+H201),H201) -> 0 | I199: =IF((I201+M201)>100,I201*100/(I201+M201),I201) -> 84.79589436 | J199: =I199*AVERAGEIF(J205:J216,">0")/100 -> 73.19027206 | K199: =I199*(100-AVERAGEIF(J205:J216,">0"))/100 -> 11.60562229 | L199: =100-(J199+K199+M199) -> 15.20410564 | M199: =IF((I201+M201)>100,M201*100/(I201+M201),M201) -> 0 | N199: =IF((N201+R201)>100,N201*100/(N201+R201),N201) -> 95.53412714 | O199: =N199*AVERAGEIF(O205:O216,">0")/100 -> 87.61148371 | P199: =N199*(100-AVERAGEIF(O205:O216,">0"))/100 -> 7.922643431 | Q199: =100-(O199+P199+R199) -> 4.465872864 | R199: =IF((N201+R201)>100,R201*100/(N201+R201),R201) -> 0 | S199: =IF((S201+W201)>100,S201*100/(S201+W201),S201) -> 94.04708833 | T199: =S199*AVERAGEIF(T205:T216,">0")/100 -> 88.18239158 | U199: =S199*(100-AVERAGEIF(T205:T216,">0"))/100 -> 5.864696752 | V199: =100-(T199+U199+W199) -> 5.952911667 | W199: =IF((S201+W201)>100,W201*100/(S201+W201),W201) -> 0 | X199: =IF((X201+AB201)>100,X201*100/(X201+AB201),X201) -> 99.74367108 | Y199: =X199*AVERAGEIF(Y205:Y216,">0")/100 -> 96.11540364 | Z199: =X199*(100-AVERAGEIF(Y205:Y216,">0"))/100 -> 3.628267435 | AA199: =100-(Y199+Z199+AB199) -> 0.256328925 | AB199: =IF((X201+AB201)>100,AB201*100/(X201+AB201),AB201) -> 0
C200: 2018 | D200: =IF((D202+H202)>100,D202*100/(D202+H202),D202) -> 87.14981225 | E200: =D200*AVERAGEIF(E205:E216,">0")/100 -> 73.09093333 | F200: =D200*(100-AVERAGEIF(E205:E216,">0"))/100 -> 14.05887892 | G200: =100-(E200+F200+H200) -> 12.79049649 | H200: =IF((D202+H202)>100,H202*100/(D202+H202),H202) -> 0.05969125914 | I200: =IF((I202+M202)>100,I202*100/(I202+M202),I202) -> 94.29447256 | J200: =I200*AVERAGEIF(J205:J216,">0")/100 -> 81.38882375 | K200: =I200*(100-AVERAGEIF(J205:J216,">0"))/100 -> 12.90564881 | L200: =100-(J200+K200+M200) -> 5.705527444 | M200: =IF((I202+M202)>100,M202*100/(I202+M202),M202) -> 0 | N200: =IF((N202+R202)>100,N202*100/(N202+R202),N202) -> 98.48832123 | O200: =N200*AVERAGEIF(O205:O216,">0")/100 -> 90.32068654 | P200: =N200*(100-AVERAGEIF(O205:O216,">0"))/100 -> 8.167634693 | Q200: =100-(O200+P200+R200) -> 1.511678771 | R200: =IF((N202+R202)>100,R202*100/(N202+R202),R202) -> 0 | S200: =IF((S202+W202)>100,S202*100/(S202+W202),S202) -> 100 | T200: =S200*AVERAGEIF(T205:T216,">0")/100 -> 93.76408472 | U200: =S200*(100-AVERAGEIF(T205:T216,">0"))/100 -> 6.23591528 | V200: =100-(T200+U200+W200) -> 0 | W200: =IF((S202+W202)>100,W202*100/(S202+W202),W202) -> 0 | X200: =IF((X202+AB202)>100,X202*100/(X202+AB202),X202) -> 99.97834748 | Y200: =X200*AVERAGEIF(Y205:Y216,">0")/100 -> 96.34154348 | Z200: =X200*(100-AVERAGEIF(Y205:Y216,">0"))/100 -> 3.636804004 | AA200: =100-(Y200+Z200+AB200) -> 0.02165251543 | AB200: =IF((X202+AB202)>100,AB202*100/(X202+AB202),AB202) -> 0
A201: Regression period: | C201: =MinRegYear(C199,C205:C216) -> 2000 | D201: =IF(MAX(C205:C216)-MIN(C205:C216)<5,AVERAGEIF(C205:C216,">0",D205:D216), IF(FORECAST($C201,D$205:D$216,$C$205:$C$216)<0,0, IF(FORECAST($C201,D$205:D$216,$C$205:$C$216)>100,100, FORECAST($C201,D$205:D$216,$C$205:$C$216)))) -> 71.80891967 | H201: =IF(MAX(C205:C216)-MIN(C205:C216)<5,AVERAGEIF(C205:C216,">0",H205:H216), IF(FORECAST($C201,H$205:H$216,$C$205:$C$216)<0,0, IF(FORECAST($C201,H$205:H$216,$C$205:$C$216)>100,100, FORECAST($C201,H$205:H$216,$C$205:$C$216)))) -> 0 | I201: =IF(MAX(C205:C216)-MIN(C205:C216)<5,AVERAGEIF(C205:C216,">0",I205:I216), IF(FORECAST($C201,I$205:I$216,$C$205:$C$216)<0,0, IF(FORECAST($C201,I$205:I$216,$C$205:$C$216)>100,100, FORECAST($C201,I$205:I$216,$C$205:$C$216)))) -> 84.79589436 | M201: =IF(MAX(C205:C216)-MIN(C205:C216)<5,AVERAGEIF(C205:C216,">0",M205:M216), IF(FORECAST($C201,M$205:M$216,$C$205:$C$216)<0,0, IF(FORECAST($C201,M$205:M$216,$C$205:$C$216)>100,100, FORECAST($C201,M$205:M$216,$C$205:$C$216)))) -> 0 | N201: =IF(MAX(C205:C216)-MIN(C205:C216)<5,AVERAGEIF(C205:C216,">0",N205:N216), IF(FORECAST($C201,N$205:N$216,$C$205:$C$216)<0,0, IF(FORECAST($C201,N$205:N$216,$C$205:$C$216)>100,100, FORECAST($C201,N$205:N$216,$C$205:$C$216)))) -> 95.53412714 | R201: =IF(MAX(C205:C216)-MIN(C205:C216)<5,AVERAGEIF(C205:C216,">0",R205:R216), IF(FORECAST($C201,R$205:R$216,$C$205:$C$216)<0,0, IF(FORECAST($C201,R$205:R$216,$C$205:$C$216)>100,100, FORECAST($C201,R$205:R$216,$C$205:$C$216)))) -> 0 | S201: =IF(MAX(C205:C216)-MIN(C205:C216)<5,AVERAGEIF(C205:C216,">0",S205:S216), IF(FORECAST($C201,S$205:S$216,$C$205:$C$216)<0,0, IF(FORECAST($C201,S$205:S$216,$C$205:$C$216)>100,100, FORECAST($C201,S$205:S$216,$C$205:$C$216)))) -> 94.04708833 | W201: =IF(MAX(C205:C216)-MIN(C205:C216)<5,AVERAGEIF(C205:C216,">0",W205:W216), IF(FORECAST($C201,W$205:W$216,$C$205:$C$216)<0,0, IF(FORECAST($C201,W$205:W$216,$C$205:$C$216)>100,100, FORECAST($C201,W$205:W$216,$C$205:$C$216)))) -> 0 | X201: =IF(MAX(C205:C216)-MIN(C205:C216)<5,AVERAGEIF(C205:C216,">0",X205:X216), IF(FORECAST($C201,X$205:X$216,$C$205:$C$216)<0,0, IF(FORECAST($C201,X$205:X$216,$C$205:$C$216)>100,100, FORECAST($C201,X$205:X$216,$C$205:$C$216)))) -> 99.74367108 | AB201: =IF(MAX(C205:C216)-MIN(C205:C216)<5,AVERAGEIF(C205:C216,">0",AB205:AB216), IF(FORECAST($C201,AB$205:AB$216,$C$205:$C$216)<0,0, IF(FORECAST($C201,AB$205:AB$216,$C$205:$C$216)>100,100, FORECAST($C201,AB$205:AB$216,$C$205:$C$216)))) -> 0
C202: =MaxRegYear(C200,C205:C216) -> 2014 | D202: =IF(MAX(C205:C216)-MIN(C205:C216)<5,AVERAGEIF(C205:C216,">0",D205:D216), IF(FORECAST($C202,D$205:D$216,$C$205:$C$216)<0,0, IF(FORECAST($C202,D$205:D$216,$C$205:$C$216)>100,100, FORECAST($C202,D$205:D$216,$C$205:$C$216)))) -> 87.14981225 | H202: =IF(MAX(C205:C216)-MIN(C205:C216)<5,AVERAGEIF(C205:C216,">0",H205:H216), IF(FORECAST($C202,H$205:H$216,$C$205:$C$216)<0,0, IF(FORECAST($C202,H$205:H$216,$C$205:$C$216)>100,100, FORECAST($C202,H$205:H$216,$C$205:$C$216)))) -> 0.05969125914 | I202: =IF(MAX(C205:C216)-MIN(C205:C216)<5,AVERAGEIF(C205:C216,">0",I205:I216), IF(FORECAST($C202,I$205:I$216,$C$205:$C$216)<0,0, IF(FORECAST($C202,I$205:I$216,$C$205:$C$216)>100,100, FORECAST($C202,I$205:I$216,$C$205:$C$216)))) -> 94.29447256 | M202: =IF(MAX(C205:C216)-MIN(C205:C216)<5,AVERAGEIF(C205:C216,">0",M205:M216), IF(FORECAST($C202,M$205:M$216,$C$205:$C$216)<0,0, IF(FORECAST($C202,M$205:M$216,$C$205:$C$216)>100,100, FORECAST($C202,M$205:M$216,$C$205:$C$216)))) -> 0 | N202: =IF(MAX(C205:C216)-MIN(C205:C216)<5,AVERAGEIF(C205:C216,">0",N205:N216), IF(FORECAST($C202,N$205:N$216,$C$205:$C$216)<0,0, IF(FORECAST($C202,N$205:N$216,$C$205:$C$216)>100,100, FORECAST($C202,N$205:N$216,$C$205:$C$216)))) -> 98.48832123 | R202: =IF(MAX(C205:C216)-MIN(C205:C216)<5,AVERAGEIF(C205:C216,">0",R205:R216), IF(FORECAST($C202,R$205:R$216,$C$205:$C$216)<0,0, IF(FORECAST($C202,R$205:R$216,$C$205:$C$216)>100,100, FORECAST($C202,R$205:R$216,$C$205:$C$216)))) -> 0 | S202: =IF(MAX(C205:C216)-MIN(C205:C216)<5,AVERAGEIF(C205:C216,">0",S205:S216), IF(FORECAST($C202,S$205:S$216,$C$205:$C$216)<0,0, IF(FORECAST($C202,S$205:S$216,$C$205:$C$216)>100,100, FORECAST($C202,S$205:S$216,$C$205:$C$216)))) -> 100 | W202: =IF(MAX(C205:C216)-MIN(C205:C216)<5,AVERAGEIF(C205:C216,">0",W205:W216), IF(FORECAST($C202,W$205:W$216,$C$205:$C$216)<0,0, IF(FORECAST($C202,W$205:W$216,$C$205:$C$216)>100,100, FORECAST($C202,W$205:W$216,$C$205:$C$216)))) -> 0 | X202: =IF(MAX(C205:C216)-MIN(C205:C216)<5,AVERAGEIF(C205:C216,">0",X205:X216), IF(FORECAST($C202,X$205:X$216,$C$205:$C$216)<0,0, IF(FORECAST($C202,X$205:X$216,$C$205:$C$216)>100,100, FORECAST($C202,X$205:X$216,$C$205:$C$216)))) -> 99.97834748 | AB202: =IF(MAX(C205:C216)-MIN(C205:C216)<5,AVERAGEIF(C205:C216,">0",AB205:AB216), IF(FORECAST($C202,AB$205:AB$216,$C$205:$C$216)<0,0, IF(FORECAST($C202,AB$205:AB$216,$C$205:$C$216)>100,100, FORECAST($C202,AB$205:AB$216,$C$205:$C$216)))) -> 0
B204: Survey | C204: Year | D204: Improved | E204: Not shared | H204: Open defecation | I204: Improved | J204: Not shared | M204: Open defecation | N204: Improved | O204: Not shared | R204: Open defecation | S204: Improved | T204: Not shared | W204: Open defecation | X204: Improved | Y204: Not shared | AB204: Open defecation
B205: MICS00 | C205: 2000 | D205: =IF(ISERROR(INDIRECT(CONCATENATE($B205,"!H122"))),"",INDIRECT(CONCATENATE($B205,"!H122"))) -> 74.7520202 | E205: =IF(ISERROR(INDIRECT(CONCATENATE($B205,"!H129"))),"",INDIRECT(CONCATENATE($B205,"!H129"))) -> N/A | H205: =IF(ISERROR(INDIRECT(CONCATENATE($B205,"!H127"))),"",INDIRECT(CONCATENATE($B205,"!H127"))) -> 0 | I205: =IF(ISERROR(INDIRECT(CONCATENATE($B205,"!I122"))),"",INDIRECT(CONCATENATE($B205,"!I122"))) -> 84.93175475 | J205: =IF(ISERROR(INDIRECT(CONCATENATE($B205,"!I129"))),"",INDIRECT(CONCATENATE($B205,"!I129"))) -> N/A | M205: =IF(ISERROR(INDIRECT(CONCATENATE($B205,"!I127"))),"",INDIRECT(CONCATENATE($B205,"!I127"))) -> 0 | N205: =IF(ISERROR(INDIRECT(CONCATENATE($B205,"!J122"))),"",INDIRECT(CONCATENATE($B205,"!J122"))) -> 94.5569299 | O205: =IF(ISERROR(INDIRECT(CONCATENATE($B205,"!J129"))),"",INDIRECT(CONCATENATE($B205,"!J129"))) -> N/A | R205: =IF(ISERROR(INDIRECT(CONCATENATE($B205,"!J127"))),"",INDIRECT(CONCATENATE($B205,"!J127"))) -> 0 | S205: =IF(ISERROR(INDIRECT(CONCATENATE($B205,"!K122"))),"",INDIRECT(CONCATENATE($B205,"!K122"))) -> 92.39342352 | T205: =IF(ISERROR(INDIRECT(CONCATENATE($B205,"!K129"))),"",INDIRECT(CONCATENATE($B205,"!K129"))) -> N/A | W205: =IF(ISERROR(INDIRECT(CONCATENATE($B205,"!K127"))),"",INDIRECT(CONCATENATE($B205,"!K127"))) -> 0 | X205: =IF(ISERROR(INDIRECT(CONCATENATE($B205,"!L122"))),"",INDIRECT(CONCATENATE($B205,"!L122"))) -> 99.67812974 | Y205: =IF(ISERROR(INDIRECT(CONCATENATE($B205,"!L129"))),"",INDIRECT(CONCATENATE($B205,"!L129"))) -> N/A | AB205: =IF(ISERROR(INDIRECT(CONCATENATE($B205,"!L2127"))),"",INDIRECT(CONCATENATE($B205,"!L127"))) -> 0
B206: DHS05 | C206: 2005 | D206: 72.24249469 | E206: 90.3037805 | H206: 0 | I206: 87.95534018 | J206: 85.02355367 | M206: 0 | N206: 98.26439172 | O206: 93.0166147 | R206: 0 | S206: 99.38807024 | T206: 96.17147055 | W206: 0 | X206: 99.93984066 | Y206: 97.19913001 | AB206: 0
B207: MICS12 | C207: 2012 | D207: 87.06047083 | E207: 77.43251505 | H207: 0.05633201079 | I207: 93.03457595 | J207: 87.60337035 | M207: 0 | N207: 97.36829547 | O207: 90.39738893 | R207: 0 | S207: 98.88060626 | T207: 91.35669889 | W207: 0 | X207: 99.89800704 | Y207: 95.52568672 | AB207: 0
B218: =CONCATENATE("Urban use of sanitation facilities, ",C199,"–",C200) -> Urban use of sanitation facilities, 2000–2018 | S218: Data points used for regression
A297: RURAL | D297: Poorest | I297: Poor | N297: Middle | S297: Rich | X297: Richest
D298: Improved | E298: Basic | F298: Limited | G298: Unimproved | H298: Open defecation | I298: Improved | J298: Basic | K298: Limited | L298: Unimproved | M298: Open defecation | N298: Improved | O298: Basic | P298: Limited | Q298: Unimproved | R298: Open defecation | S298: Improved | T298: Basic | U298: Limited | V298: Unimproved | W298: Open defecation | X298: Improved | Y298: Basic | Z298: Limited | AA298: Unimproved | AB298: Open defecation
A299: Forecast period: | C299: 2000 | D299: =IF((D301+H301)>100,D301*100/(D301+H301),D301) -> 59.48554217 | E299: =D299*AVERAGEIF(E305:E316,">0")/100 -> 54.23778566 | F299: =D299*(100-AVERAGEIF(E305:E316,">0"))/100 -> 5.247756517 | G299: =100-(E299+F299+H299) -> 40.51445783 | H299: =IF((D301+H301)>100,H301*100/(D301+H301),H301) -> 0 | I299: =IF((I301+M301)>100,I301*100/(I301+M301),I301) -> 65.74609473 | J299: =I299*AVERAGEIF(J305:J316,">0")/100 -> 59.59420472 | K299: =I299*(100-AVERAGEIF(J305:J316,">0"))/100 -> 6.151890013 | L299: =100-(J299+K299+M299) -> 34.25390527 | M299: =IF((I301+M301)>100,M301*100/(I301+M301),M301) -> 0 | N299: =IF((N301+R301)>100,N301*100/(N301+R301),N301) -> 67.48492815 | O299: =N299*AVERAGEIF(O305:O316,">0")/100 -> 62.57724284 | P299: =N299*(100-AVERAGEIF(O305:O316,">0"))/100 -> 4.907685308 | Q299: =100-(O299+P299+R299) -> 32.51507185 | R299: =IF((N301+R301)>100,R301*100/(N301+R301),R301) -> 0 | S299: =IF((S301+W301)>100,S301*100/(S301+W301),S301) -> 71.98019509 | T299: =S299*AVERAGEIF(T305:T316,">0")/100 -> 66.46109845 | U299: =S299*(100-AVERAGEIF(T305:T316,">0"))/100 -> 5.519096644 | V299: =100-(T299+U299+W299) -> 28.01980491 | W299: =IF((S301+W301)>100,W301*100/(S301+W301),W301) -> 0 | X299: =IF((X301+AB301)>100,X301*100/(X301+AB301),X301) -> 72.85970579 | Y299: =X299*AVERAGEIF(Y305:Y316,">0")/100 -> 66.72136309 | Z299: =X299*(100-AVERAGEIF(Y305:Y316,">0"))/100 -> 6.138342699 | AA299: =100-(Y299+Z299+AB299) -> 27.14029421 | AB299: =IF((X301+AB301)>100,AB301*100/(X301+AB301),AB301) -> 0
C300: 2018 | D300: =IF((D302+H302)>100,D302*100/(D302+H302),D302) -> 62.06065344 | E300: =D300*AVERAGEIF(E305:E316,">0")/100 -> 56.58572312 | F300: =D300*(100-AVERAGEIF(E305:E316,">0"))/100 -> 5.474930322 | G300: =100-(E300+F300+H300) -> 37.10506571 | H300: =IF((D302+H302)>100,H302*100/(D302+H302),H302) -> 0.8342808504 | I300: =IF((I302+M302)>100,I302*100/(I302+M302),I302) -> 68.79981579 | J300: =I300*AVERAGEIF(J305:J316,">0")/100 -> 62.3621878 | K300: =I300*(100-AVERAGEIF(J305:J316,">0"))/100 -> 6.43762799 | L300: =100-(J300+K300+M300) -> 31.20018421 | M300: =IF((I302+M302)>100,M302*100/(I302+M302),M302) -> 0 | N300: =IF((N302+R302)>100,N302*100/(N302+R302),N302) -> 69.49571712 | O300: =N300*AVERAGEIF(O305:O316,">0")/100 -> 64.44180183 | P300: =N300*(100-AVERAGEIF(O305:O316,">0"))/100 -> 5.053915285 | Q300: =100-(O300+P300+R300) -> 30.50428288 | R300: =IF((N302+R302)>100,R302*100/(N302+R302),R302) -> 0 | S300: =IF((S302+W302)>100,S302*100/(S302+W302),S302) -> 75.79242905 | T300: =S300*AVERAGEIF(T305:T316,">0")/100 -> 69.98102856 | U300: =S300*(100-AVERAGEIF(T305:T316,">0"))/100 -> 5.811400487 | V300: =100-(T300+U300+W300) -> 24.20757095 | W300: =IF((S302+W302)>100,W302*100/(S302+W302),W302) -> 0 | X300: =IF((X302+AB302)>100,X302*100/(X302+AB302),X302) -> 88.45337682 | Y300: =X300*AVERAGEIF(Y305:Y316,">0")/100 -> 81.00128607 | Z300: =X300*(100-AVERAGEIF(Y305:Y316,">0"))/100 -> 7.452090754 | AA300: =100-(Y300+Z300+AB300) -> 11.54662318 | AB300: =IF((X302+AB302)>100,AB302*100/(X302+AB302),AB302) -> 0
A301: Regression period: | C301: =MinRegYear(C299,C305:C316) -> 2000 | D301: =IF(MAX(C305:C316)-MIN(C305:C316)<5,AVERAGEIF(C305:C316,">0",D305:D316), IF(FORECAST($C301,D$305:D$316,$C$305:$C$316)<0,0, IF(FORECAST($C301,D$305:D$316,$C$305:$C$316)>100,100, FORECAST($C301,D$305:D$316,$C$305:$C$316)))) -> 59.48554217 | H301: =IF(MAX(C305:C316)-MIN(C305:C316)<5,AVERAGEIF(C305:C316,">0",H305:H316), IF(FORECAST($C301,H$305:H$316,$C$305:$C$316)<0,0, IF(FORECAST($C301,H$305:H$316,$C$305:$C$316)>100,100, FORECAST($C301,H$305:H$316,$C$305:$C$316)))) -> 0 | I301: =IF(MAX(C305:C316)-MIN(C305:C316)<5,AVERAGEIF(C305:C316,">0",I305:I316), IF(FORECAST($C301,I$305:I$316,$C$305:$C$316)<0,0, IF(FORECAST($C301,I$305:I$316,$C$305:$C$316)>100,100, FORECAST($C301,I$305:I$316,$C$305:$C$316)))) -> 65.74609473 | M301: =IF(MAX(C305:C316)-MIN(C305:C316)<5,AVERAGEIF(C305:C316,">0",M305:M316), IF(FORECAST($C301,M$305:M$316,$C$305:$C$316)<0,0, IF(FORECAST($C301,M$305:M$316,$C$305:$C$316)>100,100, FORECAST($C301,M$305:M$316,$C$305:$C$316)))) -> 0 | N301: =IF(MAX(C305:C316)-MIN(C305:C316)<5,AVERAGEIF(C305:C316,">0",N305:N316), IF(FORECAST($C301,N$305:N$316,$C$305:$C$316)<0,0, IF(FORECAST($C301,N$305:N$316,$C$305:$C$316)>100,100, FORECAST($C301,N$305:N$316,$C$305:$C$316)))) -> 67.48492815 | R301: =IF(MAX(C305:C316)-MIN(C305:C316)<5,AVERAGEIF(C305:C316,">0",R305:R316), IF(FORECAST($C301,R$305:R$316,$C$305:$C$316)<0,0, IF(FORECAST($C301,R$305:R$316,$C$305:$C$316)>100,100, FORECAST($C301,R$305:R$316,$C$305:$C$316)))) -> 0 | S301: =IF(MAX(C305:C316)-MIN(C305:C316)<5,AVERAGEIF(C305:C316,">0",S305:S316), IF(FORECAST($C301,S$305:S$316,$C$305:$C$316)<0,0, IF(FORECAST($C301,S$305:S$316,$C$305:$C$316)>100,100, FORECAST($C301,S$305:S$316,$C$305:$C$316)))) -> 71.98019509 | W301: =IF(MAX(C305:C316)-MIN(C305:C316)<5,AVERAGEIF(C305:C316,">0",W305:W316), IF(FORECAST($C301,W$305:W$316,$C$305:$C$316)<0,0, IF(FORECAST($C301,W$305:W$316,$C$305:$C$316)>100,100, FORECAST($C301,W$305:W$316,$C$305:$C$316)))) -> 0 | X301: =IF(MAX(C305:C316)-MIN(C305:C316)<5,AVERAGEIF(C305:C316,">0",X305:X316), IF(FORECAST($C301,X$305:X$316,$C$305:$C$316)<0,0, IF(FORECAST($C301,X$305:X$316,$C$305:$C$316)>100,100, FORECAST($C301,X$305:X$316,$C$305:$C$316)))) -> 72.85970579 | AB301: =IF(MAX(C305:C316)-MIN(C305:C316)<5,AVERAGEIF(C305:C316,">0",AB305:AB316), IF(FORECAST($C301,AB$305:AB$316,$C$305:$C$316)<0,0, IF(FORECAST($C301,AB$305:AB$316,$C$305:$C$316)>100,100, FORECAST($C301,AB$305:AB$316,$C$305:$C$316)))) -> 0
C302: =MaxRegYear(C300,C305:C316) -> 2014 | D302: =IF(MAX(C305:C316)-MIN(C305:C316)<5,AVERAGEIF(C305:C316,">0",D305:D316), IF(FORECAST($C302,D$305:D$316,$C$305:$C$316)<0,0, IF(FORECAST($C302,D$305:D$316,$C$305:$C$316)>100,100, FORECAST($C302,D$305:D$316,$C$305:$C$316)))) -> 62.06065344 | H302: =IF(MAX(C305:C316)-MIN(C305:C316)<5,AVERAGEIF(C305:C316,">0",H305:H316), IF(FORECAST($C302,H$305:H$316,$C$305:$C$316)<0,0, IF(FORECAST($C302,H$305:H$316,$C$305:$C$316)>100,100, FORECAST($C302,H$305:H$316,$C$305:$C$316)))) -> 0.8342808504 | I302: =IF(MAX(C305:C316)-MIN(C305:C316)<5,AVERAGEIF(C305:C316,">0",I305:I316), IF(FORECAST($C302,I$305:I$316,$C$305:$C$316)<0,0, IF(FORECAST($C302,I$305:I$316,$C$305:$C$316)>100,100, FORECAST($C302,I$305:I$316,$C$305:$C$316)))) -> 68.79981579 | M302: =IF(MAX(C305:C316)-MIN(C305:C316)<5,AVERAGEIF(C305:C316,">0",M305:M316), IF(FORECAST($C302,M$305:M$316,$C$305:$C$316)<0,0, IF(FORECAST($C302,M$305:M$316,$C$305:$C$316)>100,100, FORECAST($C302,M$305:M$316,$C$305:$C$316)))) -> 0 | N302: =IF(MAX(C305:C316)-MIN(C305:C316)<5,AVERAGEIF(C305:C316,">0",N305:N316), IF(FORECAST($C302,N$305:N$316,$C$305:$C$316)<0,0, IF(FORECAST($C302,N$305:N$316,$C$305:$C$316)>100,100, FORECAST($C302,N$305:N$316,$C$305:$C$316)))) -> 69.49571712 | R302: =IF(MAX(C305:C316)-MIN(C305:C316)<5,AVERAGEIF(C305:C316,">0",R305:R316), IF(FORECAST($C302,R$305:R$316,$C$305:$C$316)<0,0, IF(FORECAST($C302,R$305:R$316,$C$305:$C$316)>100,100, FORECAST($C302,R$305:R$316,$C$305:$C$316)))) -> 0 | S302: =IF(MAX(C305:C316)-MIN(C305:C316)<5,AVERAGEIF(C305:C316,">0",S305:S316), IF(FORECAST($C302,S$305:S$316,$C$305:$C$316)<0,0, IF(FORECAST($C302,S$305:S$316,$C$305:$C$316)>100,100, FORECAST($C302,S$305:S$316,$C$305:$C$316)))) -> 75.79242905 | W302: =IF(MAX(C305:C316)-MIN(C305:C316)<5,AVERAGEIF(C305:C316,">0",W305:W316), IF(FORECAST($C302,W$305:W$316,$C$305:$C$316)<0,0, IF(FORECAST($C302,W$305:W$316,$C$305:$C$316)>100,100, FORECAST($C302,W$305:W$316,$C$305:$C$316)))) -> 0 | X302: =IF(MAX(C305:C316)-MIN(C305:C316)<5,AVERAGEIF(C305:C316,">0",X305:X316), IF(FORECAST($C302,X$305:X$316,$C$305:$C$316)<0,0, IF(FORECAST($C302,X$305:X$316,$C$305:$C$316)>100,100, FORECAST($C302,X$305:X$316,$C$305:$C$316)))) -> 88.45337682 | AB302: =IF(MAX(C305:C316)-MIN(C305:C316)<5,AVERAGEIF(C305:C316,">0",AB305:AB316), IF(FORECAST($C302,AB$305:AB$316,$C$305:$C$316)<0,0, IF(FORECAST($C302,AB$305:AB$316,$C$305:$C$316)>100,100, FORECAST($C302,AB$305:AB$316,$C$305:$C$316)))) -> 0
B304: Survey | C304: Year | D304: Improved | E304: Not shared | H304: Open defecation | I304: Improved | J304: Not shared | M304: Open defecation | N304: Improved | O304: Not shared | R304: Open defecation | S304: Improved | T304: Not shared | W304: Open defecation | X304: Improved | Y304: Not shared | AB304: Open defecation
B305: MICS00 | C305: 2000 | D305: =IF(ISERROR(INDIRECT(CONCATENATE($B305,"!M122"))),"",INDIRECT(CONCATENATE($B305,"!M122"))) -> 52.55111971 | E305: =IF(ISERROR(INDIRECT(CONCATENATE($B305,"!M129"))),"",INDIRECT(CONCATENATE($B305,"!M129"))) -> N/A | H305: =IF(ISERROR(INDIRECT(CONCATENATE($B305,"!M127"))),"",INDIRECT(CONCATENATE($B305,"!M127"))) -> 0 | I305: =IF(ISERROR(INDIRECT(CONCATENATE($B305,"!N122"))),"",INDIRECT(CONCATENATE($B305,"!N122"))) -> 59.78058989 | J305: =IF(ISERROR(INDIRECT(CONCATENATE($B305,"!N129"))),"",INDIRECT(CONCATENATE($B305,"!N129"))) -> N/A | M305: =IF(ISERROR(INDIRECT(CONCATENATE($B305,"!N127"))),"",INDIRECT(CONCATENATE($B305,"!N127"))) -> 0 | N305: =IF(ISERROR(INDIRECT(CONCATENATE($B305,"!O122"))),"",INDIRECT(CONCATENATE($B305,"!O122"))) -> 62.08770469 | O305: =IF(ISERROR(INDIRECT(CONCATENATE($B305,"!O129"))),"",INDIRECT(CONCATENATE($B305,"!O129"))) -> N/A | R305: =IF(ISERROR(INDIRECT(CONCATENATE($B305,"!O127"))),"",INDIRECT(CONCATENATE($B305,"!O127"))) -> 0 | S305: =IF(ISERROR(INDIRECT(CONCATENATE($B305,"!P122"))),"",INDIRECT(CONCATENATE($B305,"!P122"))) -> 67.26069934 | T305: =IF(ISERROR(INDIRECT(CONCATENATE($B305,"!P129"))),"",INDIRECT(CONCATENATE($B305,"!P129"))) -> N/A | W305: =IF(ISERROR(INDIRECT(CONCATENATE($B305,"!P127"))),"",INDIRECT(CONCATENATE($B305,"!P127"))) -> 0 | X305: =IF(ISERROR(INDIRECT(CONCATENATE($B305,"!Q122"))),"",INDIRECT(CONCATENATE($B305,"!Q122"))) -> 69.80112423 | Y305: =IF(ISERROR(INDIRECT(CONCATENATE($B305,"!Q129"))),"",INDIRECT(CONCATENATE($B305,"!Q129"))) -> N/A | AB305: =IF(ISERROR(INDIRECT(CONCATENATE($B305,"!Q2127"))),"",INDIRECT(CONCATENATE($B305,"!Q127"))) -> 0
B306: DHS05 | C306: 2005 | D306: 72.29280613 | E306: 92.9158084 | H306: 0 | I306: 77.06328912 | J306: 93.03276817 | M306: 0 | N306: 77.45545014 | O306: 95.21502223 | R306: 0 | S306: 81.43227137 | T306: 96.691717 | W306: 0 | X306: 83.67215668 | Y306: 94.25583323 | AB306: 0
B307: MICS12 | C307: 2012 | D307: 56.7396215 | E307: 89.44038665 | H307: 0.7873299801 | I307: 64.10249504 | J307: 88.25314688 | M307: 0 | N307: 65.35330194 | O307: 90.24044036 | R307: 0 | S307: 71.8767558 | T307: 87.9732408 | W307: 0 | X307: 84.04100842 | Y307: 88.894407 | AB307: 0
B318: =CONCATENATE("Rural use of sanitation facilities, ",C299,"–",C300) -> Rural use of sanitation facilities, 2000–2018 | S318: Data points used for regression

Sheet Hygiene
B4: Access to hygiene facilities by wealth quintile (%)
B5: =IF(ISERROR(INDIRECT(CONCATENATE($E$32,"!A2"))),"",INDIRECT(CONCATENATE($E$32,"!A2"))) -> Republic of Moldova
B7: =CONCATENATE("National ",IF(ISERROR(INDIRECT(CONCATENATE($E$32,"!A2"))),"",INDIRECT(CONCATENATE($E$32,"!A210")))) -> National Access to hygiene facilities | K7: =CONCATENATE("Urban ",IF(ISERROR(INDIRECT(CONCATENATE($E$32,"!A2"))),"",INDIRECT(CONCATENATE($E$32,"!A210")))) -> Urban Access to hygiene facilities | S7: =CONCATENATE("Rural ",IF(ISERROR(INDIRECT(CONCATENATE($E$32,"!A2"))),"",INDIRECT(CONCATENATE($E$32,"!A210")))) -> Rural Access to hygiene facilities
E32: =INDEX(B88:B100,A88) -> MICS12 | G32: =IF(ISERROR(INDIRECT(CONCATENATE($E$32,"!A2"))),"",INDIRECT(CONCATENATE($E$32,"!A2"))) -> Republic of Moldova | K32: Poorest | N32: Poor | Q32: Middle | T32: Rich | W32: Richest
K33: Basic | L33: Limited | M33: No facility | N33: Basic | O33: Limited | P33: No facility | Q33: Basic | R33: Limited | S33: No facility | T33: Basic | U33: Limited | V33: No facility | W33: Basic | X33: Limited | Y33: No facility
B34: >>> Select Survey : | G34: NATIONAL | J34: =IF(ISERROR(INDIRECT(CONCATENATE(#REF!,"!A2"))),"",INDIRECT(CONCATENATE(#REF!,"!A210"))) ->  | K34: =IF(ISERROR(INDIRECT(CONCATENATE($E$32,"!C222"))),"",INDIRECT(CONCATENATE($E$32,"!C222"))) -> 72.85249803 | L34: =IF(ISERROR(INDIRECT(CONCATENATE($E$32,"!C223"))),"",INDIRECT(CONCATENATE($E$32,"!C223"))) -> 16.00714872 | M34: =IF(ISERROR(INDIRECT(CONCATENATE($E$32,"!C224"))),"",INDIRECT(CONCATENATE($E$32,"!C224"))) -> 11.14035326 | N34: =IF(ISERROR(INDIRECT(CONCATENATE($E$32,"!D222"))),"",INDIRECT(CONCATENATE($E$32,"!D222"))) -> 81.85161882 | O34: =IF(ISERROR(INDIRECT(CONCATENATE($E$32,"!D223"))),"",INDIRECT(CONCATENATE($E$32,"!D223"))) -> 10.59760122 | P34: =IF(ISERROR(INDIRECT(CONCATENATE($E$32,"!D224"))),"",INDIRECT(CONCATENATE($E$32,"!D224"))) -> 7.55077996 | Q34: =IF(ISERROR(INDIRECT(CONCATENATE($E$32,"!E222"))),"",INDIRECT(CONCATENATE($E$32,"!E222"))) -> 88.39008374 | R34: =IF(ISERROR(INDIRECT(CONCATENATE($E$32,"!E223"))),"",INDIRECT(CONCATENATE($E$32,"!E223"))) -> 5.130718361 | S34: =IF(ISERROR(INDIRECT(CONCATENATE($E$32,"!E224"))),"",INDIRECT(CONCATENATE($E$32,"!E224"))) -> 6.4791979 | T34: =IF(ISERROR(INDIRECT(CONCATENATE($E$32,"!F222"))),"",INDIRECT(CONCATENATE($E$32,"!F222"))) -> 93.16810122 | U34: =IF(ISERROR(INDIRECT(CONCATENATE($E$32,"!F223"))),"",INDIRECT(CONCATENATE($E$32,"!F223"))) -> 2.064167069 | V34: =IF(ISERROR(INDIRECT(CONCATENATE($E$32,"!F224"))),"",INDIRECT(CONCATENATE($E$32,"!F224"))) -> 4.767731716 | W34: =IF(ISERROR(INDIRECT(CONCATENATE($E$32,"!G222"))),"",INDIRECT(CONCATENATE($E$32,"!G222"))) -> 95.65151003 | X34: =IF(ISERROR(INDIRECT(CONCATENATE($E$32,"!G223"))),"",INDIRECT(CONCATENATE($E$32,"!G223"))) -> 0.8424802559 | Y34: =IF(ISERROR(INDIRECT(CONCATENATE($E$32,"!G224"))),"",INDIRECT(CONCATENATE($E$32,"!G224"))) -> 3.506009718
G37: URBAN | J37: =IF(ISERROR(INDIRECT(CONCATENATE(#REF!,"!A2"))),"",INDIRECT(CONCATENATE(#REF!,"!A210"))) ->  | K37: =IF(ISERROR(INDIRECT(CONCATENATE($E$32,"!H222"))),"",INDIRECT(CONCATENATE($E$32,"!H222"))) -> 85.64052857 | L37: =IF(ISERROR(INDIRECT(CONCATENATE($E$32,"!H223"))),"",INDIRECT(CONCATENATE($E$32,"!H223"))) -> 8.969558032 | M37: =IF(ISERROR(INDIRECT(CONCATENATE($E$32,"!H224"))),"",INDIRECT(CONCATENATE($E$32,"!H224"))) -> 5.389913394 | N37: =IF(ISERROR(INDIRECT(CONCATENATE($E$32,"!I222"))),"",INDIRECT(CONCATENATE($E$32,"!I222"))) -> 93.83117576 | O37: =IF(ISERROR(INDIRECT(CONCATENATE($E$32,"!I223"))),"",INDIRECT(CONCATENATE($E$32,"!I223"))) -> 1.172180738 | P37: =IF(ISERROR(INDIRECT(CONCATENATE($E$32,"!I224"))),"",INDIRECT(CONCATENATE($E$32,"!I224"))) -> 4.996643499 | Q37: =IF(ISERROR(INDIRECT(CONCATENATE($E$32,"!J222"))),"",INDIRECT(CONCATENATE($E$32,"!J222"))) -> 95.05829984 | R37: =IF(ISERROR(INDIRECT(CONCATENATE($E$32,"!J223"))),"",INDIRECT(CONCATENATE($E$32,"!J223"))) -> 1.215306557 | S37: =IF(ISERROR(INDIRECT(CONCATENATE($E$32,"!J224"))),"",INDIRECT(CONCATENATE($E$32,"!J224"))) -> 3.726393605 | T37: =IF(ISERROR(INDIRECT(CONCATENATE($E$32,"!K222"))),"",INDIRECT(CONCATENATE($E$32,"!K222"))) -> 96.00278238 | U37: =IF(ISERROR(INDIRECT(CONCATENATE($E$32,"!K223"))),"",INDIRECT(CONCATENATE($E$32,"!K223"))) -> 0.336457914 | V37: =IF(ISERROR(INDIRECT(CONCATENATE($E$32,"!K224"))),"",INDIRECT(CONCATENATE($E$32,"!K224"))) -> 3.660759709 | W37: =IF(ISERROR(INDIRECT(CONCATENATE($E$32,"!L222"))),"",INDIRECT(CONCATENATE($E$32,"!L222"))) -> 96.53986755 | X37: =IF(ISERROR(INDIRECT(CONCATENATE($E$32,"!L223"))),"",INDIRECT(CONCATENATE($E$32,"!L223"))) -> 0.6189843281 | Y37: =IF(ISERROR(INDIRECT(CONCATENATE($E$32,"!L224"))),"",INDIRECT(CONCATENATE($E$32,"!L224"))) -> 2.841148123
G40: RURAL | J40: =IF(ISERROR(INDIRECT(CONCATENATE(#REF!,"!A2"))),"",INDIRECT(CONCATENATE(#REF!,"!A210"))) ->  | K40: =IF(ISERROR(INDIRECT(CONCATENATE($E$32,"!M222"))),"",INDIRECT(CONCATENATE($E$32,"!M222"))) -> 69.06297315 | L40: =IF(ISERROR(INDIRECT(CONCATENATE($E$32,"!M223"))),"",INDIRECT(CONCATENATE($E$32,"!M223"))) -> 18.5890249 | M40: =IF(ISERROR(INDIRECT(CONCATENATE($E$32,"!M224"))),"",INDIRECT(CONCATENATE($E$32,"!M224"))) -> 12.34800194 | N40: =IF(ISERROR(INDIRECT(CONCATENATE($E$32,"!N222"))),"",INDIRECT(CONCATENATE($E$32,"!N222"))) -> 79.19144133 | O40: =IF(ISERROR(INDIRECT(CONCATENATE($E$32,"!N223"))),"",INDIRECT(CONCATENATE($E$32,"!N223"))) -> 11.23005136 | P40: =IF(ISERROR(INDIRECT(CONCATENATE($E$32,"!N224"))),"",INDIRECT(CONCATENATE($E$32,"!N224"))) -> 9.578507315 | Q40: =IF(ISERROR(INDIRECT(CONCATENATE($E$32,"!O222"))),"",INDIRECT(CONCATENATE($E$32,"!O222"))) -> 83.31140292 | R40: =IF(ISERROR(INDIRECT(CONCATENATE($E$32,"!O223"))),"",INDIRECT(CONCATENATE($E$32,"!O223"))) -> 10.02418261 | S40: =IF(ISERROR(INDIRECT(CONCATENATE($E$32,"!O224"))),"",INDIRECT(CONCATENATE($E$32,"!O224"))) -> 6.664414468 | T40: =IF(ISERROR(INDIRECT(CONCATENATE($E$32,"!P222"))),"",INDIRECT(CONCATENATE($E$32,"!P222"))) -> 86.89078484 | U40: =IF(ISERROR(INDIRECT(CONCATENATE($E$32,"!P223"))),"",INDIRECT(CONCATENATE($E$32,"!P223"))) -> 5.287039056 | V40: =IF(ISERROR(INDIRECT(CONCATENATE($E$32,"!P224"))),"",INDIRECT(CONCATENATE($E$32,"!P224"))) -> 7.8221761 | W40: =IF(ISERROR(INDIRECT(CONCATENATE($E$32,"!Q222"))),"",INDIRECT(CONCATENATE($E$32,"!Q222"))) -> 92.84020574 | X40: =IF(ISERROR(INDIRECT(CONCATENATE($E$32,"!Q223"))),"",INDIRECT(CONCATENATE($E$32,"!Q223"))) -> 2.60144072 | Y40: =IF(ISERROR(INDIRECT(CONCATENATE($E$32,"!Q224"))),"",INDIRECT(CONCATENATE($E$32,"!Q224"))) -> 4.558353541
A88: 3 | B88: MICS00
B89: DHS05
B90: MICS12
B91: Template

Sheet MICS00
A2: =A1026 -> Republic of Moldova
A3: =A1034 -> 2000
A4: Use of drinking water sources
A5: by wealth quintile and sub-national region
A6: Notes:
A7: WHO/UNICEF JMP customised wealth index excludes water,
A8: sanitation and hygiene assets.
A9: Survey used for analysis: | B9: =A1025 -> MICS00
A10: =B1028 -> 
A11: =B1027 -> 
A14: Use of drinking water sources | C14: NATIONAL wealth index quintile | H14: URBAN wealth index quintile | M14: RURAL wealth index quintile | R14: SUB-REGIONS: | BA14: Raw numbers of respondents: | BB14: Use of drinking water sources | BC14: NATIONAL wealth index quintile | BH14: URBAN wealth index quintile | BM14: RURAL wealth index quintile | BR14: SUB-REGIONS:
A15: Weighted percentage (used in graphs) | C15: Poorest | D15: Poor | E15: Middle | F15: Rich | G15: Richest | H15: Poorest | I15: Poor | J15: Middle | K15: Rich | L15: Richest | M15: Poorest | N15: Poor | O15: Middle | P15: Rich | Q15: Richest | R15: Moldova | S15: Transnistria | BA15: Water data, raw numbers (weighted) | BC15: Poorest | BD15: Poor | BE15: Middle | BF15: Rich | BG15: Richest | BH15: Poorest | BI15: Poor | BJ15: Middle | BK15: Rich | BL15: Richest | BM15: Poorest | BN15: Poor | BO15: Middle | BP15: Rich | BQ15: Richest | BR15: Moldova | BS15: Transnistria
A16: Water | B16: Improved | C16: 86.04497907 | D16: 91.2357527 | E16: 93.66769151 | F16: 97.04828251 | G16: 98.49866606 | H16: 95.68711104 | I16: 97.53120277 | J16: 98.56895966 | K16: 98.69447886 | L16: 99.14872495 | M16: 83.76645439 | N16: 88.98239336 | O16: 91.44713914 | P16: 91.63638559 | Q16: 95.06136285 | R16: 92.65020543 | S16: 97.10067944 | BA16: Water | BB16: Improved | BC16: N/A | BD16: N/A | BE16: N/A | BF16: N/A | BG16: N/A | BH16: N/A | BI16: N/A | BJ16: N/A | BK16: N/A | BL16: N/A | BM16: N/A | BN16: N/A | BO16: N/A | BP16: N/A | BQ16: N/A | BR16: N/A | BS16: N/A
B17: Not Improved | C17: 13.95502093 | D17: 8.764247297 | E17: 6.332308491 | F17: 2.95171749 | G17: 1.501333937 | H17: 4.312888959 | I17: 2.468797229 | J17: 1.431040345 | K17: 1.305521142 | L17: 0.851275051 | M17: 16.23354561 | N17: 11.01760664 | O17: 8.552860855 | P17: 8.363614414 | Q17: 4.938637146 | R17: 7.349794572 | S17: 2.899320565 | BB17: Not Improved | BC17: N/A | BD17: N/A | BE17: N/A | BF17: N/A | BG17: N/A | BH17: N/A | BI17: N/A | BJ17: N/A | BK17: N/A | BL17: N/A | BM17: N/A | BN17: N/A | BO17: N/A | BP17: N/A | BQ17: N/A | BR17: N/A | BS17: N/A
A18: Water ladder | B18: Basic | C18: 84.02364364 | D18: 88.92463125 | E18: 92.10108267 | F18: 95.61068845 | G18: 97.76396837 | H18: 93.91468459 | I18: 95.58040678 | J18: 97.5186869 | K18: 97.23647335 | L18: 99.05878689 | M18: 81.56493346 | N18: 86.96841312 | O18: 89.10849292 | P18: 89.80200911 | Q18: 94.18299173 | R18: 90.80564053 | S18: 96.84401773 | BA18: Water ladder | BB18: Basic | BC18: N/A | BD18: N/A | BE18: N/A | BF18: N/A | BG18: N/A | BH18: N/A | BI18: N/A | BJ18: N/A | BK18: N/A | BL18: N/A | BM18: N/A | BN18: N/A | BO18: N/A | BP18: N/A | BQ18: N/A | BR18: N/A | BS18: N/A
B19: Limited | C19: 2.007099137 | D19: 2.311121455 | E19: 1.560391533 | F19: 1.437594058 | G19: 0.7346976915 | H19: 1.772426447 | I19: 1.950795987 | J19: 1.050272759 | K19: 1.458005511 | L19: 0.08993805791 | M19: 2.173764233 | N19: 2.01398024 | O19: 2.338646228 | P19: 1.820606229 | Q19: 0.8783711239 | R19: 1.841121485 | S19: 0.2566617036 | BB19: Limited | BC19: N/A | BD19: N/A | BE19: N/A | BF19: N/A | BG19: N/A | BH19: N/A | BI19: N/A | BJ19: N/A | BK19: N/A | BL19: N/A | BM19: N/A | BN19: N/A | BO19: N/A | BP19: N/A | BQ19: N/A | BR19: N/A | BS19: N/A
B20: Unimproved | C20: 13.96925722 | D20: 8.764247297 | E20: 6.294502894 | F20: 2.95171749 | G20: 1.501333937 | H20: 4.312888959 | I20: 2.468797229 | J20: 1.431040345 | K20: 1.305521142 | L20: 0.851275051 | M20: 16.26130231 | N20: 11.01760664 | O20: 8.552860855 | P20: 8.303562584 | Q20: 4.938637146 | R20: 7.353237982 | S20: 2.838686688 | BB20: Unimproved | BC20: N/A | BD20: N/A | BE20: N/A | BF20: N/A | BG20: N/A | BH20: N/A | BI20: N/A | BJ20: N/A | BK20: N/A | BL20: N/A | BM20: N/A | BN20: N/A | BO20: N/A | BP20: N/A | BQ20: N/A | BR20: N/A | BS20: N/A
B21: Surface water | C21: 0 | D21: 0 | E21: 0.04402290399 | F21: 0 | G21: 0 | H21: 0 | I21: 0 | J21: 0 | K21: 0 | L21: 0 | M21: 0 | N21: 0 | O21: 0 | P21: 0.07382207983 | Q21: 0 | R21: 0 | S21: 0.06063387616 | BB21: Surface water | BC21: N/A | BD21: N/A | BE21: N/A | BF21: N/A | BG21: N/A | BH21: N/A | BI21: N/A | BJ21: N/A | BK21: N/A | BL21: N/A | BM21: N/A | BN21: N/A | BO21: N/A | BP21: N/A | BQ21: N/A | BR21: N/A | BS21: N/A
A22: Improved water point at more than 30 minutes | B22: Yes | C22: 2.333002217 | D22: 2.533131351 | E22: 1.665990789 | F22: 1.481318392 | G22: 0.7458960825 | H22: 1.852314725 | I22: 2.000176284 | J22: 1.065520791 | K22: 1.477291869 | L22: 0.09071025165 | M22: 2.595889706 | N22: 2.263346898 | O22: 2.557374949 | P22: 1.987070793 | Q22: 0.9240043458 | R22: 1.987248604 | S22: 0.2643253426 | BA22: Improved water point at more than 30 minutes | BB22: Yes | BC22: N/A | BD22: N/A | BE22: N/A | BF22: N/A | BG22: N/A | BH22: N/A | BI22: N/A | BJ22: N/A | BK22: N/A | BL22: N/A | BM22: N/A | BN22: N/A | BO22: N/A | BP22: N/A | BQ22: N/A | BR22: N/A | BS22: N/A
B23: No | C23: 97.66699778 | D23: 97.46686865 | E23: 98.33400921 | F23: 98.51868161 | G23: 99.25410392 | H23: 98.14768528 | I23: 97.99982372 | J23: 98.93447921 | K23: 98.52270813 | L23: 99.90928975 | M23: 97.40411029 | N23: 97.7366531 | O23: 97.44262505 | P23: 98.01292921 | Q23: 99.07599565 | R23: 98.0127514 | S23: 99.73567466 | BB23: No | BC23: N/A | BD23: N/A | BE23: N/A | BF23: N/A | BG23: N/A | BH23: N/A | BI23: N/A | BJ23: N/A | BK23: N/A | BL23: N/A | BM23: N/A | BN23: N/A | BO23: N/A | BP23: N/A | BQ23: N/A | BR23: N/A | BS23: N/A
A24: Manually calculated ratios | B24: Improved wells
B25: Improved springs
B26: Other
C27: NATIONAL wealth index quintile | H27: URBAN wealth index quintile | M27: RURAL wealth index quintile | R27: SUB-REGIONS: | BA27: Raw numbers of respondents: | BB27: Use of drinking water sources | BC27: NATIONAL wealth index quintile | BH27: URBAN wealth index quintile | BM27: RURAL wealth index quintile | BR27: SUB-REGIONS:
A28: Percentage based on weighted population | C28: Poorest | D28: Poor | E28: Middle | F28: Rich | G28: Richest | H28: Poorest | I28: Poor | J28: Middle | K28: Rich | L28: Richest | M28: Poorest | N28: Poor | O28: Middle | P28: Rich | Q28: Richest | R28: Moldova | S28: Transnistria | BA28: Water data, raw numbers (weighted) | BC28: Poorest | BD28: Poor | BE28: Middle | BF28: Rich | BG28: Richest | BH28: Poorest | BI28: Poor | BJ28: Middle | BK28: Rich | BL28: Richest | BM28: Poorest | BN28: Poor | BO28: Middle | BP28: Rich | BQ28: Richest | BR28: Moldova | BS28: Transnistria
A29: Piped water | B29: Yes | C29: 5.945820295 | D29: 11.02002814 | E29: 30.39422117 | F29: 67.07862822 | G29: 76.12254562 | H29: 58.02602414 | I29: 76.85688483 | J29: 84.78142118 | K29: 86.56230355 | L29: 91.6747083 | M29: 3.463175505 | N29: 4.884950891 | O29: 7.340931805 | P29: 15.83492258 | Q29: 19.27595788 | R29: 32.22070406 | S29: 72.66128218 | BA29: Piped water | BB29: Yes | BC29: N/A | BD29: N/A | BE29: N/A | BF29: N/A | BG29: N/A | BH29: N/A | BI29: N/A | BJ29: N/A | BK29: N/A | BL29: N/A | BM29: N/A | BN29: N/A | BO29: N/A | BP29: N/A | BQ29: N/A | BR29: N/A | BS29: N/A
B30: No | C30: 94.0541797 | D30: 88.97997186 | E30: 69.60577883 | F30: 32.92137178 | G30: 23.87745438 | H30: 41.97397586 | I30: 23.14311517 | J30: 15.21857882 | K30: 13.43769645 | L30: 8.325291697 | M30: 96.5368245 | N30: 95.11504911 | O30: 92.6590682 | P30: 84.16507742 | Q30: 80.72404212 | R30: 67.77929594 | S30: 27.33871782 | BB30: No | BC30: N/A | BD30: N/A | BE30: N/A | BF30: N/A | BG30: N/A | BH30: N/A | BI30: N/A | BJ30: N/A | BK30: N/A | BL30: N/A | BM30: N/A | BN30: N/A | BO30: N/A | BP30: N/A | BQ30: N/A | BR30: N/A | BS30: N/A
A31: Piped water on premises | B31: Yes | C31: 5.052668741 | D31: 9.768255336 | E31: 28.93606436 | F31: 65.26051802 | G31: 75.47539801 | H31: 54.92652645 | I31: 74.57108998 | J31: 83.59213763 | K31: 85.50638225 | L31: 91.44846352 | M31: 2.8870726 | N31: 3.685972333 | O31: 6.652320604 | P31: 14.47868288 | Q31: 18.22119915 | R31: 31.06699932 | S31: 71.08626146 | BA31: Piped water on premises | BB31: Yes | BC31: N/A | BD31: N/A | BE31: N/A | BF31: N/A | BG31: N/A | BH31: N/A | BI31: N/A | BJ31: N/A | BK31: N/A | BL31: N/A | BM31: N/A | BN31: N/A | BO31: N/A | BP31: N/A | BQ31: N/A | BR31: N/A | BS31: N/A
B32: No | C32: 94.94733126 | D32: 90.23174466 | E32: 71.06393564 | F32: 34.73948198 | G32: 24.52460199 | H32: 45.07347355 | I32: 25.42891002 | J32: 16.40786237 | K32: 14.49361775 | L32: 8.551536482 | M32: 97.1129274 | N32: 96.31402767 | O32: 93.3476794 | P32: 85.52131712 | Q32: 81.77880085 | R32: 68.93300068 | S32: 28.91373854 | BB32: No | BC32: N/A | BD32: N/A | BE32: N/A | BF32: N/A | BG32: N/A | BH32: N/A | BI32: N/A | BJ32: N/A | BK32: N/A | BL32: N/A | BM32: N/A | BN32: N/A | BO32: N/A | BP32: N/A | BQ32: N/A | BR32: N/A | BS32: N/A
A33: Piped water into dwelling | B33: Yes | C33: N/A | D33: N/A | E33: N/A | F33: N/A | G33: N/A | H33: N/A | I33: N/A | J33: N/A | K33: N/A | L33: N/A | M33: N/A | N33: N/A | O33: N/A | P33: N/A | Q33: N/A | R33: N/A | S33: N/A | BA33: Piped water into dwelling | BB33: Yes | BC33: N/A | BD33: N/A | BE33: N/A | BF33: N/A | BG33: N/A | BH33: N/A | BI33: N/A | BJ33: N/A | BK33: N/A | BL33: N/A | BM33: N/A | BN33: N/A | BO33: N/A | BP33: N/A | BQ33: N/A | BR33: N/A | BS33: N/A
B34: No | C34: N/A | D34: N/A | E34: N/A | F34: N/A | G34: N/A | H34: N/A | I34: N/A | J34: N/A | K34: N/A | L34: N/A | M34: N/A | N34: N/A | O34: N/A | P34: N/A | Q34: N/A | R34: N/A | S34: N/A | BB34: No | BC34: N/A | BD34: N/A | BE34: N/A | BF34: N/A | BG34: N/A | BH34: N/A | BI34: N/A | BJ34: N/A | BK34: N/A | BL34: N/A | BM34: N/A | BN34: N/A | BO34: N/A | BP34: N/A | BQ34: N/A | BR34: N/A | BS34: N/A
A35: Water source on premises | B35: Yes | C35: 11.90327458 | D35: 20.03859929 | E35: 38.6748353 | F35: 70.00151975 | G35: 79.85356227 | H35: 59.21363286 | I35: 77.14774199 | J35: 86.01449711 | K35: 86.98821707 | L35: 92.54242224 | M35: 10.12765019 | N35: 13.2948639 | O35: 16.59964054 | P35: 27.10427543 | Q35: 31.02997993 | R35: 39.13933871 | S35: 73.13294751 | BA35: Water source on premises | BB35: Yes | BC35: N/A | BD35: N/A | BE35: N/A | BF35: N/A | BG35: N/A | BH35: N/A | BI35: N/A | BJ35: N/A | BK35: N/A | BL35: N/A | BM35: N/A | BN35: N/A | BO35: N/A | BP35: N/A | BQ35: N/A | BR35: N/A | BS35: N/A
B36: No | C36: 88.09672542 | D36: 79.96140071 | E36: 61.3251647 | F36: 29.99848025 | G36: 20.14643773 | H36: 40.78636714 | I36: 22.85225801 | J36: 13.98550289 | K36: 13.01178293 | L36: 7.457577759 | M36: 89.87234981 | N36: 86.7051361 | O36: 83.40035946 | P36: 72.89572457 | Q36: 68.97002007 | R36: 60.86066129 | S36: 26.86705249 | BB36: No | BC36: N/A | BD36: N/A | BE36: N/A | BF36: N/A | BG36: N/A | BH36: N/A | BI36: N/A | BJ36: N/A | BK36: N/A | BL36: N/A | BM36: N/A | BN36: N/A | BO36: N/A | BP36: N/A | BQ36: N/A | BR36: N/A | BS36: N/A
A37: Improved Water source on premises | B37: Yes | C37: 12.99291547 | D37: 21.32502459 | E37: 40.67872485 | F37: 71.843303 | G37: 80.74816824 | H37: 61.74026099 | I37: 78.76303934 | J37: 87.2632697 | K37: 87.85209612 | L37: 93.21025994 | M37: 11.09595038 | N37: 13.83814164 | O37: 17.7930867 | P37: 28.71476237 | Q37: 31.99198283 | R37: 41.6310647 | S37: 75.25008374 | BA37: Improved water source on premises | BB37: Yes | BC37: N/A | BD37: N/A | BE37: N/A | BF37: N/A | BG37: N/A | BH37: N/A | BI37: N/A | BJ37: N/A | BK37: N/A | BL37: N/A | BM37: N/A | BN37: N/A | BO37: N/A | BP37: N/A | BQ37: N/A | BR37: N/A | BS37: N/A
B38: No | C38: 87.00708453 | D38: 78.67497541 | E38: 59.32127515 | F38: 28.156697 | G38: 19.25183176 | H38: 38.25973901 | I38: 21.23696066 | J38: 12.7367303 | K38: 12.14790388 | L38: 6.789740059 | M38: 88.90404962 | N38: 86.16185836 | O38: 82.2069133 | P38: 71.28523763 | Q38: 68.00801717 | R38: 58.3689353 | S38: 24.74991626 | BB38: No | BC38: N/A | BD38: N/A | BE38: N/A | BF38: N/A | BG38: N/A | BH38: N/A | BI38: N/A | BJ38: N/A | BK38: N/A | BL38: N/A | BM38: N/A | BN38: N/A | BO38: N/A | BP38: N/A | BQ38: N/A | BR38: N/A | BS38: N/A
A39: Piped water on premises available when needed | B39: Yes | C39: N/A | D39: N/A | E39: N/A | F39: N/A | G39: N/A | H39: N/A | I39: N/A | J39: N/A | K39: N/A | L39: N/A | M39: N/A | N39: N/A | O39: N/A | P39: N/A | Q39: N/A | R39: N/A | S39: N/A | BA39: Piped water on premises available when needed | BB39: Yes | BC39: N/A | BD39: N/A | BE39: N/A | BF39: N/A | BG39: N/A | BH39: N/A | BI39: N/A | BJ39: N/A | BK39: N/A | BL39: N/A | BM39: N/A | BN39: N/A | BO39: N/A | BP39: N/A | BQ39: N/A | BR39: N/A | BS39: N/A
B40: No | C40: N/A | D40: N/A | E40: N/A | F40: N/A | G40: N/A | H40: N/A | I40: N/A | J40: N/A | K40: N/A | L40: N/A | M40: N/A | N40: N/A | O40: N/A | P40: N/A | Q40: N/A | R40: N/A | S40: N/A | BB40: No | BC40: N/A | BD40: N/A | BE40: N/A | BF40: N/A | BG40: N/A | BH40: N/A | BI40: N/A | BJ40: N/A | BK40: N/A | BL40: N/A | BM40: N/A | BN40: N/A | BO40: N/A | BP40: N/A | BQ40: N/A | BR40: N/A | BS40: N/A
A41: Water point at more than 30 minutes | B41: Yes | C41: 2.759981868 | D41: 2.679397525 | E41: 1.877794452 | F41: 1.67847685 | G41: 0.7346976915 | H41: 2.393132847 | I41: 2.197719276 | J41: 1.405610574 | K41: 1.458005511 | L41: 0.08993805791 | M41: 3.050348879 | N41: 2.352301605 | O41: 2.582788294 | P41: 2.353448537 | Q41: 0.8783711239 | R41: 2.178535971 | S41: 0.5853066239 | BA41: Water point at more than 30 minutes | BB41: Yes | BC41: N/A | BD41: N/A | BE41: N/A | BF41: N/A | BG41: N/A | BH41: N/A | BI41: N/A | BJ41: N/A | BK41: N/A | BL41: N/A | BM41: N/A | BN41: N/A | BO41: N/A | BP41: N/A | BQ41: N/A | BR41: N/A | BS41: N/A
B42: No | C42: 97.24001813 | D42: 97.32060248 | E42: 98.12220555 | F42: 98.32152315 | G42: 99.26530231 | H42: 97.60686715 | I42: 97.80228072 | J42: 98.59438943 | K42: 98.54199449 | L42: 99.91006194 | M42: 96.94965112 | N42: 97.6476984 | O42: 97.41721171 | P42: 97.64655146 | Q42: 99.12162888 | R42: 97.82146403 | S42: 99.41469338 | BB42: No | BC42: N/A | BD42: N/A | BE42: N/A | BF42: N/A | BG42: N/A | BH42: N/A | BI42: N/A | BJ42: N/A | BK42: N/A | BL42: N/A | BM42: N/A | BN42: N/A | BO42: N/A | BP42: N/A | BQ42: N/A | BR42: N/A | BS42: N/A
A43: Water source available when needed | B43: Yes | C43: N/A | D43: N/A | E43: N/A | F43: N/A | G43: N/A | H43: N/A | I43: N/A | J43: N/A | K43: N/A | L43: N/A | M43: N/A | N43: N/A | O43: N/A | P43: N/A | Q43: N/A | R43: N/A | S43: N/A | BA43: Water source available when needed | BB43: Yes | BC43: N/A | BD43: N/A | BE43: N/A | BF43: N/A | BG43: N/A | BH43: N/A | BI43: N/A | BJ43: N/A | BK43: N/A | BL43: N/A | BM43: N/A | BN43: N/A | BO43: N/A | BP43: N/A | BQ43: N/A | BR43: N/A | BS43: N/A
B44: No | C44: N/A | D44: N/A | E44: N/A | F44: N/A | G44: N/A | H44: N/A | I44: N/A | J44: N/A | K44: N/A | L44: N/A | M44: N/A | N44: N/A | O44: N/A | P44: N/A | Q44: N/A | R44: N/A | S44: N/A | BB44: No | BC44: N/A | BD44: N/A | BE44: N/A | BF44: N/A | BG44: N/A | BH44: N/A | BI44: N/A | BJ44: N/A | BK44: N/A | BL44: N/A | BM44: N/A | BN44: N/A | BO44: N/A | BP44: N/A | BQ44: N/A | BR44: N/A | BS44: N/A
A45: Improved water source available when needed | B45: Yes | C45: N/A | D45: N/A | E45: N/A | F45: N/A | G45: N/A | H45: N/A | I45: N/A | J45: N/A | K45: N/A | L45: N/A | M45: N/A | N45: N/A | O45: N/A | P45: N/A | Q45: N/A | R45: N/A | S45: N/A | BA45: Improved water source available when needed | BB45: Yes | BC45: N/A | BD45: N/A | BE45: N/A | BF45: N/A | BG45: N/A | BH45: N/A | BI45: N/A | BJ45: N/A | BK45: N/A | BL45: N/A | BM45: N/A | BN45: N/A | BO45: N/A | BP45: N/A | BQ45: N/A | BR45: N/A | BS45: N/A
B46: No | C46: N/A | D46: N/A | E46: N/A | F46: N/A | G46: N/A | H46: N/A | I46: N/A | J46: N/A | K46: N/A | L46: N/A | M46: N/A | N46: N/A | O46: N/A | P46: N/A | Q46: N/A | R46: N/A | S46: N/A | BB46: No | BC46: N/A | BD46: N/A | BE46: N/A | BF46: N/A | BG46: N/A | BH46: N/A | BI46: N/A | BJ46: N/A | BK46: N/A | BL46: N/A | BM46: N/A | BN46: N/A | BO46: N/A | BP46: N/A | BQ46: N/A | BR46: N/A | BS46: N/A
A47: Microbiological quality at point of collection | B47: Not contaminated (No E. coli in 100 mL) | C47: N/A | D47: N/A | E47: N/A | F47: N/A | G47: N/A | H47: N/A | I47: N/A | J47: N/A | K47: N/A | L47: N/A | M47: N/A | N47: N/A | O47: N/A | P47: N/A | Q47: N/A | R47: N/A | S47: N/A | BA47: Microbiological quality at point of collection | BB47: Not contaminated (No E. coli in 100 mL) | BC47: N/A | BD47: N/A | BE47: N/A | BF47: N/A | BG47: N/A | BH47: N/A | BI47: N/A | BJ47: N/A | BK47: N/A | BL47: N/A | BM47: N/A | BN47: N/A | BO47: N/A | BP47: N/A | BQ47: N/A | BR47: N/A | BS47: N/A
B48: Contaminated (E. coli detected in 100 mL) | C48: N/A | D48: N/A | E48: N/A | F48: N/A | G48: N/A | H48: N/A | I48: N/A | J48: N/A | K48: N/A | L48: N/A | M48: N/A | N48: N/A | O48: N/A | P48: N/A | Q48: N/A | R48: N/A | S48: N/A | BB48: Contaminated (E. coli detected in 100 mL) | BC48: N/A | BD48: N/A | BE48: N/A | BF48: N/A | BG48: N/A | BH48: N/A | BI48: N/A | BJ48: N/A | BK48: N/A | BL48: N/A | BM48: N/A | BN48: N/A | BO48: N/A | BP48: N/A | BQ48: N/A | BR48: N/A | BS48: N/A
B49: Highly contaminated (>100 CFU/100 mL) | C49: N/A | D49: N/A | E49: N/A | F49: N/A | G49: N/A | H49: N/A | I49: N/A | J49: N/A | K49: N/A | L49: N/A | M49: N/A | N49: N/A | O49: N/A | P49: N/A | Q49: N/A | R49: N/A | S49: N/A | BB49: Highly contaminated (>100 CFU/100 mL) | BC49: N/A | BD49: N/A | BE49: N/A | BF49: N/A | BG49: N/A | BH49: N/A | BI49: N/A | BJ49: N/A | BK49: N/A | BL49: N/A | BM49: N/A | BN49: N/A | BO49: N/A | BP49: N/A | BQ49: N/A | BR49: N/A | BS49: N/A
A50: Microbiological quality of improved water sources at point of collection | B50: Not contaminated (No E. coli in 100 mL) | C50: N/A | D50: N/A | E50: N/A | F50: N/A | G50: N/A | H50: N/A | I50: N/A | J50: N/A | K50: N/A | L50: N/A | M50: N/A | N50: N/A | O50: N/A | P50: N/A | Q50: N/A | R50: N/A | S50: N/A | BA50: Microbiological quality of improved water sources at point of collection | BB50: Not contaminated (No E. coli in 100 mL) | BC50: N/A | BD50: N/A | BE50: N/A | BF50: N/A | BG50: N/A | BH50: N/A | BI50: N/A | BJ50: N/A | BK50: N/A | BL50: N/A | BM50: N/A | BN50: N/A | BO50: N/A | BP50: N/A | BQ50: N/A | BR50: N/A | BS50: N/A
B51: Contaminated (E. coli detected in 100 mL) | C51: N/A | D51: N/A | E51: N/A | F51: N/A | G51: N/A | H51: N/A | I51: N/A | J51: N/A | K51: N/A | L51: N/A | M51: N/A | N51: N/A | O51: N/A | P51: N/A | Q51: N/A | R51: N/A | S51: N/A | BB51: Contaminated (E. coli detected in 100 mL) | BC51: N/A | BD51: N/A | BE51: N/A | BF51: N/A | BG51: N/A | BH51: N/A | BI51: N/A | BJ51: N/A | BK51: N/A | BL51: N/A | BM51: N/A | BN51: N/A | BO51: N/A | BP51: N/A | BQ51: N/A | BR51: N/A | BS51: N/A
B52: Highly contaminated (>100 CFU/100 mL) | C52: N/A | D52: N/A | E52: N/A | F52: N/A | G52: N/A | H52: N/A | I52: N/A | J52: N/A | K52: N/A | L52: N/A | M52: N/A | N52: N/A | O52: N/A | P52: N/A | Q52: N/A | R52: N/A | S52: N/A | BB52: Highly contaminated (>100 CFU/100 mL) | BC52: N/A | BD52: N/A | BE52: N/A | BF52: N/A | BG52: N/A | BH52: N/A | BI52: N/A | BJ52: N/A | BK52: N/A | BL52: N/A | BM52: N/A | BN52: N/A | BO52: N/A | BP52: N/A | BQ52: N/A | BR52: N/A | BS52: N/A
A53: Microbiological quality of piped on premises at point of collection | B53: Not contaminated (No E. coli in 100 mL) | C53: N/A | D53: N/A | E53: N/A | F53: N/A | G53: N/A | H53: N/A | I53: N/A | J53: N/A | K53: N/A | L53: N/A | M53: N/A | N53: N/A | O53: N/A | P53: N/A | Q53: N/A | R53: N/A | S53: N/A | BA53: Microbiological quality of piped on premises at point of collection | BB53: Not contaminated (No E. coli in 100 mL) | BC53: N/A | BD53: N/A | BE53: N/A | BF53: N/A | BG53: N/A | BH53: N/A | BI53: N/A | BJ53: N/A | BK53: N/A | BL53: N/A | BM53: N/A | BN53: N/A | BO53: N/A | BP53: N/A | BQ53: N/A | BR53: N/A | BS53: N/A
B54: Contaminated (E. coli detected in 100 mL) | C54: N/A | D54: N/A | E54: N/A | F54: N/A | G54: N/A | H54: N/A | I54: N/A | J54: N/A | K54: N/A | L54: N/A | M54: N/A | N54: N/A | O54: N/A | P54: N/A | Q54: N/A | R54: N/A | S54: N/A | BB54: Contaminated (E. coli detected in 100 mL) | BC54: N/A | BD54: N/A | BE54: N/A | BF54: N/A | BG54: N/A | BH54: N/A | BI54: N/A | BJ54: N/A | BK54: N/A | BL54: N/A | BM54: N/A | BN54: N/A | BO54: N/A | BP54: N/A | BQ54: N/A | BR54: N/A | BS54: N/A
B55: Highly contaminated (>100 CFU/100 mL) | C55: N/A | D55: N/A | E55: N/A | F55: N/A | G55: N/A | H55: N/A | I55: N/A | J55: N/A | K55: N/A | L55: N/A | M55: N/A | N55: N/A | O55: N/A | P55: N/A | Q55: N/A | R55: N/A | S55: N/A | BB55: Highly contaminated (>100 CFU/100 mL) | BC55: N/A | BD55: N/A | BE55: N/A | BF55: N/A | BG55: N/A | BH55: N/A | BI55: N/A | BJ55: N/A | BK55: N/A | BL55: N/A | BM55: N/A | BN55: N/A | BO55: N/A | BP55: N/A | BQ55: N/A | BR55: N/A | BS55: N/A
C56: NATIONAL wealth index quintile | H56: URBAN wealth index quintile | M56: RURAL wealth index quintile | R56: SUB-REGIONS: | BA56: Raw numbers of respondents: | BB56: Use of drinking water sources | BC56: NATIONAL wealth index quintile | BH56: URBAN wealth index quintile | BM56: RURAL wealth index quintile | BR56: SUB-REGIONS:
A57: Percentage based on weighted population | C57: Poorest | D57: Poor | E57: Middle | F57: Rich | G57: Richest | H57: Poorest | I57: Poor | J57: Middle | K57: Rich | L57: Richest | M57: Poorest | N57: Poor | O57: Middle | P57: Rich | Q57: Richest | R57: Moldova | S57: Transnistria | BA57: Water data, raw numbers (weighted) | BC57: Poorest | BD57: Poor | BE57: Middle | BF57: Rich | BG57: Richest | BH57: Poorest | BI57: Poor | BJ57: Middle | BK57: Rich | BL57: Richest | BM57: Poorest | BN57: Poor | BO57: Middle | BP57: Rich | BQ57: Richest | BR57: Moldova | BS57: Transnistria
A58: Main source of water | B58: Piped into dwelling | C58: 1.524505861 | D58: 4.638512203 | E58: 21.05677498 | F58: 58.01051165 | G58: 70.17865995 | H58: 44.64280856 | I58: 66.14075891 | J58: 78.54291302 | K58: 79.66272655 | L58: 88.35502031 | M58: 0.2200499078 | N58: 0.7330510247 | O58: 2.190545367 | P58: 5.817477615 | Q58: 10.29400124 | R58: 26.83836564 | S58: 55.90700469
B59: Piped into yard or plot | C59: 3.528162881 | D59: 5.129743133 | E59: 7.879289381 | F59: 7.250006363 | G59: 5.296738057 | H59: 10.28371788 | I59: 8.430331076 | J59: 5.049224604 | K59: 5.843655697 | L59: 3.093443205 | M59: 2.667022693 | N59: 2.952921309 | O59: 4.461775237 | P59: 8.661205261 | Q59: 7.927197911 | R59: 4.228633678 | S59: 15.17925677
B60: Public tap | C60: 0.8931515538 | D60: 1.251772801 | E60: 1.458156806 | F60: 1.8181102 | G60: 0.6471476166 | H60: 3.099497698 | I60: 2.28579485 | J60: 1.189283556 | K60: 1.055921304 | L60: 0.2262447843 | M60: 0.5761029042 | N60: 1.198978558 | O60: 0.6886112001 | P60: 1.356239702 | Q60: 1.054758732 | R60: 1.153704744 | S60: 1.57502072
B61: Tubewell/borehole with pump | C61: 0.8909440359 | D61: 0.9122673612 | E61: 3.57817547 | F61: 1.998042177 | G61: 0.8050645867 | H61: 0.2084263743 | I61: 1.182012878 | J61: 0.4570269562 | K61: 0.2548064383 | L61: 0.09256875437 | M61: 0.7911797904 | N61: 1.545310687 | O61: 0.6520030966 | P61: 4.149019318 | Q61: 5.092925444 | R61: 0.7134266241 | S61: 7.083592302
B62: Protected dug well | C62: 75.02091204 | D62: 75.71965222 | E62: 56.43849642 | F62: 25.51910336 | G62: 19.30477414 | H62: 34.26532111 | I62: 17.26912811 | J62: 12.4632906 | K62: 10.35392637 | L62: 6.116730274 | M62: 75.63495483 | N62: 78.45290375 | O62: 79.57722225 | P62: 68.03709076 | Q62: 65.91720425 | R62: 56.3715432 | S62: 15.35245067
B63: Protected spring | C63: 2.288029634 | D63: 1.993521351 | E63: 1.376487554 | F63: 0.8235657637 | G63: 0.7519731608 | H63: 2.293025488 | I63: 0.9105451967 | J63: 0.3863879729 | K63: 0.6789277974 | L63: 0.9587542044 | M63: 1.861965048 | N63: 1.972512001 | O63: 2.365215239 | P63: 1.581787438 | Q63: 0.8008503508 | R63: 1.626820915 | S63: 0.3881343453
B64: Rainwater collection | C64: 0.1120869421 | D64: 0.04992888483 | E64: 0 | F64: 0 | G64: 0 | H64: 0.04535490307 | I64: 0 | J64: 0 | K64: 0 | L64: 0 | M64: 0.009590731516 | N64: 0.2308862178 | O64: 0 | P64: 0 | Q64: 0 | R64: 0.03656998052 | S64: 0.00788615166
B65: Bottled water | C65: 0.1005652435 | D65: 0 | E65: 0.1113577524 | F65: 0.03852023196 | G65: 0.1879015537 | H65: 0.2773338113 | I65: 0.03070809188 | J65: 0 | K65: 0.1388085973 | L65: 0.2160253556 | M65: 0.1419095934 | N65: 0.02649137552 | O65: 0 | P65: 0 | Q65: 0.1171488255 | R65: 0.0831040717 | S65: 0.1135293104
B66: Unprotected dug well | C66: 12.66454095 | D66: 7.937031845 | E66: 5.42007782 | F66: 1.925743754 | G66: 1.316541386 | H66: 3.142017638 | I66: 1.482925353 | J66: 0.7273294255 | K66: 0.9847312077 | L66: 0.851275051 | M66: 14.66290889 | N66: 10.59187126 | O66: 7.686028215 | P66: 7.576862684 | Q66: 3.624935864 | R66: 6.539480201 | S66: 1.822139526
B67: Unprotected spring | C67: 1.014983927 | D67: 0.3052158267 | E67: 0.567486375 | F67: 0.2811589586 | G67: 0.08705182203 | H67: 0.6199317592 | I67: 0.5279221438 | J67: 0.1706088224 | K67: 0.07771926943 | L67: 0 | M67: 1.33049618 | N67: 0.2399221015 | O67: 0.222574244 | P67: 0.4278371406 | Q67: 0.6165442924 | R67: 0.4320909755 | S67: 0.5656455672
B68: Pond, river or stream | C68: 0 | D68: 0 | E68: 0.04397972298 | F68: 0 | G68: 0 | H68: 0 | I68: 0 | J68: 0 | K68: 0 | L68: 0 | M68: 0 | N68: 0 | O68: 0 | P68: 0.07370073545 | Q68: 0 | R68: 0 | S68: 0.06063387616
B69: Tanker truck vendor | C69: 1.686620876 | D69: 1.540354747 | E69: 1.768953141 | F69: 1.590422756 | G69: 1.326407003 | H69: 0.571625214 | I69: 1.281923663 | J69: 0.4808329406 | K69: 0.7057061059 | L69: 0.08993805791 | M69: 1.863678894 | N69: 1.869338437 | O69: 1.511766752 | P69: 2.03356549 | Q69: 3.857276105 | R69: 1.59803658 | S69: 1.493804478
B70: Other | C70: 0.2754960567 | D70: 0.5219996247 | E70: 0.2270137317 | F70: 0.7448147777 | G70: 0.0977407293 | H70: 0.5509395621 | I70: 0.4579497315 | J70: 0.533102097 | K70: 0.2430706652 | L70: 0 | M70: 0.2401405356 | N70: 0.1858132777 | O70: 0.6442583964 | P70: 0.1616230054 | Q70: 0.6971569898 | R70: 0.3609457944 | S70: 0.4509015956
B71: Missing | C71: 0 | D71: 0 | E71: 0.07375084154 | F71: 0 | G71: 0 | H71: 0 | I71: 0 | J71: 0 | K71: 0 | L71: 0 | M71: 0 | N71: 0 | O71: 0 | P71: 0.1235908481 | Q71: 0 | R71: 0.01727760097 | S71: 0
A108: =A1026 -> Republic of Moldova
A109: =A1034 -> 2000
A110: Use of sanitation facilities
A111: by wealth quintile and sub-national region
A112: Notes:
A113: WHO/UNICEF JMP customised wealth index excludes water,
A114: sanitation and hygiene assets.
A115: Survey used for analysis: | B115: =A1025 -> MICS00
A116: =B1030 -> Ratio of Improved latrines based on: | B116: DHS05
A117: =B1029 -> Ratio of Shared improved based on: | B117: DHS05
A120: Use of sanitation facilities | C120: NATIONAL wealth index quintile | H120: URBAN wealth index quintile | M120: RURAL wealth index quintile | R120: SUB-REGIONS: | BA120: Raw numbers of respondents: | BB120: Use of sanitation facilities | BC120: NATIONAL wealth index quintile | BH120: URBAN wealth index quintile | BM120: RURAL wealth index quintile | BR120: SUB-REGIONS:
A121: Weighted percentage (used in graphs) | C121: Poorest | D121: Poor | E121: Middle | F121: Rich | G121: Richest | H121: Poorest | I121: Poor | J121: Middle | K121: Rich | L121: Richest | M121: Poorest | N121: Poor | O121: Middle | P121: Rich | Q121: Richest | R121: Moldova | S121: Transnistria | BA121: Sanitation data, raw numbers (weighted) | BC121: Poorest | BD121: Poor | BE121: Middle | BF121: Rich | BG121: Richest | BH121: Poorest | BI121: Poor | BJ121: Middle | BK121: Rich | BL121: Richest | BM121: Poorest | BN121: Poor | BO121: Middle | BP121: Rich | BQ121: Richest | BR121: Moldova | BS121: Transnistria
A122: Sanitation | B122: Improved | C122: =C153+C154+C155+C156*'DHS05'!C130/100 -> 54.00328268 | D122: =D153+D154+D155+D156*'DHS05'!D130/100 -> 62.21480892 | E122: =E153+E154+E155+E156*'DHS05'!E130/100 -> 72.10134995 | F122: =F153+F154+F155+F156*'DHS05'!F130/100 -> 84.14884557 | G122: =G153+G154+G155+G156*'DHS05'!G130/100 -> 89.64661542 | H122: =H153+H154+H155+H156*'DHS05'!H130/100 -> 74.7520202 | I122: =I153+I154+I155+I156*'DHS05'!I130/100 -> 84.93175475 | J122: =J153+J154+J155+J156*'DHS05'!J130/100 -> 94.5569299 | K122: =K153+K154+K155+K156*'DHS05'!K130/100 -> 92.39342352 | L122: =L153+L154+L155+L156*'DHS05'!L130/100 -> 99.67812974 | M122: =M153+M154+M155+M156*'DHS05'!M130/100 -> 52.55111971 | N122: =N153+N154+N155+N156*'DHS05'!N130/100 -> 59.78058989 | O122: =O153+O154+O155+O156*'DHS05'!O130/100 -> 62.08770469 | P122: =P153+P154+P155+P156*'DHS05'!P130/100 -> 67.26069934 | Q122: =Q153+Q154+Q155+Q156*'DHS05'!Q130/100 -> 69.80112423 | R122: =R153+R154+R155+R156*'DHS05'!R130/100 -> 68.73843358 | S122: =S153+S154+S155+S156*'DHS05'!S130/100 -> 80.71931564 | BA122: Sanitation | BB122: Improved | BC122: N/A | BD122: N/A | BE122: N/A | BF122: N/A | BG122: N/A | BH122: N/A | BI122: N/A | BJ122: N/A | BK122: N/A | BL122: N/A | BM122: N/A | BN122: N/A | BO122: N/A | BP122: N/A | BQ122: N/A | BR122: N/A | BS122: N/A
B123: Not Improved | C123: =100-C122 -> 45.99671732 | D123: =100-D122 -> 37.78519108 | E123: 27.89865005 | F123: 15.85115443 | G123: 10.35338458 | H123: 25.2479798 | I123: 15.06824525 | J123: 5.443070103 | K123: 7.606576477 | L123: 0.3218702633 | M123: 47.44888029 | N123: 40.21941011 | O123: 37.91229531 | P123: 32.73930066 | Q123: 30.19887577 | R123: 31.26156642 | S123: 19.28068436 | BB123: Not Improved | BC123: N/A | BD123: N/A | BE123: N/A | BF123: N/A | BG123: N/A | BH123: N/A | BI123: N/A | BJ123: N/A | BK123: N/A | BL123: N/A | BM123: N/A | BN123: N/A | BO123: N/A | BP123: N/A | BQ123: N/A | BR123: N/A | BS123: N/A
A124: Sanitation ladder | B124: Basic | C124: =C122*'DHS05'!C129/100 -> 50.01500675 | D124: =D122*'DHS05'!D129/100 -> 59.04992199 | E124: =E122*'DHS05'!E129/100 -> 68.19894092 | F124: =F122*'DHS05'!F129/100 -> 75.45283728 | G124: =G122*'DHS05'!G129/100 -> 86.42084528 | H124: =H122*'DHS05'!H129/100 -> 67.50390025 | I124: =I122*'DHS05'!I129/100 -> 72.21199608 | J124: =J122*'DHS05'!J129/100 -> 87.95365516 | K124: =K122*'DHS05'!K129/100 -> 88.85611409 | L124: =L122*'DHS05'!L129/100 -> 96.88627491 | M124: =M122*'DHS05'!M129/100 -> 48.8282977 | N124: =N122*'DHS05'!N129/100 -> 55.6155376 | O124: =O122*'DHS05'!O129/100 -> 59.11682183 | P124: =P122*'DHS05'!P129/100 -> 65.03552506 | Q124: =Q122*'DHS05'!Q129/100 -> 65.79163125 | R124: N/A | S124: N/A | BA124: Sanitation ladder | BB124: Basic | BC124: N/A | BD124: N/A | BE124: N/A | BF124: N/A | BG124: N/A | BH124: N/A | BI124: N/A | BJ124: N/A | BK124: N/A | BL124: N/A | BM124: N/A | BN124: N/A | BO124: N/A | BP124: N/A | BQ124: N/A | BR124: N/A | BS124: N/A
B125: Limited | C125: =C122*'DHS05'!C128/100 -> 3.988275922 | D125: =D122*'DHS05'!D128/100 -> 3.164886929 | E125: =E122*'DHS05'!E128/100 -> 3.902409024 | F125: =F122*'DHS05'!F128/100 -> 8.696008297 | G125: =G122*'DHS05'!G128/100 -> 3.225770145 | H125: =H122*'DHS05'!H128/100 -> 7.248119956 | I125: =I122*'DHS05'!I128/100 -> 12.71975867 | J125: =J122*'DHS05'!J128/100 -> 6.603274741 | K125: =K122*'DHS05'!K128/100 -> 3.537309433 | L125: =L122*'DHS05'!L128/100 -> 2.791854826 | M125: =M122*'DHS05'!M128/100 -> 3.72282201 | N125: =N122*'DHS05'!N128/100 -> 4.16505229 | O125: =O122*'DHS05'!O128/100 -> 2.970882865 | P125: =P122*'DHS05'!P128/100 -> 2.225174279 | Q125: =Q122*'DHS05'!Q128/100 -> 4.009492984 | R125: N/A | S125: N/A | BB125: Limited | BC125: N/A | BD125: N/A | BE125: N/A | BF125: N/A | BG125: N/A | BH125: N/A | BI125: N/A | BJ125: N/A | BK125: N/A | BL125: N/A | BM125: N/A | BN125: N/A | BO125: N/A | BP125: N/A | BQ125: N/A | BR125: N/A | BS125: N/A
B126: Unimproved | C126: =100-(C124+C125+C127) -> 45.99671732 | D126: =100-(D124+D125+D127) -> 37.78519108 | E126: 27.89865005 | F126: 15.85115443 | G126: 10.35338458 | H126: 25.2479798 | I126: 15.06824525 | J126: 5.443070103 | K126: 7.606576477 | L126: 0.3218702633 | M126: 47.44888029 | N126: 40.21941011 | O126: 37.91229531 | P126: 32.73930066 | Q126: 30.19887577 | R126: N/A | S126: N/A | BB126: Unimproved | BC126: N/A | BD126: N/A | BE126: N/A | BF126: N/A | BG126: N/A | BH126: N/A | BI126: N/A | BJ126: N/A | BK126: N/A | BL126: N/A | BM126: N/A | BN126: N/A | BO126: N/A | BP126: N/A | BQ126: N/A | BR126: N/A | BS126: N/A
B127: Open defecation | C127: =0 -> 0 | D127: =0 -> 0 | E127: =0 -> 0 | F127: =0 -> 0 | G127: =0 -> 0 | H127: =0 -> 0 | I127: =0 -> 0 | J127: =0 -> 0 | K127: =0 -> 0 | L127: =0 -> 0 | M127: =0 -> 0 | N127: =0 -> 0 | O127: =0 -> 0 | P127: =0 -> 0 | Q127: =0 -> 0 | R127: N/A | S127: N/A | BB127: Open defecation | BC127: N/A | BD127: N/A | BE127: N/A | BF127: N/A | BG127: N/A | BH127: N/A | BI127: N/A | BJ127: N/A | BK127: N/A | BL127: N/A | BM127: N/A | BN127: N/A | BO127: N/A | BP127: N/A | BQ127: N/A | BR127: N/A | BS127: N/A
A128: Shared among Improved Sanitation | B128: Yes | C128: N/A | D128: N/A | E128: N/A | F128: N/A | G128: N/A | H128: N/A | I128: N/A | J128: N/A | K128: N/A | L128: N/A | M128: N/A | N128: N/A | O128: N/A | P128: N/A | Q128: N/A | R128: N/A | S128: N/A | BA128: Shared among improved sanitation facilities | BB128: Yes | BC128: N/A | BD128: N/A | BE128: N/A | BF128: N/A | BG128: N/A | BH128: N/A | BI128: N/A | BJ128: N/A | BK128: N/A | BL128: N/A | BM128: N/A | BN128: N/A | BO128: N/A | BP128: N/A | BQ128: N/A | BR128: N/A | BS128: N/A
B129: No | C129: N/A | D129: N/A | E129: N/A | F129: N/A | G129: N/A | H129: N/A | I129: N/A | J129: N/A | K129: N/A | L129: N/A | M129: N/A | N129: N/A | O129: N/A | P129: N/A | Q129: N/A | R129: N/A | S129: N/A | BB129: No | BC129: N/A | BD129: N/A | BE129: N/A | BF129: N/A | BG129: N/A | BH129: N/A | BI129: N/A | BJ129: N/A | BK129: N/A | BL129: N/A | BM129: N/A | BN129: N/A | BO129: N/A | BP129: N/A | BQ129: N/A | BR129: N/A | BS129: N/A
A130: Manually calculated ratios | B130: Improved latrines
B131: Other
B132: Other
C133: NATIONAL wealth index quintile | H133: URBAN wealth index quintile | M133: RURAL wealth index quintile | R133: SUB-REGIONS: | BA133: Raw numbers of respondents: | BB133: Use of sanitation facilities | BC133: NATIONAL wealth index quintile | BH133: URBAN wealth index quintile | BM133: RURAL wealth index quintile | BR133: SUB-REGIONS:
A134: Percentage based on weighted population | C134: Poorest | D134: Poor | E134: Middle | F134: Rich | G134: Richest | H134: Poorest | I134: Poor | J134: Middle | K134: Rich | L134: Richest | M134: Poorest | N134: Poor | O134: Middle | P134: Rich | Q134: Richest | R134: Moldova | S134: Transnistria | BA134: Sanitation data, raw numbers (weighted) | BC134: Poorest | BD134: Poor | BE134: Middle | BF134: Rich | BG134: Richest | BH134: Poorest | BI134: Poor | BJ134: Middle | BK134: Rich | BL134: Richest | BM134: Poorest | BN134: Poor | BO134: Middle | BP134: Rich | BQ134: Richest | BR134: Moldova | BS134: Transnistria
A135: Sanitation type | B135: Sewer connection | C135: =C153*'DHS05'!C131/100 -> 1.960447504 | D135: =D153*'DHS05'!D131/100 -> 3.294537555 | E135: =E153*'DHS05'!E131/100 -> 19.55252978 | F135: =F153*'DHS05'!F131/100 -> 49.74054252 | G135: =G153*'DHS05'!G131/100 -> 66.61099132 | H135: =H153*'DHS05'!H131/100 -> 38.13646707 | I135: =I153*'DHS05'!I131/100 -> 55.38826996 | J135: =J153*'DHS05'!J131/100 -> 74.05294279 | K135: =K153*'DHS05'!K131/100 -> 73.84481822 | L135: =L153*'DHS05'!L131/100 -> 86.95158251 | M135: =M153*'DHS05'!M131/100 -> 0.6123924927 | N135: =N153*'DHS05'!N131/100 -> 0.9321216556 | O135: =O153*'DHS05'!O131/100 -> 1.510863327 | P135: =P153*'DHS05'!P131/100 -> 4.627615493 | Q135: =Q153*'DHS05'!Q131/100 -> 6.700090975 | R135: N/A | S135: N/A | BA135: Sanitation type | BB135: Sewer connection | BC135: N/A | BD135: N/A | BE135: N/A | BF135: N/A | BG135: N/A | BH135: N/A | BI135: N/A | BJ135: N/A | BK135: N/A | BL135: N/A | BM135: N/A | BN135: N/A | BO135: N/A | BP135: N/A | BQ135: N/A | BR135: N/A | BS135: N/A
B136: Septic tank connection | C136: =C153*(100-'DHS05'!C131)/100 -> 0 | D136: =D153*(100-'DHS05'!D131)/100 -> 0.2569426392 | E136: =E153*(100-'DHS05'!E131)/100 -> 0.9461543633 | F136: =F153*(100-'DHS05'!F131)/100 -> 2.608998224 | G136: =G153*(100-'DHS05'!G131)/100 -> 0.3509161495 | H136: =H153*(100-'DHS05'!H131)/100 -> 4.331871889 | I136: =I153*(100-'DHS05'!I131)/100 -> 3.690034467 | J136: =J153*(100-'DHS05'!J131)/100 -> 0.794105255 | K136: =K153*(100-'DHS05'!K131)/100 -> 0.3716799778 | L136: =L153*(100-'DHS05'!L131)/100 -> 0.2847092682 | M136: =M153*(100-'DHS05'!M131)/100 -> 0 | N136: =N153*(100-'DHS05'!N131)/100 -> 0 | O136: =O153*(100-'DHS05'!O131)/100 -> 0.07616761625 | P136: =P153*(100-'DHS05'!P131)/100 -> 0.1142593749 | Q136: =Q153*(100-'DHS05'!Q131)/100 -> 0.9142251522 | R136: N/A | S136: N/A | BB136: Septic tank connection | BC136: N/A | BD136: N/A | BE136: N/A | BF136: N/A | BG136: N/A | BH136: N/A | BI136: N/A | BJ136: N/A | BK136: N/A | BL136: N/A | BM136: N/A | BN136: N/A | BO136: N/A | BP136: N/A | BQ136: N/A | BR136: N/A | BS136: N/A
B137: Improved latrines | C137: =C154+C155+C156*'DHS05'!C130/100 -> 52.04283517 | D137: =D154+D155+D156*'DHS05'!D130/100 -> 58.66332872 | E137: =E154+E155+E156*'DHS05'!E130/100 -> 51.60266581 | F137: =F154+F155+F156*'DHS05'!F130/100 -> 31.79930483 | G137: =G154+G155+G156*'DHS05'!G130/100 -> 22.68470795 | H137: =H154+H155+H156*'DHS05'!H130/100 -> 32.28368125 | I137: =I154+I155+I156*'DHS05'!I130/100 -> 25.85345033 | J137: =J154+J155+J156*'DHS05'!J130/100 -> 19.70988185 | K137: =K154+K155+K156*'DHS05'!K130/100 -> 18.17692532 | L137: =L154+L155+L156*'DHS05'!L130/100 -> 12.44183796 | M137: =M154+M155+M156*'DHS05'!M130/100 -> 51.93872722 | N137: =N154+N155+N156*'DHS05'!N130/100 -> 58.84846824 | O137: =O154+O155+O156*'DHS05'!O130/100 -> 60.50067375 | P137: =P154+P155+P156*'DHS05'!P130/100 -> 62.51882447 | Q137: =Q154+Q155+Q156*'DHS05'!Q130/100 -> 62.18680811 | R137: N/A | S137: N/A | BB137: Improved latrines | BC137: N/A | BD137: N/A | BE137: N/A | BF137: N/A | BG137: N/A | BH137: N/A | BI137: N/A | BJ137: N/A | BK137: N/A | BL137: N/A | BM137: N/A | BN137: N/A | BO137: N/A | BP137: N/A | BQ137: N/A | BR137: N/A | BS137: N/A
B138: Unimproved facilities | C138: =100-(C135+C136+C137+C139) -> 45.99671732 | D138: =100-(D135+D136+D137+D139) -> 36.78519108 | E138: 25.89865005 | F138: 12.85115443 | G138: 6.353384576 | H138: 20.2479798 | I138: 9.06824525 | J138: -1.556929897 | K138: -0.3934235234 | L138: -8.678129737 | M138: 37.44888029 | N138: 29.21941011 | O138: 25.91229531 | P138: 19.73930066 | Q138: 16.19887577 | R138: N/A | S138: N/A | BB138: Unimproved facilities | BC138: N/A | BD138: N/A | BE138: N/A | BF138: N/A | BG138: N/A | BH138: N/A | BI138: N/A | BJ138: N/A | BK138: N/A | BL138: N/A | BM138: N/A | BN138: N/A | BO138: N/A | BP138: N/A | BQ138: N/A | BR138: N/A | BS138: N/A
B139: Open defecation | C139: 0 | D139: 1 | E139: 2 | F139: 3 | G139: 4 | H139: 5 | I139: 6 | J139: 7 | K139: 8 | L139: 9 | M139: 10 | N139: 11 | O139: 12 | P139: 13 | Q139: 14 | R139: N/A | S139: N/A | BB139: Open defecation | BC139: N/A | BD139: N/A | BE139: N/A | BF139: N/A | BG139: N/A | BH139: N/A | BI139: N/A | BJ139: N/A | BK139: N/A | BL139: N/A | BM139: N/A | BN139: N/A | BO139: N/A | BP139: N/A | BQ139: N/A | BR139: N/A | BS139: N/A
A140: Septic tank emptying practices | B140: Not emptied/treated and disposed in situ | C140: N/A | D140: N/A | E140: N/A | F140: N/A | G140: N/A | H140: N/A | I140: N/A | J140: N/A | K140: N/A | L140: N/A | M140: N/A | N140: N/A | O140: N/A | P140: N/A | Q140: N/A | R140: N/A | S140: N/A | BA140: Septic tank emptying practices | BB140: Not emptied/treated and disposed in situ | BC140: N/A | BD140: N/A | BE140: N/A | BF140: N/A | BG140: N/A | BH140: N/A | BI140: N/A | BJ140: N/A | BK140: N/A | BL140: N/A | BM140: N/A | BN140: N/A | BO140: N/A | BP140: N/A | BQ140: N/A | BR140: N/A | BS140: N/A
B141: Emptied and buried on site | C141: N/A | D141: N/A | E141: N/A | F141: N/A | G141: N/A | H141: N/A | I141: N/A | J141: N/A | K141: N/A | L141: N/A | M141: N/A | N141: N/A | O141: N/A | P141: N/A | Q141: N/A | R141: N/A | S141: N/A | BB141: Emptied and buried on site | BC141: N/A | BD141: N/A | BE141: N/A | BF141: N/A | BG141: N/A | BH141: N/A | BI141: N/A | BJ141: N/A | BK141: N/A | BL141: N/A | BM141: N/A | BN141: N/A | BO141: N/A | BP141: N/A | BQ141: N/A | BR141: N/A | BS141: N/A
B142: Emptied and discharged locally | C142: N/A | D142: N/A | E142: N/A | F142: N/A | G142: N/A | H142: N/A | I142: N/A | J142: N/A | K142: N/A | L142: N/A | M142: N/A | N142: N/A | O142: N/A | P142: N/A | Q142: N/A | R142: N/A | S142: N/A | BB142: Emptied and discharged locally | BC142: N/A | BD142: N/A | BE142: N/A | BF142: N/A | BG142: N/A | BH142: N/A | BI142: N/A | BJ142: N/A | BK142: N/A | BL142: N/A | BM142: N/A | BN142: N/A | BO142: N/A | BP142: N/A | BQ142: N/A | BR142: N/A | BS142: N/A
B143: Emptied and removed offsite | C143: N/A | D143: N/A | E143: N/A | F143: N/A | G143: N/A | H143: N/A | I143: N/A | J143: N/A | K143: N/A | L143: N/A | M143: N/A | N143: N/A | O143: N/A | P143: N/A | Q143: N/A | R143: N/A | S143: N/A | BB143: Emptied and removed offsite | BC143: N/A | BD143: N/A | BE143: N/A | BF143: N/A | BG143: N/A | BH143: N/A | BI143: N/A | BJ143: N/A | BK143: N/A | BL143: N/A | BM143: N/A | BN143: N/A | BO143: N/A | BP143: N/A | BQ143: N/A | BR143: N/A | BS143: N/A
A144: Latrine emptying practices | B144: Not emptied/treated and disposed in situ | C144: N/A | D144: N/A | E144: N/A | F144: N/A | G144: N/A | H144: N/A | I144: N/A | J144: N/A | K144: N/A | L144: N/A | M144: N/A | N144: N/A | O144: N/A | P144: N/A | Q144: N/A | R144: N/A | S144: N/A | BA144: Latrine emptying practices | BB144: Not emptied/treated and disposed in situ | BC144: N/A | BD144: N/A | BE144: N/A | BF144: N/A | BG144: N/A | BH144: N/A | BI144: N/A | BJ144: N/A | BK144: N/A | BL144: N/A | BM144: N/A | BN144: N/A | BO144: N/A | BP144: N/A | BQ144: N/A | BR144: N/A | BS144: N/A
B145: Emptied and buried on site | C145: N/A | D145: N/A | E145: N/A | F145: N/A | G145: N/A | H145: N/A | I145: N/A | J145: N/A | K145: N/A | L145: N/A | M145: N/A | N145: N/A | O145: N/A | P145: N/A | Q145: N/A | R145: N/A | S145: N/A | BB145: Emptied and buried on site | BC145: N/A | BD145: N/A | BE145: N/A | BF145: N/A | BG145: N/A | BH145: N/A | BI145: N/A | BJ145: N/A | BK145: N/A | BL145: N/A | BM145: N/A | BN145: N/A | BO145: N/A | BP145: N/A | BQ145: N/A | BR145: N/A | BS145: N/A
B146: Emptied and discharged locally | C146: N/A | D146: N/A | E146: N/A | F146: N/A | G146: N/A | H146: N/A | I146: N/A | J146: N/A | K146: N/A | L146: N/A | M146: N/A | N146: N/A | O146: N/A | P146: N/A | Q146: N/A | R146: N/A | S146: N/A | BB146: Emptied and discharged locally | BC146: N/A | BD146: N/A | BE146: N/A | BF146: N/A | BG146: N/A | BH146: N/A | BI146: N/A | BJ146: N/A | BK146: N/A | BL146: N/A | BM146: N/A | BN146: N/A | BO146: N/A | BP146: N/A | BQ146: N/A | BR146: N/A | BS146: N/A
B147: Emptied and removed offsite | C147: N/A | D147: N/A | E147: N/A | F147: N/A | G147: N/A | H147: N/A | I147: N/A | J147: N/A | K147: N/A | L147: N/A | M147: N/A | N147: N/A | O147: N/A | P147: N/A | Q147: N/A | R147: N/A | S147: N/A | BB147: Emptied and removed offsite | BC147: N/A | BD147: N/A | BE147: N/A | BF147: N/A | BG147: N/A | BH147: N/A | BI147: N/A | BJ147: N/A | BK147: N/A | BL147: N/A | BM147: N/A | BN147: N/A | BO147: N/A | BP147: N/A | BQ147: N/A | BR147: N/A | BS147: N/A
A148: Shared among improved sanitation facilities | B148: Yes | C148: N/A | D148: N/A | E148: N/A | F148: N/A | G148: N/A | H148: N/A | I148: N/A | J148: N/A | K148: N/A | L148: N/A | M148: N/A | N148: N/A | O148: N/A | P148: N/A | Q148: N/A | R148: N/A | S148: N/A | BA148: Shared among improved sanitation facilities | BB148: Yes | BC148: N/A | BD148: N/A | BE148: N/A | BF148: N/A | BG148: N/A | BH148: N/A | BI148: N/A | BJ148: N/A | BK148: N/A | BL148: N/A | BM148: N/A | BN148: N/A | BO148: N/A | BP148: N/A | BQ148: N/A | BR148: N/A | BS148: N/A
B149: No | C149: N/A | D149: N/A | E149: N/A | F149: N/A | G149: N/A | H149: N/A | I149: N/A | J149: N/A | K149: N/A | L149: N/A | M149: N/A | N149: N/A | O149: N/A | P149: N/A | Q149: N/A | R149: N/A | S149: N/A | BB149: No | BC149: N/A | BD149: N/A | BE149: N/A | BF149: N/A | BG149: N/A | BH149: N/A | BI149: N/A | BJ149: N/A | BK149: N/A | BL149: N/A | BM149: N/A | BN149: N/A | BO149: N/A | BP149: N/A | BQ149: N/A | BR149: N/A | BS149: N/A
B150: DK/missing | C150: N/A | D150: N/A | E150: N/A | F150: N/A | G150: N/A | H150: N/A | I150: N/A | J150: N/A | K150: N/A | L150: N/A | M150: N/A | N150: N/A | O150: N/A | P150: N/A | Q150: N/A | R150: N/A | S150: N/A | BB150: DK/missing | BC150: N/A | BD150: N/A | BE150: N/A | BF150: N/A | BG150: N/A | BH150: N/A | BI150: N/A | BJ150: N/A | BK150: N/A | BL150: N/A | BM150: N/A | BN150: N/A | BO150: N/A | BP150: N/A | BQ150: N/A | BR150: N/A | BS150: N/A
A151: Shared among all sanitation facilities | B151: Yes | C151: N/A | D151: N/A | E151: N/A | F151: N/A | G151: N/A | H151: N/A | I151: N/A | J151: N/A | K151: N/A | L151: N/A | M151: N/A | N151: N/A | O151: N/A | P151: N/A | Q151: N/A | R151: N/A | S151: N/A | BA151: Shared among all sanitation facilities | BB151: Yes | BC151: N/A | BD151: N/A | BE151: N/A | BF151: N/A | BG151: N/A | BH151: N/A | BI151: N/A | BJ151: N/A | BK151: N/A | BL151: N/A | BM151: N/A | BN151: N/A | BO151: N/A | BP151: N/A | BQ151: N/A | BR151: N/A | BS151: N/A
B152: No | C152: N/A | D152: N/A | E152: N/A | F152: N/A | G152: N/A | H152: N/A | I152: N/A | J152: N/A | K152: N/A | L152: N/A | M152: N/A | N152: N/A | O152: N/A | P152: N/A | Q152: N/A | R152: N/A | S152: N/A | BB152: No | BC152: N/A | BD152: N/A | BE152: N/A | BF152: N/A | BG152: N/A | BH152: N/A | BI152: N/A | BJ152: N/A | BK152: N/A | BL152: N/A | BM152: N/A | BN152: N/A | BO152: N/A | BP152: N/A | BQ152: N/A | BR152: N/A | BS152: N/A
A153: Type of toilet facility | B153: Flush to sewage system/septic tank | C153: 1.960447504 | D153: 3.551480195 | E153: 20.49868414 | F153: 52.34954074 | G153: 66.96190747 | H153: 42.46833896 | I153: 59.07830442 | J153: 74.84704805 | K153: 74.2164982 | L153: 87.23629177 | M153: 0.6123924927 | N153: 0.9321216556 | O153: 1.587030943 | P153: 4.741874868 | Q153: 7.614316127 | R153: 26.95864341 | S153: 41.2986969 | BA153: Type of toilet facility | BB153: Flush to sewage system/septic tank | BC153: 125.6536141 | BD153: 227.5289409 | BE153: 1315.243844 | BF153: 3369.956627 | BG153: 4267.111842 | BH153: 1094.115588 | BI153: 1534.09889 | BJ153: 1915.676818 | BK153: 1901.733663 | BL153: 2266.761671 | BM153: 23.43477027 | BN153: 35.71819565 | BO153: 60.81354985 | BP153: 181.5561862 | BQ153: 291.5855347 | BR153: 7383.493025 | BS153: 1922.001843
B154: Pour flush latrine | C154: 0.179265395 | D154: 0.365287871 | E154: 0.9950288409 | F154: 2.703727031 | G154: 3.482164829 | H154: 2.675669566 | I154: 2.868548126 | J154: 3.324805027 | K154: 3.949580616 | L154: 3.930070314 | M154: 0.05579550263 | N154: 0.111440517 | O154: 0.1300145213 | P154: 0.3595630097 | Q154: 0.9841605928 | R154: 0.6220064113 | S154: 6.968955215 | BB154: Pour flush latrine | BC154: 11.48989949 | BD154: 23.40251328 | BE154: 63.84339346 | BF154: 174.0501005 | BG154: 221.8990966 | BH154: 68.93351265 | BI154: 74.488199 | BJ154: 85.09690202 | BK154: 101.2045919 | BL154: 102.1195717 | BM154: 2.135158092 | BN154: 4.270316184 | BO154: 4.982035548 | BP154: 13.76689401 | BQ154: 37.68782224 | BR154: 170.3564949 | BS154: 324.3285084
B155: Improved pit latrine | C155: 1.722913076 | D155: 2.739224366 | E155: 3.525457679 | F155: 2.786474023 | G155: 2.303493799 | H155: 2.761181218 | I155: 3.662614165 | J155: 1.694013715 | K155: 1.714030573 | L155: 1.121081963 | M155: 1.345765295 | N155: 1.84924871 | O155: 2.966265429 | P155: 3.99643009 | Q155: 4.35035988 | R155: 2.236338083 | S155: 4.85171589 | BB155: Improved pit latrine | BC155: 110.4289987 | BD155: 175.4910022 | BE155: 226.2016662 | BF155: 179.3768669 | BG155: 146.7889138 | BH155: 71.13655694 | BI155: 95.10788064 | BJ155: 43.35752561 | BK155: 43.92055297 | BL155: 29.13037191 | BM155: 51.49916256 | BN155: 70.86180956 | BO155: 113.6645327 | BP155: 153.0147095 | BQ155: 166.5943455 | BR155: 612.4932321 | BS155: 225.7942158
B156: Traditional pit latrine | C156: 92.28002399 | D156: 91.85594436 | E156: 74.05727708 | F156: 41.85543673 | G156: 27.08673424 | H156: 50.7877016 | I156: 34.30359501 | J156: 19.76349568 | K156: 20.03420599 | L156: 7.390685687 | M156: 94.02539673 | N156: 94.0811504 | O156: 94.09522438 | P156: 89.69569669 | Q156: 86.64608351 | R156: 68.64727435 | S156: 46.6357558 | BB156: Traditional pit latrine | BC156: 5914.628421 | BD156: 5884.838036 | BE156: 4751.689283 | BF156: 2694.407714 | BG156: 1726.087694 | BH156: 1308.448067 | BI156: 890.768744 | BJ156: 505.8378588 | BK156: 513.3592243 | BL156: 192.0407516 | BM156: 3598.123097 | BN156: 3605.118406 | BO156: 3605.641493 | BP156: 3434.255239 | BQ156: 3318.058269 | BR156: 18801.26769 | BS156: 2170.383458
B157: Open pit | C157: 2.159528378 | D157: 0.6043378255 | E157: 0.3272318841 | F157: 0.105207372 | G157: 0 | H157: 0.9674132557 | I157: 0.08693827516 | J157: 0.1764082052 | K157: 0 | L157: 0 | M157: 2.533576416 | N157: 1.032380895 | O157: 0.4390088403 | P157: 0.3732140948 | Q157: 0.1456514202 | R157: 0.7207404935 | S157: 0.1611903966 | BB157: Open pit | BC157: 138.4135739 | BD157: 38.71747492 | BE157: 20.99596823 | BF157: 6.772634019 | BG157: 0 | BH157: 24.92355362 | BI157: 2.257544673 | BJ157: 4.515089346 | BK157: 0 | BL157: 0 | BM157: 96.9538033 | BN157: 39.56005376 | BO157: 16.8224105 | BP157: 14.28956469 | BQ157: 5.577631203 | BR157: 197.3980042 | BS157: 7.501646843
B158: Bucket | C158: 1.610736229 | D158: 0.785093237 | E158: 0.5118484809 | F158: 0.1223903439 | G158: 0 | H158: 0.2843319047 | I158: 0 | J158: 0 | K158: 0 | L158: 0 | M158: 1.316977445 | N158: 1.891333445 | O158: 0.7034326762 | P158: 0.7096303961 | Q158: 0.2594284724 | R158: 0.7032590344 | S158: 0.03538687126 | BB158: Bucket | BC158: 103.2390963 | BD158: 50.29774148 | BE158: 32.8414038 | BF158: 7.878773048 | BG158: 0 | BH158: 7.325268112 | BI158: 0 | BJ158: 0 | BK158: 0 | BL158: 0 | BM158: 50.39752159 | BN158: 72.47446472 | BO158: 26.95488598 | BP158: 27.17022104 | BQ158: 9.934653168 | BR158: 192.6101435 | BS158: 1.646871133
B159: Other | C159: 0.0111765568 | D159: 0.03984050008 | E159: 0 | F159: 0 | G159: 0 | H159: 0 | I159: 0 | J159: 0 | K159: 0 | L159: 0 | M159: 0.0187196168 | N159: 0.06660933767 | O159: 0 | P159: 0 | Q159: 0 | R159: 0.009319405192 | S159: 0.01539254194 | BB159: Other | BC159: 0.7163541757 | BD159: 2.552419355 | BE159: 0 | BF159: 0 | BG159: 0 | BH159: 0 | BI159: 0 | BJ159: 0 | BK159: 0 | BL159: 0 | BM159: 0.7163541757 | BN159: 2.552419355 | BO159: 0 | BP159: 0 | BQ159: 0 | BR159: 2.552419355 | BS159: 0.7163541757
B160: 97 | C160: 0.005726151166 | D160: 0.04726529287 | E160: 0.07375084154 | F160: 0.07722375778 | G160: 0.1656996618 | H160: 0 | I160: 0 | J160: 0.1942293242 | K160: 0.0856846245 | L160: 0.3218702633 | M160: 0 | N160: 0.009577797749 | O160: 0.07902320519 | P160: 0.1235908481 | Q160: 0 | R160: 0.08212674631 | S160: 0.02502022864 | BB160: 97 | BC160: 0.3670139535 | BD160: 3.028095734 | BE160: 4.732027658 | BF160: 4.971212939 | BG160: 10.55912257 | BH160: 0 | BI160: 0 | BJ160: 4.971212939 | BK160: 2.195594495 | BL160: 8.36352808 | BM160: 0 | BN160: 0.3670139535 | BO160: 3.028095734 | BP160: 4.732027658 | BQ160: 0 | BR160: 22.49305536 | BS160: 1.164417503
B161: 98 | C161: 0.07018271466 | D161: 0.01152635449 | E161: 0.01072105271 | F161: 0 | G161: 0 | H161: 0.05536350125 | I161: 0 | J161: 0 | K161: 0 | L161: 0 | M161: 0.09137649973 | N161: 0.02613724495 | O161: 0 | P161: 0 | Q161: 0 | R161: 0.02029206783 | S161: 0.00788615166 | BB161: 98 | BC161: 4.498315679 | BD161: 0.7384468122 | BE161: 0.6878879874 | BF161: 0 | BG161: 0 | BH161: 1.4263348 | BI161: 0 | BJ161: 0 | BK161: 0 | BL161: 0 | BM161: 3.496756255 | BN161: 1.001559424 | BO161: 0 | BP161: 0 | BQ161: 0 | BR161: 5.557636526 | BS161: 0.3670139535
BB162: Total | BC162: 6409.435288 | BD162: 6406.594671 | BE162: 6416.235474 | BF162: 6437.413928 | BG162: 6372.446668 | BH162: 2576.308881 | BI162: 2596.721258 | BJ162: 2559.455407 | BK162: 2562.413627 | BL162: 2598.415894 | BM162: 3826.756623 | BN162: 3831.924238 | BO162: 3831.907003 | BP162: 3828.784842 | BQ162: 3829.438255 | BR162: 27388.2217 | BS162: 4653.904328
A208: =A1026 -> Republic of Moldova
A209: =A1034 -> 2000
A210: Access to hygiene facilities
A211: by wealth quintile and sub-national region
A212: Notes:
A213: WHO/UNICEF JMP customised wealth index excludes water,
A214: sanitation and hygiene assets.
A215: Survey used for analysis: | B215: =A1025 -> MICS00
A220: Access to handwashing | C220: NATIONAL wealth index quintile | H220: URBAN wealth index quintile | M220: RURAL wealth index quintile | R220: SUB-REGIONS: | BA220: Raw numbers of respondents: | BB220: Access to handwashing | BC220: NATIONAL wealth index quintile | BH220: URBAN wealth index quintile | BM220: RURAL wealth index quintile | BR220: SUB-REGIONS:
A221: Weighted percentage (used in graphs) | C221: Poorest | D221: Poor | E221: Middle | F221: Rich | G221: Richest | H221: Poorest | I221: Poor | J221: Middle | K221: Rich | L221: Richest | M221: Poorest | N221: Poor | O221: Middle | P221: Rich | Q221: Richest | R221: Moldova | S221: Transnistria | BA221: Hygiene data, raw numbers (weighted) | BC221: Poorest | BD221: Poor | BE221: Middle | BF221: Rich | BG221: Richest | BH221: Poorest | BI221: Poor | BJ221: Middle | BK221: Rich | BL221: Richest | BM221: Poorest | BN221: Poor | BO221: Middle | BP221: Rich | BQ221: Richest | BR221: Moldova | BS221: Transnistria
A222: Hygiene ladder | B222: Basic | C222: N/A | D222: N/A | E222: N/A | F222: N/A | G222: N/A | H222: N/A | I222: N/A | J222: N/A | K222: N/A | L222: N/A | M222: N/A | N222: N/A | O222: N/A | P222: N/A | Q222: N/A | R222: N/A | S222: N/A | BA222: Hygiene ladder | BB222: Basic | BC222: N/A | BD222: N/A | BE222: N/A | BF222: N/A | BG222: N/A | BH222: N/A | BI222: N/A | BJ222: N/A | BK222: N/A | BL222: N/A | BM222: N/A | BN222: N/A | BO222: N/A | BP222: N/A | BQ222: N/A | BR222: N/A | BS222: N/A
B223: Limited | C223: N/A | D223: N/A | E223: N/A | F223: N/A | G223: N/A | H223: N/A | I223: N/A | J223: N/A | K223: N/A | L223: N/A | M223: N/A | N223: N/A | O223: N/A | P223: N/A | Q223: N/A | R223: N/A | S223: N/A | BB223: Limited | BC223: N/A | BD223: N/A | BE223: N/A | BF223: N/A | BG223: N/A | BH223: N/A | BI223: N/A | BJ223: N/A | BK223: N/A | BL223: N/A | BM223: N/A | BN223: N/A | BO223: N/A | BP223: N/A | BQ223: N/A | BR223: N/A | BS223: N/A
B224: No facility | C224: N/A | D224: N/A | E224: N/A | F224: N/A | G224: N/A | H224: N/A | I224: N/A | J224: N/A | K224: N/A | L224: N/A | M224: N/A | N224: N/A | O224: N/A | P224: N/A | Q224: N/A | R224: N/A | S224: N/A | BB224: No facility | BC224: N/A | BD224: N/A | BE224: N/A | BF224: N/A | BG224: N/A | BH224: N/A | BI224: N/A | BJ224: N/A | BK224: N/A | BL224: N/A | BM224: N/A | BN224: N/A | BO224: N/A | BP224: N/A | BQ224: N/A | BR224: N/A | BS224: N/A
BA225: Observed handwashing place | BB225: Fixed | BC225: N/A | BD225: N/A | BE225: N/A | BF225: N/A | BG225: N/A | BH225: N/A | BI225: N/A | BJ225: N/A | BK225: N/A | BL225: N/A | BM225: N/A | BN225: N/A | BO225: N/A | BP225: N/A | BQ225: N/A | BR225: N/A | BS225: N/A
BB226: Mobile | BC226: N/A | BD226: N/A | BE226: N/A | BF226: N/A | BG226: N/A | BH226: N/A | BI226: N/A | BJ226: N/A | BK226: N/A | BL226: N/A | BM226: N/A | BN226: N/A | BO226: N/A | BP226: N/A | BQ226: N/A | BR226: N/A | BS226: N/A
BA227: Water / Soap | BB227: Water and soap | BC227: N/A | BD227: N/A | BE227: N/A | BF227: N/A | BG227: N/A | BH227: N/A | BI227: N/A | BJ227: N/A | BK227: N/A | BL227: N/A | BM227: N/A | BN227: N/A | BO227: N/A | BP227: N/A | BQ227: N/A | BR227: N/A | BS227: N/A
BB228: Water only | BC228: N/A | BD228: N/A | BE228: N/A | BF228: N/A | BG228: N/A | BH228: N/A | BI228: N/A | BJ228: N/A | BK228: N/A | BL228: N/A | BM228: N/A | BN228: N/A | BO228: N/A | BP228: N/A | BQ228: N/A | BR228: N/A | BS228: N/A
BB229: Soap only | BC229: N/A | BD229: N/A | BE229: N/A | BF229: N/A | BG229: N/A | BH229: N/A | BI229: N/A | BJ229: N/A | BK229: N/A | BL229: N/A | BM229: N/A | BN229: N/A | BO229: N/A | BP229: N/A | BQ229: N/A | BR229: N/A | BS229: N/A
BB230: Neither | BC230: N/A | BD230: N/A | BE230: N/A | BF230: N/A | BG230: N/A | BH230: N/A | BI230: N/A | BJ230: N/A | BK230: N/A | BL230: N/A | BM230: N/A | BN230: N/A | BO230: N/A | BP230: N/A | BQ230: N/A | BR230: N/A | BS230: N/A
BA259: Raw numbers of respondents: | BB259: Menstrual health and hygiene | BC259: NATIONAL wealth index quintile | BH259: URBAN wealth index quintile | BM259: RURAL wealth index quintile | BR259: SUB-REGIONS:
BA260: MHH data, raw numbers (weighted) | BC260: Poorest | BD260: Poor | BE260: Middle | BF260: Rich | BG260: Richest | BH260: Poorest | BI260: Poor | BJ260: Middle | BK260: Rich | BL260: Richest | BM260: Poorest | BN260: Poor | BO260: Middle | BP260: Rich | BQ260: Richest | BR260: Moldova | BS260: Transnistria
BA261: Private place to wash and change | BB261: Yes | BC261: N/A | BD261: N/A | BE261: N/A | BF261: N/A | BG261: N/A | BH261: N/A | BI261: N/A | BJ261: N/A | BK261: N/A | BL261: N/A | BM261: N/A | BN261: N/A | BO261: N/A | BP261: N/A | BQ261: N/A | BR261: N/A | BS261: N/A
BB262: No | BC262: N/A | BD262: N/A | BE262: N/A | BF262: N/A | BG262: N/A | BH262: N/A | BI262: N/A | BJ262: N/A | BK262: N/A | BL262: N/A | BM262: N/A | BN262: N/A | BO262: N/A | BP262: N/A | BQ262: N/A | BR262: N/A | BS262: N/A
BB263: DK/not sure/missing | BC263: N/A | BD263: N/A | BE263: N/A | BF263: N/A | BG263: N/A | BH263: N/A | BI263: N/A | BJ263: N/A | BK263: N/A | BL263: N/A | BM263: N/A | BN263: N/A | BO263: N/A | BP263: N/A | BQ263: N/A | BR263: N/A | BS263: N/A
BA264: Use of menstrual materials | BB264: Materials reusable | BC264: N/A | BD264: N/A | BE264: N/A | BF264: N/A | BG264: N/A | BH264: N/A | BI264: N/A | BJ264: N/A | BK264: N/A | BL264: N/A | BM264: N/A | BN264: N/A | BO264: N/A | BP264: N/A | BQ264: N/A | BR264: N/A | BS264: N/A
BB265: Materials not reusable | BC265: N/A | BD265: N/A | BE265: N/A | BF265: N/A | BG265: N/A | BH265: N/A | BI265: N/A | BJ265: N/A | BK265: N/A | BL265: N/A | BM265: N/A | BN265: N/A | BO265: N/A | BP265: N/A | BQ265: N/A | BR265: N/A | BS265: N/A
BB266: No materials used | BC266: N/A | BD266: N/A | BE266: N/A | BF266: N/A | BG266: N/A | BH266: N/A | BI266: N/A | BJ266: N/A | BK266: N/A | BL266: N/A | BM266: N/A | BN266: N/A | BO266: N/A | BP266: N/A | BQ266: N/A | BR266: N/A | BS266: N/A
BB267: DK/not sure/missing | BC267: N/A | BD267: N/A | BE267: N/A | BF267: N/A | BG267: N/A | BH267: N/A | BI267: N/A | BJ267: N/A | BK267: N/A | BL267: N/A | BM267: N/A | BN267: N/A | BO267: N/A | BP267: N/A | BQ267: N/A | BR267: N/A | BS267: N/A
BA268: Use of menstrual materials with private place to wash and change | BB268: Materials reusable | BC268: N/A | BD268: N/A | BE268: N/A | BF268: N/A | BG268: N/A | BH268: N/A | BI268: N/A | BJ268: N/A | BK268: N/A | BL268: N/A | BM268: N/A | BN268: N/A | BO268: N/A | BP268: N/A | BQ268: N/A | BR268: N/A | BS268: N/A
BB269: Materials not reusable | BC269: N/A | BD269: N/A | BE269: N/A | BF269: N/A | BG269: N/A | BH269: N/A | BI269: N/A | BJ269: N/A | BK269: N/A | BL269: N/A | BM269: N/A | BN269: N/A | BO269: N/A | BP269: N/A | BQ269: N/A | BR269: N/A | BS269: N/A
BB270: No materials used | BC270: N/A | BD270: N/A | BE270: N/A | BF270: N/A | BG270: N/A | BH270: N/A | BI270: N/A | BJ270: N/A | BK270: N/A | BL270: N/A | BM270: N/A | BN270: N/A | BO270: N/A | BP270: N/A | BQ270: N/A | BR270: N/A | BS270: N/A
BA271: Awareness of menstruation before menarche | BB271: Yes | BC271: N/A | BD271: N/A | BE271: N/A | BF271: N/A | BG271: N/A | BH271: N/A | BI271: N/A | BJ271: N/A | BK271: N/A | BL271: N/A | BM271: N/A | BN271: N/A | BO271: N/A | BP271: N/A | BQ271: N/A | BR271: N/A | BS271: N/A
BB272: No | BC272: N/A | BD272: N/A | BE272: N/A | BF272: N/A | BG272: N/A | BH272: N/A | BI272: N/A | BJ272: N/A | BK272: N/A | BL272: N/A | BM272: N/A | BN272: N/A | BO272: N/A | BP272: N/A | BQ272: N/A | BR272: N/A | BS272: N/A
BB273: DK/not sure/missing | BC273: N/A | BD273: N/A | BE273: N/A | BF273: N/A | BG273: N/A | BH273: N/A | BI273: N/A | BJ273: N/A | BK273: N/A | BL273: N/A | BM273: N/A | BN273: N/A | BO273: N/A | BP273: N/A | BQ273: N/A | BR273: N/A | BS273: N/A
BA274: Participation in (all) activities during menstruation | BB274: Yes | BC274: N/A | BD274: N/A | BE274: N/A | BF274: N/A | BG274: N/A | BH274: N/A | BI274: N/A | BJ274: N/A | BK274: N/A | BL274: N/A | BM274: N/A | BN274: N/A | BO274: N/A | BP274: N/A | BQ274: N/A | BR274: N/A | BS274: N/A
BB275: No | BC275: N/A | BD275: N/A | BE275: N/A | BF275: N/A | BG275: N/A | BH275: N/A | BI275: N/A | BJ275: N/A | BK275: N/A | BL275: N/A | BM275: N/A | BN275: N/A | BO275: N/A | BP275: N/A | BQ275: N/A | BR275: N/A | BS275: N/A
BB276: DK/not sure/missing/no such activity | BC276: N/A | BD276: N/A | BE276: N/A | BF276: N/A | BG276: N/A | BH276: N/A | BI276: N/A | BJ276: N/A | BK276: N/A | BL276: N/A | BM276: N/A | BN276: N/A | BO276: N/A | BP276: N/A | BQ276: N/A | BR276: N/A | BS276: N/A
BA277: Participation in specific activities during menstruation | BB277: Did not go to school (amongst those usually attending school) | BC277: N/A | BD277: N/A | BE277: N/A | BF277: N/A | BG277: N/A | BH277: N/A | BI277: N/A | BJ277: N/A | BK277: N/A | BL277: N/A | BM277: N/A | BN277: N/A | BO277: N/A | BP277: N/A | BQ277: N/A | BR277: N/A | BS277: N/A
BB278: Did not go to work (amongst those who usually work) | BC278: N/A | BD278: N/A | BE278: N/A | BF278: N/A | BG278: N/A | BH278: N/A | BI278: N/A | BJ278: N/A | BK278: N/A | BL278: N/A | BM278: N/A | BN278: N/A | BO278: N/A | BP278: N/A | BQ278: N/A | BR278: N/A | BS278: N/A
BB279: Did not participate in social activities | BC279: N/A | BD279: N/A | BE279: N/A | BF279: N/A | BG279: N/A | BH279: N/A | BI279: N/A | BJ279: N/A | BK279: N/A | BL279: N/A | BM279: N/A | BN279: N/A | BO279: N/A | BP279: N/A | BQ279: N/A | BR279: N/A | BS279: N/A
BB280: Did not cook food | BC280: N/A | BD280: N/A | BE280: N/A | BF280: N/A | BG280: N/A | BH280: N/A | BI280: N/A | BJ280: N/A | BK280: N/A | BL280: N/A | BM280: N/A | BN280: N/A | BO280: N/A | BP280: N/A | BQ280: N/A | BR280: N/A | BS280: N/A
BB281: Did not eat with others | BC281: N/A | BD281: N/A | BE281: N/A | BF281: N/A | BG281: N/A | BH281: N/A | BI281: N/A | BJ281: N/A | BK281: N/A | BL281: N/A | BM281: N/A | BN281: N/A | BO281: N/A | BP281: N/A | BQ281: N/A | BR281: N/A | BS281: N/A
BB282: Did not bathe in regular place | BC282: N/A | BD282: N/A | BE282: N/A | BF282: N/A | BG282: N/A | BH282: N/A | BI282: N/A | BJ282: N/A | BK282: N/A | BL282: N/A | BM282: N/A | BN282: N/A | BO282: N/A | BP282: N/A | BQ282: N/A | BR282: N/A | BS282: N/A
BB283: Did not participate in other activities | BC283: N/A | BD283: N/A | BE283: N/A | BF283: N/A | BG283: N/A | BH283: N/A | BI283: N/A | BJ283: N/A | BK283: N/A | BL283: N/A | BM283: N/A | BN283: N/A | BO283: N/A | BP283: N/A | BQ283: N/A | BR283: N/A | BS283: N/A
BB284: DK/not sure/missing/no such activity | BC284: N/A | BD284: N/A | BE284: N/A | BF284: N/A | BG284: N/A | BH284: N/A | BI284: N/A | BJ284: N/A | BK284: N/A | BL284: N/A | BM284: N/A | BN284: N/A | BO284: N/A | BP284: N/A | BQ284: N/A | BR284: N/A | BS284: N/A
BA339: Raw numbers of respondents: | BB339: Basic water, sanitation and hygiene | BC339: NATIONAL wealth index quintile | BH339: URBAN wealth index quintile | BM339: RURAL wealth index quintile | BR339: SUB-REGIONS:
BA340: WatSan data, raw numbers (weighted) | BC340: Poorest | BD340: Poor | BE340: Middle | BF340: Rich | BG340: Richest | BH340: Poorest | BI340: Poor | BJ340: Middle | BK340: Rich | BL340: Richest | BM340: Poorest | BN340: Poor | BO340: Middle | BP340: Rich | BQ340: Richest | BR340: Moldova | BS340: Transnistria
BA341: Use of Basic Water Sanitation and Hygiene | BB341: Yes | BC341: N/A | BD341: N/A | BE341: N/A | BF341: N/A | BG341: N/A | BH341: N/A | BI341: N/A | BJ341: N/A | BK341: N/A | BL341: N/A | BM341: N/A | BN341: N/A | BO341: N/A | BP341: N/A | BQ341: N/A | BR341: N/A | BS341: N/A
BB342: No | BC342: N/A | BD342: N/A | BE342: N/A | BF342: N/A | BG342: N/A | BH342: N/A | BI342: N/A | BJ342: N/A | BK342: N/A | BL342: N/A | BM342: N/A | BN342: N/A | BO342: N/A | BP342: N/A | BQ342: N/A | BR342: N/A | BS342: N/A
BA343: Use of Basic Water and Sanitation | BB343: Yes | BC343: N/A | BD343: N/A | BE343: N/A | BF343: N/A | BG343: N/A | BH343: N/A | BI343: N/A | BJ343: N/A | BK343: N/A | BL343: N/A | BM343: N/A | BN343: N/A | BO343: N/A | BP343: N/A | BQ343: N/A | BR343: N/A | BS343: N/A
BB344: No | BC344: N/A | BD344: N/A | BE344: N/A | BF344: N/A | BG344: N/A | BH344: N/A | BI344: N/A | BJ344: N/A | BK344: N/A | BL344: N/A | BM344: N/A | BN344: N/A | BO344: N/A | BP344: N/A | BQ344: N/A | BR344: N/A | BS344: N/A
BA345: Use of Basic Water and Hygiene | BB345: Yes | BC345: N/A | BD345: N/A | BE345: N/A | BF345: N/A | BG345: N/A | BH345: N/A | BI345: N/A | BJ345: N/A | BK345: N/A | BL345: N/A | BM345: N/A | BN345: N/A | BO345: N/A | BP345: N/A | BQ345: N/A | BR345: N/A | BS345: N/A
BB346: No | BC346: N/A | BD346: N/A | BE346: N/A | BF346: N/A | BG346: N/A | BH346: N/A | BI346: N/A | BJ346: N/A | BK346: N/A | BL346: N/A | BM346: N/A | BN346: N/A | BO346: N/A | BP346: N/A | BQ346: N/A | BR346: N/A | BS346: N/A
BA347: Use of Basic Sanitation and Hygiene | BB347: Yes | BC347: N/A | BD347: N/A | BE347: N/A | BF347: N/A | BG347: N/A | BH347: N/A | BI347: N/A | BJ347: N/A | BK347: N/A | BL347: N/A | BM347: N/A | BN347: N/A | BO347: N/A | BP347: N/A | BQ347: N/A | BR347: N/A | BS347: N/A
BB348: No | BC348: N/A | BD348: N/A | BE348: N/A | BF348: N/A | BG348: N/A | BH348: N/A | BI348: N/A | BJ348: N/A | BK348: N/A | BL348: N/A | BM348: N/A | BN348: N/A | BO348: N/A | BP348: N/A | BQ348: N/A | BR348: N/A | BS348: N/A
BA349: Use of Basic Water | BB349: Yes | BC349: N/A | BD349: N/A | BE349: N/A | BF349: N/A | BG349: N/A | BH349: N/A | BI349: N/A | BJ349: N/A | BK349: N/A | BL349: N/A | BM349: N/A | BN349: N/A | BO349: N/A | BP349: N/A | BQ349: N/A | BR349: N/A | BS349: N/A
BB350: No | BC350: N/A | BD350: N/A | BE350: N/A | BF350: N/A | BG350: N/A | BH350: N/A | BI350: N/A | BJ350: N/A | BK350: N/A | BL350: N/A | BM350: N/A | BN350: N/A | BO350: N/A | BP350: N/A | BQ350: N/A | BR350: N/A | BS350: N/A
BA351: Use of Basic Sanitation | BB351: Yes | BC351: N/A | BD351: N/A | BE351: N/A | BF351: N/A | BG351: N/A | BH351: N/A | BI351: N/A | BJ351: N/A | BK351: N/A | BL351: N/A | BM351: N/A | BN351: N/A | BO351: N/A | BP351: N/A | BQ351: N/A | BR351: N/A | BS351: N/A
BB352: No | BC352: N/A | BD352: N/A | BE352: N/A | BF352: N/A | BG352: N/A | BH352: N/A | BI352: N/A | BJ352: N/A | BK352: N/A | BL352: N/A | BM352: N/A | BN352: N/A | BO352: N/A | BP352: N/A | BQ352: N/A | BR352: N/A | BS352: N/A
BA353: Access to Basic Hygiene | BB353: Yes | BC353: N/A | BD353: N/A | BE353: N/A | BF353: N/A | BG353: N/A | BH353: N/A | BI353: N/A | BJ353: N/A | BK353: N/A | BL353: N/A | BM353: N/A | BN353: N/A | BO353: N/A | BP353: N/A | BQ353: N/A | BR353: N/A | BS353: N/A
BB354: No | BC354: N/A | BD354: N/A | BE354: N/A | BF354: N/A | BG354: N/A | BH354: N/A | BI354: N/A | BJ354: N/A | BK354: N/A | BL354: N/A | BM354: N/A | BN354: N/A | BO354: N/A | BP354: N/A | BQ354: N/A | BR354: N/A | BS354: N/A
C399: INITIAL (national) Wealth Index | H399: URBAN Wealth Index | M399: RURAL Wealth Index
C400: Component Matrix | H400: Component Matrix | M400: Component Matrix
E401: Component | J401: Component | O401: Component
B402: Note: The INITIAL (national) Wealth Index is based on the first component of the Principal Component Analysis (PCA) which has been obtained at national level. The final national-level (NATIONAL) Wealth Index is based on the URBAN and RURAL specific wealth indexes. Regression procedures are used to establish the relationships between the two sets of scores (urban and rural) and the initial (national) wealth factors. This allows best use of the available information for each area and a better precision of the FINAL (NATIONAL) Wealth Index. For dependency reasons, all WASH variables (contained in the generic MICS and DHS scripts) have been excluded from the sets of asset variables used in the PCAs. The PCA can extracts as many components as there are asset variables in the input. Only the first of the components is used to represent the Wealth Index. The scores represent the weights of the asset variables on the Wealth Index (correlations between the variables and the component). The communalities are the proportion of each variable's variance that can be explained by the component. Proportion of explained variance is the part of the model's total variance that is explained by the component. For more information on the procedure used: The DHS Wealth Index, DHS Comparative Reports No. 6, Shea Oscar Rutstein, Kiersten Johnson, ORC Macro International Inc., 2004. The DHS Wealth Index: Approaches for Rural and Urban Areas, Shea O. Rutstein, ORC Macro International Inc., 2008. MICS Methodological Paper No. 4, Review of options for reporting water, sanitation and hygiene coverage by wealth quintile, UNICEF, 2016. | E402: 1 | J402: 1 | O402: 1
C403: Household fuel type: LPG | E403: -0.7790798415 | H403: Household fuel type: LPG | J403: -0.7325068558 | M403: Household fuel type: LPG | O403: -0.6732013016
C404: Household fuel type: coal/lignite | E404: 0.7341076681 | H404: Have Refrigerator | J404: 0.6867165957 | M404: Have Refrigerator | O404: 0.6495207242
C405: Have Refrigerator | E405: 0.7128891944 | H405: Have television | J405: 0.6343683932 | M405: Household fuel type: coal/lignite | O405: 0.6287332473
C406: Have television | E406: 0.644616233 | H406: Household fuel type: coal/lignite | J406: 0.6064812905 | M406: Have television | O406: 0.6124887781
C407: Has dirt floor | E407: 0.5123136247 | H407: Have radio | J407: 0.3749034738 | M407: Has dirt floor | O407: 0.5415317365
C408: Has bamboo floor | E408: -0.4219599953 | H408: Has dirt floor | J408: 0.3610685491 | M408: Have car or truck | O408: 0.5024472495
C409: Have radio | E409: 0.3950499405 | H409: Household fuel type: electricity | J409: 0.3273875106 | M409: Have Bicycle | O409: 0.4195924997
C410: Have car or truck | E410: 0.3850279059 | H410: Has bamboo floor | J410: -0.2984364847 | M410: Have motorcycle or scooter | O410: 0.3606487892
C411: Have Bicycle | E411: 0.262199853 | H411: Have car or truck | J411: 0.2753407875 | M411: Has earth/sand floor | O411: -0.347482762
C412: Have Electricity | E412: 0.2514003694 | H412: Household fuel type: charcoal | J412: 0.253106019 | M412: Have radio | O412: 0.3370106067
C413: Persons per sleeping rooms | E413: -0.1689534908 | H413: Have Bicycle | J413: 0.1951165284 | M413: Have Electricity | O413: 0.2895492357
C414: Household fuel type: charcoal | E414: 0.1658454276 | H414: Have Electricity | J414: 0.1854876019 | M414: Has bamboo floor | O414: -0.1378735146
C415: Have motorcycle or scooter | E415: 0.1316996262 | H415: Has earth/sand floor | J415: 0.1646151203 | M415: Household fuel type: electricity | O415: -0.0438223996
C416: Has wood floor | E416: 0.1124928662 | H416: Has wood floor | J416: 0.1531817689 | M416: Household fuel type: charcoal | O416: 0.04138499089
... 107 more rows

Sheet DHS05
A2: =A1026 -> Republic of Moldova
A3: =A1034 -> 2005
A4: Use of drinking water sources
A5: by wealth quintile and sub-national region
A6: Notes:
A7: WHO/UNICEF JMP customised wealth index excludes water,
A8: sanitation and hygiene assets.
A9: Survey used for analysis: | B9: =A1025 -> DHS05
A10: =B1028 -> 
A11: =B1027 -> Time to improved source based on: | B11: MICS00
A14: Use of drinking water sources | C14: NATIONAL wealth index quintile | H14: URBAN wealth index quintile | M14: RURAL wealth index quintile | R14: SUB-REGIONS: | BA14: Raw numbers of respondents: | BB14: Use of drinking water sources | BC14: NATIONAL wealth index quintile | BH14: URBAN wealth index quintile | BM14: RURAL wealth index quintile | BR14: SUB-REGIONS:
A15: Weighted percentage (used in graphs) | C15: Poorest | D15: Poor | E15: Middle | F15: Rich | G15: Richest | H15: Poorest | I15: Poor | J15: Middle | K15: Rich | L15: Richest | M15: Poorest | N15: Poor | O15: Middle | P15: Rich | Q15: Richest | R15: Center | S15: Chisinau | T15: North | U15: South | BA15: Water data, raw numbers (weighted) | BC15: Poorest | BD15: Poor | BE15: Middle | BF15: Rich | BG15: Richest | BH15: Poorest | BI15: Poor | BJ15: Middle | BK15: Rich | BL15: Richest | BM15: Poorest | BN15: Poor | BO15: Middle | BP15: Rich | BQ15: Richest | BR15: Center | BS15: Chisinau | BT15: North | BU15: South
A16: Water | B16: Improved | C16: 86.48407096 | D16: 91.24016493 | E16: 93.17046098 | F16: 95.37488416 | G16: 99.26683839 | H16: 95.16700626 | I16: 98.20646251 | J16: 99.70675943 | K16: 99.44361178 | L16: 99.3595041 | M16: 84.12417532 | N16: 90.09859274 | O16: 91.06012542 | P16: 91.59318156 | Q16: 92.00083641 | R16: 86.5461152 | S16: 98.85583986 | T16: 95.4031276 | U16: 92.29651739 | BA16: Water | BB16: Improved | BC16: N/A | BD16: N/A | BE16: N/A | BF16: N/A | BG16: N/A | BH16: N/A | BI16: N/A | BJ16: N/A | BK16: N/A | BL16: N/A | BM16: N/A | BN16: N/A | BO16: N/A | BP16: N/A | BQ16: N/A | BR16: N/A | BS16: N/A | BT16: N/A | BU16: N/A
B17: Not Improved | C17: 13.51592904 | D17: 8.759835069 | E17: 6.829539017 | F17: 4.625115844 | G17: 0.7331616065 | H17: 4.832993737 | I17: 1.793537494 | J17: 0.2932405676 | K17: 0.5563882214 | L17: 0.6404958963 | M17: 15.87582468 | N17: 9.901407256 | O17: 8.939874584 | P17: 8.40681844 | Q17: 7.999163591 | R17: 13.4538848 | S17: 1.144160142 | T17: 4.596872402 | U17: 7.703482609 | BB17: Not Improved | BC17: N/A | BD17: N/A | BE17: N/A | BF17: N/A | BG17: N/A | BH17: N/A | BI17: N/A | BJ17: N/A | BK17: N/A | BL17: N/A | BM17: N/A | BN17: N/A | BO17: N/A | BP17: N/A | BQ17: N/A | BR17: N/A | BS17: N/A | BT17: N/A | BU17: N/A
A18: Water ladder | B18: Basic | C18: =C16*MICS00!C23/100 -> 84.46639567 | D18: =D16*MICS00!D23/100 -> 88.92893171 | E18: =E16*MICS00!E23/100 -> 91.61824969 | F18: =F16*MICS00!F23/100 -> 93.96207846 | G18: =G16*MICS00!G23/100 -> 98.52641093 | H18: =H16*MICS00!H23/100 -> 93.40421379 | I18: =I16*MICS00!I23/100 -> 96.24216013 | J18: =J16*MICS00!J23/100 -> 98.64436318 | K18: =K16*MICS00!K23/100 -> 97.97453939 | L18: =L16*MICS00!L23/100 -> 99.26937485 | M18: =M16*MICS00!M23/100 -> 81.94040452 | N18: =N16*MICS00!N23/100 -> 88.05934904 | O18: =O16*MICS00!O23/100 -> 88.73137658 | P18: =P16*MICS00!P23/100 -> 89.7731602 | Q18: =Q16*MICS00!Q23/100 -> 91.15074468 | R18: N/A | S18: N/A | T18: N/A | U18: N/A | BA18: Water ladder | BB18: Basic | BC18: N/A | BD18: N/A | BE18: N/A | BF18: N/A | BG18: N/A | BH18: N/A | BI18: N/A | BJ18: N/A | BK18: N/A | BL18: N/A | BM18: N/A | BN18: N/A | BO18: N/A | BP18: N/A | BQ18: N/A | BR18: N/A | BS18: N/A | BT18: N/A | BU18: N/A
B19: Limited | C19: =C16*MICS00!C22/100 -> 2.017675293 | D19: =D16*MICS00!D22/100 -> 2.311233222 | E19: =E16*MICS00!E22/100 -> 1.552211298 | F19: =F16*MICS00!F22/100 -> 1.4128057 | G19: =G16*MICS00!G22/100 -> 0.7404274588 | H19: =H16*MICS00!H22/100 -> 1.76279247 | I19: =I16*MICS00!I22/100 -> 1.964302372 | J19: =J16*MICS00!J22/100 -> 1.062396252 | K19: =K16*MICS00!K22/100 -> 1.469072391 | L19: =L16*MICS00!L22/100 -> 0.09012925621 | M19: =M16*MICS00!M22/100 -> 2.183770807 | N19: =N16*MICS00!N22/100 -> 2.039243704 | O19: =O16*MICS00!O22/100 -> 2.328748836 | P19: =P16*MICS00!P22/100 -> 1.820021359 | Q19: =Q16*MICS00!Q22/100 -> 0.8500917266 | R19: N/A | S19: N/A | T19: N/A | U19: N/A | BB19: Limited | BC19: N/A | BD19: N/A | BE19: N/A | BF19: N/A | BG19: N/A | BH19: N/A | BI19: N/A | BJ19: N/A | BK19: N/A | BL19: N/A | BM19: N/A | BN19: N/A | BO19: N/A | BP19: N/A | BQ19: N/A | BR19: N/A | BS19: N/A | BT19: N/A | BU19: N/A
B20: Unimproved | C20: =100-(C18+C19+C21) -> 13.51592904 | D20: =100-(D18+D19+D21) -> 8.759835069 | E20: 6.829539017 | F20: 4.625115844 | G20: 0.7331616065 | H20: 4.832993737 | I20: 1.793537494 | J20: 0.2932405676 | K20: 0.5563882214 | L20: 0.6404958963 | M20: 15.87582468 | N20: 9.901407256 | O20: 8.939874584 | P20: 8.40681844 | Q20: 7.999163591 | R20: N/A | S20: N/A | T20: N/A | U20: N/A | BB20: Unimproved | BC20: N/A | BD20: N/A | BE20: N/A | BF20: N/A | BG20: N/A | BH20: N/A | BI20: N/A | BJ20: N/A | BK20: N/A | BL20: N/A | BM20: N/A | BN20: N/A | BO20: N/A | BP20: N/A | BQ20: N/A | BR20: N/A | BS20: N/A | BT20: N/A | BU20: N/A
B21: Surface water | C21: =0 -> 0 | D21: =0 -> 0 | E21: =0 -> 0 | F21: =0 -> 0 | G21: =0 -> 0 | H21: =0 -> 0 | I21: =0 -> 0 | J21: =0 -> 0 | K21: =0 -> 0 | L21: =0 -> 0 | M21: =0 -> 0 | N21: =0 -> 0 | O21: =0 -> 0 | P21: =0 -> 0 | Q21: =0 -> 0 | R21: N/A | S21: N/A | T21: N/A | U21: N/A | BB21: Surface water | BC21: N/A | BD21: N/A | BE21: N/A | BF21: N/A | BG21: N/A | BH21: N/A | BI21: N/A | BJ21: N/A | BK21: N/A | BL21: N/A | BM21: N/A | BN21: N/A | BO21: N/A | BP21: N/A | BQ21: N/A | BR21: N/A | BS21: N/A | BT21: N/A | BU21: N/A
A22: Improved water point at more than 30 minutes | B22: Yes | C22: N/A | D22: N/A | E22: N/A | F22: N/A | G22: N/A | H22: N/A | I22: N/A | J22: N/A | K22: N/A | L22: N/A | M22: N/A | N22: N/A | O22: N/A | P22: N/A | Q22: N/A | R22: N/A | S22: N/A | T22: N/A | U22: N/A | BA22: Improved water point at more than 30 minutes | BB22: Yes | BC22: N/A | BD22: N/A | BE22: N/A | BF22: N/A | BG22: N/A | BH22: N/A | BI22: N/A | BJ22: N/A | BK22: N/A | BL22: N/A | BM22: N/A | BN22: N/A | BO22: N/A | BP22: N/A | BQ22: N/A | BR22: N/A | BS22: N/A | BT22: N/A | BU22: N/A
B23: No | C23: N/A | D23: N/A | E23: N/A | F23: N/A | G23: N/A | H23: N/A | I23: N/A | J23: N/A | K23: N/A | L23: N/A | M23: N/A | N23: N/A | O23: N/A | P23: N/A | Q23: N/A | R23: N/A | S23: N/A | T23: N/A | U23: N/A | BB23: No | BC23: N/A | BD23: N/A | BE23: N/A | BF23: N/A | BG23: N/A | BH23: N/A | BI23: N/A | BJ23: N/A | BK23: N/A | BL23: N/A | BM23: N/A | BN23: N/A | BO23: N/A | BP23: N/A | BQ23: N/A | BR23: N/A | BS23: N/A | BT23: N/A | BU23: N/A
A24: Manually calculated ratios | B24: Improved wells
B25: Improved springs
B26: Other
C27: NATIONAL wealth index quintile | H27: URBAN wealth index quintile | M27: RURAL wealth index quintile | R27: SUB-REGIONS: | BA27: Raw numbers of respondents: | BB27: Use of drinking water sources | BC27: NATIONAL wealth index quintile | BH27: URBAN wealth index quintile | BM27: RURAL wealth index quintile | BR27: SUB-REGIONS:
A28: Percentage based on weighted population | C28: Poorest | D28: Poor | E28: Middle | F28: Rich | G28: Richest | H28: Poorest | I28: Poor | J28: Middle | K28: Rich | L28: Richest | M28: Poorest | N28: Poor | O28: Middle | P28: Rich | Q28: Richest | R28: Center | S28: Chisinau | T28: North | U28: South | BA28: Water data, raw numbers (weighted) | BC28: Poorest | BD28: Poor | BE28: Middle | BF28: Rich | BG28: Richest | BH28: Poorest | BI28: Poor | BJ28: Middle | BK28: Rich | BL28: Richest | BM28: Poorest | BN28: Poor | BO28: Middle | BP28: Rich | BQ28: Richest | BR28: Center | BS28: Chisinau | BT28: North | BU28: South
A29: Piped water | B29: Yes | C29: 7.336504264 | D29: 13.62333995 | E29: 23.19284116 | F29: 51.10680476 | G29: 84.32506967 | H29: 39.57695057 | I29: 67.53944575 | J29: 85.22191335 | K29: 87.50934252 | L29: 86.47223781 | M29: 5.832694705 | N29: 8.550779749 | O29: 12.51917595 | P29: 16.79475766 | Q29: 17.84816087 | R29: 19.62562438 | S29: 87.73965832 | T29: 19.95260902 | U29: 26.56265951 | BA29: Piped water | BB29: Yes | BC29: N/A | BD29: N/A | BE29: N/A | BF29: N/A | BG29: N/A | BH29: N/A | BI29: N/A | BJ29: N/A | BK29: N/A | BL29: N/A | BM29: N/A | BN29: N/A | BO29: N/A | BP29: N/A | BQ29: N/A | BR29: N/A | BS29: N/A | BT29: N/A | BU29: N/A
B30: No | C30: 92.66349574 | D30: 86.37666005 | E30: 76.80715884 | F30: 48.89319524 | G30: 15.67493033 | H30: 60.42304943 | I30: 32.46055425 | J30: 14.77808665 | K30: 12.49065748 | L30: 13.52776219 | M30: 94.16730529 | N30: 91.44922025 | O30: 87.48082405 | P30: 83.20524234 | Q30: 82.15183913 | R30: 80.37437562 | S30: 12.26034168 | T30: 80.04739098 | U30: 73.43734049 | BB30: No | BC30: N/A | BD30: N/A | BE30: N/A | BF30: N/A | BG30: N/A | BH30: N/A | BI30: N/A | BJ30: N/A | BK30: N/A | BL30: N/A | BM30: N/A | BN30: N/A | BO30: N/A | BP30: N/A | BQ30: N/A | BR30: N/A | BS30: N/A | BT30: N/A | BU30: N/A
A31: Piped water on premises | B31: Yes | C31: 6.363524834 | D31: 12.6699244 | E31: 22.10886133 | F31: 50.28061026 | G31: 84.1011163 | H31: 38.01319577 | I31: 66.08299476 | J31: 84.96364642 | K31: 87.33545063 | L31: 86.18228192 | M31: 4.442284287 | N31: 8.060397994 | O31: 11.47987808 | P31: 16.02315875 | Q31: 17.27686605 | R31: 18.74738996 | S31: 87.43424289 | T31: 19.61018321 | U31: 24.55044008 | BA31: Piped water on premises | BB31: Yes | BC31: N/A | BD31: N/A | BE31: N/A | BF31: N/A | BG31: N/A | BH31: N/A | BI31: N/A | BJ31: N/A | BK31: N/A | BL31: N/A | BM31: N/A | BN31: N/A | BO31: N/A | BP31: N/A | BQ31: N/A | BR31: N/A | BS31: N/A | BT31: N/A | BU31: N/A
B32: No | C32: 93.63647517 | D32: 87.3300756 | E32: 77.89113867 | F32: 49.71938974 | G32: 15.8988837 | H32: 61.98680423 | I32: 33.91700524 | J32: 15.03635358 | K32: 12.66454937 | L32: 13.81771808 | M32: 95.55771571 | N32: 91.93960201 | O32: 88.52012192 | P32: 83.97684125 | Q32: 82.72313395 | R32: 81.25261004 | S32: 12.56575711 | T32: 80.38981679 | U32: 75.44955992 | BB32: No | BC32: N/A | BD32: N/A | BE32: N/A | BF32: N/A | BG32: N/A | BH32: N/A | BI32: N/A | BJ32: N/A | BK32: N/A | BL32: N/A | BM32: N/A | BN32: N/A | BO32: N/A | BP32: N/A | BQ32: N/A | BR32: N/A | BS32: N/A | BT32: N/A | BU32: N/A
A33: Piped water into dwelling | B33: Yes | C33: N/A | D33: N/A | E33: N/A | F33: N/A | G33: N/A | H33: N/A | I33: N/A | J33: N/A | K33: N/A | L33: N/A | M33: N/A | N33: N/A | O33: N/A | P33: N/A | Q33: N/A | R33: N/A | S33: N/A | T33: N/A | U33: N/A | BA33: Piped water into dwelling | BB33: Yes | BC33: N/A | BD33: N/A | BE33: N/A | BF33: N/A | BG33: N/A | BH33: N/A | BI33: N/A | BJ33: N/A | BK33: N/A | BL33: N/A | BM33: N/A | BN33: N/A | BO33: N/A | BP33: N/A | BQ33: N/A | BR33: N/A | BS33: N/A | BT33: N/A | BU33: N/A
B34: No | C34: N/A | D34: N/A | E34: N/A | F34: N/A | G34: N/A | H34: N/A | I34: N/A | J34: N/A | K34: N/A | L34: N/A | M34: N/A | N34: N/A | O34: N/A | P34: N/A | Q34: N/A | R34: N/A | S34: N/A | T34: N/A | U34: N/A | BB34: No | BC34: N/A | BD34: N/A | BE34: N/A | BF34: N/A | BG34: N/A | BH34: N/A | BI34: N/A | BJ34: N/A | BK34: N/A | BL34: N/A | BM34: N/A | BN34: N/A | BO34: N/A | BP34: N/A | BQ34: N/A | BR34: N/A | BS34: N/A | BT34: N/A | BU34: N/A
A35: Water source on premises | B35: Yes | C35: N/A | D35: N/A | E35: N/A | F35: N/A | G35: N/A | H35: N/A | I35: N/A | J35: N/A | K35: N/A | L35: N/A | M35: N/A | N35: N/A | O35: N/A | P35: N/A | Q35: N/A | R35: N/A | S35: N/A | T35: N/A | U35: N/A | BA35: Water source on premises | BB35: Yes | BC35: N/A | BD35: N/A | BE35: N/A | BF35: N/A | BG35: N/A | BH35: N/A | BI35: N/A | BJ35: N/A | BK35: N/A | BL35: N/A | BM35: N/A | BN35: N/A | BO35: N/A | BP35: N/A | BQ35: N/A | BR35: N/A | BS35: N/A | BT35: N/A | BU35: N/A
B36: No | C36: N/A | D36: N/A | E36: N/A | F36: N/A | G36: N/A | H36: N/A | I36: N/A | J36: N/A | K36: N/A | L36: N/A | M36: N/A | N36: N/A | O36: N/A | P36: N/A | Q36: N/A | R36: N/A | S36: N/A | T36: N/A | U36: N/A | BB36: No | BC36: N/A | BD36: N/A | BE36: N/A | BF36: N/A | BG36: N/A | BH36: N/A | BI36: N/A | BJ36: N/A | BK36: N/A | BL36: N/A | BM36: N/A | BN36: N/A | BO36: N/A | BP36: N/A | BQ36: N/A | BR36: N/A | BS36: N/A | BT36: N/A | BU36: N/A
A37: Improved Water source on premises | B37: Yes | C37: N/A | D37: N/A | E37: N/A | F37: N/A | G37: N/A | H37: N/A | I37: N/A | J37: N/A | K37: N/A | L37: N/A | M37: N/A | N37: N/A | O37: N/A | P37: N/A | Q37: N/A | R37: N/A | S37: N/A | T37: N/A | U37: N/A | BA37: Improved water source on premises | BB37: Yes | BC37: N/A | BD37: N/A | BE37: N/A | BF37: N/A | BG37: N/A | BH37: N/A | BI37: N/A | BJ37: N/A | BK37: N/A | BL37: N/A | BM37: N/A | BN37: N/A | BO37: N/A | BP37: N/A | BQ37: N/A | BR37: N/A | BS37: N/A | BT37: N/A | BU37: N/A
B38: No | C38: N/A | D38: N/A | E38: N/A | F38: N/A | G38: N/A | H38: N/A | I38: N/A | J38: N/A | K38: N/A | L38: N/A | M38: N/A | N38: N/A | O38: N/A | P38: N/A | Q38: N/A | R38: N/A | S38: N/A | T38: N/A | U38: N/A | BB38: No | BC38: N/A | BD38: N/A | BE38: N/A | BF38: N/A | BG38: N/A | BH38: N/A | BI38: N/A | BJ38: N/A | BK38: N/A | BL38: N/A | BM38: N/A | BN38: N/A | BO38: N/A | BP38: N/A | BQ38: N/A | BR38: N/A | BS38: N/A | BT38: N/A | BU38: N/A
A39: Piped water on premises available when needed | B39: Yes | C39: N/A | D39: N/A | E39: N/A | F39: N/A | G39: N/A | H39: N/A | I39: N/A | J39: N/A | K39: N/A | L39: N/A | M39: N/A | N39: N/A | O39: N/A | P39: N/A | Q39: N/A | R39: N/A | S39: N/A | T39: N/A | U39: N/A | BA39: Piped water on premises available when needed | BB39: Yes | BC39: N/A | BD39: N/A | BE39: N/A | BF39: N/A | BG39: N/A | BH39: N/A | BI39: N/A | BJ39: N/A | BK39: N/A | BL39: N/A | BM39: N/A | BN39: N/A | BO39: N/A | BP39: N/A | BQ39: N/A | BR39: N/A | BS39: N/A | BT39: N/A | BU39: N/A
B40: No | C40: N/A | D40: N/A | E40: N/A | F40: N/A | G40: N/A | H40: N/A | I40: N/A | J40: N/A | K40: N/A | L40: N/A | M40: N/A | N40: N/A | O40: N/A | P40: N/A | Q40: N/A | R40: N/A | S40: N/A | T40: N/A | U40: N/A | BB40: No | BC40: N/A | BD40: N/A | BE40: N/A | BF40: N/A | BG40: N/A | BH40: N/A | BI40: N/A | BJ40: N/A | BK40: N/A | BL40: N/A | BM40: N/A | BN40: N/A | BO40: N/A | BP40: N/A | BQ40: N/A | BR40: N/A | BS40: N/A | BT40: N/A | BU40: N/A
A41: Water point at more than 30 minutes | B41: Yes | C41: N/A | D41: N/A | E41: N/A | F41: N/A | G41: N/A | H41: N/A | I41: N/A | J41: N/A | K41: N/A | L41: N/A | M41: N/A | N41: N/A | O41: N/A | P41: N/A | Q41: N/A | R41: N/A | S41: N/A | T41: N/A | U41: N/A | BA41: Water point at more than 30 minutes | BB41: Yes | BC41: N/A | BD41: N/A | BE41: N/A | BF41: N/A | BG41: N/A | BH41: N/A | BI41: N/A | BJ41: N/A | BK41: N/A | BL41: N/A | BM41: N/A | BN41: N/A | BO41: N/A | BP41: N/A | BQ41: N/A | BR41: N/A | BS41: N/A | BT41: N/A | BU41: N/A
B42: No | C42: N/A | D42: N/A | E42: N/A | F42: N/A | G42: N/A | H42: N/A | I42: N/A | J42: N/A | K42: N/A | L42: N/A | M42: N/A | N42: N/A | O42: N/A | P42: N/A | Q42: N/A | R42: N/A | S42: N/A | T42: N/A | U42: N/A | BB42: No | BC42: N/A | BD42: N/A | BE42: N/A | BF42: N/A | BG42: N/A | BH42: N/A | BI42: N/A | BJ42: N/A | BK42: N/A | BL42: N/A | BM42: N/A | BN42: N/A | BO42: N/A | BP42: N/A | BQ42: N/A | BR42: N/A | BS42: N/A | BT42: N/A | BU42: N/A
A43: Water source available when needed | B43: Yes | C43: N/A | D43: N/A | E43: N/A | F43: N/A | G43: N/A | H43: N/A | I43: N/A | J43: N/A | K43: N/A | L43: N/A | M43: N/A | N43: N/A | O43: N/A | P43: N/A | Q43: N/A | R43: N/A | S43: N/A | T43: N/A | U43: N/A | BA43: Water source available when needed | BB43: Yes | BC43: N/A | BD43: N/A | BE43: N/A | BF43: N/A | BG43: N/A | BH43: N/A | BI43: N/A | BJ43: N/A | BK43: N/A | BL43: N/A | BM43: N/A | BN43: N/A | BO43: N/A | BP43: N/A | BQ43: N/A | BR43: N/A | BS43: N/A | BT43: N/A | BU43: N/A
B44: No | C44: N/A | D44: N/A | E44: N/A | F44: N/A | G44: N/A | H44: N/A | I44: N/A | J44: N/A | K44: N/A | L44: N/A | M44: N/A | N44: N/A | O44: N/A | P44: N/A | Q44: N/A | R44: N/A | S44: N/A | T44: N/A | U44: N/A | BB44: No | BC44: N/A | BD44: N/A | BE44: N/A | BF44: N/A | BG44: N/A | BH44: N/A | BI44: N/A | BJ44: N/A | BK44: N/A | BL44: N/A | BM44: N/A | BN44: N/A | BO44: N/A | BP44: N/A | BQ44: N/A | BR44: N/A | BS44: N/A | BT44: N/A | BU44: N/A
A45: Improved water source available when needed | B45: Yes | C45: N/A | D45: N/A | E45: N/A | F45: N/A | G45: N/A | H45: N/A | I45: N/A | J45: N/A | K45: N/A | L45: N/A | M45: N/A | N45: N/A | O45: N/A | P45: N/A | Q45: N/A | R45: N/A | S45: N/A | T45: N/A | U45: N/A | BA45: Improved water source available when needed | BB45: Yes | BC45: N/A | BD45: N/A | BE45: N/A | BF45: N/A | BG45: N/A | BH45: N/A | BI45: N/A | BJ45: N/A | BK45: N/A | BL45: N/A | BM45: N/A | BN45: N/A | BO45: N/A | BP45: N/A | BQ45: N/A | BR45: N/A | BS45: N/A | BT45: N/A | BU45: N/A
B46: No | C46: N/A | D46: N/A | E46: N/A | F46: N/A | G46: N/A | H46: N/A | I46: N/A | J46: N/A | K46: N/A | L46: N/A | M46: N/A | N46: N/A | O46: N/A | P46: N/A | Q46: N/A | R46: N/A | S46: N/A | T46: N/A | U46: N/A | BB46: No | BC46: N/A | BD46: N/A | BE46: N/A | BF46: N/A | BG46: N/A | BH46: N/A | BI46: N/A | BJ46: N/A | BK46: N/A | BL46: N/A | BM46: N/A | BN46: N/A | BO46: N/A | BP46: N/A | BQ46: N/A | BR46: N/A | BS46: N/A | BT46: N/A | BU46: N/A
A47: Microbiological quality at point of collection | B47: Not contaminated (No E. coli in 100 mL) | C47: N/A | D47: N/A | E47: N/A | F47: N/A | G47: N/A | H47: N/A | I47: N/A | J47: N/A | K47: N/A | L47: N/A | M47: N/A | N47: N/A | O47: N/A | P47: N/A | Q47: N/A | R47: N/A | S47: N/A | T47: N/A | U47: N/A | BA47: Microbiological quality at point of collection | BB47: Not contaminated (No E. coli in 100 mL) | BC47: N/A | BD47: N/A | BE47: N/A | BF47: N/A | BG47: N/A | BH47: N/A | BI47: N/A | BJ47: N/A | BK47: N/A | BL47: N/A | BM47: N/A | BN47: N/A | BO47: N/A | BP47: N/A | BQ47: N/A | BR47: N/A | BS47: N/A | BT47: N/A | BU47: N/A
B48: Contaminated (E. coli detected in 100 mL) | C48: N/A | D48: N/A | E48: N/A | F48: N/A | G48: N/A | H48: N/A | I48: N/A | J48: N/A | K48: N/A | L48: N/A | M48: N/A | N48: N/A | O48: N/A | P48: N/A | Q48: N/A | R48: N/A | S48: N/A | T48: N/A | U48: N/A | BB48: Contaminated (E. coli detected in 100 mL) | BC48: N/A | BD48: N/A | BE48: N/A | BF48: N/A | BG48: N/A | BH48: N/A | BI48: N/A | BJ48: N/A | BK48: N/A | BL48: N/A | BM48: N/A | BN48: N/A | BO48: N/A | BP48: N/A | BQ48: N/A | BR48: N/A | BS48: N/A | BT48: N/A | BU48: N/A
B49: Highly contaminated (>100 CFU/100 mL) | C49: N/A | D49: N/A | E49: N/A | F49: N/A | G49: N/A | H49: N/A | I49: N/A | J49: N/A | K49: N/A | L49: N/A | M49: N/A | N49: N/A | O49: N/A | P49: N/A | Q49: N/A | R49: N/A | S49: N/A | T49: N/A | U49: N/A | BB49: Highly contaminated (>100 CFU/100 mL) | BC49: N/A | BD49: N/A | BE49: N/A | BF49: N/A | BG49: N/A | BH49: N/A | BI49: N/A | BJ49: N/A | BK49: N/A | BL49: N/A | BM49: N/A | BN49: N/A | BO49: N/A | BP49: N/A | BQ49: N/A | BR49: N/A | BS49: N/A | BT49: N/A | BU49: N/A
A50: Microbiological quality of improved water sources at point of collection | B50: Not contaminated (No E. coli in 100 mL) | C50: N/A | D50: N/A | E50: N/A | F50: N/A | G50: N/A | H50: N/A | I50: N/A | J50: N/A | K50: N/A | L50: N/A | M50: N/A | N50: N/A | O50: N/A | P50: N/A | Q50: N/A | R50: N/A | S50: N/A | T50: N/A | U50: N/A | BA50: Microbiological quality of improved water sources at point of collection | BB50: Not contaminated (No E. coli in 100 mL) | BC50: N/A | BD50: N/A | BE50: N/A | BF50: N/A | BG50: N/A | BH50: N/A | BI50: N/A | BJ50: N/A | BK50: N/A | BL50: N/A | BM50: N/A | BN50: N/A | BO50: N/A | BP50: N/A | BQ50: N/A | BR50: N/A | BS50: N/A | BT50: N/A | BU50: N/A
B51: Contaminated (E. coli detected in 100 mL) | C51: N/A | D51: N/A | E51: N/A | F51: N/A | G51: N/A | H51: N/A | I51: N/A | J51: N/A | K51: N/A | L51: N/A | M51: N/A | N51: N/A | O51: N/A | P51: N/A | Q51: N/A | R51: N/A | S51: N/A | T51: N/A | U51: N/A | BB51: Contaminated (E. coli detected in 100 mL) | BC51: N/A | BD51: N/A | BE51: N/A | BF51: N/A | BG51: N/A | BH51: N/A | BI51: N/A | BJ51: N/A | BK51: N/A | BL51: N/A | BM51: N/A | BN51: N/A | BO51: N/A | BP51: N/A | BQ51: N/A | BR51: N/A | BS51: N/A | BT51: N/A | BU51: N/A
B52: Highly contaminated (>100 CFU/100 mL) | C52: N/A | D52: N/A | E52: N/A | F52: N/A | G52: N/A | H52: N/A | I52: N/A | J52: N/A | K52: N/A | L52: N/A | M52: N/A | N52: N/A | O52: N/A | P52: N/A | Q52: N/A | R52: N/A | S52: N/A | T52: N/A | U52: N/A | BB52: Highly contaminated (>100 CFU/100 mL) | BC52: N/A | BD52: N/A | BE52: N/A | BF52: N/A | BG52: N/A | BH52: N/A | BI52: N/A | BJ52: N/A | BK52: N/A | BL52: N/A | BM52: N/A | BN52: N/A | BO52: N/A | BP52: N/A | BQ52: N/A | BR52: N/A | BS52: N/A | BT52: N/A | BU52: N/A
A53: Microbiological quality of piped on premises at point of collection | B53: Not contaminated (No E. coli in 100 mL) | C53: N/A | D53: N/A | E53: N/A | F53: N/A | G53: N/A | H53: N/A | I53: N/A | J53: N/A | K53: N/A | L53: N/A | M53: N/A | N53: N/A | O53: N/A | P53: N/A | Q53: N/A | R53: N/A | S53: N/A | T53: N/A | U53: N/A | BA53: Microbiological quality of piped on premises at point of collection | BB53: Not contaminated (No E. coli in 100 mL) | BC53: N/A | BD53: N/A | BE53: N/A | BF53: N/A | BG53: N/A | BH53: N/A | BI53: N/A | BJ53: N/A | BK53: N/A | BL53: N/A | BM53: N/A | BN53: N/A | BO53: N/A | BP53: N/A | BQ53: N/A | BR53: N/A | BS53: N/A | BT53: N/A | BU53: N/A
B54: Contaminated (E. coli detected in 100 mL) | C54: N/A | D54: N/A | E54: N/A | F54: N/A | G54: N/A | H54: N/A | I54: N/A | J54: N/A | K54: N/A | L54: N/A | M54: N/A | N54: N/A | O54: N/A | P54: N/A | Q54: N/A | R54: N/A | S54: N/A | T54: N/A | U54: N/A | BB54: Contaminated (E. coli detected in 100 mL) | BC54: N/A | BD54: N/A | BE54: N/A | BF54: N/A | BG54: N/A | BH54: N/A | BI54: N/A | BJ54: N/A | BK54: N/A | BL54: N/A | BM54: N/A | BN54: N/A | BO54: N/A | BP54: N/A | BQ54: N/A | BR54: N/A | BS54: N/A | BT54: N/A | BU54: N/A
B55: Highly contaminated (>100 CFU/100 mL) | C55: N/A | D55: N/A | E55: N/A | F55: N/A | G55: N/A | H55: N/A | I55: N/A | J55: N/A | K55: N/A | L55: N/A | M55: N/A | N55: N/A | O55: N/A | P55: N/A | Q55: N/A | R55: N/A | S55: N/A | T55: N/A | U55: N/A | BB55: Highly contaminated (>100 CFU/100 mL) | BC55: N/A | BD55: N/A | BE55: N/A | BF55: N/A | BG55: N/A | BH55: N/A | BI55: N/A | BJ55: N/A | BK55: N/A | BL55: N/A | BM55: N/A | BN55: N/A | BO55: N/A | BP55: N/A | BQ55: N/A | BR55: N/A | BS55: N/A | BT55: N/A | BU55: N/A
C56: NATIONAL wealth index quintile | H56: URBAN wealth index quintile | M56: RURAL wealth index quintile | R56: SUB-REGIONS: | BA56: Raw numbers of respondents: | BB56: Use of drinking water sources | BC56: NATIONAL wealth index quintile | BH56: URBAN wealth index quintile | BM56: RURAL wealth index quintile | BR56: SUB-REGIONS:
A57: Percentage based on weighted population | C57: Poorest | D57: Poor | E57: Middle | F57: Rich | G57: Richest | H57: Poorest | I57: Poor | J57: Middle | K57: Rich | L57: Richest | M57: Poorest | N57: Poor | O57: Middle | P57: Rich | Q57: Richest | R57: Center | S57: Chisinau | T57: North | U57: South | BA57: Water data, raw numbers (weighted) | BC57: Poorest | BD57: Poor | BE57: Middle | BF57: Rich | BG57: Richest | BH57: Poorest | BI57: Poor | BJ57: Middle | BK57: Rich | BL57: Richest | BM57: Poorest | BN57: Poor | BO57: Middle | BP57: Rich | BQ57: Richest | BR57: Center | BS57: Chisinau | BT57: North | BU57: South
A58: Source of drinking water | B58: Piped into dwelling | C58: 1.178537777 | D58: 4.143505359 | E58: 11.44291669 | F58: 42.99613134 | G58: 83.69447844 | H58: 18.86315294 | I58: 55.69090509 | J58: 83.3908245 | K58: 87.23702202 | L58: 86.40445725 | M58: 0.2528054282 | N58: 1.762535505 | O58: 4.442221781 | P58: 7.700072742 | Q58: 10.38704319 | R58: 12.23954455 | S58: 84.20343943 | T58: 14.26286011 | U58: 13.12396779
B59: Piped to yard/plot | C59: 5.195523272 | D59: 8.526419041 | E59: 10.6743746 | F59: 7.284478917 | G59: 0.5490111359 | H59: 19.18748525 | I59: 10.39208967 | J59: 1.572821919 | K59: 0.2220171394 | L59: 0.03293094825 | M59: 4.201507911 | N59: 6.297862489 | O59: 7.037656302 | P59: 8.323086011 | Q59: 6.889822861 | R59: 6.507845409 | S59: 3.366881089 | T59: 5.358047191 | U59: 11.45596246
B60: Public tap/standpipe | C60: 0.9745904108 | D60: 0.9534155538 | E60: 1.084393144 | F60: 0.8261945052 | G60: 0.2243324972 | H60: 1.565295075 | I60: 1.456450996 | J60: 0.2582669371 | K60: 0.1741379688 | L60: 0.2908141837 | M60: 1.394175445 | N60: 0.4903817554 | O60: 1.039297871 | P60: 0.7715989074 | Q60: 0.5712948205 | R60: 0.8782344202 | S60: 0.3058907613 | T60: 0.3426130654 | U60: 2.014636523
B61: Artesian/tube well or borehole | C61: 1.504103708 | D61: 1.854267043 | E61: 1.782233462 | F61: 1.937481103 | G61: 0.269040094 | H61: 1.228470117 | I61: 0.7290487348 | J61: 0.1879815993 | K61: 0.3081721995 | L61: 0.05109970968 | M61: 0.999726999 | N61: 1.691040828 | O61: 2.53024075 | P61: 2.069469997 | Q61: 3.115004937 | R61: 2.457224811 | S61: 0.5267982064 | T61: 0.6601611253 | U61: 2.402312017
B62: Protected well | C62: 71.57505386 | D62: 69.70741003 | E62: 59.42186405 | F62: 36.51346811 | G62: 5.411157884 | H62: 47.49775871 | I62: 23.61217352 | J62: 7.411418891 | K62: 2.866482748 | L62: 2.098462556 | M62: 70.91021426 | N62: 73.8672774 | O62: 70.58152726 | P62: 63.64626436 | Q62: 64.19601668 | R62: 58.87382793 | S62: 4.147244965 | T62: 70.76092531 | U62: 48.10112214
B63: Ubprotected well | C63: 10.6060005 | D63: 6.618053904 | E63: 4.72210119 | F63: 2.255938519 | G63: 0.1818948637 | H63: 3.253173176 | I63: 0.9951490838 | J63: 0.1052589683 | K63: 0.1074932124 | L63: 0 | M63: 13.08053746 | N63: 7.640716325 | O63: 6.03005115 | P63: 6.006161746 | Q63: 4.22986793 | R63: 10.31459924 | S63: 0.3338268336 | T63: 3.664947681 | U63: 4.213126938
B64: Rainwater | C64: 0.04579288363 | D64: 0.06797706374 | E64: 0 | F64: 0.0481042292 | G64: 0 | H64: 0 | I64: 0.1242970952 | J64: 0 | K64: 0 | L64: 0 | M64: 0.07489213076 | N64: 0.1107599742 | O64: 0 | P64: 0 | Q64: 0 | R64: 0 | S64: 0 | T64: 0 | U64: 0.1636045833
B65: Tanker truck | C65: 0.1629853768 | D65: 0.4794806913 | E65: 1.182152923 | F65: 0.1574194844 | G65: 0 | H65: 0.544578415 | I65: 0.1004679764 | J65: 0.1737618591 | K65: 0 | L65: 0 | M65: 0.09458156461 | N65: 0.248203155 | O65: 0.6545483438 | P65: 1.295801332 | Q65: 0.4239805912 | R65: 0.249758771 | S65: 0.03880037177 | T65: 0 | U65: 1.614532467
B66: Cistern | C66: 2.267948635 | D66: 3.343258896 | E66: 4.339752861 | F66: 2.317209898 | G66: 0.2304633098 | H66: 3.802037466 | I66: 1.752151564 | J66: 0.4452483091 | K66: 0.1492581327 | L66: 0 | M66: 2.317730691 | N66: 2.847876076 | O66: 2.864194495 | P66: 4.93276745 | Q66: 3.549229018 | R66: 1.410693508 | S66: 0.06217261867 | T66: 0.03948315617 | U66: 10.54556783
B67: Cart with small tank | C67: 0.1234823236 | D67: 0.02200601685 | E67: 0.2123103671 | F67: 0.1698359777 | G67: 0 | H67: 0 | I67: 0 | J67: 0 | K67: 0 | L67: 0 | M67: 0.1117712571 | N67: 0.08975806707 | O67: 0.0359123208 | P67: 0.2989592432 | Q67: 0.3247319816 | R67: 0 | S67: 0 | T67: 0.1562358688 | U67: 0.2886909151
B68: Bottled water | C68: 0.06608055517 | D68: 0.374285606 | E68: 0.6656198239 | F68: 2.383118212 | G68: 8.386661643 | H68: 1.101578898 | I68: 2.775834138 | J68: 4.872664196 | K68: 8.206698551 | L68: 10.31040617 | M68: 0.1080716737 | N68: 0 | O68: 0.351086915 | P68: 0.1948143593 | Q68: 1.497037746 | R68: 1.605123587 | S68: 6.210735598 | T68: 1.267962679 | U68: 0.9601115314
B69: Protected spring | C69: 5.03726926 | D69: 3.622406678 | E69: 4.182601808 | F69: 2.678923482 | G69: 0.9387805373 | H69: 2.698857579 | I69: 2.302092462 | J69: 1.581752824 | K69: 0.7287180295 | L69: 0.5165448845 | M69: 4.886220849 | N69: 4.383938326 | O69: 4.05368013 | P69: 4.429817154 | Q69: 4.161679522 | R69: 4.781087027 | S69: 0.6745285722 | T69: 3.267172686 | U69: 4.139188421
B70: Unprotected spring | C70: 1.253586545 | D70: 0.2875141215 | E70: 0.2896790746 | F70: 0.4316962217 | G70: 0.1141795956 | H70: 0.2342779823 | I70: 0.06933967512 | J70: 0 | K70: 0 | L70: 0.2952842954 | M70: 1.567764325 | N70: 0.569650104 | O70: 0.379582684 | P70: 0.3311866968 | Q70: 0.6542907235 | R70: 0.682060755 | S70: 0.1296815576 | T70: 0.213758838 | U70: 0.9771763731
B71: Other | C71: 0.009044883079 | D71: 0 | E71: 0 | F71: 0 | G71: 0 | H71: 0.02333439041 | I71: 0 | J71: 0 | K71: 0 | L71: 0 | M71: 0 | N71: 0 | O71: 0 | P71: 0 | Q71: 0 | R71: 0 | S71: 0 | T71: 0.005832283021 | U71: 0
A108: =A1026 -> Republic of Moldova
A109: =A1034 -> 2005
A110: Use of sanitation facilities
A111: by wealth quintile and sub-national region
A112: Notes:
A113: WHO/UNICEF JMP customised wealth index excludes water,
A114: sanitation and hygiene assets.
A115: Survey used for analysis: | B115: =A1025 -> DHS05
A116: =B1030 -> 
A117: =B1029 -> 
A120: Use of sanitation facilities | C120: NATIONAL wealth index quintile | H120: URBAN wealth index quintile | M120: RURAL wealth index quintile | R120: SUB-REGIONS: | BA120: Raw numbers of respondents: | BB120: Use of sanitation facilities | BC120: NATIONAL wealth index quintile | BH120: URBAN wealth index quintile | BM120: RURAL wealth index quintile | BR120: SUB-REGIONS:
A121: Weighted percentage (used in graphs) | C121: Poorest | D121: Poor | E121: Middle | F121: Rich | G121: Richest | H121: Poorest | I121: Poor | J121: Middle | K121: Rich | L121: Richest | M121: Poorest | N121: Poor | O121: Middle | P121: Rich | Q121: Richest | R121: Center | S121: Chisinau | T121: North | U121: South | BA121: Sanitation data, raw numbers (weighted) | BC121: Poorest | BD121: Poor | BE121: Middle | BF121: Rich | BG121: Richest | BH121: Poorest | BI121: Poor | BJ121: Middle | BK121: Rich | BL121: Richest | BM121: Poorest | BN121: Poor | BO121: Middle | BP121: Rich | BQ121: Richest | BR121: Center | BS121: Chisinau | BT121: North | BU121: South
A122: Sanitation | B122: Improved | C122: 72.82056252 | D122: 76.68357671 | E122: 80.6960078 | F122: 88.2212103 | G122: 99.00930267 | H122: 72.24249469 | I122: 87.95534018 | J122: 98.26439172 | K122: 99.38807024 | L122: 99.93984066 | M122: 72.29280613 | N122: 77.06328912 | O122: 77.45545014 | P122: 81.43227137 | Q122: 83.67215668 | R122: 78.20415102 | S122: 97.2956394 | T122: 81.18605251 | U122: 79.23924134 | BA122: Sanitation | BB122: Improved | BC122: 4671.187958 | BD122: 4915.505499 | BE122: 5176.654254 | BF122: 5656.967424 | BG122: 6349.085644 | BH122: 1795.071009 | BI122: 2182.705585 | BJ122: 2442.101317 | BK122: 2468.712418 | BL122: 2481.252982 | BM122: 2838.481985 | BN122: 3031.746757 | BO122: 3042.396246 | BP122: 3199.009888 | BQ122: 3287.922592 | BR122: 6885.483539 | BS122: 6785.641244 | BT122: 8067.483106 | BU122: 5030.79289
B123: Not Improved | C123: 27.17943748 | D123: 23.31642329 | E123: 19.3039922 | F123: 11.7787897 | G123: 0.9906973287 | H123: 27.75750531 | I123: 12.04465982 | J123: 1.735608278 | K123: 0.6119297575 | L123: 0.06015934161 | M123: 27.70719387 | N123: 22.93671088 | O123: 22.54454986 | P123: 18.56772863 | Q123: 16.32784332 | R123: 21.79584898 | S123: 2.704360596 | T123: 18.81394749 | U123: 20.76075866 | BB123: Not Improved | BC123: 1743.467184 | BD123: 1494.609561 | BE123: 1238.35238 | BF123: 755.285825 | BG123: 63.529608 | BH123: 689.714458 | BI123: 298.901081 | BJ123: 43.133949 | BK123: 15.199798 | BL123: 1.493604 | BM123: 1087.886539 | BN123: 902.353113 | BO123: 885.534249 | BP123: 729.420247 | BQ123: 641.60752 | BR123: 1919.015262 | BS123: 188.608872 | BT123: 1869.547771 | BU123: 1318.072653
A124: Sanitation ladder | B124: Basic | C124: 67.39217226 | D124: 72.75588631 | E124: 76.30254139 | F124: 79.10340705 | G124: 95.44505782 | H124: 65.22390621 | I124: 74.78036643 | J124: 91.40107331 | K124: 95.58235695 | L124: 97.1405085 | M124: 67.14262858 | N124: 71.65572804 | O124: 73.70681236 | P124: 78.69666938 | Q124: 78.86588846 | R124: 73.38687059 | S124: 89.08362889 | T124: 76.93724202 | U124: 74.89207209 | BA124: Sanitation ladder | BB124: Basic | BC124: 4314.335226 | BD124: 4658.100772 | BE124: 4887.884981 | BF124: 5071.85287 | BG124: 6110.44448 | BH124: 1619.782533 | BI124: 1855.321665 | BJ124: 2269.932567 | BK124: 2371.71644 | BL124: 2405.698896 | BM124: 2633.31946 | BN124: 2813.946298 | BO124: 2889.443453 | BP124: 3084.398182 | BQ124: 3099.058835 | BR124: 6455.68016 | BS124: 6206.906265 | BT124: 7632.825791 | BU124: 4747.206113
B125: Limited | C125: 5.373958646 | D125: 3.899482774 | E125: 4.366104841 | F125: 9.116739792 | G125: 3.562610584 | H125: 7.003309356 | I125: 13.17216343 | J125: 6.862095698 | K125: 3.80507719 | L125: 2.799180768 | M125: 5.11916383 | N125: 5.366303502 | O125: 3.704094691 | P125: 2.692586927 | Q125: 4.806268221 | R125: 4.798150791 | S125: 8.209392458 | T125: 4.218118616 | U125: 4.313972521 | BB125: Limited | BC125: 344.03193 | BD125: 249.659301 | BE125: 279.689482 | BF125: 584.535668 | BG125: 228.080266 | BH125: 173.921478 | BI125: 326.805034 | BJ125: 170.419164 | BK125: 94.416631 | BL125: 69.322121 | BM125: 200.772505 | BN125: 210.736675 | BO125: 145.207367 | BP125: 105.531915 | BQ125: 188.863757 | BR125: 422.082678 | BS125: 571.989827 | BT125: 418.473079 | BU125: 273.451063
B126: Unimproved | C126: 27.2338691 | D126: 23.34463092 | E126: 19.33135377 | F126: 11.77985316 | G126: 0.9923315937 | H126: 27.77278443 | I126: 12.04747014 | J126: 1.736830993 | K126: 0.6125658589 | L126: 0.06031072812 | M126: 27.73820759 | N126: 22.97796845 | O126: 22.58909295 | P126: 18.61074369 | Q126: 16.32784332 | R126: 21.81497862 | S126: 2.706978653 | T126: 18.84463936 | U126: 20.79395539 | BB126: Unimproved | BC126: 1743.467184 | BD126: 1494.609561 | BE126: 1238.35238 | BF126: 755.285825 | BG126: 63.529608 | BH126: 689.714458 | BI126: 298.901081 | BJ126: 43.133949 | BK126: 15.199798 | BL126: 1.493604 | BM126: 1087.886539 | BN126: 902.353113 | BO126: 885.534249 | BP126: 729.420247 | BQ126: 641.60752 | BR126: 1919.015262 | BS126: 188.608872 | BT126: 1869.547771 | BU126: 1318.072653
B127: Open defecation | C127: 0 | D127: 0 | E127: 0 | F127: 0 | G127: 0 | H127: 0 | I127: 0 | J127: 0 | K127: 0 | L127: 0 | M127: 0 | N127: 0 | O127: 0 | P127: 0 | Q127: 0 | R127: 0 | S127: 0 | T127: 0 | U127: 0 | BB127: Open defecation | BC127: 28.052937 | BD127: 144.020716 | BE127: 390.594921 | BF127: 2358.470782 | BG127: 6031.590463 | BH127: 183.783362 | BI127: 1111.902544 | BJ127: 2146.033273 | BK127: 2419.209675 | BL127: 2467.999553 | BM127: 11.220484 | BN127: 20.403691 | BO127: 115.508293 | BP127: 210.020047 | BQ127: 266.648897 | BR127: 950.456329 | BS127: 5966.159186 | BT127: 1403.489611 | BU127: 632.624693
A128: Shared among Improved Sanitation | B128: Yes | C128: 7.385247201 | D128: 5.087031503 | E128: 5.412393842 | F128: 10.33407914 | G128: 3.598317829 | H128: 9.696219495 | I128: 14.97644633 | J128: 6.983385298 | K128: 3.828529454 | L128: 2.800869994 | M128: 7.084191603 | N128: 6.967231835 | O128: 4.784977766 | P128: 3.308282997 | Q128: 5.744166771 | R128: 6.13691818 | S128: 8.437801955 | T128: 5.19758471 | U128: 5.446519318 | BA128: Shared among improved sanitation facilities | BB128: Yes | BC128: N/A | BD128: N/A | BE128: N/A | BF128: N/A | BG128: N/A | BH128: N/A | BI128: N/A | BJ128: N/A | BK128: N/A | BL128: N/A | BM128: N/A | BN128: N/A | BO128: N/A | BP128: N/A | BQ128: N/A | BR128: N/A | BS128: N/A | BT128: N/A | BU128: N/A
B129: No | C129: 92.6147528 | D129: 94.9129685 | E129: 94.58760616 | F129: 89.66592086 | G129: 96.40168217 | H129: 90.3037805 | I129: 85.02355367 | J129: 93.0166147 | K129: 96.17147055 | L129: 97.19913001 | M129: 92.9158084 | N129: 93.03276817 | O129: 95.21502223 | P129: 96.691717 | Q129: 94.25583323 | R129: 93.86308182 | S129: 91.56219804 | T129: 94.80241529 | U129: 94.55348068 | BB129: No | BC129: N/A | BD129: N/A | BE129: N/A | BF129: N/A | BG129: N/A | BH129: N/A | BI129: N/A | BJ129: N/A | BK129: N/A | BL129: N/A | BM129: N/A | BN129: N/A | BO129: N/A | BP129: N/A | BQ129: N/A | BR129: N/A | BS129: N/A | BT129: N/A | BU129: N/A
A130: Manually calculated ratios | B130: Improved latrines | C130: =C159/(C159+C160)*100 -> 54.33533123 | D130: =D159/(D159+D160)*100 -> 60.48472625 | E130: 63.57535835 | F130: 62.85707624 | G130: 62.38865555 | H130: 52.86088879 | I130: 56.32729756 | J130: 74.3343351 | K130: 62.45974581 | L130: 100 | M130: 53.74842136 | N130: 60.4667128 | O130: 61.0067027 | P130: 64.84461743 | Q130: 65.61437671 | R130: 56.69772915 | S130: 59.18194562 | T130: 64.27497183 | U130: 57.73494225
B131: Sewer among flush | C131: =C135/(C135+C136)*100 -> 100 | D131: =D135/(D135+D136)*100 -> 92.76519577 | E131: 95.38431659 | F131: 95.01619654 | G131: 99.4759466 | H131: 89.79976143 | I131: 93.75399395 | J131: 98.93902929 | K131: 99.49919494 | L131: 99.67363438 | M131: 100 | N131: 100 | O131: 95.20062185 | P131: 97.59041776 | Q131: 87.99333864 | R131: 97.45404732 | S131: 99.19957422 | T131: 96.34584292 | U131: 91.41461257
B132: Other
C133: NATIONAL wealth index quintile | H133: URBAN wealth index quintile | M133: RURAL wealth index quintile | R133: SUB-REGIONS: | BA133: Raw numbers of respondents: | BB133: Use of sanitation facilities | BC133: NATIONAL wealth index quintile | BH133: URBAN wealth index quintile | BM133: RURAL wealth index quintile | BR133: SUB-REGIONS:
A134: Percentage based on weighted population | C134: Poorest | D134: Poor | E134: Middle | F134: Rich | G134: Richest | H134: Poorest | I134: Poor | J134: Middle | K134: Rich | L134: Richest | M134: Poorest | N134: Poor | O134: Middle | P134: Rich | Q134: Richest | R134: Center | S134: Chisinau | T134: North | U134: South | BA134: Sanitation data, raw numbers (weighted) | BC134: Poorest | BD134: Poor | BE134: Middle | BF134: Rich | BG134: Richest | BH134: Poorest | BI134: Poor | BJ134: Middle | BK134: Rich | BL134: Richest | BM134: Poorest | BN134: Poor | BO134: Middle | BP134: Rich | BQ134: Richest | BR134: Center | BS134: Chisinau | BT134: North | BU134: South
A135: Sanitation type | B135: Sewer connection | C135: 0.4373257233 | D135: 2.246772712 | E135: 6.088768777 | F135: 36.78068676 | G135: 94.05819975 | H135: 7.396347268 | I135: 44.80575263 | J135: 86.35131258 | K135: 97.39513576 | L135: 99.4060194 | M135: 0.2857725639 | N135: 0.5186368337 | O135: 2.940690859 | P135: 5.346157111 | Q135: 6.785770548 | R135: 10.79512134 | S135: 85.54552944 | T135: 14.12383265 | U135: 9.964373772 | BA135: Sanitation type | BB135: Sewer connection | BC135: N/A | BD135: N/A | BE135: N/A | BF135: N/A | BG135: N/A | BH135: N/A | BI135: N/A | BJ135: N/A | BK135: N/A | BL135: N/A | BM135: N/A | BN135: N/A | BO135: N/A | BP135: N/A | BQ135: N/A | BR135: N/A | BS135: N/A | BT135: N/A | BU135: N/A
B136: Septic tank connection | C136: 0 | D136: 0.1752269327 | E136: 0.2946378403 | F136: 1.929225971 | G136: 0.4955119363 | H136: 0.8401415043 | I136: 2.985014185 | J136: 0.9259865782 | K136: 0.4902147878 | L136: 0.3254893611 | M136: 0 | N136: 0 | O136: 0.1482499501 | P136: 0.1320007184 | Q136: 0.925916101 | R136: 0.2820187447 | S136: 0.6902534351 | T136: 0.5356816806 | U136: 0.9358242287 | BB136: Septic tank connection | BC136: N/A | BD136: N/A | BE136: N/A | BF136: N/A | BG136: N/A | BH136: N/A | BI136: N/A | BJ136: N/A | BK136: N/A | BL136: N/A | BM136: N/A | BN136: N/A | BO136: N/A | BP136: N/A | BQ136: N/A | BR136: N/A | BS136: N/A | BT136: N/A | BU136: N/A
B137: Improved latrines | C137: 72.38323679 | D137: 74.26157706 | E137: 74.31260119 | F137: 49.51129757 | G137: 4.455590984 | H137: 64.00600592 | I137: 40.16457337 | J137: 10.98709256 | K137: 1.502719692 | L137: 0.2083318946 | M137: 72.00703357 | N137: 76.54465228 | O137: 74.36650933 | P137: 75.95411354 | Q137: 75.96047003 | R137: 67.12701094 | S137: 11.05985653 | T137: 66.52653819 | U137: 68.33904334 | BB137: Improved latrines | BC137: N/A | BD137: N/A | BE137: N/A | BF137: N/A | BG137: N/A | BH137: N/A | BI137: N/A | BJ137: N/A | BK137: N/A | BL137: N/A | BM137: N/A | BN137: N/A | BO137: N/A | BP137: N/A | BQ137: N/A | BR137: N/A | BS137: N/A | BT137: N/A | BU137: N/A
B138: Unimproved facilities | C138: 27.17943748 | D138: 23.31642329 | E138: 19.3039922 | F138: 11.7787897 | G138: 0.9906973287 | H138: 27.75750531 | I138: 12.04465982 | J138: 1.735608278 | K138: 0.6119297575 | L138: 0.06015934161 | M138: 27.70719387 | N138: 22.93671088 | O138: 22.54454986 | P138: 18.56772863 | Q138: 16.32784332 | R138: 21.79584898 | S138: 2.704360596 | T138: 18.81394749 | U138: 20.76075866 | BB138: Unimproved facilities | BC138: N/A | BD138: N/A | BE138: N/A | BF138: N/A | BG138: N/A | BH138: N/A | BI138: N/A | BJ138: N/A | BK138: N/A | BL138: N/A | BM138: N/A | BN138: N/A | BO138: N/A | BP138: N/A | BQ138: N/A | BR138: N/A | BS138: N/A | BT138: N/A | BU138: N/A
B139: Open defecation | C139: 0 | D139: 0 | E139: 0 | F139: 0 | G139: 0 | H139: 0 | I139: 0 | J139: 0 | K139: 0 | L139: 0 | M139: 0 | N139: 0 | O139: 0 | P139: 0 | Q139: 0 | R139: 0 | S139: 0 | T139: 0 | U139: 0 | BB139: Open defecation | BC139: N/A | BD139: N/A | BE139: N/A | BF139: N/A | BG139: N/A | BH139: N/A | BI139: N/A | BJ139: N/A | BK139: N/A | BL139: N/A | BM139: N/A | BN139: N/A | BO139: N/A | BP139: N/A | BQ139: N/A | BR139: N/A | BS139: N/A | BT139: N/A | BU139: N/A
A140: Septic tank emptying practices | B140: Not emptied/treated and disposed in situ | C140: N/A | D140: N/A | E140: N/A | F140: N/A | G140: N/A | H140: N/A | I140: N/A | J140: N/A | K140: N/A | L140: N/A | M140: N/A | N140: N/A | O140: N/A | P140: N/A | Q140: N/A | R140: N/A | S140: N/A | T140: N/A | U140: N/A | BA140: Septic tank emptying practices | BB140: Not emptied/treated and disposed in situ | BC140: N/A | BD140: N/A | BE140: N/A | BF140: N/A | BG140: N/A | BH140: N/A | BI140: N/A | BJ140: N/A | BK140: N/A | BL140: N/A | BM140: N/A | BN140: N/A | BO140: N/A | BP140: N/A | BQ140: N/A | BR140: N/A | BS140: N/A | BT140: N/A | BU140: N/A
B141: Emptied and buried on site | C141: N/A | D141: N/A | E141: N/A | F141: N/A | G141: N/A | H141: N/A | I141: N/A | J141: N/A | K141: N/A | L141: N/A | M141: N/A | N141: N/A | O141: N/A | P141: N/A | Q141: N/A | R141: N/A | S141: N/A | T141: N/A | U141: N/A | BB141: Emptied and buried on site | BC141: N/A | BD141: N/A | BE141: N/A | BF141: N/A | BG141: N/A | BH141: N/A | BI141: N/A | BJ141: N/A | BK141: N/A | BL141: N/A | BM141: N/A | BN141: N/A | BO141: N/A | BP141: N/A | BQ141: N/A | BR141: N/A | BS141: N/A | BT141: N/A | BU141: N/A
B142: Emptied and discharged locally | C142: N/A | D142: N/A | E142: N/A | F142: N/A | G142: N/A | H142: N/A | I142: N/A | J142: N/A | K142: N/A | L142: N/A | M142: N/A | N142: N/A | O142: N/A | P142: N/A | Q142: N/A | R142: N/A | S142: N/A | T142: N/A | U142: N/A | BB142: Emptied and discharged locally | BC142: N/A | BD142: N/A | BE142: N/A | BF142: N/A | BG142: N/A | BH142: N/A | BI142: N/A | BJ142: N/A | BK142: N/A | BL142: N/A | BM142: N/A | BN142: N/A | BO142: N/A | BP142: N/A | BQ142: N/A | BR142: N/A | BS142: N/A | BT142: N/A | BU142: N/A
B143: Emptied and removed offsite | C143: N/A | D143: N/A | E143: N/A | F143: N/A | G143: N/A | H143: N/A | I143: N/A | J143: N/A | K143: N/A | L143: N/A | M143: N/A | N143: N/A | O143: N/A | P143: N/A | Q143: N/A | R143: N/A | S143: N/A | T143: N/A | U143: N/A | BB143: Emptied and removed offsite | BC143: N/A | BD143: N/A | BE143: N/A | BF143: N/A | BG143: N/A | BH143: N/A | BI143: N/A | BJ143: N/A | BK143: N/A | BL143: N/A | BM143: N/A | BN143: N/A | BO143: N/A | BP143: N/A | BQ143: N/A | BR143: N/A | BS143: N/A | BT143: N/A | BU143: N/A
A144: Latrine emptying practices | B144: Not emptied/treated and disposed in situ | C144: N/A | D144: N/A | E144: N/A | F144: N/A | G144: N/A | H144: N/A | I144: N/A | J144: N/A | K144: N/A | L144: N/A | M144: N/A | N144: N/A | O144: N/A | P144: N/A | Q144: N/A | R144: N/A | S144: N/A | T144: N/A | U144: N/A | BA144: Latrine emptying practices | BB144: Not emptied/treated and disposed in situ | BC144: N/A | BD144: N/A | BE144: N/A | BF144: N/A | BG144: N/A | BH144: N/A | BI144: N/A | BJ144: N/A | BK144: N/A | BL144: N/A | BM144: N/A | BN144: N/A | BO144: N/A | BP144: N/A | BQ144: N/A | BR144: N/A | BS144: N/A | BT144: N/A | BU144: N/A
B145: Emptied and buried on site | C145: N/A | D145: N/A | E145: N/A | F145: N/A | G145: N/A | H145: N/A | I145: N/A | J145: N/A | K145: N/A | L145: N/A | M145: N/A | N145: N/A | O145: N/A | P145: N/A | Q145: N/A | R145: N/A | S145: N/A | T145: N/A | U145: N/A | BB145: Emptied and buried on site | BC145: N/A | BD145: N/A | BE145: N/A | BF145: N/A | BG145: N/A | BH145: N/A | BI145: N/A | BJ145: N/A | BK145: N/A | BL145: N/A | BM145: N/A | BN145: N/A | BO145: N/A | BP145: N/A | BQ145: N/A | BR145: N/A | BS145: N/A | BT145: N/A | BU145: N/A
B146: Emptied and discharged locally | C146: N/A | D146: N/A | E146: N/A | F146: N/A | G146: N/A | H146: N/A | I146: N/A | J146: N/A | K146: N/A | L146: N/A | M146: N/A | N146: N/A | O146: N/A | P146: N/A | Q146: N/A | R146: N/A | S146: N/A | T146: N/A | U146: N/A | BB146: Emptied and discharged locally | BC146: N/A | BD146: N/A | BE146: N/A | BF146: N/A | BG146: N/A | BH146: N/A | BI146: N/A | BJ146: N/A | BK146: N/A | BL146: N/A | BM146: N/A | BN146: N/A | BO146: N/A | BP146: N/A | BQ146: N/A | BR146: N/A | BS146: N/A | BT146: N/A | BU146: N/A
B147: Emptied and removed offsite | C147: N/A | D147: N/A | E147: N/A | F147: N/A | G147: N/A | H147: N/A | I147: N/A | J147: N/A | K147: N/A | L147: N/A | M147: N/A | N147: N/A | O147: N/A | P147: N/A | Q147: N/A | R147: N/A | S147: N/A | T147: N/A | U147: N/A | BB147: Emptied and removed offsite | BC147: N/A | BD147: N/A | BE147: N/A | BF147: N/A | BG147: N/A | BH147: N/A | BI147: N/A | BJ147: N/A | BK147: N/A | BL147: N/A | BM147: N/A | BN147: N/A | BO147: N/A | BP147: N/A | BQ147: N/A | BR147: N/A | BS147: N/A | BT147: N/A | BU147: N/A
A148: Shared among improved sanitation facilities | B148: Yes | C148: 5.363217856 | D148: 3.894770978 | E148: 4.359925063 | F148: 9.11591675 | G148: 3.556743342 | H148: 6.999456505 | I148: 13.16909075 | J148: 6.857264837 | K148: 3.801125917 | L148: 2.792154519 | M148: 5.113440162 | N148: 5.356668157 | O148: 3.696790643 | P148: 2.686363544 | Q148: 4.806268221 | R148: 4.793943273 | S148: 8.201452737 | T148: 4.211248653 | U148: 4.307085434 | BA148: Shared among improved sanitation facilities | BB148: Yes | BC148: N/A | BD148: N/A | BE148: N/A | BF148: N/A | BG148: N/A | BH148: N/A | BI148: N/A | BJ148: N/A | BK148: N/A | BL148: N/A | BM148: N/A | BN148: N/A | BO148: N/A | BP148: N/A | BQ148: N/A | BR148: N/A | BS148: N/A | BT148: N/A | BU148: N/A
B149: No | C149: 67.2574773 | D149: 72.66797442 | E149: 76.19454289 | F149: 79.09626574 | G149: 95.28786992 | H149: 65.18802345 | I149: 74.76292236 | J149: 91.33672768 | K149: 95.48310221 | L149: 96.89667522 | M149: 67.06755731 | N149: 71.52706822 | O149: 73.56147103 | P149: 78.51477756 | Q149: 78.86588846 | R149: 73.32251734 | S149: 88.99747158 | T149: 76.81193593 | U149: 74.77250984 | BB149: No | BC149: N/A | BD149: N/A | BE149: N/A | BF149: N/A | BG149: N/A | BH149: N/A | BI149: N/A | BJ149: N/A | BK149: N/A | BL149: N/A | BM149: N/A | BN149: N/A | BO149: N/A | BP149: N/A | BQ149: N/A | BR149: N/A | BS149: N/A | BT149: N/A | BU149: N/A
B150: DK/missing | C150: 27.37930484 | D150: 23.4372546 | E150: 19.44553205 | F150: 11.78781751 | G150: 1.155386735 | H150: 27.81252004 | I150: 12.06798689 | J150: 1.806007488 | K150: 0.7157718733 | L150: 0.3111702597 | M150: 27.81900253 | N150: 23.11626362 | O150: 22.74173833 | P150: 18.7988589 | Q150: 16.32784332 | R150: 21.88353939 | S150: 2.801075682 | T150: 18.97681541 | U150: 20.92040472 | BB150: DK/missing | BC150: N/A | BD150: N/A | BE150: N/A | BF150: N/A | BG150: N/A | BH150: N/A | BI150: N/A | BJ150: N/A | BK150: N/A | BL150: N/A | BM150: N/A | BN150: N/A | BO150: N/A | BP150: N/A | BQ150: N/A | BR150: N/A | BS150: N/A | BT150: N/A | BU150: N/A
A151: Shared among all sanitation facilities | B151: Yes | C151: 6.257192799 | D151: 4.249105477 | E151: 4.830854849 | F151: 9.920795362 | G151: 3.637067325 | H151: 8.830219507 | I151: 13.88783361 | J151: 6.857264837 | K151: 4.008495081 | L151: 2.792154519 | M151: 5.907582628 | N151: 5.687459557 | O151: 3.905964385 | P151: 2.986813229 | Q151: 5.676359497 | R151: 5.528590583 | S151: 8.309119151 | T151: 4.824746568 | U151: 4.821033944 | BA151: Shared among all sanitation facilities | BB151: Yes | BC151: N/A | BD151: N/A | BE151: N/A | BF151: N/A | BG151: N/A | BH151: N/A | BI151: N/A | BJ151: N/A | BK151: N/A | BL151: N/A | BM151: N/A | BN151: N/A | BO151: N/A | BP151: N/A | BQ151: N/A | BR151: N/A | BS151: N/A | BT151: N/A | BU151: N/A
B152: No | C152: 93.48390323 | D152: 95.51127673 | E152: 94.8974738 | F152: 90.07016706 | G152: 96.13106441 | H152: 90.99454555 | I152: 86.08883357 | J152: 92.95909444 | K152: 95.8876628 | L152: 96.89667522 | M152: 93.91831047 | N152: 94.10013023 | O152: 95.70292642 | P152: 96.6457455 | Q152: 94.3236405 | R152: 94.30883529 | S152: 91.55679418 | T152: 94.87481226 | U152: 94.99989928 | BB152: No | BC152: N/A | BD152: N/A | BE152: N/A | BF152: N/A | BG152: N/A | BH152: N/A | BI152: N/A | BJ152: N/A | BK152: N/A | BL152: N/A | BM152: N/A | BN152: N/A | BO152: N/A | BP152: N/A | BQ152: N/A | BR152: N/A | BS152: N/A | BT152: N/A | BU152: N/A
A153: Type of toilet facility | B153: Flush - to piped sewer system | C153: 0.43740783 | D153: 2.246772712 | E153: 6.097911074 | F153: 36.79792523 | G153: 94.18620897 | H153: 7.40763209 | I153: 44.86005426 | J153: 86.35131258 | K153: 97.67913223 | L153: 99.46585741 | M153: 0.2857725639 | N153: 0.5187956211 | O153: 2.940690859 | P153: 5.346157111 | Q153: 6.795857235 | R153: 10.79722743 | S153: 85.64176611 | T153: 14.13590388 | U153: 9.971443096 | BA153: Type of toilet facility | BB153: Flush - to piped sewer system | BC153: 28.052937 | BD153: 144.020716 | BE153: 390.594921 | BF153: 2358.470782 | BG153: 6031.590463 | BH153: 183.783362 | BI153: 1111.902544 | BJ153: 2146.033273 | BK153: 2419.209675 | BL153: 2467.999553 | BM153: 11.220484 | BN153: 20.403691 | BO153: 115.508293 | BP153: 210.020047 | BQ153: 266.648897 | BR153: 950.456329 | BS153: 5966.159186 | BT153: 1403.489611 | BU153: 632.624693
B154: Flush - to septic tank | C154: 0 | D154: 0.1752269327 | E154: 0.2950802395 | F154: 1.930130166 | G154: 0.496186307 | H154: 0.8414233326 | I154: 2.988631827 | J154: 0.9259865782 | K154: 0.4916442151 | L154: 0.3256852912 | M154: 0 | N154: 0 | O154: 0.1482499501 | P154: 0.1320007184 | Q154: 0.927292426 | R154: 0.2820737655 | S154: 0.6910299537 | T154: 0.5361395122 | U154: 0.9364881585 | BB154: Flush - to septic tank | BC154: 0 | BD154: 11.232248 | BE154: 18.901037 | BF154: 123.706855 | BG154: 31.775274 | BH154: 20.875714 | BI154: 74.076311 | BJ154: 23.012945 | BK154: 12.176505 | BL154: 8.081076 | BM154: 0 | BN154: 0 | BO154: 5.823155 | BP154: 5.185556 | BQ154: 36.384152 | BR154: 24.830337 | BS154: 48.140001 | BT154: 53.230854 | BU154: 59.414222
B155: Flush - to pit latrine | C155: 0.01635283398 | D155: 0.2929492969 | E155: 0.6305597588 | F155: 1.328077727 | G155: 0.3174751571 | H155: 0.9167301403 | I155: 2.190006315 | J155: 0.6737589889 | K155: 0.3561783522 | L155: 0 | M155: 0 | N155: 0.02666689033 | O155: 0.2781204508 | P155: 0.5165091984 | Q155: 0.7852835007 | R155: 0.5589831293 | S155: 0.8516854287 | T155: 0.3110548954 | U155: 0.4136956999 | BB155: Flush - to pit latrine | BC155: 1.048781 | BD155: 18.778387 | BE155: 40.389805 | BF155: 85.119813 | BG155: 20.330791 | BH155: 22.744076 | BI155: 54.281557 | BJ155: 16.744496 | BK155: 8.821435 | BL155: 0 | BM155: 0 | BN155: 1.048781 | BO155: 10.924378 | BP155: 20.290703 | BQ155: 30.812151 | BR155: 49.206063 | BS155: 59.331925 | BT155: 30.883226 | BU155: 26.246363
B156: Flush - to somewhere else | C156: 0 | D156: 0.03252921329 | E156: 0 | F156: 0.3866024813 | G156: 0 | H156: 0 | I156: 0.3063360179 | J156: 0.03733940254 | K156: 0 | L156: 0 | M156: 0 | N156: 0 | O156: 0.05308546072 | P156: 0 | Q156: 0.41434109 | R156: 0.04993104786 | S156: 0.05921991647 | T156: 0.1042698175 | U156: 0.1259413143 | BB156: Flush - to somewhere else | BC156: 0 | BD156: 2.08516 | BE156: 0 | BF156: 24.778317 | BG156: 0 | BH156: 0 | BI156: 7.592853 | BJ156: 0.927972 | BK156: 0 | BL156: 0 | BM156: 0 | BN156: 0 | BO156: 2.08516 | BP156: 0 | BQ156: 16.257492 | BR156: 4.395321 | BS156: 4.125504 | BT156: 10.352476 | BU156: 7.990176
B157: Flush - don't know where | C157: 0 | D157: 0.02150120532 | E157: 0.0107217377 | F157: 0.06047706668 | G157: 0.02898146525 | H157: 0.02768113515 | I157: 0.1563835101 | J157: 0 | K157: 0.07493645601 | L157: 0 | M157: 0 | N157: 0 | O157: 0.03508850276 | P157: 0 | Q157: 0 | R157: 0 | S157: 0.02664131429 | T157: 0.02084570247 | U157: 0.06102221929 | BB157: Flush - don't know where | BC157: 0 | BD157: 1.378252 | BE157: 0.686769 | BF157: 3.876126 | BG157: 1.855944 | BH157: 0.686769 | BI157: 3.876126 | BJ157: 0 | BK157: 1.855944 | BL157: 0 | BM157: 0 | BN157: 0 | BO157: 1.378252 | BP157: 0 | BQ157: 0 | BR157: 0 | BS157: 1.855944 | BT157: 2.069675 | BU157: 3.871472
B158: Pit latrine - ventilated improved pit (VIP) | C158: 30.72718786 | D158: 31.34635187 | E158: 32.73813806 | F158: 24.49303537 | G158: 2.294389516 | H158: 31.04571236 | I158: 22.26347467 | J158: 5.561056931 | K158: 0.6534786546 | L158: 0.1347378532 | M158: 30.41912324 | N158: 31.52588158 | O158: 31.84611898 | P158: 31.69115965 | Q158: 35.26927353 | R158: 30.6909153 | S158: 6.307807299 | T158: 29.84714017 | U158: 26.62672757 | BB158: Pit latrine - ventilated improved pit (VIP) | BC158: 1970.673148 | BD158: 2009.337222 | BE158: 2097.005072 | BF158: 1569.819709 | BG158: 146.930406 | BH158: 770.244165 | BI158: 551.823098 | BJ158: 138.205348 | BK158: 16.184643 | BL158: 3.343187 | BM158: 1194.36688 | BN158: 1239.880061 | BO158: 1250.893419 | BP158: 1244.965066 | BQ158: 1383.85969 | BR158: 2701.654187 | BS158: 439.427912 | BT158: 2963.386814 | BU158: 1689.296644
B159: Pit latrine - with slab | C159: 30.4904408 | D159: 34.44249381 | E159: 32.48417745 | F159: 18.6248273 | G159: 1.301754421 | H159: 29.85886543 | I159: 14.50167596 | J159: 4.190611747 | K159: 0.4225080401 | L159: 0.07371944793 | M159: 30.27318294 | N159: 33.42487114 | O159: 34.02591585 | P159: 33.51951288 | Q159: 29.25610521 | R159: 28.03999343 | S159: 3.676480873 | T159: 30.83989384 | U159: 27.34292103 | BB159: Pit latrine - with slab | BC159: 1955.489491 | BD159: 2207.803483 | BE159: 2080.737907 | BF159: 1193.711622 | BG159: 83.363049 | BH159: 740.798491 | BI159: 359.438941 | BJ159: 104.146561 | BK159: 10.464216 | BL159: 1.829166 | BM159: 1188.636726 | BN159: 1314.565341 | BO159: 1336.514325 | BP159: 1316.790645 | BQ159: 1147.92114 | BR159: 2468.29933 | BS159: 256.118844 | BT159: 3061.952811 | BU159: 1734.734567
B160: Pit latrine - without slab / open pit | C160: 25.62487148 | D160: 22.50162407 | E160: 18.61137009 | F160: 11.00561117 | G160: 0.7847698191 | H160: 26.62687689 | I160: 11.24370255 | J160: 1.446906556 | K160: 0.2539405022 | L160: 0 | M160: 26.05067211 | N160: 21.85326387 | O160: 21.7481456 | P160: 18.17253838 | Q160: 15.33184438 | R160: 21.41523847 | S160: 2.535685413 | T160: 17.14129225 | U160: 20.01647687 | BB160: Pit latrine - without slab / open pit | BC160: 1643.438585 | BD160: 1442.379993 | BE160: 1192.13064 | BF160: 705.377062 | BG160: 50.255873 | BH160: 660.612851 | BI160: 278.686722 | BJ160: 35.959032 | BK160: 6.28932 | BL160: 0 | BM160: 1022.84539 | BN160: 859.466089 | BO160: 854.252043 | BP160: 713.895474 | BQ160: 601.575232 | BR160: 1885.136631 | BS160: 176.64632 | BT160: 1701.880955 | BU160: 1269.918247
B161: Composting toilet | C161: 11.16284504 | D161: 8.158280875 | E161: 8.560584671 | F161: 5.028085188 | G161: 0.5190542943 | H161: 2.254672672 | I161: 1.101709738 | J161: 0.5616648931 | K161: 0 | L161: 0 | M161: 11.31472739 | N161: 11.5906678 | O161: 8.181265539 | P161: 10.22693181 | Q161: 10.76271898 | R161: 7.850215297 | S161: 0.2096836903 | T161: 5.56446188 | U161: 13.94316063 | BB161: Composting toilet | BC161: 715.923601 | BD161: 522.955191 | BE161: 548.338743 | BF161: 322.262517 | BG161: 33.239717 | BH161: 55.938432 | BI161: 27.307008 | BJ161: 13.958694 | BK161: 0 | BL161: 0 | BM161: 444.257895 | BN161: 455.848883 | BO161: 321.354424 | BP161: 401.757871 | BQ161: 422.296562 | BR161: 691.037293 | BS161: 14.607432 | BT161: 552.470115 | BU161: 884.604929
B162: Bucket toilet | C162: 1.43442486 | D162: 0.7257350541 | E162: 0.5152813412 | F162: 0.1081051404 | G162: 0 | H162: 0.6158662709 | I162: 0.0246707544 | J162: 0 | K162: 0 | L162: 0 | M162: 1.482611544 | N162: 1.059853083 | O162: 0.7433188046 | P162: 0.3951902533 | Q162: 0.4572836434 | R162: 0.2573810247 | S162: 0 | T162: 1.40667043 | U162: 0.2542806466 | BB162: Bucket toilet | BC162: 91.996136 | BD162: 46.520452 | BE162: 33.005774 | BF162: 6.928728 | BG162: 0 | BH162: 15.279643 | BI162: 0.61149 | BJ162: 0 | BK162: 0 | BL162: 0 | BM162: 58.212793 | BN162: 41.682917 | BO162: 29.197046 | BP162: 15.524773 | BQ162: 17.942428 | BR162: 22.656689 | BS162: 0 | BT162: 139.66191 | BU162: 16.132491
B163: OTHER | C163: 0.1064692934 | D163: 0.05653496023 | E163: 0.05617557401 | F163: 0.237123151 | G163: 0.07118004858 | H163: 0.40453968 | I163: 0.3633543922 | J163: 0.2513623191 | K163: 0.06818155434 | L163: 0 | M163: 0.1739102165 | N163: 0 | O163: 0 | P163: 0 | Q163: 0 | R163: 0.05804110952 | S163: 0 | T163: 0.09232762486 | U163: 0.3078427649 | BB163: OTHER | BC163: 6.828356 | BD163: 3.623956 | BE163: 3.598264 | BF163: 15.197814 | BG163: 4.558299 | BH163: 10.03663 | BI163: 9.006112 | BJ163: 6.246945 | BK163: 1.688646 | BL163: 0 | BM163: 6.828356 | BN163: 0 | BO163: 0 | BP163: 0 | BQ163: 0 | BR163: 5.109232 | BS163: 0 | BT163: 9.16679 | BU163: 19.530667
BB164: Total | BC164: 6413.451035 | BD164: 6410.11506 | BE164: 6405.388932 | BF164: 6409.249345 | BG164: 6403.899816 | BH164: 2481.000133 | BI164: 2478.602762 | BJ164: 2485.235266 | BK164: 2476.690384 | BL164: 2481.252982 | BM164: 3926.368524 | BN164: 3932.895763 | BO164: 3927.930495 | BP164: 3928.430135 | BQ164: 3923.697744 | BR164: 8802.781412 | BS164: 6966.413068 | BT164: 9928.545237 | BU164: 6344.364471
A208: =A1026 -> Republic of Moldova
A209: =A1034 -> 2005
A210: Access to hygiene facilities
A211: by wealth quintile and sub-national region
A212: Notes:
A213: WHO/UNICEF JMP customised wealth index excludes water,
A214: sanitation and hygiene assets.
A215: Survey used for analysis: | B215: =A1025 -> DHS05
A220: Access to handwashing | C220: NATIONAL wealth index quintile | H220: URBAN wealth index quintile | M220: RURAL wealth index quintile | R220: SUB-REGIONS: | BA220: Raw numbers of respondents: | BB220: Access to handwashing | BC220: NATIONAL wealth index quintile | BH220: URBAN wealth index quintile | BM220: RURAL wealth index quintile | BR220: SUB-REGIONS:
A221: Weighted percentage (used in graphs) | C221: Poorest | D221: Poor | E221: Middle | F221: Rich | G221: Richest | H221: Poorest | I221: Poor | J221: Middle | K221: Rich | L221: Richest | M221: Poorest | N221: Poor | O221: Middle | P221: Rich | Q221: Richest | R221: Center | S221: Chisinau | T221: North | U221: South | BA221: Hygiene data, raw numbers (weighted) | BC221: Poorest | BD221: Poor | BE221: Middle | BF221: Rich | BG221: Richest | BH221: Poorest | BI221: Poor | BJ221: Middle | BK221: Rich | BL221: Richest | BM221: Poorest | BN221: Poor | BO221: Middle | BP221: Rich | BQ221: Richest | BR221: Center | BS221: Chisinau | BT221: North | BU221: South
A222: Hygiene ladder | B222: Basic | C222: N/A | D222: N/A | E222: N/A | F222: N/A | G222: N/A | H222: N/A | I222: N/A | J222: N/A | K222: N/A | L222: N/A | M222: N/A | N222: N/A | O222: N/A | P222: N/A | Q222: N/A | R222: N/A | S222: N/A | T222: N/A | U222: N/A | BA222: Hygiene ladder | BB222: Basic | BC222: N/A | BD222: N/A | BE222: N/A | BF222: N/A | BG222: N/A | BH222: N/A | BI222: N/A | BJ222: N/A | BK222: N/A | BL222: N/A | BM222: N/A | BN222: N/A | BO222: N/A | BP222: N/A | BQ222: N/A | BR222: N/A | BS222: N/A | BT222: N/A | BU222: N/A
B223: Limited | C223: N/A | D223: N/A | E223: N/A | F223: N/A | G223: N/A | H223: N/A | I223: N/A | J223: N/A | K223: N/A | L223: N/A | M223: N/A | N223: N/A | O223: N/A | P223: N/A | Q223: N/A | R223: N/A | S223: N/A | T223: N/A | U223: N/A | BB223: Limited | BC223: N/A | BD223: N/A | BE223: N/A | BF223: N/A | BG223: N/A | BH223: N/A | BI223: N/A | BJ223: N/A | BK223: N/A | BL223: N/A | BM223: N/A | BN223: N/A | BO223: N/A | BP223: N/A | BQ223: N/A | BR223: N/A | BS223: N/A | BT223: N/A | BU223: N/A
B224: No facility | C224: N/A | D224: N/A | E224: N/A | F224: N/A | G224: N/A | H224: N/A | I224: N/A | J224: N/A | K224: N/A | L224: N/A | M224: N/A | N224: N/A | O224: N/A | P224: N/A | Q224: N/A | R224: N/A | S224: N/A | T224: N/A | U224: N/A | BB224: No facility | BC224: N/A | BD224: N/A | BE224: N/A | BF224: N/A | BG224: N/A | BH224: N/A | BI224: N/A | BJ224: N/A | BK224: N/A | BL224: N/A | BM224: N/A | BN224: N/A | BO224: N/A | BP224: N/A | BQ224: N/A | BR224: N/A | BS224: N/A | BT224: N/A | BU224: N/A
BA225: Observed handwashing place | BB225: Fixed | BC225: N/A | BD225: N/A | BE225: N/A | BF225: N/A | BG225: N/A | BH225: N/A | BI225: N/A | BJ225: N/A | BK225: N/A | BL225: N/A | BM225: N/A | BN225: N/A | BO225: N/A | BP225: N/A | BQ225: N/A | BR225: N/A | BS225: N/A | BT225: N/A | BU225: N/A
BB226: Mobile | BC226: N/A | BD226: N/A | BE226: N/A | BF226: N/A | BG226: N/A | BH226: N/A | BI226: N/A | BJ226: N/A | BK226: N/A | BL226: N/A | BM226: N/A | BN226: N/A | BO226: N/A | BP226: N/A | BQ226: N/A | BR226: N/A | BS226: N/A | BT226: N/A | BU226: N/A
BA227: Water / Soap | BB227: Water and soap | BC227: N/A | BD227: N/A | BE227: N/A | BF227: N/A | BG227: N/A | BH227: N/A | BI227: N/A | BJ227: N/A | BK227: N/A | BL227: N/A | BM227: N/A | BN227: N/A | BO227: N/A | BP227: N/A | BQ227: N/A | BR227: N/A | BS227: N/A | BT227: N/A | BU227: N/A
BB228: Water only | BC228: N/A | BD228: N/A | BE228: N/A | BF228: N/A | BG228: N/A | BH228: N/A | BI228: N/A | BJ228: N/A | BK228: N/A | BL228: N/A | BM228: N/A | BN228: N/A | BO228: N/A | BP228: N/A | BQ228: N/A | BR228: N/A | BS228: N/A | BT228: N/A | BU228: N/A
BB229: Soap only | BC229: N/A | BD229: N/A | BE229: N/A | BF229: N/A | BG229: N/A | BH229: N/A | BI229: N/A | BJ229: N/A | BK229: N/A | BL229: N/A | BM229: N/A | BN229: N/A | BO229: N/A | BP229: N/A | BQ229: N/A | BR229: N/A | BS229: N/A | BT229: N/A | BU229: N/A
BB230: Neither | BC230: N/A | BD230: N/A | BE230: N/A | BF230: N/A | BG230: N/A | BH230: N/A | BI230: N/A | BJ230: N/A | BK230: N/A | BL230: N/A | BM230: N/A | BN230: N/A | BO230: N/A | BP230: N/A | BQ230: N/A | BR230: N/A | BS230: N/A | BT230: N/A | BU230: N/A
BA259: Raw numbers of respondents: | BB259: Menstrual health and hygiene | BC259: NATIONAL wealth index quintile | BH259: URBAN wealth index quintile | BM259: RURAL wealth index quintile | BR259: SUB-REGIONS:
BA260: MHH data, raw numbers (weighted) | BC260: Poorest | BD260: Poor | BE260: Middle | BF260: Rich | BG260: Richest | BH260: Poorest | BI260: Poor | BJ260: Middle | BK260: Rich | BL260: Richest | BM260: Poorest | BN260: Poor | BO260: Middle | BP260: Rich | BQ260: Richest | BR260: Center | BS260: Chisinau | BT260: North | BU260: South
BA261: Private place to wash and change | BB261: Yes | BC261: N/A | BD261: N/A | BE261: N/A | BF261: N/A | BG261: N/A | BH261: N/A | BI261: N/A | BJ261: N/A | BK261: N/A | BL261: N/A | BM261: N/A | BN261: N/A | BO261: N/A | BP261: N/A | BQ261: N/A | BR261: N/A | BS261: N/A | BT261: N/A | BU261: N/A
BB262: No | BC262: N/A | BD262: N/A | BE262: N/A | BF262: N/A | BG262: N/A | BH262: N/A | BI262: N/A | BJ262: N/A | BK262: N/A | BL262: N/A | BM262: N/A | BN262: N/A | BO262: N/A | BP262: N/A | BQ262: N/A | BR262: N/A | BS262: N/A | BT262: N/A | BU262: N/A
BB263: DK/not sure/missing | BC263: N/A | BD263: N/A | BE263: N/A | BF263: N/A | BG263: N/A | BH263: N/A | BI263: N/A | BJ263: N/A | BK263: N/A | BL263: N/A | BM263: N/A | BN263: N/A | BO263: N/A | BP263: N/A | BQ263: N/A | BR263: N/A | BS263: N/A | BT263: N/A | BU263: N/A
BA264: Use of menstrual materials | BB264: Materials reusable | BC264: N/A | BD264: N/A | BE264: N/A | BF264: N/A | BG264: N/A | BH264: N/A | BI264: N/A | BJ264: N/A | BK264: N/A | BL264: N/A | BM264: N/A | BN264: N/A | BO264: N/A | BP264: N/A | BQ264: N/A | BR264: N/A | BS264: N/A | BT264: N/A | BU264: N/A
BB265: Materials not reusable | BC265: N/A | BD265: N/A | BE265: N/A | BF265: N/A | BG265: N/A | BH265: N/A | BI265: N/A | BJ265: N/A | BK265: N/A | BL265: N/A | BM265: N/A | BN265: N/A | BO265: N/A | BP265: N/A | BQ265: N/A | BR265: N/A | BS265: N/A | BT265: N/A | BU265: N/A
BB266: No materials used | BC266: N/A | BD266: N/A | BE266: N/A | BF266: N/A | BG266: N/A | BH266: N/A | BI266: N/A | BJ266: N/A | BK266: N/A | BL266: N/A | BM266: N/A | BN266: N/A | BO266: N/A | BP266: N/A | BQ266: N/A | BR266: N/A | BS266: N/A | BT266: N/A | BU266: N/A
BB267: DK/not sure/missing | BC267: N/A | BD267: N/A | BE267: N/A | BF267: N/A | BG267: N/A | BH267: N/A | BI267: N/A | BJ267: N/A | BK267: N/A | BL267: N/A | BM267: N/A | BN267: N/A | BO267: N/A | BP267: N/A | BQ267: N/A | BR267: N/A | BS267: N/A | BT267: N/A | BU267: N/A
BA268: Use of menstrual materials with private place to wash and change | BB268: Materials reusable | BC268: N/A | BD268: N/A | BE268: N/A | BF268: N/A | BG268: N/A | BH268: N/A | BI268: N/A | BJ268: N/A | BK268: N/A | BL268: N/A | BM268: N/A | BN268: N/A | BO268: N/A | BP268: N/A | BQ268: N/A | BR268: N/A | BS268: N/A | BT268: N/A | BU268: N/A
BB269: Materials not reusable | BC269: N/A | BD269: N/A | BE269: N/A | BF269: N/A | BG269: N/A | BH269: N/A | BI269: N/A | BJ269: N/A | BK269: N/A | BL269: N/A | BM269: N/A | BN269: N/A | BO269: N/A | BP269: N/A | BQ269: N/A | BR269: N/A | BS269: N/A | BT269: N/A | BU269: N/A
BB270: No materials used | BC270: N/A | BD270: N/A | BE270: N/A | BF270: N/A | BG270: N/A | BH270: N/A | BI270: N/A | BJ270: N/A | BK270: N/A | BL270: N/A | BM270: N/A | BN270: N/A | BO270: N/A | BP270: N/A | BQ270: N/A | BR270: N/A | BS270: N/A | BT270: N/A | BU270: N/A
BA271: Awareness of menstruation before menarche | BB271: Yes | BC271: N/A | BD271: N/A | BE271: N/A | BF271: N/A | BG271: N/A | BH271: N/A | BI271: N/A | BJ271: N/A | BK271: N/A | BL271: N/A | BM271: N/A | BN271: N/A | BO271: N/A | BP271: N/A | BQ271: N/A | BR271: N/A | BS271: N/A | BT271: N/A | BU271: N/A
BB272: No | BC272: N/A | BD272: N/A | BE272: N/A | BF272: N/A | BG272: N/A | BH272: N/A | BI272: N/A | BJ272: N/A | BK272: N/A | BL272: N/A | BM272: N/A | BN272: N/A | BO272: N/A | BP272: N/A | BQ272: N/A | BR272: N/A | BS272: N/A | BT272: N/A | BU272: N/A
BB273: DK/not sure/missing | BC273: N/A | BD273: N/A | BE273: N/A | BF273: N/A | BG273: N/A | BH273: N/A | BI273: N/A | BJ273: N/A | BK273: N/A | BL273: N/A | BM273: N/A | BN273: N/A | BO273: N/A | BP273: N/A | BQ273: N/A | BR273: N/A | BS273: N/A | BT273: N/A | BU273: N/A
BA274: Participation in (all) activities during menstruation | BB274: Yes | BC274: N/A | BD274: N/A | BE274: N/A | BF274: N/A | BG274: N/A | BH274: N/A | BI274: N/A | BJ274: N/A | BK274: N/A | BL274: N/A | BM274: N/A | BN274: N/A | BO274: N/A | BP274: N/A | BQ274: N/A | BR274: N/A | BS274: N/A | BT274: N/A | BU274: N/A
BB275: No | BC275: N/A | BD275: N/A | BE275: N/A | BF275: N/A | BG275: N/A | BH275: N/A | BI275: N/A | BJ275: N/A | BK275: N/A | BL275: N/A | BM275: N/A | BN275: N/A | BO275: N/A | BP275: N/A | BQ275: N/A | BR275: N/A | BS275: N/A | BT275: N/A | BU275: N/A
BB276: DK/not sure/missing/no such activity | BC276: N/A | BD276: N/A | BE276: N/A | BF276: N/A | BG276: N/A | BH276: N/A | BI276: N/A | BJ276: N/A | BK276: N/A | BL276: N/A | BM276: N/A | BN276: N/A | BO276: N/A | BP276: N/A | BQ276: N/A | BR276: N/A | BS276: N/A | BT276: N/A | BU276: N/A
BA277: Participation in specific activities during menstruation | BB277: Did not go to school (amongst those usually attending school) | BC277: N/A | BD277: N/A | BE277: N/A | BF277: N/A | BG277: N/A | BH277: N/A | BI277: N/A | BJ277: N/A | BK277: N/A | BL277: N/A | BM277: N/A | BN277: N/A | BO277: N/A | BP277: N/A | BQ277: N/A | BR277: N/A | BS277: N/A | BT277: N/A | BU277: N/A
BB278: Did not go to work (amongst those who usually work) | BC278: N/A | BD278: N/A | BE278: N/A | BF278: N/A | BG278: N/A | BH278: N/A | BI278: N/A | BJ278: N/A | BK278: N/A | BL278: N/A | BM278: N/A | BN278: N/A | BO278: N/A | BP278: N/A | BQ278: N/A | BR278: N/A | BS278: N/A | BT278: N/A | BU278: N/A
BB279: Did not participate in social activities | BC279: N/A | BD279: N/A | BE279: N/A | BF279: N/A | BG279: N/A | BH279: N/A | BI279: N/A | BJ279: N/A | BK279: N/A | BL279: N/A | BM279: N/A | BN279: N/A | BO279: N/A | BP279: N/A | BQ279: N/A | BR279: N/A | BS279: N/A | BT279: N/A | BU279: N/A
BB280: Did not cook food | BC280: N/A | BD280: N/A | BE280: N/A | BF280: N/A | BG280: N/A | BH280: N/A | BI280: N/A | BJ280: N/A | BK280: N/A | BL280: N/A | BM280: N/A | BN280: N/A | BO280: N/A | BP280: N/A | BQ280: N/A | BR280: N/A | BS280: N/A | BT280: N/A | BU280: N/A
BB281: Did not eat with others | BC281: N/A | BD281: N/A | BE281: N/A | BF281: N/A | BG281: N/A | BH281: N/A | BI281: N/A | BJ281: N/A | BK281: N/A | BL281: N/A | BM281: N/A | BN281: N/A | BO281: N/A | BP281: N/A | BQ281: N/A | BR281: N/A | BS281: N/A | BT281: N/A | BU281: N/A
BB282: Did not bathe in regular place | BC282: N/A | BD282: N/A | BE282: N/A | BF282: N/A | BG282: N/A | BH282: N/A | BI282: N/A | BJ282: N/A | BK282: N/A | BL282: N/A | BM282: N/A | BN282: N/A | BO282: N/A | BP282: N/A | BQ282: N/A | BR282: N/A | BS282: N/A | BT282: N/A | BU282: N/A
BB283: Did not participate in other activities | BC283: N/A | BD283: N/A | BE283: N/A | BF283: N/A | BG283: N/A | BH283: N/A | BI283: N/A | BJ283: N/A | BK283: N/A | BL283: N/A | BM283: N/A | BN283: N/A | BO283: N/A | BP283: N/A | BQ283: N/A | BR283: N/A | BS283: N/A | BT283: N/A | BU283: N/A
BB284: DK/not sure/missing/no such activity | BC284: N/A | BD284: N/A | BE284: N/A | BF284: N/A | BG284: N/A | BH284: N/A | BI284: N/A | BJ284: N/A | BK284: N/A | BL284: N/A | BM284: N/A | BN284: N/A | BO284: N/A | BP284: N/A | BQ284: N/A | BR284: N/A | BS284: N/A | BT284: N/A | BU284: N/A
BA339: Raw numbers of respondents: | BB339: Basic water, sanitation and hygiene | BC339: NATIONAL wealth index quintile | BH339: URBAN wealth index quintile | BM339: RURAL wealth index quintile | BR339: SUB-REGIONS:
BA340: WatSan data, raw numbers (weighted) | BC340: Poorest | BD340: Poor | BE340: Middle | BF340: Rich | BG340: Richest | BH340: Poorest | BI340: Poor | BJ340: Middle | BK340: Rich | BL340: Richest | BM340: Poorest | BN340: Poor | BO340: Middle | BP340: Rich | BQ340: Richest | BR340: Center | BS340: Chisinau | BT340: North | BU340: South
BA341: Use of Basic Water Sanitation and Hygiene | BB341: Yes | BC341: N/A | BD341: N/A | BE341: N/A | BF341: N/A | BG341: N/A | BH341: N/A | BI341: N/A | BJ341: N/A | BK341: N/A | BL341: N/A | BM341: N/A | BN341: N/A | BO341: N/A | BP341: N/A | BQ341: N/A | BR341: N/A | BS341: N/A | BT341: N/A | BU341: N/A
BB342: No | BC342: N/A | BD342: N/A | BE342: N/A | BF342: N/A | BG342: N/A | BH342: N/A | BI342: N/A | BJ342: N/A | BK342: N/A | BL342: N/A | BM342: N/A | BN342: N/A | BO342: N/A | BP342: N/A | BQ342: N/A | BR342: N/A | BS342: N/A | BT342: N/A | BU342: N/A
BA343: Use of Basic Water and Sanitation | BB343: Yes | BC343: N/A | BD343: N/A | BE343: N/A | BF343: N/A | BG343: N/A | BH343: N/A | BI343: N/A | BJ343: N/A | BK343: N/A | BL343: N/A | BM343: N/A | BN343: N/A | BO343: N/A | BP343: N/A | BQ343: N/A | BR343: N/A | BS343: N/A | BT343: N/A | BU343: N/A
BB344: No | BC344: N/A | BD344: N/A | BE344: N/A | BF344: N/A | BG344: N/A | BH344: N/A | BI344: N/A | BJ344: N/A | BK344: N/A | BL344: N/A | BM344: N/A | BN344: N/A | BO344: N/A | BP344: N/A | BQ344: N/A | BR344: N/A | BS344: N/A | BT344: N/A | BU344: N/A
BA345: Use of Basic Water and Hygiene | BB345: Yes | BC345: N/A | BD345: N/A | BE345: N/A | BF345: N/A | BG345: N/A | BH345: N/A | BI345: N/A | BJ345: N/A | BK345: N/A | BL345: N/A | BM345: N/A | BN345: N/A | BO345: N/A | BP345: N/A | BQ345: N/A | BR345: N/A | BS345: N/A | BT345: N/A | BU345: N/A
BB346: No | BC346: N/A | BD346: N/A | BE346: N/A | BF346: N/A | BG346: N/A | BH346: N/A | BI346: N/A | BJ346: N/A | BK346: N/A | BL346: N/A | BM346: N/A | BN346: N/A | BO346: N/A | BP346: N/A | BQ346: N/A | BR346: N/A | BS346: N/A | BT346: N/A | BU346: N/A
BA347: Use of Basic Sanitation and Hygiene | BB347: Yes | BC347: N/A | BD347: N/A | BE347: N/A | BF347: N/A | BG347: N/A | BH347: N/A | BI347: N/A | BJ347: N/A | BK347: N/A | BL347: N/A | BM347: N/A | BN347: N/A | BO347: N/A | BP347: N/A | BQ347: N/A | BR347: N/A | BS347: N/A | BT347: N/A | BU347: N/A
BB348: No | BC348: N/A | BD348: N/A | BE348: N/A | BF348: N/A | BG348: N/A | BH348: N/A | BI348: N/A | BJ348: N/A | BK348: N/A | BL348: N/A | BM348: N/A | BN348: N/A | BO348: N/A | BP348: N/A | BQ348: N/A | BR348: N/A | BS348: N/A | BT348: N/A | BU348: N/A
BA349: Use of Basic Water | BB349: Yes | BC349: N/A | BD349: N/A | BE349: N/A | BF349: N/A | BG349: N/A | BH349: N/A | BI349: N/A | BJ349: N/A | BK349: N/A | BL349: N/A | BM349: N/A | BN349: N/A | BO349: N/A | BP349: N/A | BQ349: N/A | BR349: N/A | BS349: N/A | BT349: N/A | BU349: N/A
BB350: No | BC350: N/A | BD350: N/A | BE350: N/A | BF350: N/A | BG350: N/A | BH350: N/A | BI350: N/A | BJ350: N/A | BK350: N/A | BL350: N/A | BM350: N/A | BN350: N/A | BO350: N/A | BP350: N/A | BQ350: N/A | BR350: N/A | BS350: N/A | BT350: N/A | BU350: N/A
BA351: Use of Basic Sanitation | BB351: Yes | BC351: N/A | BD351: N/A | BE351: N/A | BF351: N/A | BG351: N/A | BH351: N/A | BI351: N/A | BJ351: N/A | BK351: N/A | BL351: N/A | BM351: N/A | BN351: N/A | BO351: N/A | BP351: N/A | BQ351: N/A | BR351: N/A | BS351: N/A | BT351: N/A | BU351: N/A
BB352: No | BC352: N/A | BD352: N/A | BE352: N/A | BF352: N/A | BG352: N/A | BH352: N/A | BI352: N/A | BJ352: N/A | BK352: N/A | BL352: N/A | BM352: N/A | BN352: N/A | BO352: N/A | BP352: N/A | BQ352: N/A | BR352: N/A | BS352: N/A | BT352: N/A | BU352: N/A
BA353: Access to Basic Hygiene | BB353: Yes | BC353: N/A | BD353: N/A | BE353: N/A | BF353: N/A | BG353: N/A | BH353: N/A | BI353: N/A | BJ353: N/A | BK353: N/A | BL353: N/A | BM353: N/A | BN353: N/A | BO353: N/A | BP353: N/A | BQ353: N/A | BR353: N/A | BS353: N/A | BT353: N/A | BU353: N/A
BB354: No | BC354: N/A | BD354: N/A | BE354: N/A | BF354: N/A | BG354: N/A | BH354: N/A | BI354: N/A | BJ354: N/A | BK354: N/A | BL354: N/A | BM354: N/A | BN354: N/A | BO354: N/A | BP354: N/A | BQ354: N/A | BR354: N/A | BS354: N/A | BT354: N/A | BU354: N/A
C399: INITIAL (national) Wealth Index | H399: URBAN Wealth Index | M399: RURAL Wealth Index
C400: Component Matrix | H400: Component Matrix | M400: Component Matrix
E401: Component | J401: Component | O401: Component
B402: Note: The INITIAL (national) Wealth Index is based on the first component of the Principal Component Analysis (PCA) which has been obtained at national level. The final national-level (NATIONAL) Wealth Index is based on the URBAN and RURAL specific wealth indexes. Regression procedures are used to establish the relationships between the two sets of scores (urban and rural) and the initial (national) wealth factors. This allows best use of the available information for each area and a better precision of the FINAL (NATIONAL) Wealth Index. For dependency reasons, all WASH variables (contained in the generic MICS and DHS scripts) have been excluded from the sets of asset variables used in the PCAs. The PCA can extracts as many components as there are asset variables in the input. Only the first of the components is used to represent the Wealth Index. The scores represent the weights of the asset variables on the Wealth Index (correlations between the variables and the component). The communalities are the proportion of each variable's variance that can be explained by the component. Proportion of explained variance is the part of the model's total variance that is explained by the component. For more information on the procedure used: The DHS Wealth Index, DHS Comparative Reports No. 6, Shea Oscar Rutstein, Kiersten Johnson, ORC Macro International Inc., 2004. The DHS Wealth Index: Approaches for Rural and Urban Areas, Shea O. Rutstein, ORC Macro International Inc., 2008. MICS Methodological Paper No. 4, Review of options for reporting water, sanitation and hygiene coverage by wealth quintile, UNICEF, 2016. | E402: 1 | J402: 1 | O402: 1
C403: Bathtub/shower | E403: 0.7605418359 | H403: Bathtub/shower | J403: -0.6993942586 | M403: Has television | O403: 0.6682910091
C404: Vacuum cleaner | E404: 0.7176914743 | H404: Has clay tiles roof | J404: -0.6487915052 | M404: Washing machine | O404: 0.6434336601
C405: Household fuel type: natural gas | E405: 0.6588416258 | H405: Has calamine cement fiber roof | J405: 0.6203441084 | M405: Has telephone | O405: 0.6267817019
C406: Has clay tiles roof | E406: 0.6371374786 | H406: Vacuum cleaner | J406: -0.5741855072 | M406: Vacuum cleaner | O406: 0.6232212477
C407: Has telephone | E407: 0.6255478441 | H407: Household cooks in owm house | J407: -0.522220551 | M407: Has refrigerator | O407: 0.6093303434
C408: Has television | E408: 0.6086283692 | H408: Has planks wall | J408: 0.5118421781 | M408: Household cooks at open sky | O408: -0.5884194674
C409: Household cooks in owm house | E409: 0.6047027675 | H409: Has cement wall | J409: -0.4945531795 | M409: Bathtub/shower | O409: 0.5594290698
C410: Mobile telephone | E410: 0.6032695269 | H410: Mobile telephone | J410: -0.4770756637 | M410: VCR/DVD | O410: 0.5505757695
C411: Has refrigerator | E411: 0.5807326063 | H411: Has telephone | J411: -0.4708180428 | M411: Has car/truck | O411: 0.5317523384
C412: Washing machine | E412: 0.5678624148 | H412: 10+ chickens | J412: 0.4634300643 | M412: Mobile telephone | O412: 0.5265889352
C413: Household cooks at open sky | E413: -0.5615761631 | H413: Household fuel type: natural gas | J413: -0.4620886616 | M413: Fowl (Chickens) | O413: 0.4773827087
C414: Has calamine cement fiber roof | E414: -0.5489986949 | H414: Has television | J414: -0.4555168791 | M414: Has bicycle | O414: 0.4582899073
... 305 more rows

Sheet MICS12
A2: =A1026 -> Republic of Moldova
A3: =A1034 -> 2012
A4: Use of drinking water sources
A5: by wealth quintile and sub-national region
A6: Notes:
A7: WHO/UNICEF JMP customised wealth index excludes water,
A8: sanitation and hygiene assets.
A9: Survey used for analysis: | B9: =A1025 -> MICS12
A10: =B1028 -> 
A11: =B1027 -> 
A14: Use of drinking water sources | C14: NATIONAL wealth index quintile | H14: URBAN wealth index quintile | M14: RURAL wealth index quintile | R14: SUB-REGIONS: | BA14: Raw numbers of respondents: | BB14: Use of drinking water sources | BC14: NATIONAL wealth index quintile | BH14: URBAN wealth index quintile | BM14: RURAL wealth index quintile | BR14: SUB-REGIONS:
A15: Weighted percentage (used in graphs) | C15: Poorest | D15: Poor | E15: Middle | F15: Rich | G15: Richest | H15: Poorest | I15: Poor | J15: Middle | K15: Rich | L15: Richest | M15: Poorest | N15: Poor | O15: Middle | P15: Rich | Q15: Richest | R15: Center | S15: Chisinau | T15: North | U15: South | BA15: Water data, raw numbers (weighted) | BC15: Poorest | BD15: Poor | BE15: Middle | BF15: Rich | BG15: Richest | BH15: Poorest | BI15: Poor | BJ15: Middle | BK15: Rich | BL15: Richest | BM15: Poorest | BN15: Poor | BO15: Middle | BP15: Rich | BQ15: Richest | BR15: Center | BS15: Chisinau | BT15: North | BU15: South
A16: Water | B16: Improved | C16: 73.8 | D16: 82 | E16: 88.2 | F16: 93.7 | G16: 97.4 | H16: 89.4 | I16: 95.8 | J16: 96.3 | K16: 98 | L16: 99.3 | M16: 71.5 | N16: 77.5 | O16: 81.7 | P16: 86.3 | Q16: 92.1 | R16: 78.8 | S16: 98.6 | T16: 87.5 | U16: 87.5 | BA16: Water | BB16: Improved | BC16: N/A | BD16: N/A | BE16: N/A | BF16: N/A | BG16: N/A | BH16: N/A | BI16: N/A | BJ16: N/A | BK16: N/A | BL16: N/A | BM16: N/A | BN16: N/A | BO16: N/A | BP16: N/A | BQ16: N/A | BR16: N/A | BS16: N/A | BT16: N/A | BU16: N/A
B17: Not Improved | C17: 26.2 | D17: 18 | E17: 11.8 | F17: 6.3 | G17: 2.6 | H17: 10.6 | I17: 4.2 | J17: 3.7 | K17: 2 | L17: 0.7 | M17: 28.5 | N17: 22.5 | O17: 18.3 | P17: 13.7 | Q17: 7.9 | R17: 21.2 | S17: 1.4 | T17: 12.5 | U17: 12.5 | BB17: Not Improved | BC17: N/A | BD17: N/A | BE17: N/A | BF17: N/A | BG17: N/A | BH17: N/A | BI17: N/A | BJ17: N/A | BK17: N/A | BL17: N/A | BM17: N/A | BN17: N/A | BO17: N/A | BP17: N/A | BQ17: N/A | BR17: N/A | BS17: N/A | BT17: N/A | BU17: N/A
A18: Water ladder | B18: Basic | C18: 71.4 | D18: 80.7 | E18: 86.9 | F18: 92.6 | G18: 96.2 | H18: 87.6 | I18: 94.5 | J18: 94.9 | K18: 96.7 | L18: 98 | M18: 68.8 | N18: 75.6 | O18: 81.1 | P18: 85 | Q18: 91.3 | R18: 77 | S18: 98.3 | T18: 85.9 | U18: 86 | BA18: Water ladder | BB18: Basic | BC18: N/A | BD18: N/A | BE18: N/A | BF18: N/A | BG18: N/A | BH18: N/A | BI18: N/A | BJ18: N/A | BK18: N/A | BL18: N/A | BM18: N/A | BN18: N/A | BO18: N/A | BP18: N/A | BQ18: N/A | BR18: N/A | BS18: N/A | BT18: N/A | BU18: N/A
B19: Limited | C19: 2.1 | D19: 1.2 | E19: 1.2 | F19: 1.1 | G19: 1.1 | H19: 1.6 | I19: 1.2 | J19: 1.4 | K19: 1.3 | L19: 1.3 | M19: 2.2 | N19: 1.8 | O19: 0.6 | P19: 1.2 | Q19: 0.8 | R19: 1.6 | S19: 0.2 | T19: 1.7 | U19: 1.4 | BB19: Limited | BC19: N/A | BD19: N/A | BE19: N/A | BF19: N/A | BG19: N/A | BH19: N/A | BI19: N/A | BJ19: N/A | BK19: N/A | BL19: N/A | BM19: N/A | BN19: N/A | BO19: N/A | BP19: N/A | BQ19: N/A | BR19: N/A | BS19: N/A | BT19: N/A | BU19: N/A
B20: Unimproved | C20: 26.5 | D20: 18.1 | E20: 11.9 | F20: 6.3 | G20: 2.6 | H20: 10.7 | I20: 4.2 | J20: 3.7 | K20: 2 | L20: 0.7 | M20: 28.9 | N20: 22.6 | O20: 18.3 | P20: 13.7 | Q20: 7.9 | R20: 21.4 | S20: 1.4 | T20: 12.5 | U20: 12.6 | BB20: Unimproved | BC20: N/A | BD20: N/A | BE20: N/A | BF20: N/A | BG20: N/A | BH20: N/A | BI20: N/A | BJ20: N/A | BK20: N/A | BL20: N/A | BM20: N/A | BN20: N/A | BO20: N/A | BP20: N/A | BQ20: N/A | BR20: N/A | BS20: N/A | BT20: N/A | BU20: N/A
B21: Surface water | C21: 0 | D21: 0 | E21: 0 | F21: 0 | G21: 0 | H21: 0 | I21: 0 | J21: 0 | K21: 0 | L21: 0 | M21: 0 | N21: 0 | O21: 0 | P21: 0 | Q21: 0 | R21: 0 | S21: 0 | T21: 0 | U21: 0 | BB21: Surface water | BC21: N/A | BD21: N/A | BE21: N/A | BF21: N/A | BG21: N/A | BH21: N/A | BI21: N/A | BJ21: N/A | BK21: N/A | BL21: N/A | BM21: N/A | BN21: N/A | BO21: N/A | BP21: N/A | BQ21: N/A | BR21: N/A | BS21: N/A | BT21: N/A | BU21: N/A
A22: Improved water point at more than 30 minutes | B22: Yes | C22: 2.8 | D22: 1.4 | E22: 1.4 | F22: 1.2 | G22: 1.2 | H22: 1.8 | I22: 1.3 | J22: 1.5 | K22: 1.3 | L22: 1.3 | M22: 3.1 | N22: 2.3 | O22: 0.7 | P22: 1.4 | Q22: 0.9 | R22: 2.1 | S22: 0.3 | T22: 1.9 | U22: 1.6 | BA22: Improved water point at more than 30 minutes | BB22: Yes | BC22: N/A | BD22: N/A | BE22: N/A | BF22: N/A | BG22: N/A | BH22: N/A | BI22: N/A | BJ22: N/A | BK22: N/A | BL22: N/A | BM22: N/A | BN22: N/A | BO22: N/A | BP22: N/A | BQ22: N/A | BR22: N/A | BS22: N/A | BT22: N/A | BU22: N/A
B23: No | C23: 97.2 | D23: 98.6 | E23: 98.6 | F23: 98.8 | G23: 98.8 | H23: 98.2 | I23: 98.7 | J23: 98.5 | K23: 98.7 | L23: 98.7 | M23: 96.9 | N23: 97.7 | O23: 99.3 | P23: 98.6 | Q23: 99.1 | R23: 97.9 | S23: 99.7 | T23: 98.1 | U23: 98.4 | BB23: No | BC23: N/A | BD23: N/A | BE23: N/A | BF23: N/A | BG23: N/A | BH23: N/A | BI23: N/A | BJ23: N/A | BK23: N/A | BL23: N/A | BM23: N/A | BN23: N/A | BO23: N/A | BP23: N/A | BQ23: N/A | BR23: N/A | BS23: N/A | BT23: N/A | BU23: N/A
A24: Manually calculated ratios | B24: Improved wells
B25: Improved springs
B26: Other
C27: NATIONAL wealth index quintile | H27: URBAN wealth index quintile | M27: RURAL wealth index quintile | R27: SUB-REGIONS: | BA27: Raw numbers of respondents: | BB27: Use of drinking water sources | BC27: NATIONAL wealth index quintile | BH27: URBAN wealth index quintile | BM27: RURAL wealth index quintile | BR27: SUB-REGIONS:
A28: Percentage based on weighted population | C28: Poorest | D28: Poor | E28: Middle | F28: Rich | G28: Richest | H28: Poorest | I28: Poor | J28: Middle | K28: Rich | L28: Richest | M28: Poorest | N28: Poor | O28: Middle | P28: Rich | Q28: Richest | R28: Center | S28: Chisinau | T28: North | U28: South | BA28: Water data, raw numbers (weighted) | BC28: Poorest | BD28: Poor | BE28: Middle | BF28: Rich | BG28: Richest | BH28: Poorest | BI28: Poor | BJ28: Middle | BK28: Rich | BL28: Richest | BM28: Poorest | BN28: Poor | BO28: Middle | BP28: Rich | BQ28: Richest | BR28: Center | BS28: Chisinau | BT28: North | BU28: South
A29: Piped water | B29: Yes | C29: 22.2 | D29: 36.8 | E29: 48.2 | F29: 65 | G29: 84.4 | H29: 62.2 | I29: 78.7 | J29: 84.9 | K29: 88.2 | L29: 93.9 | M29: 17.9 | N29: 25.6 | O29: 33.5 | P29: 38.4 | Q29: 51.6 | R29: 41.5 | S29: 95.2 | T29: 31.3 | U29: 56 | BA29: Piped water | BB29: Yes | BC29: N/A | BD29: N/A | BE29: N/A | BF29: N/A | BG29: N/A | BH29: N/A | BI29: N/A | BJ29: N/A | BK29: N/A | BL29: N/A | BM29: N/A | BN29: N/A | BO29: N/A | BP29: N/A | BQ29: N/A | BR29: N/A | BS29: N/A | BT29: N/A | BU29: N/A
B30: No | C30: 77.8 | D30: 63.2 | E30: 51.8 | F30: 35 | G30: 15.6 | H30: 37.8 | I30: 21.3 | J30: 15.1 | K30: 11.8 | L30: 6.1 | M30: 82.1 | N30: 74.4 | O30: 66.5 | P30: 61.6 | Q30: 48.4 | R30: 58.5 | S30: 4.8 | T30: 68.7 | U30: 44 | BB30: No | BC30: N/A | BD30: N/A | BE30: N/A | BF30: N/A | BG30: N/A | BH30: N/A | BI30: N/A | BJ30: N/A | BK30: N/A | BL30: N/A | BM30: N/A | BN30: N/A | BO30: N/A | BP30: N/A | BQ30: N/A | BR30: N/A | BS30: N/A | BT30: N/A | BU30: N/A
A31: Piped water on premises | B31: Yes | C31: 20.8 | D31: 36.3 | E31: 47.7 | F31: 64.8 | G31: 84 | H31: 60.7 | I31: 78.6 | J31: 84.5 | K31: 88 | L31: 93.5 | M31: 16.2 | N31: 25.2 | O31: 32.9 | P31: 38.1 | Q31: 51.4 | R31: 40.8 | S31: 95.2 | T31: 30.8 | U31: 54.9 | BA31: Piped water on premises | BB31: Yes | BC31: N/A | BD31: N/A | BE31: N/A | BF31: N/A | BG31: N/A | BH31: N/A | BI31: N/A | BJ31: N/A | BK31: N/A | BL31: N/A | BM31: N/A | BN31: N/A | BO31: N/A | BP31: N/A | BQ31: N/A | BR31: N/A | BS31: N/A | BT31: N/A | BU31: N/A
B32: No | C32: 79.2 | D32: 63.7 | E32: 52.3 | F32: 35.2 | G32: 16 | H32: 39.3 | I32: 21.4 | J32: 15.5 | K32: 12 | L32: 6.5 | M32: 83.8 | N32: 74.8 | O32: 67.1 | P32: 61.9 | Q32: 48.6 | R32: 59.2 | S32: 4.8 | T32: 69.2 | U32: 45.1 | BB32: No | BC32: N/A | BD32: N/A | BE32: N/A | BF32: N/A | BG32: N/A | BH32: N/A | BI32: N/A | BJ32: N/A | BK32: N/A | BL32: N/A | BM32: N/A | BN32: N/A | BO32: N/A | BP32: N/A | BQ32: N/A | BR32: N/A | BS32: N/A | BT32: N/A | BU32: N/A
A33: Piped water into dwelling | B33: Yes | C33: N/A | D33: N/A | E33: N/A | F33: N/A | G33: N/A | H33: N/A | I33: N/A | J33: N/A | K33: N/A | L33: N/A | M33: N/A | N33: N/A | O33: N/A | P33: N/A | Q33: N/A | R33: N/A | S33: N/A | T33: N/A | U33: N/A | BA33: Piped water into dwelling | BB33: Yes | BC33: N/A | BD33: N/A | BE33: N/A | BF33: N/A | BG33: N/A | BH33: N/A | BI33: N/A | BJ33: N/A | BK33: N/A | BL33: N/A | BM33: N/A | BN33: N/A | BO33: N/A | BP33: N/A | BQ33: N/A | BR33: N/A | BS33: N/A | BT33: N/A | BU33: N/A
B34: No | C34: N/A | D34: N/A | E34: N/A | F34: N/A | G34: N/A | H34: N/A | I34: N/A | J34: N/A | K34: N/A | L34: N/A | M34: N/A | N34: N/A | O34: N/A | P34: N/A | Q34: N/A | R34: N/A | S34: N/A | T34: N/A | U34: N/A | BB34: No | BC34: N/A | BD34: N/A | BE34: N/A | BF34: N/A | BG34: N/A | BH34: N/A | BI34: N/A | BJ34: N/A | BK34: N/A | BL34: N/A | BM34: N/A | BN34: N/A | BO34: N/A | BP34: N/A | BQ34: N/A | BR34: N/A | BS34: N/A | BT34: N/A | BU34: N/A
A35: Water source on premises | B35: Yes | C35: 40.1 | D35: 58.6 | E35: 70.9 | F35: 82.9 | G35: 90.8 | H35: 69.7 | I35: 85.9 | J35: 89.3 | K35: 91.7 | L35: 94.2 | M35: 34.8 | N35: 49.1 | O35: 60.1 | P35: 67.9 | Q35: 79.5 | R35: 60.3 | S35: 96 | T35: 58.2 | U35: 71.8 | BA35: Water source on premises | BB35: Yes | BC35: N/A | BD35: N/A | BE35: N/A | BF35: N/A | BG35: N/A | BH35: N/A | BI35: N/A | BJ35: N/A | BK35: N/A | BL35: N/A | BM35: N/A | BN35: N/A | BO35: N/A | BP35: N/A | BQ35: N/A | BR35: N/A | BS35: N/A | BT35: N/A | BU35: N/A
B36: No | C36: 59.9 | D36: 41.4 | E36: 29.1 | F36: 17.1 | G36: 9.2 | H36: 30.3 | I36: 14.1 | J36: 10.7 | K36: 8.3 | L36: 5.8 | M36: 65.2 | N36: 50.9 | O36: 39.9 | P36: 32.1 | Q36: 20.5 | R36: 39.7 | S36: 4 | T36: 41.8 | U36: 28.2 | BB36: No | BC36: N/A | BD36: N/A | BE36: N/A | BF36: N/A | BG36: N/A | BH36: N/A | BI36: N/A | BJ36: N/A | BK36: N/A | BL36: N/A | BM36: N/A | BN36: N/A | BO36: N/A | BP36: N/A | BQ36: N/A | BR36: N/A | BS36: N/A | BT36: N/A | BU36: N/A
A37: Improved Water source on premises | B37: Yes | C37: 34.1 | D37: 52.7 | E37: 65 | F37: 80 | G37: 89.3 | H37: 65.8 | I37: 83.7 | J37: 87.6 | K37: 90.7 | L37: 94.1 | M37: 28.8 | N37: 42.5 | O37: 53.2 | P37: 61.5 | Q37: 75.3 | R37: 54.7 | S37: 95.8 | T37: 53.4 | U37: 65.5 | BA37: Improved water source on premises | BB37: Yes | BC37: N/A | BD37: N/A | BE37: N/A | BF37: N/A | BG37: N/A | BH37: N/A | BI37: N/A | BJ37: N/A | BK37: N/A | BL37: N/A | BM37: N/A | BN37: N/A | BO37: N/A | BP37: N/A | BQ37: N/A | BR37: N/A | BS37: N/A | BT37: N/A | BU37: N/A
B38: No | C38: 65.9 | D38: 47.3 | E38: 35 | F38: 20 | G38: 10.7 | H38: 34.2 | I38: 16.3 | J38: 12.4 | K38: 9.3 | L38: 5.9 | M38: 71.2 | N38: 57.5 | O38: 46.8 | P38: 38.5 | Q38: 24.7 | R38: 45.3 | S38: 4.2 | T38: 46.6 | U38: 34.5 | BB38: No | BC38: N/A | BD38: N/A | BE38: N/A | BF38: N/A | BG38: N/A | BH38: N/A | BI38: N/A | BJ38: N/A | BK38: N/A | BL38: N/A | BM38: N/A | BN38: N/A | BO38: N/A | BP38: N/A | BQ38: N/A | BR38: N/A | BS38: N/A | BT38: N/A | BU38: N/A
A39: Piped water on premises available when needed | B39: Yes | C39: N/A | D39: N/A | E39: N/A | F39: N/A | G39: N/A | H39: N/A | I39: N/A | J39: N/A | K39: N/A | L39: N/A | M39: N/A | N39: N/A | O39: N/A | P39: N/A | Q39: N/A | R39: N/A | S39: N/A | T39: N/A | U39: N/A | BA39: Piped water on premises available when needed | BB39: Yes | BC39: N/A | BD39: N/A | BE39: N/A | BF39: N/A | BG39: N/A | BH39: N/A | BI39: N/A | BJ39: N/A | BK39: N/A | BL39: N/A | BM39: N/A | BN39: N/A | BO39: N/A | BP39: N/A | BQ39: N/A | BR39: N/A | BS39: N/A | BT39: N/A | BU39: N/A
B40: No | C40: N/A | D40: N/A | E40: N/A | F40: N/A | G40: N/A | H40: N/A | I40: N/A | J40: N/A | K40: N/A | L40: N/A | M40: N/A | N40: N/A | O40: N/A | P40: N/A | Q40: N/A | R40: N/A | S40: N/A | T40: N/A | U40: N/A | BB40: No | BC40: N/A | BD40: N/A | BE40: N/A | BF40: N/A | BG40: N/A | BH40: N/A | BI40: N/A | BJ40: N/A | BK40: N/A | BL40: N/A | BM40: N/A | BN40: N/A | BO40: N/A | BP40: N/A | BQ40: N/A | BR40: N/A | BS40: N/A | BT40: N/A | BU40: N/A
A41: Water point at more than 30 minutes | B41: Yes | C41: 3 | D41: 1.6 | E41: 1.3 | F41: 1.3 | G41: 1.1 | H41: 2 | I41: 1.2 | J41: 1.5 | K41: 1.3 | L41: 1.3 | M41: 3.4 | N41: 2.2 | O41: 1 | P41: 1.2 | Q41: 1 | R41: 2.3 | S41: 0.3 | T41: 1.9 | U41: 1.5 | BA41: Water point at more than 30 minutes | BB41: Yes | BC41: N/A | BD41: N/A | BE41: N/A | BF41: N/A | BG41: N/A | BH41: N/A | BI41: N/A | BJ41: N/A | BK41: N/A | BL41: N/A | BM41: N/A | BN41: N/A | BO41: N/A | BP41: N/A | BQ41: N/A | BR41: N/A | BS41: N/A | BT41: N/A | BU41: N/A
B42: No | C42: 97 | D42: 98.4 | E42: 98.7 | F42: 98.7 | G42: 98.9 | H42: 98 | I42: 98.8 | J42: 98.5 | K42: 98.7 | L42: 98.7 | M42: 96.6 | N42: 97.8 | O42: 99 | P42: 98.8 | Q42: 99 | R42: 97.7 | S42: 99.7 | T42: 98.1 | U42: 98.5 | BB42: No | BC42: N/A | BD42: N/A | BE42: N/A | BF42: N/A | BG42: N/A | BH42: N/A | BI42: N/A | BJ42: N/A | BK42: N/A | BL42: N/A | BM42: N/A | BN42: N/A | BO42: N/A | BP42: N/A | BQ42: N/A | BR42: N/A | BS42: N/A | BT42: N/A | BU42: N/A
A43: Water source available when needed | B43: Yes | C43: N/A | D43: N/A | E43: N/A | F43: N/A | G43: N/A | H43: N/A | I43: N/A | J43: N/A | K43: N/A | L43: N/A | M43: N/A | N43: N/A | O43: N/A | P43: N/A | Q43: N/A | R43: N/A | S43: N/A | T43: N/A | U43: N/A | BA43: Water source available when needed | BB43: Yes | BC43: N/A | BD43: N/A | BE43: N/A | BF43: N/A | BG43: N/A | BH43: N/A | BI43: N/A | BJ43: N/A | BK43: N/A | BL43: N/A | BM43: N/A | BN43: N/A | BO43: N/A | BP43: N/A | BQ43: N/A | BR43: N/A | BS43: N/A | BT43: N/A | BU43: N/A
B44: No | C44: N/A | D44: N/A | E44: N/A | F44: N/A | G44: N/A | H44: N/A | I44: N/A | J44: N/A | K44: N/A | L44: N/A | M44: N/A | N44: N/A | O44: N/A | P44: N/A | Q44: N/A | R44: N/A | S44: N/A | T44: N/A | U44: N/A | BB44: No | BC44: N/A | BD44: N/A | BE44: N/A | BF44: N/A | BG44: N/A | BH44: N/A | BI44: N/A | BJ44: N/A | BK44: N/A | BL44: N/A | BM44: N/A | BN44: N/A | BO44: N/A | BP44: N/A | BQ44: N/A | BR44: N/A | BS44: N/A | BT44: N/A | BU44: N/A
A45: Improved water source available when needed | B45: Yes | C45: N/A | D45: N/A | E45: N/A | F45: N/A | G45: N/A | H45: N/A | I45: N/A | J45: N/A | K45: N/A | L45: N/A | M45: N/A | N45: N/A | O45: N/A | P45: N/A | Q45: N/A | R45: N/A | S45: N/A | T45: N/A | U45: N/A | BA45: Improved water source available when needed | BB45: Yes | BC45: N/A | BD45: N/A | BE45: N/A | BF45: N/A | BG45: N/A | BH45: N/A | BI45: N/A | BJ45: N/A | BK45: N/A | BL45: N/A | BM45: N/A | BN45: N/A | BO45: N/A | BP45: N/A | BQ45: N/A | BR45: N/A | BS45: N/A | BT45: N/A | BU45: N/A
B46: No | C46: N/A | D46: N/A | E46: N/A | F46: N/A | G46: N/A | H46: N/A | I46: N/A | J46: N/A | K46: N/A | L46: N/A | M46: N/A | N46: N/A | O46: N/A | P46: N/A | Q46: N/A | R46: N/A | S46: N/A | T46: N/A | U46: N/A | BB46: No | BC46: N/A | BD46: N/A | BE46: N/A | BF46: N/A | BG46: N/A | BH46: N/A | BI46: N/A | BJ46: N/A | BK46: N/A | BL46: N/A | BM46: N/A | BN46: N/A | BO46: N/A | BP46: N/A | BQ46: N/A | BR46: N/A | BS46: N/A | BT46: N/A | BU46: N/A
A47: Microbiological quality at point of collection | B47: Not contaminated (No E. coli in 100 mL) | C47: N/A | D47: N/A | E47: N/A | F47: N/A | G47: N/A | H47: N/A | I47: N/A | J47: N/A | K47: N/A | L47: N/A | M47: N/A | N47: N/A | O47: N/A | P47: N/A | Q47: N/A | R47: N/A | S47: N/A | T47: N/A | U47: N/A | BA47: Microbiological quality at point of collection | BB47: Not contaminated (No E. coli in 100 mL) | BC47: N/A | BD47: N/A | BE47: N/A | BF47: N/A | BG47: N/A | BH47: N/A | BI47: N/A | BJ47: N/A | BK47: N/A | BL47: N/A | BM47: N/A | BN47: N/A | BO47: N/A | BP47: N/A | BQ47: N/A | BR47: N/A | BS47: N/A | BT47: N/A | BU47: N/A
B48: Contaminated (E. coli detected in 100 mL) | C48: N/A | D48: N/A | E48: N/A | F48: N/A | G48: N/A | H48: N/A | I48: N/A | J48: N/A | K48: N/A | L48: N/A | M48: N/A | N48: N/A | O48: N/A | P48: N/A | Q48: N/A | R48: N/A | S48: N/A | T48: N/A | U48: N/A | BB48: Contaminated (E. coli detected in 100 mL) | BC48: N/A | BD48: N/A | BE48: N/A | BF48: N/A | BG48: N/A | BH48: N/A | BI48: N/A | BJ48: N/A | BK48: N/A | BL48: N/A | BM48: N/A | BN48: N/A | BO48: N/A | BP48: N/A | BQ48: N/A | BR48: N/A | BS48: N/A | BT48: N/A | BU48: N/A
B49: Highly contaminated (>100 CFU/100 mL) | C49: N/A | D49: N/A | E49: N/A | F49: N/A | G49: N/A | H49: N/A | I49: N/A | J49: N/A | K49: N/A | L49: N/A | M49: N/A | N49: N/A | O49: N/A | P49: N/A | Q49: N/A | R49: N/A | S49: N/A | T49: N/A | U49: N/A | BB49: Highly contaminated (>100 CFU/100 mL) | BC49: N/A | BD49: N/A | BE49: N/A | BF49: N/A | BG49: N/A | BH49: N/A | BI49: N/A | BJ49: N/A | BK49: N/A | BL49: N/A | BM49: N/A | BN49: N/A | BO49: N/A | BP49: N/A | BQ49: N/A | BR49: N/A | BS49: N/A | BT49: N/A | BU49: N/A
A50: Microbiological quality of improved water sources at point of collection | B50: Not contaminated (No E. coli in 100 mL) | C50: N/A | D50: N/A | E50: N/A | F50: N/A | G50: N/A | H50: N/A | I50: N/A | J50: N/A | K50: N/A | L50: N/A | M50: N/A | N50: N/A | O50: N/A | P50: N/A | Q50: N/A | R50: N/A | S50: N/A | T50: N/A | U50: N/A | BA50: Microbiological quality of improved water sources at point of collection | BB50: Not contaminated (No E. coli in 100 mL) | BC50: N/A | BD50: N/A | BE50: N/A | BF50: N/A | BG50: N/A | BH50: N/A | BI50: N/A | BJ50: N/A | BK50: N/A | BL50: N/A | BM50: N/A | BN50: N/A | BO50: N/A | BP50: N/A | BQ50: N/A | BR50: N/A | BS50: N/A | BT50: N/A | BU50: N/A
B51: Contaminated (E. coli detected in 100 mL) | C51: N/A | D51: N/A | E51: N/A | F51: N/A | G51: N/A | H51: N/A | I51: N/A | J51: N/A | K51: N/A | L51: N/A | M51: N/A | N51: N/A | O51: N/A | P51: N/A | Q51: N/A | R51: N/A | S51: N/A | T51: N/A | U51: N/A | BB51: Contaminated (E. coli detected in 100 mL) | BC51: N/A | BD51: N/A | BE51: N/A | BF51: N/A | BG51: N/A | BH51: N/A | BI51: N/A | BJ51: N/A | BK51: N/A | BL51: N/A | BM51: N/A | BN51: N/A | BO51: N/A | BP51: N/A | BQ51: N/A | BR51: N/A | BS51: N/A | BT51: N/A | BU51: N/A
B52: Highly contaminated (>100 CFU/100 mL) | C52: N/A | D52: N/A | E52: N/A | F52: N/A | G52: N/A | H52: N/A | I52: N/A | J52: N/A | K52: N/A | L52: N/A | M52: N/A | N52: N/A | O52: N/A | P52: N/A | Q52: N/A | R52: N/A | S52: N/A | T52: N/A | U52: N/A | BB52: Highly contaminated (>100 CFU/100 mL) | BC52: N/A | BD52: N/A | BE52: N/A | BF52: N/A | BG52: N/A | BH52: N/A | BI52: N/A | BJ52: N/A | BK52: N/A | BL52: N/A | BM52: N/A | BN52: N/A | BO52: N/A | BP52: N/A | BQ52: N/A | BR52: N/A | BS52: N/A | BT52: N/A | BU52: N/A
A53: Microbiological quality of piped on premises at point of collection | B53: Not contaminated (No E. coli in 100 mL) | C53: N/A | D53: N/A | E53: N/A | F53: N/A | G53: N/A | H53: N/A | I53: N/A | J53: N/A | K53: N/A | L53: N/A | M53: N/A | N53: N/A | O53: N/A | P53: N/A | Q53: N/A | R53: N/A | S53: N/A | T53: N/A | U53: N/A | BA53: Microbiological quality of piped on premises at point of collection | BB53: Not contaminated (No E. coli in 100 mL) | BC53: N/A | BD53: N/A | BE53: N/A | BF53: N/A | BG53: N/A | BH53: N/A | BI53: N/A | BJ53: N/A | BK53: N/A | BL53: N/A | BM53: N/A | BN53: N/A | BO53: N/A | BP53: N/A | BQ53: N/A | BR53: N/A | BS53: N/A | BT53: N/A | BU53: N/A
B54: Contaminated (E. coli detected in 100 mL) | C54: N/A | D54: N/A | E54: N/A | F54: N/A | G54: N/A | H54: N/A | I54: N/A | J54: N/A | K54: N/A | L54: N/A | M54: N/A | N54: N/A | O54: N/A | P54: N/A | Q54: N/A | R54: N/A | S54: N/A | T54: N/A | U54: N/A | BB54: Contaminated (E. coli detected in 100 mL) | BC54: N/A | BD54: N/A | BE54: N/A | BF54: N/A | BG54: N/A | BH54: N/A | BI54: N/A | BJ54: N/A | BK54: N/A | BL54: N/A | BM54: N/A | BN54: N/A | BO54: N/A | BP54: N/A | BQ54: N/A | BR54: N/A | BS54: N/A | BT54: N/A | BU54: N/A
B55: Highly contaminated (>100 CFU/100 mL) | C55: N/A | D55: N/A | E55: N/A | F55: N/A | G55: N/A | H55: N/A | I55: N/A | J55: N/A | K55: N/A | L55: N/A | M55: N/A | N55: N/A | O55: N/A | P55: N/A | Q55: N/A | R55: N/A | S55: N/A | T55: N/A | U55: N/A | BB55: Highly contaminated (>100 CFU/100 mL) | BC55: N/A | BD55: N/A | BE55: N/A | BF55: N/A | BG55: N/A | BH55: N/A | BI55: N/A | BJ55: N/A | BK55: N/A | BL55: N/A | BM55: N/A | BN55: N/A | BO55: N/A | BP55: N/A | BQ55: N/A | BR55: N/A | BS55: N/A | BT55: N/A | BU55: N/A
C56: NATIONAL wealth index quintile | H56: URBAN wealth index quintile | M56: RURAL wealth index quintile | R56: SUB-REGIONS: | BA56: Raw numbers of respondents: | BB56: Use of drinking water sources | BC56: NATIONAL wealth index quintile | BH56: URBAN wealth index quintile | BM56: RURAL wealth index quintile | BR56: SUB-REGIONS:
A57: Percentage based on weighted population | C57: Poorest | D57: Poor | E57: Middle | F57: Rich | G57: Richest | H57: Poorest | I57: Poor | J57: Middle | K57: Rich | L57: Richest | M57: Poorest | N57: Poor | O57: Middle | P57: Rich | Q57: Richest | R57: Center | S57: Chisinau | T57: North | U57: South | BA57: Water data, raw numbers (weighted) | BC57: Poorest | BD57: Poor | BE57: Middle | BF57: Rich | BG57: Richest | BH57: Poorest | BI57: Poor | BJ57: Middle | BK57: Rich | BL57: Richest | BM57: Poorest | BN57: Poor | BO57: Middle | BP57: Rich | BQ57: Richest | BR57: Center | BS57: Chisinau | BT57: North | BU57: South
A58: Main source of drinking water | B58: Piped into dwelling | C58: 5.8 | D58: 18.2 | E58: 35.3 | F58: 53.9 | G58: 67.2 | H58: 44.1 | I58: 68.7 | J58: 71.2 | K58: 73.2 | L58: 69.4 | M58: 2.5 | N58: 8.1 | O58: 15.2 | P58: 26.8 | Q58: 41.2 | R58: 24.3 | S58: 78.5 | T58: 21.4 | U58: 36.5
B59: Piped into compound, yard or plot | C59: 14.8 | D59: 17.2 | E59: 10.9 | F59: 6.1 | G59: 1.5 | H59: 13.2 | I59: 5 | J59: 1.9 | K59: 1 | L59: 0.2 | M59: 13.5 | N59: 17 | O59: 17.7 | P59: 11 | Q59: 8.5 | R59: 15 | S59: 1.4 | T59: 6.8 | U59: 16.3
B60: Piped to neighbour | C60: 1.1 | D60: 0.2 | E60: 0.4 | F60: 0.2 | G60: 0 | H60: 0.9 | I60: 0 | J60: 0.3 | K60: 0 | L60: 0 | M60: 1.5 | N60: 0.1 | O60: 0.4 | P60: 0.1 | Q60: 0.1 | R60: 0.5 | S60: 0.1 | T60: 0.1 | U60: 0.8
B61: Public tap / standpipe | C61: 0.3 | D61: 0.2 | E61: 0.1 | F61: 0 | G61: 0.4 | H61: 0.5 | I61: 0.1 | J61: 0.2 | K61: 0.2 | L61: 0.4 | M61: 0.3 | N61: 0.2 | O61: 0.2 | P61: 0.1 | Q61: 0.1 | R61: 0.2 | S61: 0 | T61: 0.3 | U61: 0.3
B62: Tube well, Borehole | C62: 0.6 | D62: 0.7 | E62: 1.1 | F62: 0.8 | G62: 0.5 | H62: 0.2 | I62: 0.4 | J62: 0.2 | K62: 0.4 | L62: 0.4 | M62: 0.6 | N62: 0.4 | O62: 1.7 | P62: 1.1 | Q62: 1 | R62: 0.4 | S62: 0.1 | T62: 1.2 | U62: 1.1
B63: Protected well | C63: 46.6 | D63: 40.6 | E63: 35.7 | F63: 24.2 | G63: 8.4 | H63: 23.9 | I63: 12.8 | J63: 7.4 | K63: 5.3 | L63: 1.1 | M63: 48.6 | N63: 46.3 | O63: 43.7 | P63: 43.7 | Q63: 35.4 | R63: 33.8 | S63: 2 | T63: 50.7 | U63: 23.6
B64: Unprotected well | C64: 24 | D64: 16.6 | E64: 10.7 | F64: 5.5 | G64: 1.8 | H64: 8.5 | I64: 2.7 | J64: 2.4 | K64: 1.1 | L64: 0.2 | M64: 26.3 | N64: 21.2 | O64: 16.7 | P64: 13.1 | Q64: 7.3 | R64: 19.9 | S64: 0.7 | T64: 11.9 | U64: 9.5
B65: Protected spring | C65: 3 | D65: 3.7 | E65: 2.3 | F65: 2.4 | G65: 3.5 | H65: 2.6 | I65: 3.3 | J65: 2.7 | K65: 3.7 | L65: 3.5 | M65: 2.9 | N65: 4.4 | O65: 2.5 | P65: 2.1 | Q65: 2.5 | R65: 2.1 | S65: 1 | T65: 3.8 | U65: 4.9
B66: Unprotected spring | C66: 1.4 | D66: 0.7 | E66: 0.5 | F66: 0.1 | G66: 0.4 | H66: 0.4 | I66: 0.4 | J66: 0.3 | K66: 0.4 | L66: 0 | M66: 1.5 | N66: 0.9 | O66: 1 | P66: 0.2 | Q66: 0.3 | R66: 1 | S66: 0.2 | T66: 0.5 | U66: 0.5
B67: Rainwater collection | C67: 0 | D67: 0 | E67: 0 | F67: 0 | G67: 0 | H67: 0 | I67: 0 | J67: 0 | K67: 0 | L67: 0 | M67: 0 | N67: 0 | O67: 0 | P67: 0 | Q67: 0 | R67: 0 | S67: 0 | T67: 0 | U67: 0
B68: Tanker-truck | C68: 1 | D68: 0.1 | E68: 0.6 | F68: 0.4 | G68: 0.1 | H68: 0 | I68: 0 | J68: 0 | K68: 0 | L68: 0 | M68: 1.1 | N68: 0.6 | O68: 0.2 | P68: 1 | Q68: 0.7 | R68: 0.4 | S68: 0 | T68: 0 | U68: 1.7
B69: Cart with small tank / drum | C69: 0.1 | D69: 0 | E69: 0 | F69: 0 | G69: 0 | H69: 0 | I69: 0 | J69: 0 | K69: 0.1 | L69: 0 | M69: 0 | N69: 0.1 | O69: 0 | P69: 0 | Q69: 0 | R69: 0 | S69: 0 | T69: 0 | U69: 0
B70: Bottled water | C70: 0.4 | D70: 1.1 | E70: 1.8 | F70: 5.7 | G70: 15.8 | H70: 3.8 | I70: 5.4 | J70: 12.3 | K70: 14.1 | L70: 24.3 | M70: 0.5 | N70: 0.3 | O70: 0.2 | P70: 0.4 | Q70: 2.5 | R70: 2 | S70: 15.5 | T70: 3.1 | U70: 2.1
B71: Other | C71: 0.8 | D71: 0.8 | E71: 0.6 | F71: 0.7 | G71: 0.5 | H71: 1.8 | I71: 1.2 | J71: 0.9 | K71: 0.5 | L71: 0.5 | M71: 0.7 | N71: 0.5 | O71: 0.6 | P71: 0.3 | Q71: 0.4 | R71: 0.3 | S71: 0.5 | T71: 0 | U71: 2.5
A108: =A1026 -> Republic of Moldova
A109: =A1034 -> 2012
A110: Use of sanitation facilities
A111: by wealth quintile and sub-national region
A112: Notes:
A113: WHO/UNICEF JMP customised wealth index excludes water,
A114: sanitation and hygiene assets.
A115: Survey used for analysis: | B115: =A1025 -> MICS12
A116: =B1030 -> 
A117: =B1029 -> 
A120: Use of sanitation facilities | C120: NATIONAL wealth index quintile | H120: URBAN wealth index quintile | M120: RURAL wealth index quintile | R120: SUB-REGIONS: | BA120: Raw numbers of respondents: | BB120: Use of sanitation facilities | BC120: NATIONAL wealth index quintile | BH120: URBAN wealth index quintile | BM120: RURAL wealth index quintile | BR120: SUB-REGIONS:
A121: Weighted percentage (used in graphs) | C121: Poorest | D121: Poor | E121: Middle | F121: Rich | G121: Richest | H121: Poorest | I121: Poor | J121: Middle | K121: Rich | L121: Richest | M121: Poorest | N121: Poor | O121: Middle | P121: Rich | Q121: Richest | R121: Center | S121: Chisinau | T121: North | U121: South | BA121: Sanitation data, raw numbers (weighted) | BC121: Poorest | BD121: Poor | BE121: Middle | BF121: Rich | BG121: Richest | BH121: Poorest | BI121: Poor | BJ121: Middle | BK121: Rich | BL121: Richest | BM121: Poorest | BN121: Poor | BO121: Middle | BP121: Rich | BQ121: Richest | BR121: Center | BS121: Chisinau | BT121: North | BU121: South
A122: Sanitation | B122: Improved | C122: 60.80769964 | D122: 68.68820289 | E122: 76.76362515 | F122: 88.62887645 | G122: 97.13980053 | H122: 87.06047083 | I122: 93.03457595 | J122: 97.36829547 | K122: 98.88060626 | L122: 99.89800704 | M122: 56.7396215 | N122: 64.10249504 | O122: 65.35330194 | P122: 71.8767558 | Q122: 84.04100842 | R122: 70.82683773 | S122: 98.99194871 | T122: 78.49320354 | U122: 69.66295265 | BA122: Sanitation | BB122: Improved | BC122: 3502.517009 | BD122: 3953.926487 | BE122: 4419.66757 | BF122: 5105.579142 | BG122: 5589.762209 | BH122: 1865.254638 | BI122: 1993.821263 | BJ122: 2087.371538 | BK122: 2118.221029 | BL122: 2140.431778 | BM122: 2054.930292 | BN122: 2313.122504 | BO122: 2362.878746 | BP122: 2598.902872 | BQ122: 3036.517756 | BR122: 6151.218569 | BS122: 5446.115168 | BT122: 7126.244262 | BU122: 3847.874418
B123: Not Improved | C123: 39.19230036 | D123: 31.31179711 | E123: 23.23637485 | F123: 11.37112355 | G123: 2.86019947 | H123: 12.93952917 | I123: 6.965424048 | J123: 2.631704527 | K123: 1.119393737 | L123: 0.1019929584 | M123: 43.2603785 | N123: 35.89750496 | O123: 34.64669806 | P123: 28.1232442 | Q123: 15.95899158 | R123: 29.17316227 | S123: 1.008051288 | T123: 21.50679646 | U123: 30.33704735 | BB123: Not Improved | BC123: 2257.472318 | BD123: 1802.413497 | BE123: 1337.834843 | BF123: 655.0480335 | BG123: 164.5858322 | BH123: 277.2270419 | BI123: 149.2757981 | BJ123: 56.4182119 | BK123: 23.97966035 | BL123: 2.185318565 | BM123: 1566.754586 | BN123: 1295.35249 | BO123: 1252.667334 | BP123: 1016.873665 | BQ123: 576.6204166 | BR123: 2533.651131 | BS123: 55.45868611 | BT123: 1952.559941 | BU123: 1675.684764
A124: Sanitation ladder | B124: Basic | C124: =C122*C129/100 -> 52.56652911 | D124: =D122*D129/100 -> 59.43561355 | E124: =E122*E129/100 -> 67.7881891 | F124: 78.22237403 | G124: 90.31074945 | H124: 67.41311218 | I124: 81.50142413 | J124: 88.01839675 | K124: 90.33405773 | L124: 95.42825725 | M124: 50.74813685 | N124: 56.5724691 | O124: 58.97510746 | P124: 63.23231146 | Q124: 74.70775607 | R124: 64.75801942 | S124: 86.44623065 | T124: 68.25111922 | U124: 62.97578839 | BA124: Sanitation ladder | BB124: Basic | BC124: 3027.826466 | BD124: 3421.315987 | BE124: 3902.906623 | BF124: 4506.099335 | BG124: 5196.794841 | BH124: 1444.313578 | BI124: 1746.654626 | BJ124: 1886.929368 | BK124: 1935.136808 | BL124: 2044.662155 | BM124: 1837.937598 | BN124: 2041.403401 | BO124: 2132.272186 | BP124: 2286.339082 | BQ124: 2699.294452 | BR124: 5624.149607 | BS124: 4755.903223 | BT124: 6196.38548 | BU124: 3478.504942
B125: Limited | C125: =C122*C128/100 -> 8.241170532 | D125: =D122*D128/100 -> 9.252589343 | E125: =E122*E128/100 -> 8.975436045 | F125: 10.40650242 | G125: 6.829051083 | H125: 19.64735865 | I125: 11.53315182 | J125: 9.349898724 | K125: 8.546548536 | L125: 4.469749791 | M125: 5.991484645 | N125: 7.530025942 | O125: 6.378194477 | P125: 8.644444339 | Q125: 9.333252351 | R125: 6.068818302 | S125: 12.54571806 | T125: 10.24208432 | U125: 6.687164261 | BB125: Limited | BC125: 474.690543 | BD125: 532.6104999 | BE125: 516.7609468 | BF125: 599.4798065 | BG125: 392.9673672 | BH125: 420.9410598 | BI125: 247.1666378 | BJ125: 200.4421705 | BK125: 183.0842217 | BL125: 95.76962318 | BM125: 216.9926934 | BN125: 271.7191031 | BO125: 230.6065604 | BP125: 312.5637902 | BQ125: 337.2233034 | BR125: 527.0689619 | BS125: 690.2119445 | BT125: 929.8587815 | BU125: 369.3694756
B126: Unimproved | C126: =100-C124-C125-C127 -> 38.6763009 | D126: =100-D124-D125-D127 -> 31.31179711 | E126: =100-E124-E125-E127 -> 23.23637485 | F126: 11.37112355 | G126: 2.86019947 | H126: 12.88319716 | I126: 6.965424048 | J126: 2.631704527 | K126: 1.119393737 | L126: 0.1019929584 | M126: 42.47304852 | N126: 35.89750496 | O126: 34.64669806 | P126: 28.1232442 | Q126: 15.95899158 | R126: 29.10926828 | S126: 1.008051288 | T126: 21.25383914 | U126: 30.31519725 | BB126: Unimproved | BC126: 2227.750804 | BD126: 1802.413497 | BE126: 1337.834843 | BF126: 655.0480335 | BG126: 164.5858322 | BH126: 276.0201389 | BI126: 149.2757981 | BJ126: 56.4182119 | BK126: 23.97966035 | BL126: 2.185318565 | BM126: 1538.239976 | BN126: 1295.35249 | BO126: 1252.667334 | BP126: 1016.873665 | BQ126: 576.6204166 | BR126: 2528.10202 | BS126: 55.45868611 | BT126: 1929.594441 | BU126: 1674.477861
B127: Open defecation | C127: 0.5159994603 | D127: 0 | E127: 0 | F127: 0 | G127: 0 | H127: 0.05633201079 | I127: 0 | J127: 0 | K127: 0 | L127: 0 | M127: 0.7873299801 | N127: 0 | O127: 0 | P127: 0 | Q127: 0 | R127: 0.06389399772 | S127: 0 | T127: 0.2529573264 | U127: 0.02185009649 | BB127: Open defecation | BC127: 29.72151384 | BD127: 0 | BE127: 0 | BF127: 0 | BG127: 0 | BH127: 1.206903011 | BI127: 0 | BJ127: 0 | BK127: 0 | BL127: 0 | BM127: 28.51461083 | BN127: 0 | BO127: 0 | BP127: 0 | BQ127: 0 | BR127: 5.549110448 | BS127: 0 | BT127: 22.96550038 | BU127: 1.206903011
A128: Shared among Improved Sanitation | B128: Yes | C128: 13.55284048 | D128: 13.47041989 | E128: 11.69230352 | F128: 11.74166123 | G128: 7.030126731 | H128: 22.56748495 | I128: 12.39662965 | J128: 9.602611074 | K128: 8.643301107 | L128: 4.474313275 | M128: 10.55961335 | N128: 11.74685312 | O128: 9.759559637 | P128: 12.0267592 | Q128: 11.105593 | R128: 8.568529243 | S128: 12.67347317 | T128: 13.04837089 | U128: 9.599312125 | BA128: Shared among improved sanitation facilities | BB128: Yes | BC128: N/A | BD128: N/A | BE128: N/A | BF128: N/A | BG128: N/A | BH128: N/A | BI128: N/A | BJ128: N/A | BK128: N/A | BL128: N/A | BM128: N/A | BN128: N/A | BO128: N/A | BP128: N/A | BQ128: N/A | BR128: N/A | BS128: N/A | BT128: N/A | BU128: N/A
B129: No | C129: 86.44715952 | D129: 86.52958011 | E129: 88.30769648 | F129: 88.25833877 | G129: 92.96987327 | H129: 77.43251505 | I129: 87.60337035 | J129: 90.39738893 | K129: 91.35669889 | L129: 95.52568672 | M129: 89.44038665 | N129: 88.25314688 | O129: 90.24044036 | P129: 87.9732408 | Q129: 88.894407 | R129: 91.43147076 | S129: 87.32652683 | T129: 86.95162911 | U129: 90.40068787 | BB129: No | BC129: N/A | BD129: N/A | BE129: N/A | BF129: N/A | BG129: N/A | BH129: N/A | BI129: N/A | BJ129: N/A | BK129: N/A | BL129: N/A | BM129: N/A | BN129: N/A | BO129: N/A | BP129: N/A | BQ129: N/A | BR129: N/A | BS129: N/A | BT129: N/A | BU129: N/A
A130: Manually calculated ratios | B130: Improved latrines
B131: Other
B132: Other
C133: NATIONAL wealth index quintile | H133: URBAN wealth index quintile | M133: RURAL wealth index quintile | R133: SUB-REGIONS: | BA133: Raw numbers of respondents: | BB133: Use of sanitation facilities | BC133: NATIONAL wealth index quintile | BH133: URBAN wealth index quintile | BM133: RURAL wealth index quintile | BR133: SUB-REGIONS:
A134: Percentage based on weighted population | C134: Poorest | D134: Poor | E134: Middle | F134: Rich | G134: Richest | H134: Poorest | I134: Poor | J134: Middle | K134: Rich | L134: Richest | M134: Poorest | N134: Poor | O134: Middle | P134: Rich | Q134: Richest | R134: Center | S134: Chisinau | T134: North | U134: South | BA134: Sanitation data, raw numbers (weighted) | BC134: Poorest | BD134: Poor | BE134: Middle | BF134: Rich | BG134: Richest | BH134: Poorest | BI134: Poor | BJ134: Middle | BK134: Rich | BL134: Richest | BM134: Poorest | BN134: Poor | BO134: Middle | BP134: Rich | BQ134: Richest | BR134: Center | BS134: Chisinau | BT134: North | BU134: South
A135: Sanitation type | B135: Sewer connection | C135: 2.438208363 | D135: 7.536896781 | E135: 17.73208773 | F135: 36.11200473 | G135: 71.89895378 | H135: 33.35220284 | I135: 55.33429926 | J135: 71.34037844 | K135: 78.58884959 | L135: 93.58019401 | M135: 0.6978186528 | N135: 1.342385163 | O135: 1.708200127 | P135: 4.941700545 | Q135: 10.52378439 | R135: 10.20114772 | S135: 87.72476508 | T135: 16.26768168 | U135: 11.2916184 | BA135: Sanitation type | BB135: Sewer connection | BC135: N/A | BD135: N/A | BE135: N/A | BF135: N/A | BG135: N/A | BH135: N/A | BI135: N/A | BJ135: N/A | BK135: N/A | BL135: N/A | BM135: N/A | BN135: N/A | BO135: N/A | BP135: N/A | BQ135: N/A | BR135: N/A | BS135: N/A | BT135: N/A | BU135: N/A
B136: Septic tank connection | C136: 0.3625213867 | D136: 1.343648725 | E136: 5.057990344 | F136: 10.04915996 | G136: 8.548926663 | H136: 4.095338577 | I136: 7.120082303 | J136: 8.491710588 | K136: 9.121598521 | L136: 3.895747354 | M136: 0.2068024208 | N136: 0.5558448598 | O136: 1.505381439 | P136: 5.215920461 | Q136: 13.51866981 | R136: 6.427084187 | S136: 3.445652098 | T136: 4.51208559 | U136: 5.483372651 | BB136: Septic tank connection | BC136: N/A | BD136: N/A | BE136: N/A | BF136: N/A | BG136: N/A | BH136: N/A | BI136: N/A | BJ136: N/A | BK136: N/A | BL136: N/A | BM136: N/A | BN136: N/A | BO136: N/A | BP136: N/A | BQ136: N/A | BR136: N/A | BS136: N/A | BT136: N/A | BU136: N/A
B137: Improved latrines | C137: 58.00696989 | D137: 59.80765739 | E137: 53.97354707 | F137: 42.46771175 | G137: 16.69192008 | H137: 49.61292941 | I137: 30.58019439 | J137: 17.53620644 | K137: 11.17015816 | L137: 2.422065677 | M137: 55.83500042 | N137: 62.20426502 | O137: 62.13972037 | P137: 61.71913479 | Q137: 59.99855422 | R137: 54.19860582 | S137: 7.821531533 | T137: 57.71343626 | U137: 52.88796161 | BB137: Improved latrines | BC137: N/A | BD137: N/A | BE137: N/A | BF137: N/A | BG137: N/A | BH137: N/A | BI137: N/A | BJ137: N/A | BK137: N/A | BL137: N/A | BM137: N/A | BN137: N/A | BO137: N/A | BP137: N/A | BQ137: N/A | BR137: N/A | BS137: N/A | BT137: N/A | BU137: N/A
B138: Unimproved facilities | C138: 38.6763009 | D138: 31.31179711 | E138: 23.23637485 | F138: 11.37112355 | G138: 2.86019947 | H138: 12.88319716 | I138: 6.965424048 | J138: 2.631704527 | K138: 1.119393737 | L138: 0.1019929584 | M138: 42.47304852 | N138: 35.89750496 | O138: 34.64669806 | P138: 28.1232442 | Q138: 15.95899158 | R138: 29.10926828 | S138: 1.008051288 | T138: 21.25383914 | U138: 30.31519725 | BB138: Unimproved facilities | BC138: N/A | BD138: N/A | BE138: N/A | BF138: N/A | BG138: N/A | BH138: N/A | BI138: N/A | BJ138: N/A | BK138: N/A | BL138: N/A | BM138: N/A | BN138: N/A | BO138: N/A | BP138: N/A | BQ138: N/A | BR138: N/A | BS138: N/A | BT138: N/A | BU138: N/A
B139: Open defecation | C139: 0.5159994603 | D139: 0 | E139: 0 | F139: 0 | G139: 0 | H139: 0.05633201079 | I139: 0 | J139: 0 | K139: 0 | L139: 0 | M139: 0.7873299801 | N139: 0 | O139: 0 | P139: 0 | Q139: 0 | R139: 0.06389399772 | S139: 0 | T139: 0.2529573264 | U139: 0.02185009649 | BB139: Open defecation | BC139: N/A | BD139: N/A | BE139: N/A | BF139: N/A | BG139: N/A | BH139: N/A | BI139: N/A | BJ139: N/A | BK139: N/A | BL139: N/A | BM139: N/A | BN139: N/A | BO139: N/A | BP139: N/A | BQ139: N/A | BR139: N/A | BS139: N/A | BT139: N/A | BU139: N/A
A140: Septic tank emptying practices | B140: Not emptied/treated and disposed in situ | C140: N/A | D140: N/A | E140: N/A | F140: N/A | G140: N/A | H140: N/A | I140: N/A | J140: N/A | K140: N/A | L140: N/A | M140: N/A | N140: N/A | O140: N/A | P140: N/A | Q140: N/A | R140: N/A | S140: N/A | T140: N/A | U140: N/A | BA140: Septic tank emptying practices | BB140: Not emptied/treated and disposed in situ | BC140: N/A | BD140: N/A | BE140: N/A | BF140: N/A | BG140: N/A | BH140: N/A | BI140: N/A | BJ140: N/A | BK140: N/A | BL140: N/A | BM140: N/A | BN140: N/A | BO140: N/A | BP140: N/A | BQ140: N/A | BR140: N/A | BS140: N/A | BT140: N/A | BU140: N/A
B141: Emptied and buried on site | C141: N/A | D141: N/A | E141: N/A | F141: N/A | G141: N/A | H141: N/A | I141: N/A | J141: N/A | K141: N/A | L141: N/A | M141: N/A | N141: N/A | O141: N/A | P141: N/A | Q141: N/A | R141: N/A | S141: N/A | T141: N/A | U141: N/A | BB141: Emptied and buried on site | BC141: N/A | BD141: N/A | BE141: N/A | BF141: N/A | BG141: N/A | BH141: N/A | BI141: N/A | BJ141: N/A | BK141: N/A | BL141: N/A | BM141: N/A | BN141: N/A | BO141: N/A | BP141: N/A | BQ141: N/A | BR141: N/A | BS141: N/A | BT141: N/A | BU141: N/A
B142: Emptied and discharged locally | C142: N/A | D142: N/A | E142: N/A | F142: N/A | G142: N/A | H142: N/A | I142: N/A | J142: N/A | K142: N/A | L142: N/A | M142: N/A | N142: N/A | O142: N/A | P142: N/A | Q142: N/A | R142: N/A | S142: N/A | T142: N/A | U142: N/A | BB142: Emptied and discharged locally | BC142: N/A | BD142: N/A | BE142: N/A | BF142: N/A | BG142: N/A | BH142: N/A | BI142: N/A | BJ142: N/A | BK142: N/A | BL142: N/A | BM142: N/A | BN142: N/A | BO142: N/A | BP142: N/A | BQ142: N/A | BR142: N/A | BS142: N/A | BT142: N/A | BU142: N/A
B143: Emptied and removed offsite | C143: N/A | D143: N/A | E143: N/A | F143: N/A | G143: N/A | H143: N/A | I143: N/A | J143: N/A | K143: N/A | L143: N/A | M143: N/A | N143: N/A | O143: N/A | P143: N/A | Q143: N/A | R143: N/A | S143: N/A | T143: N/A | U143: N/A | BB143: Emptied and removed offsite | BC143: N/A | BD143: N/A | BE143: N/A | BF143: N/A | BG143: N/A | BH143: N/A | BI143: N/A | BJ143: N/A | BK143: N/A | BL143: N/A | BM143: N/A | BN143: N/A | BO143: N/A | BP143: N/A | BQ143: N/A | BR143: N/A | BS143: N/A | BT143: N/A | BU143: N/A
A144: Latrine emptying practices | B144: Not emptied/treated and disposed in situ | C144: N/A | D144: N/A | E144: N/A | F144: N/A | G144: N/A | H144: N/A | I144: N/A | J144: N/A | K144: N/A | L144: N/A | M144: N/A | N144: N/A | O144: N/A | P144: N/A | Q144: N/A | R144: N/A | S144: N/A | T144: N/A | U144: N/A | BA144: Latrine emptying practices | BB144: Not emptied/treated and disposed in situ | BC144: N/A | BD144: N/A | BE144: N/A | BF144: N/A | BG144: N/A | BH144: N/A | BI144: N/A | BJ144: N/A | BK144: N/A | BL144: N/A | BM144: N/A | BN144: N/A | BO144: N/A | BP144: N/A | BQ144: N/A | BR144: N/A | BS144: N/A | BT144: N/A | BU144: N/A
B145: Emptied and buried on site | C145: N/A | D145: N/A | E145: N/A | F145: N/A | G145: N/A | H145: N/A | I145: N/A | J145: N/A | K145: N/A | L145: N/A | M145: N/A | N145: N/A | O145: N/A | P145: N/A | Q145: N/A | R145: N/A | S145: N/A | T145: N/A | U145: N/A | BB145: Emptied and buried on site | BC145: N/A | BD145: N/A | BE145: N/A | BF145: N/A | BG145: N/A | BH145: N/A | BI145: N/A | BJ145: N/A | BK145: N/A | BL145: N/A | BM145: N/A | BN145: N/A | BO145: N/A | BP145: N/A | BQ145: N/A | BR145: N/A | BS145: N/A | BT145: N/A | BU145: N/A
B146: Emptied and discharged locally | C146: N/A | D146: N/A | E146: N/A | F146: N/A | G146: N/A | H146: N/A | I146: N/A | J146: N/A | K146: N/A | L146: N/A | M146: N/A | N146: N/A | O146: N/A | P146: N/A | Q146: N/A | R146: N/A | S146: N/A | T146: N/A | U146: N/A | BB146: Emptied and discharged locally | BC146: N/A | BD146: N/A | BE146: N/A | BF146: N/A | BG146: N/A | BH146: N/A | BI146: N/A | BJ146: N/A | BK146: N/A | BL146: N/A | BM146: N/A | BN146: N/A | BO146: N/A | BP146: N/A | BQ146: N/A | BR146: N/A | BS146: N/A | BT146: N/A | BU146: N/A
B147: Emptied and removed offsite | C147: N/A | D147: N/A | E147: N/A | F147: N/A | G147: N/A | H147: N/A | I147: N/A | J147: N/A | K147: N/A | L147: N/A | M147: N/A | N147: N/A | O147: N/A | P147: N/A | Q147: N/A | R147: N/A | S147: N/A | T147: N/A | U147: N/A | BB147: Emptied and removed offsite | BC147: N/A | BD147: N/A | BE147: N/A | BF147: N/A | BG147: N/A | BH147: N/A | BI147: N/A | BJ147: N/A | BK147: N/A | BL147: N/A | BM147: N/A | BN147: N/A | BO147: N/A | BP147: N/A | BQ147: N/A | BR147: N/A | BS147: N/A | BT147: N/A | BU147: N/A
A148: Shared among improved sanitation facilities | B148: Yes | C148: 8.241170532 | D148: 9.252589343 | E148: 8.975436045 | F148: 10.40650242 | G148: 6.829051083 | H148: 19.64735865 | I148: 11.53315182 | J148: 9.349898724 | K148: 8.546548536 | L148: 4.469749791 | M148: 5.991484645 | N148: 7.530025942 | O148: 6.378194477 | P148: 8.644444339 | Q148: 9.333252351 | R148: 6.068818302 | S148: 12.54571806 | T148: 10.24208432 | U148: 6.687164261 | BA148: Shared among improved sanitation facilities | BB148: Yes | BC148: N/A | BD148: N/A | BE148: N/A | BF148: N/A | BG148: N/A | BH148: N/A | BI148: N/A | BJ148: N/A | BK148: N/A | BL148: N/A | BM148: N/A | BN148: N/A | BO148: N/A | BP148: N/A | BQ148: N/A | BR148: N/A | BS148: N/A | BT148: N/A | BU148: N/A
B149: No | C149: 52.56652911 | D149: 59.43561355 | E149: 67.7881891 | F149: 78.22237403 | G149: 90.31074945 | H149: 67.41311218 | I149: 81.50142413 | J149: 88.01839675 | K149: 90.33405773 | L149: 95.42825725 | M149: 50.74813685 | N149: 56.5724691 | O149: 58.97510746 | P149: 63.23231146 | Q149: 74.70775607 | R149: 64.75801942 | S149: 86.44623065 | T149: 68.25111922 | U149: 62.97578839 | BB149: No | BC149: N/A | BD149: N/A | BE149: N/A | BF149: N/A | BG149: N/A | BH149: N/A | BI149: N/A | BJ149: N/A | BK149: N/A | BL149: N/A | BM149: N/A | BN149: N/A | BO149: N/A | BP149: N/A | BQ149: N/A | BR149: N/A | BS149: N/A | BT149: N/A | BU149: N/A
B150: DK/missing | C150: 39.19230036 | D150: 31.31179711 | E150: 23.23637485 | F150: 11.37112355 | G150: 2.86019947 | H150: 12.93952917 | I150: 6.965424048 | J150: 2.631704527 | K150: 1.119393737 | L150: 0.1019929584 | M150: 43.2603785 | N150: 35.89750496 | O150: 34.64669806 | P150: 28.1232442 | Q150: 15.95899158 | R150: 29.17316227 | S150: 1.008051288 | T150: 21.50679646 | U150: 30.33704735 | BB150: DK/missing | BC150: N/A | BD150: N/A | BE150: N/A | BF150: N/A | BG150: N/A | BH150: N/A | BI150: N/A | BJ150: N/A | BK150: N/A | BL150: N/A | BM150: N/A | BN150: N/A | BO150: N/A | BP150: N/A | BQ150: N/A | BR150: N/A | BS150: N/A | BT150: N/A | BU150: N/A
A151: Shared among all sanitation facilities | B151: Yes | C151: 12.07647889 | D151: 12.5158234 | E151: 11.06761142 | F151: 11.60222843 | G151: 7.06492784 | H151: 21.0144444 | I151: 12.45549811 | J151: 9.738826142 | K151: 8.751175002 | L151: 4.469749791 | M151: 10.43589614 | N151: 11.24148696 | O151: 9.405345986 | P151: 11.48595003 | Q151: 10.50812829 | R151: 9.652900748 | S151: 12.72440808 | T151: 12.2405061 | U151: 8.660407034 | BA151: Shared among all sanitation facilities | BB151: Yes | BC151: N/A | BD151: N/A | BE151: N/A | BF151: N/A | BG151: N/A | BH151: N/A | BI151: N/A | BJ151: N/A | BK151: N/A | BL151: N/A | BM151: N/A | BN151: N/A | BO151: N/A | BP151: N/A | BQ151: N/A | BR151: N/A | BS151: N/A | BT151: N/A | BU151: N/A
B152: No | C152: 87.92352111 | D152: 87.4841766 | E152: 88.93238858 | F152: 88.39777157 | G152: 92.93507216 | H152: 78.9855556 | I152: 87.54450189 | J152: 90.26117386 | K152: 91.248825 | L152: 95.53025021 | M152: 89.56410386 | N152: 88.75851304 | O152: 90.59465401 | P152: 88.51404997 | Q152: 89.49187171 | R152: 90.34709925 | S152: 87.27559192 | T152: 87.7594939 | U152: 91.33959297 | BB152: No | BC152: N/A | BD152: N/A | BE152: N/A | BF152: N/A | BG152: N/A | BH152: N/A | BI152: N/A | BJ152: N/A | BK152: N/A | BL152: N/A | BM152: N/A | BN152: N/A | BO152: N/A | BP152: N/A | BQ152: N/A | BR152: N/A | BS152: N/A | BT152: N/A | BU152: N/A
A153: Type of toilet facility | B153: Flush to piped sewer system | C153: 2.438208363 | D153: 7.536896781 | E153: 17.73208773 | F153: 36.11200473 | G153: 71.89895378 | H153: 33.35220284 | I153: 55.33429926 | J153: 71.34037844 | K153: 78.58884959 | L153: 93.58019401 | M153: 0.6978186528 | N153: 1.342385163 | O153: 1.708200127 | P153: 4.941700545 | Q153: 10.52378439 | R153: 10.20114772 | S153: 87.72476508 | T153: 16.26768168 | U153: 11.2916184 | BA153: Type of toilet facility | BB153: Flush to piped sewer system | BC153: 140.4405415 | BD153: 433.8494029 | BE153: 1020.925379 | BF153: 2080.277958 | BG153: 4137.316038 | BH153: 714.5648358 | BI153: 1185.867741 | BJ153: 1529.387721 | BK153: 1683.530878 | BL153: 2005.065236 | BM153: 25.27279263 | BN153: 48.43963293 | BO153: 61.76076274 | BP153: 178.6808489 | BQ153: 380.2388711 | BR153: 885.9563872 | BS153: 4826.242739 | BT153: 1476.910968 | BU153: 623.6992248
B154: Flush to septic tank | C154: 0.3625213867 | D154: 1.343648725 | E154: 5.057990344 | F154: 10.04915996 | G154: 8.548926663 | H154: 4.095338577 | I154: 7.120082303 | J154: 8.491710588 | K154: 9.121598521 | L154: 3.895747354 | M154: 0.2068024208 | N154: 0.5558448598 | O154: 1.505381439 | P154: 5.215920461 | Q154: 13.51866981 | R154: 6.427084187 | S154: 3.445652098 | T154: 4.51208559 | U154: 5.483372651 | BB154: Flush to septic tank | BC154: 20.88119318 | BD154: 77.3449888 | BE154: 291.2139161 | BF154: 578.8946398 | BG154: 491.934994 | BH154: 87.74187874 | BI154: 152.5902746 | BJ154: 182.0444212 | BK154: 195.4029464 | BL154: 83.47094883 | BM154: 7.489732 | BN154: 20.05752277 | BO154: 54.42775959 | BP154: 188.5960283 | BQ154: 488.4482194 | BR154: 558.1838872 | BS154: 189.5650949 | BT154: 409.6434162 | BU154: 302.8773336
B155: Flush to pit (latrine) | C155: 0.3464674626 | D155: 0.4856528899 | E155: 1.361666658 | F155: 2.126612081 | G155: 2.596320498 | H155: 0.9055195773 | I155: 1.656874312 | J155: 2.403653665 | K155: 2.88435424 | L155: 1.230221388 | M155: 0.2955960161 | N155: 0.1695597987 | O155: 0.7587351803 | P155: 1.305217766 | Q155: 3.104826692 | R155: 1.063371187 | S155: 0.3658994031 | T155: 1.142089803 | U155: 3.295829577 | BB155: Flush to pit (latrine) | BC155: 19.95648887 | BD155: 27.95583148 | BE155: 78.39799069 | BF155: 122.5061935 | BG155: 149.4013177 | BH155: 19.40059105 | BI155: 35.50842469 | BJ155: 51.52928089 | BK155: 61.78865642 | BL155: 26.35893378 | BM155: 10.70555621 | BN155: 6.118522936 | BO155: 27.43242007 | BP155: 47.19375776 | BQ155: 112.1816784 | BR155: 92.35240205 | BS155: 20.13022589 | BT155: 103.688097 | BU155: 182.0470972
B156: Flush to somewhere else | C156: 0.01054490406 | D156: 0.02124459218 | E156: 0.09648048455 | F156: 0.04969383394 | G156: 0.0379768229 | H156: 0.0283496169 | I156: 0.07832266296 | J156: 0 | K156: 0 | L156: 0.1019929584 | M156: 0 | N156: 0.03388996616 | O156: 0 | P156: 0.1536285821 | Q156: 0.03277333325 | R156: 0.01408093612 | S156: 0.03972169824 | T156: 0.07967345426 | U156: 0.03243436168 | BB156: Flush to somewhere else | BC156: 0.6073853485 | BD156: 1.222910954 | BE156: 5.554866226 | BF156: 2.862676503 | BG156: 2.185318565 | BH156: 0.6073853485 | BI156: 1.678530688 | BJ156: 0 | BK156: 0 | BL156: 2.185318565 | BM156: 0 | BN156: 1.222910954 | BO156: 0 | BP156: 5.554866226 | BQ156: 1.184145814 | BR156: 1.222910954 | BS156: 2.185318565 | BT156: 7.233396914 | BU156: 1.791531163
B157: Flush to unknown place / Not sure / DK where | C157: 0 | D157: 0.09688054665 | E157: 0 | F157: 0.02314144758 | G157: 0.1615234719 | H157: 0 | I157: 0 | J157: 0.0621839207 | K157: 0 | L157: 0 | M157: 0 | N157: 0.05151551697 | O157: 0.1028295315 | P157: 0 | Q157: 0.2572451508 | R157: 0.1865829824 | S157: 0 | T157: 0 | U157: 0 | BB157: Flush to unknown place / Not sure / DK where | BC157: 0 | BD157: 5.576773643 | BE157: 0 | BF157: 1.333092518 | BG157: 9.294622739 | BH157: 0 | BI157: 0 | BJ157: 1.333092518 | BK157: 0 | BL157: 0 | BM157: 0 | BN157: 1.858924548 | BO157: 3.717849096 | BP157: 0 | BQ157: 9.294622739 | BR157: 16.2044889 | BS157: 0 | BT157: 0 | BU157: 0
B158: Ventilated Improved Pit latrine (VIP) | C158: 0.2312729915 | D158: 1.095223729 | E158: 1.393671135 | F158: 3.421300423 | G158: 0.9528088811 | H158: 0.9424907309 | I158: 1.953593207 | J158: 1.272382648 | K158: 0.4373350198 | L158: 0.03475095235 | M158: 0.07677365083 | N158: 0.592338122 | O158: 1.55481847 | P158: 0.9243350384 | Q158: 5.404737636 | R158: 1.766084068 | S158: 0.4715078444 | T158: 1.364841054 | U158: 1.906186728 | BB158: Ventilated Improved Pit latrine (VIP) | BC158: 13.32129963 | BD158: 63.04480145 | BE158: 80.2406492 | BF158: 197.0883619 | BG158: 54.82793918 | BH158: 20.19269125 | BI158: 41.86739862 | BJ158: 27.27720879 | BK158: 9.368593811 | BL158: 0.7445798461 | BM158: 2.780499703 | BN158: 21.37437301 | BO158: 56.21517824 | BP158: 33.42188945 | BQ158: 195.2806387 | BR158: 153.3821001 | BS158: 25.94035229 | BT158: 123.911247 | BU158: 105.289352
B159: Pit latrine with slab | C159: 57.27791696 | D159: 58.12990022 | E159: 51.08224838 | F159: 36.78937445 | G159: 12.98126723 | H159: 47.56190971 | I159: 26.96972687 | J159: 13.67356584 | K159: 7.848468895 | L159: 1.157093336 | M159: 55.46263076 | N159: 61.16944746 | O159: 59.72333719 | P159: 59.37329209 | Q159: 51.13451949 | R159: 51.12091265 | S159: 6.878663927 | T159: 55.2065054 | U159: 47.47653145 | BB159: Pit latrine with slab | BC159: 3299.201904 | BD159: 3346.154689 | BE159: 2941.061683 | BF159: 2119.298702 | BG159: 746.9872966 | BH159: 1019.005202 | BI159: 577.9874241 | BJ159: 293.132503 | BK159: 168.1299548 | BL159: 24.79207965 | BM159: 2008.681711 | BN159: 2207.284215 | BO159: 2159.324776 | BP159: 2146.805565 | BQ159: 1847.560843 | BR159: 4439.784653 | BS159: 378.4347761 | BT159: 5012.090533 | BU159: 2622.394312
B160: Pit latrine without slab / Open pit | C160: 35.53874339 | D160: 29.77630894 | E160: 21.77684388 | F160: 11.06202958 | G160: 2.604184398 | H160: 11.68792223 | I160: 6.515258494 | J160: 2.585309444 | K160: 1.119393737 | L160: 0 | M160: 38.95893817 | N160: 34.1154517 | O160: 32.42114492 | P160: 26.76804518 | Q160: 15.23376611 | R160: 28.65524228 | S160: 0.9038985466 | T160: 17.64436879 | U160: 30.08304937 | BB160: Pit latrine without slab / Open pit | BC160: 2047.027826 | BD160: 1714.025577 | BE160: 1253.802312 | BF160: 637.2422818 | BG160: 149.8538339 | BH160: 250.4115926 | BI160: 139.6283133 | BJ160: 55.42359887 | BK160: 23.97966035 | BL160: 0 | BM160: 1410.969972 | BN160: 1231.047543 | BO160: 1172.201434 | BP160: 967.8726972 | BQ160: 550.4170186 | BR160: 2488.670454 | BS160: 49.7286461 | BT160: 1601.897695 | BU160: 1661.655036
B161: Composting toilet | C161: 0.1513124782 | D161: 0 | E161: 0.1359608965 | F161: 0.1072833484 | G161: 0 | H161: 0.2030093962 | I161: 0 | J161: 0.1244203673 | K161: 0 | L161: 0 | M161: 0 | N161: 0.2214041228 | O161: 0 | P161: 0.1162899012 | Q161: 0.09722525057 | R161: 0.06165493103 | S161: 0.1054603585 | T161: 0 | U161: 0.2094138562 | BB161: Composting toilet | BC161: 8.715582597 | BD161: 0 | BE161: 7.827951894 | BF161: 6.180193723 | BG161: 0 | BH161: 4.349439123 | BI161: 0 | BJ161: 2.667311082 | BK161: 0 | BL161: 0 | BM161: 0 | BN161: 7.989312405 | BO161: 0 | BP161: 4.204782963 | BQ161: 3.512882642 | BR161: 5.354650423 | BS161: 5.801979507 | BT161: 0 | BU161: 11.56709828
